Workbook

Sheet 1. Analisis Flujo Uniforme
A2: TESIS: | C2: Control de escorrentías urbanas mediante pozos de infiltración: Aplicación práctica a un tramo del Colector de aguas lluvias de la localidad de Fontibón Bogotá D.C.
A4: Nombre del proyecto:
A5: Fecha: | C5: =TODAY() -> 2016-08-31
A7: Diseñador: | C7: Duván Cubides
A9: Esta hoja de cálculo permite diseñar a flujo libre y comprobar alcantarillados pluviales por analisis del flujo uniforme, onda cinemática u onda dinámica, generando el modelo hidráulico e hidrologico en el Software gratuito desarrollado por la EPA (United States Environmental Protection Agency), EPA SWMM.
D11: Parámetros hidráulicos de entrada | J11: Parámetros hidrológicos de entrada
A13: Tiempo de concentración incial (SCS) | I13: Constantes IDF Proyecto
A15: Cobertura de la superficie | C15: Pendiente % | D15: a | E15: Velocidad(m/s) | F15: Longitud (m) | G15: Tc(minutos) | I15: TR | J15: C1 | K15: Xo | L15: C2
A16: Antejardín | C16: 2.5 | D16: 2 | E16: =D16*(C16/100)^0.5 -> 0.316227766 | F16: 5.2 | G16: =F16/E16/60 -> 0.2740640639 | I16: 3 | J16: 2336.26 | K16: 18.1 | L16: -1.02
A17: Tejado | C17: 25 | D17: 2.7 | E17: =D17*(C17/100)^0.5 -> 1.35 | F17: 12.5 | G17: =F17/E17/60 -> 0.1543209877 | I17: 5 | J17: 2558.88 | K17: 17.5 | L17: -1.01
A18: Vía | C18: 0.3 | D18: 6.5 | E18: =D18*(C18/100)^0.5 -> 0.3560196624 | F18: 110.6 | G18: =F18/E18/60 -> 5.177616655 | I18: 10 | J18: 3261.18 | K18: 18.7 | L18: -1.03
F19: Tc | G19: =IF(SUM(G16:G18)<10,10,SUM(G16:G18)) -> 10
A21: Elija la metodologia para la determinación de caudales
B23: Areas aferentes y caudales por nodos | F23: ◄
FT25: 1 si
BQ26: R min = | BR26: 1.2 | CA26: Ʈ min = | CB26: 0.15 | CC26: 0.3
A27: INFORMACIÓN DE LOS POZOS | K27: DETERMINACIÓN DEL CAUDAL | BD27: DISEÑO HIDRÁULICO | CE27: PROCESAMIENTO Y RESULTADOS
A28: Camara | B28: Tipo 1 Pozo 2 Descarga 3 Divisor | C28: Tipo de descarga ó divisor | D28: Descarga a la salida | E28: Profunidad fija del pozo | F28: Coordenadas | H28: Cotas | K28: Identificador de pozo/camara inicial 1 ó "" | L28: Camaras | N28: Cota rasante | P28: Cota rasante | R28: Longitud del tramo | S28: Caudales por nodo | T28: Areas tributaria aguas lluvias | X28: Punto mas alejado | AB28: Periodo de Retorno | AD28: Coeficiente de Escorrentía | AN28: Cálculo caudal aguas lluvias | BD28: Camaras | BF28: Longitud del tramo | BG28: Material de la tubería | BH28: Coeficiente de rugosidad de manning | BI28: Diametro interior adoptado | BJ28: Diametro interior | BK28: Pendiente del terreno | BL28: Pendiente | BM28: Numero de Froude | BN28: Tipo de Flujo | BO28: Relación de caudales | BP28: Velocidad Real | BQ28: Recrubimiento | BS28: Caida Adicional en el pozo inicial | BT28: Cota clave restrictiva | BV28: Cota clave | BX28: Cota Batea | BZ28: Cota de energía | CB28: Esfuerzo Cortante | CC28: Esfuerzo Cortante | CE28: Camaras | CG28: Caudal de Salida | CH28: Diámetro tubería de salida | CI28: Tubo lleno | CK28: Relaciones Hidráulicas | CM28: Profundidad Lámina | CN28: Velocidad Real | CO28: Teta | CP28: Area Sección | CQ28: Perimetro Mojado | CR28: Radio hidráulico | CS28: Profundidad hidráulica | CT28: Número de Froude | CU28: Tipo de Flujo | CV28: Cabeza de Velocidad | CW28: Energía | CY28: Análisis para el Flujo Subcrítico | DC28: Diametro del pozo | DD28: Relación | DE28: Análisis para el Flujo Supercrítico | DL28: Caída en el tramo | DM28: Esfuerzo Cortante | DN28: Cota Rasante | DP28: Cota Terreno | DR28: Cota clave | DT28: Casilla que busca la cota inferior | DU28: Recubrimiento | DW28: Cotas Batea | DY28: Cota de energía
F29: Este | G29: Norte | H29: Cota rasante | I29: Cota terreno | L29: Inicial | M29: Final | N29: Inicial | O29: Final | P29: Inicial | Q29: Final | T29: Propia | U29: Otras | W29: Total | X29: Punto alto cuenca | Y29: Punto bajo cuenca | Z29: Distancia | AA29: Pendiente | AB29: Tr Calculado | AC29: Tr Adoptado | AD29: Caracteristica de la superficie | AF29: Propia | AG29: Caracteristica de la superficie | AI29: Otra | AJ29: Caracteristica de la superficie | AL29: Otra | AM29: Ponderado | AN29: Tiempo de entrada | AO29: Velocidad supuesta | AP29: Tiempo de transito | AQ29: Tiempo de concentración | AR29: Área de otros tramos | AS29: Área total del tramo | AT29: Área total acumulada | AU29: Intensidad de la lluvia | AV29: Caudal acumulado calculado aguas lluvias metodo areas aferentes | AW29: Caudal aguas lluvias de otros tramos metodo caudales por nodo | AX29: Caudal total calculado aguas lluvias metodo caudales por nodo | AY29: Caudal acumulado calculado aguas lluvias metodo caudales por nodo | AZ29: Caudal de diseño acumulado | BA29: Velocidad real | BB29: Tiempo transito real | BC29: Diferencia | BD29: Inicial | BE29: Final | BM29: NF | BO29: Qd/Qo | BP29: Vr | BQ29: Superior | BR29: Inferior | BT29: Superior | BU29: Inferior | BV29: Superior | BW29: Inferior | BX29: Superior | BY29: Inferior | BZ29: Superior | CA29: Inferior | CB29: Q 100% | CC29: Q 10% | CE29: Inicial | CF29: Final | CI29: Caudal | CJ29: Velocidad | CK29: Qd/Qo | CL29: Y/Diam | CM29: Y | CN29: Vr | CO29: θ | CP29: A | CQ29: P | CR29: Rh | CS29: Dh | CT29: NF | CV29: V²/2g | CW29: H1 | CX29: H2 | CY29: Relación Rc/Ø | CZ29: Pérdidas HC | DA29: Cabeza de Velocidad 0.2ΔHv | DB29: Caída en la batea Hp | DC29: Øp./Rc | DD29: Dpozo/DtubSal | DE29: Profundidad. Critíca Yc | DF29: Øp/Ø K | DG29: F =0.319 Qd / Ø ²˙⁵ | DH29: H'c | DI29: Hc | DJ29: He | DK29: Hw | DL29: S x L | DN29: Superior | DO29: Inferior | DP29: Superior | DQ29: Inferior | DR29: Superior | DS29: Inferior | DT29: Cota Inferior | DU29: Superior | DV29: Inferior | DW29: Superior | DX29: Inferior | DY29: Superior | DZ29: Inferior
E30: [m] | F30: [m] | G30: [m] | H30: [msnm] | I30: [msnm] | N30: [msnm] | O30: [msnm] | P30: [msnm] | Q30: [msnm] | R30: [m] | S30: [l/s] | T30: Ap [Ha] | U30: A1 [Ha] | V30: A2 [Ha] | W30: AT [Ha] | X30: [msnm] | Y30: [msnm] | Z30: [m] | AA30: [%] | AB30: [años] | AC30: [años] | AD30: Condición | AE30: Tipo | AF30: Cp | AG30: Condición | AH30: Tipo | AI30: C1 | AJ30: Condición | AK30: Tipo | AL30: C2 | AM30: CPONDERADO | AN30: [min] | AO30: [m/s] | AP30: [min] | AQ30: [min] | AR30: [Ha] | AS30: [Ha] | AT30: [Ha] | AU30: [l/s_Ha] | AV30: [l/s] | AW30: [l/s] | AX30: [l/s] | AY30: [l/s] | AZ30: [l/s] | BA30: [m/s] | BB30: [min] | BC30: [%] | BF30: [m] | BG30: [ ] | BH30: [ ] | BI30: Pulgadas | BJ30: [m] | BK30: [%] | BL30: [%] | BM30: [ ] | BN30: [ ] | BO30: [ ] | BP30: [m/s] | BQ30: [m] | BR30: [m] | BS30: [m] | BT30: [msnm] | BU30: [msnm] | BV30: [msnm] | BW30: [msnm] | BX30: [msnm] | BY30: [msnm] | BZ30: [msnm] | CA30: [msnm] | CB30: [Kg/m²] | CC30: [Kg/m²] | CG30: [l/s] | CH30: [m] | CI30: [l/s] | CJ30: [m/s] | CK30: [ ] | CL30: [ ] | CM30: [m] | CN30: [m/s] | CO30: [ ] | CP30: [m²] | CQ30: [m] | CR30: [m] | CS30: [m] | CT30: [ ] | CU30: [ ] | CV30: [m] | CW30: [m] | CX30: [m] | CY30: [m] | CZ30: [m] | DA30: [m] | DB30: [m] | DC30: [m] | DD30: [m] | DE30: [m] | DF30: [m] | DG30: [m] | DH30: [m] | DI30: [m] | DJ30: [m] | DK30: [m] | DL30: [m] | DM30: [Kg/m²] | DN30: [m] | DO30: [m] | DP30: [m] | DQ30: [m] | DR30: [msnm] | DS30: [msnm] | DT30: [msnm] | DU30: [m] | DV30: [m] | DW30: [m] | DX30: [m] | DY30: [m] | DZ30: [m]
A31: PD11 | B31: Tipo_1 | D31: No aplica | F31: 93393.9805 | G31: 107099.5592 | H31: 2544.2 | K31: 1 | L31: PD11 | M31: PD12 | N31: =IF(OR(L31="",M31=""),"",INDEX($A$31:$I$70,MATCH(L31,$A$31:$A$70,0),8)) -> 2544.2 | O31: =IF(OR(L31="",M31=""),"",INDEX($A$31:$I$70,MATCH(M31,$A$31:$A$70,0),8)) -> 2543.85 | P31: =IF(OR(L31="",M31=""),"",INDEX($A$31:$I$70,MATCH(L31,$A$31:$A$70,0),9)) -> 0 | Q31: =IF(OR(M31="",N31=""),"",INDEX($A$31:$I$70,MATCH(M31,$A$31:$A$70,0),9)) -> 0 | R31: =IF(OR(L31="",M31=""),"",IFERROR(SQRT(POWER(VLOOKUP(L31,$A$31:$G$70,6,FALSE)-VLOOKUP(M31,$A$31:$G$70,6,FALSE),2)+POWER(VLOOKUP(L31,$A$31:$G$70,7,FALSE)-VLOOKUP(M31,$A$31:$G$70,7,FALSE),2)),"Revise")) -> 99.82867462 | T31: 0.15607857 | W31: =IF(OR(L31="",M31=""),"",SUM(T31:V31)) -> 0.15607857 | X31: 0.5 | Y31: 0 | Z31: 100 | AA31: =IF(OR(X31="",Y31=""),"",IFERROR((X31-Y31)/Z31,"")) -> 0.005 | AB31: =IF(OR(L31="",M31=""),"",IF(W31<2,3,IF(W31<10,5,10))) -> 3 | AC31: 5 | AD31: AREAS DESARROLLADAS | AE31: =IF(OR($L31="",$M31=""),"",IF(AD31="","",IF(AD31="AREAS DESARROLLADAS","CONCRETO/TECHO",IF(OR($AA31="",$AA31=0),"",IF($AA31<=2%,"Plano i ≤ 2%",IF(AND($AA31>2%,$AA31<=7%),"Promedio 2 < i ≤ 7%",IF($AA31>7%,"i > 7%"))))))) -> CONCRETO/TECHO | AF31: =IF(OR($L31="",$M31=""),"",IF(AE31="","",IF(AE31="Elija","◄ Elija Tipo",IFERROR(INDEX(Coef_Area_desarrollada,MATCH(IF(AD31="AREAS DESARROLLADAS",AE31,AD31&"-"&AE31),Areas_desarrolladas,0),MATCH(IF($AC31="",$AB31,$AC31),Periodo_Retorno,0)),"")))) -> 0.8 | AH31: =IF(OR($L31="",$M31=""),"",IF(AG31="","",IF(AG31="AREAS DESARROLLADAS","CONCRETO/TECHO",IF(OR($AA31="",$AA31=0),"",IF($AA31<=2%,"Plano i ≤ 2%",IF(AND($AA31>2%,$AA31<=7%),"Promedio 2 < i ≤ 7%",IF($AA31>7%,"i > 7%"))))))) ->  | AI31: =IF(OR($L31="",$M31=""),"",IF(AH31="",0,IF(AH31="Elija","◄ Elija Tipo",IFERROR(INDEX(Coef_Area_desarrollada,MATCH(IF(AG31="AREAS DESARROLLADAS",AH31,AG31&"-"&AH31),Areas_desarrolladas,0),MATCH(IF($AC31="",$AB31,$AC31),Periodo_Retorno,0)),0)))) -> 0 | AK31: =IF(OR($L31="",$M31=""),"",IF(AJ31="","",IF(AJ31="AREAS DESARROLLADAS","CONCRETO/TECHO",IF(OR($AA31="",$AA31=0),"",IF($AA31<=2%,"Plano i ≤ 2%",IF(AND($AA31>2%,$AA31<=7%),"Promedio 2 < i ≤ 7%",IF($AA31>7%,"i > 7%"))))))) ->  | AL31: =IF(OR($L31="",$M31=""),"",IF(AK31="",0,IF(AK31="Elija","◄ Elija Tipo",IFERROR(INDEX(Coef_Area_desarrollada,MATCH(IF(AJ31="AREAS DESARROLLADAS",AK31,AJ31&"-"&AK31),Areas_desarrolladas,0),MATCH(IF($AC31="",$AB31,$AC31),Periodo_Retorno,0)),0)))) -> 0 | AM31: =IF(OR($L31="",$M31=""),"",IFERROR((AF31*T31+AI31*U31+AL31*V31)/W31,AF31)) -> 0.8 | AN31: =IF(OR(L31="",M31=""),"",IFERROR(IF((0.707*(1.1-AM31)*Z31^0.5)/((AA31)^(1/3))<$G$19,$G$19,((0.707*(1.1-AM31)*Z31^0.5)/((AA31)^(1/3)))),"")) -> 12.40368325 | AO31: 6.560666164 | AP31: =IF(OR(L31="",M31=""),"",IFERROR(R31/(AO31*60),0)) -> 0.2536040094 | AQ31: =IF(OR($L31="",$M31=""),"",IFERROR((AN31+AP31),"")) -> 12.65728725 | AS31: =IF(OR($L31="",$M31=""),"",AR31+W31) -> 0.15607857 | AT31: =IF(L31="","",IF(M30=L31,VLOOKUP(L31,$L$31:$AS$262,34,FALSE)+VLOOKUP(M30,$M$31:$AT$262,34,FALSE)+IFERROR(IF((INDEX($M$31:$AT$262,SMALL(IF(OFFSET($M$31:$AT$262,0,0,ROWS($M$31:$AT$262),1)=L31,ROW(OFFSET($M$31:$AT$262,0,0,ROWS($M$31:$AT$262),1))-ROW(OFFSET($M$31:$AT$262,0,0,1,1))+1,ROW(OFFSET($M$31:$AT$262,ROWS($M$31:$AT$262)-1,0,1,1))+1),1),34))=VLOOKUP(M30,$M$31:$AT$262,34,FALSE),(INDEX($M$31:$AT$262,SMALL(IF(OFFSET($M$31:$AT$262,0,0,ROWS($M$31:$AT$262),1)=L31,ROW(OFFSET($M$31:$AT$262,0,0,ROWS($M$31:$AT$262),1))-ROW(OFFSET($M$31:$AT$262,0,0,1,1))+1,ROW(OFFSET($M$31:$AT$262,ROWS($M$31:$AT$262)-1,0,1,1))+1),2),34))),0)+IFERROR(IF((INDEX($M$31:$AT$262,SMALL(IF(OFFSET($M$31:$AT$262,0,0,ROWS($M$31:$AT$262),1)=L31,ROW(OFFSET($M$31:$AT$262,0,0,ROWS($M$31:$AT$262),1))-ROW(OFFSET($M$31:$AT$262,0,0,1,1))+1,ROW(OFFSET($M$31:$AT$262,ROWS($M$31:$AT$262)-1,0,1,1))+1),1),34))=VLOOKUP(M30,$M$31:$AT$262,34,FALSE),(INDEX($M$31:$AT$262,SMALL(IF(OFFSET($M$31:$AT$262,0,0,ROWS($M$31:$AT$262),1)=L31,ROW(OFFSET($M$31:$AT$262,0,0,ROWS($M$31:$AT$262),1))-ROW(OFFSET($M$31:$AT$262,0,0,1,1))+1,ROW(OFFSET($M$31:$AT$262,ROWS($M$31:$AT$262)-1,0,1,1))+1),3),34))),0)+IFERROR(IF((INDEX($M$31:$AT$262,SMALL(IF(OFFSET($M$31:$AT$262,0,0,ROWS($M$31:$AT$262),1)=L31,ROW(OFFSET($M$31:$AT$262,0,0,ROWS($M$31:$AT$262),1))-ROW(OFFSET($M$31:$AT$262,0,0,1,1))+1,ROW(OFFSET($M$31:$AT$262,ROWS($M$31:$AT$262)-1,0,1,1))+1),1),34))=VLOOKUP(M30,$M$31:$AT$262,34,FALSE),(INDEX($M$31:$AT$262,SMALL(IF(OFFSET($M$31:$AT$262,0,0,ROWS($M$31:$AT$262),1)=L31,ROW(OFFSET($M$31:$AT$262,0,0,ROWS($M$31:$AT$262),1))-ROW(OFFSET($M$31:$AT$262,0,0,1,1))+1,ROW(OFFSET($M$31:$AT$262,ROWS($M$31:$AT$262)-1,0,1,1))+1),4),34))),0)+IFERROR(IF((INDEX($M$31:$AT$262,SMALL(IF(OFFSET($M$31:$AT$262,0,0,ROWS($M$31:$AT$262),1)=L31,ROW(OFFSET($M$31:$AT$262,0,0,ROWS($M$31:$AT$262),1))-ROW(OFFSET($M$31:$AT$262,0,0,1,1))+1,ROW(OFFSET($M$31:$AT$262,ROWS($M$31:$AT$262)-1,0,1,1))+1),1),34))=VLOOKUP(M30,$M$31:$AT$262,34,FALSE),(INDEX($M$31:$AT$262,SMALL(IF(OFFSET($M$31:$AT$262,0,0,ROWS($M$31:$AT$262),1)=L31,ROW(OFFSET($M$31:$AT$262,0,0,ROWS($M$31:$AT$262),1))-ROW(OFFSET($M$31:$AT$262,0,0,1,1))+1,ROW(OFFSET($M$31:$AT$262,ROWS($M$31:$AT$262)-1,0,1,1))+1),5),34))),0)+IFERROR(IF((INDEX($M$31:$AT$262,SMALL(IF(OFFSET($M$31:$AT$262,0,0,ROWS($M$31:$AT$262),1)=L31,ROW(OFFSET($M$31:$AT$262,0,0,ROWS($M$31:$AT$262),1))-ROW(OFFSET($M$31:$AT$262,0,0,1,1))+1,ROW(OFFSET($M$31:$AT$262,ROWS($M$31:$AT$262)-1,0,1,1))+1),1),34))=VLOOKUP(M30,$M$31:$AT$262,34,FALSE),(INDEX($M$31:$AT$262,SMALL(IF(OFFSET($M$31:$AT$262,0,0,ROWS($M$31:$AT$262),1)=L31,ROW(OFFSET($M$31:$AT$262,0,0,ROWS($M$31:$AT$262),1))-ROW(OFFSET($M$31:$AT$262,0,0,1,1))+1,ROW(OFFSET($M$31:$AT$262,ROWS($M$31:$AT$262)-1,0,1,1))+1),6),34))),0)+IFERROR(IF((INDEX($M$31:$AT$262,SMALL(IF(OFFSET($M$31:$AT$262,0,0,ROWS($M$31:$AT$262),1)=L31,ROW(OFFSET($M$31:$AT$262,0,0,ROWS($M$31:$AT$262),1))-ROW(OFFSET($M$31:$AT$262,0,0,1,1))+1,ROW(OFFSET($M$31:$AT$262,ROWS($M$31:$AT$262)-1,0,1,1))+1),1),34))=VLOOKUP(M30,$M$31:$AT$262,34,FALSE),(INDEX($M$31:$AT$262,SMALL(IF(OFFSET($M$31:$AT$262,0,0,ROWS($M$31:$AT$262),1)=L31,ROW(OFFSET($M$31:$AT$262,0,0,ROWS($M$31:$AT$262),1))-ROW(OFFSET($M$31:$AT$262,0,0,1,1))+1,ROW(OFFSET($M$31:$AT$262,ROWS($M$31:$AT$262)-1,0,1,1))+1),7),34))),0)+IFERROR(IF((INDEX($M$31:$AT$262,SMALL(IF(OFFSET($M$31:$AT$262,0,0,ROWS($M$31:$AT$262),1)=L31,ROW(OFFSET($M$31:$AT$262,0,0,ROWS($M$31:$AT$262),1))-ROW(OFFSET($M$31:$AT$262,0,0,1,1))+1,ROW(OFFSET($M$31:$AT$262,ROWS($M$31:$AT$262)-1,0,1,1))+1),1),34))=VLOOKUP(M30,$M$31:$AT$262,34,FALSE),(INDEX($M$31:$AT$262,SMALL(IF(OFFSET($M$31:$AT$262,0,0,ROWS($M$31:$AT$262),1)=L31,ROW(OFFSET($M$31:$AT$262,0,0,ROWS($M$31:$AT$262),1))-ROW(OFFSET($M$31:$AT$262,0,0,1,1))+1,ROW(OFFSET($M$31:$AT$262,ROWS($M$31:$AT$262)-1,0,1,1))+1),8),34))),0)+IFERROR(IF((INDEX($M$31:$AT$262,SMALL(IF(OFFSET($M$31:$AT$262,0,0,ROWS($M$31:$AT$262),1)=L31,ROW(OFFSET($M$31:$AT$262,0,0,ROWS($M$31:$AT$262),1))-ROW(OFFSET($M$31:$AT$262,0,0,1,1))+1,ROW(OFFSET($M$31:$AT$262,ROWS($M$31:$AT$262)-1,0,1,1))+1),1),34))=VLOOKUP(M30,$M$31:$AT$262,34,FALSE),(INDEX($M$31:$AT$262,SMALL(IF(OFFSET($M$31:$AT$262,0,0,ROWS($M$31:$AT$262),1)=L31,ROW(OFFSET($M$31:$AT$262,0,0,ROWS($M$31:$AT$262),1))-ROW(OFFSET($M$31:$AT$262,0,0,1,1))+1,ROW(OFFSET($M$31:$AT$262,ROWS($M$31:$AT$262)-1,0,1,1))+1),9),34))),0)+IFERROR(IF((INDEX($M$31:$AT$262,SMALL(IF(OFFSET($M$31:$AT$262,0,0,ROWS($M$31:$AT$262),1)=L31,ROW(OFFSET($M$31:$AT$262,0,0,ROWS($M$31:$AT$262),1))-ROW(OFFSET($M$31:$AT$262,0,0,1,1))+1,ROW(OFFSET($M$31:$AT$262,ROWS($M$31:$AT$262)-1,0,1,1))+1),1),34))=VLOOKUP(M30,$M$31:$AT$262,34,FALSE),(INDEX($M$31:$AT$262,SMALL(IF(OFFSET($M$31:$AT$262,0,0,ROWS($M$31:$AT$262),1)=L31,ROW(OFFSET($M$31:$AT$262,0,0,ROWS($M$31:$AT$262),1))-ROW(OFFSET($M$31:$AT$262,0,0,1,1))+1,ROW(OFFSET($M$31:$AT$262,ROWS($M$31:$AT$262)-1,0,1,1))+1),10),34))),0),IF(M30<>L31,VLOOKUP(L31,$L$31:$AS$262,34,FALSE)+IFERROR(VLOOKUP(L31,$M$31:$AT$262,34,FALSE),0)))) -> 0.15607857 | AU31: =IF(OR(L31="",M31=""),"",IFERROR(IF(AC31="",IF(AB31=3,$J$16*(AQ31+$K$16)^($L$16),IF(AB31=5,$J$17*(AQ31+$K$17)^($L$17),IF(AB31=10,$J$18*(AQ31+$K$18)^($L$18)))),IF(AC31=3,$J$16*(AQ31+$K$16)^($L$16),IF(AC31=5,$J$17*(AQ31+$K$17)^($L$17),IF(AC31=10,$J$18*(AQ31+$K$18)^($L$18))))),"")) -> 82.00941698 | AV31: =IF(OR(L31="",M31=""),"",IF(OR($B$23="Determinación por areas aferentes",$B$23="Areas aferentes y caudales por nodos"),IFERROR(AM31*AU31*AT31,0),0)) -> 10.23993002 | AX31: =IF(OR(L31="",M31=""),"",IF(OR($B$23="Caudales fijos por nodo",$B$23="Areas aferentes y caudales por nodos"),S31+AW31,0)) -> 0 | AY31: =IF(L31="","",IF(ROW()=31,VLOOKUP(L31,$L$31:$AX$262,39,FALSE),IF(M30=L31,VLOOKUP(L31,$L$31:$AX$262,39,FALSE)+VLOOKUP(M30,$M$31:$AY$262,39,FALSE)+IFERROR(IF((INDEX($M$31:$AY$262,SMALL(IF(OFFSET($M$31:$AY$262,0,0,FILAX($M$31:$AY$262),1)=L31,ROW(OFFSET($M$31:$AY$262,0,0,FILAX($M$31:$AY$262),1))-ROW(OFFSET($M$31:$AY$262,0,0,1,1))+1,ROW(OFFSET($M$31:$AY$262,FILAX($M$31:$AY$262)-1,0,1,1))+1),1),39))=VLOOKUP(M30,$M$31:$AY$262,39,FALSE),(INDEX($M$31:$AY$262,SMALL(IF(OFFSET($M$31:$AY$262,0,0,FILAX($M$31:$AY$262),1)=L31,ROW(OFFSET($M$31:$AY$262,0,0,FILAX($M$31:$AY$262),1))-ROW(OFFSET($M$31:$AY$262,0,0,1,1))+1,ROW(OFFSET($M$31:$AY$262,FILAX($M$31:$AY$262)-1,0,1,1))+1),2),39))),0)+IFERROR(IF((INDEX($M$31:$AY$262,SMALL(IF(OFFSET($M$31:$AY$262,0,0,FILAX($M$31:$AY$262),1)=L31,ROW(OFFSET($M$31:$AY$262,0,0,FILAX($M$31:$AY$262),1))-ROW(OFFSET($M$31:$AY$262,0,0,1,1))+1,ROW(OFFSET($M$31:$AY$262,FILAX($M$31:$AY$262)-1,0,1,1))+1),1),39))=VLOOKUP(M30,$M$31:$AY$262,39,FALSE),(INDEX($M$31:$AY$262,SMALL(IF(OFFSET($M$31:$AY$262,0,0,FILAX($M$31:$AY$262),1)=L31,ROW(OFFSET($M$31:$AY$262,0,0,FILAX($M$31:$AY$262),1))-ROW(OFFSET($M$31:$AY$262,0,0,1,1))+1,ROW(OFFSET($M$31:$AY$262,FILAX($M$31:$AY$262)-1,0,1,1))+1),3),39))),0)+IFERROR(IF((INDEX($M$31:$AY$262,SMALL(IF(OFFSET($M$31:$AY$262,0,0,FILAX($M$31:$AY$262),1)=L31,ROW(OFFSET($M$31:$AY$262,0,0,FILAX($M$31:$AY$262),1))-ROW(OFFSET($M$31:$AY$262,0,0,1,1))+1,ROW(OFFSET($M$31:$AY$262,FILAX($M$31:$AY$262)-1,0,1,1))+1),1),39))=VLOOKUP(M30,$M$31:$AY$262,39,FALSE),(INDEX($M$31:$AY$262,SMALL(IF(OFFSET($M$31:$AY$262,0,0,FILAX($M$31:$AY$262),1)=L31,ROW(OFFSET($M$31:$AY$262,0,0,FILAX($M$31:$AY$262),1))-ROW(OFFSET($M$31:$AY$262,0,0,1,1))+1,ROW(OFFSET($M$31:$AY$262,FILAX($M$31:$AY$262)-1,0,1,1))+1),4),39))),0)+IFERROR(IF((INDEX($M$31:$AY$262,SMALL(IF(OFFSET($M$31:$AY$262,0,0,FILAX($M$31:$AY$262),1)=L31,ROW(OFFSET($M$31:$AY$262,0,0,FILAX($M$31:$AY$262),1))-ROW(OFFSET($M$31:$AY$262,0,0,1,1))+1,ROW(OFFSET($M$31:$AY$262,FILAX($M$31:$AY$262)-1,0,1,1))+1),1),39))=VLOOKUP(M30,$M$31:$AY$262,39,FALSE),(INDEX($M$31:$AY$262,SMALL(IF(OFFSET($M$31:$AY$262,0,0,FILAX($M$31:$AY$262),1)=L31,ROW(OFFSET($M$31:$AY$262,0,0,FILAX($M$31:$AY$262),1))-ROW(OFFSET($M$31:$AY$262,0,0,1,1))+1,ROW(OFFSET($M$31:$AY$262,FILAX($M$31:$AY$262)-1,0,1,1))+1),5),39))),0)+IFERROR(IF((INDEX($M$31:$AY$262,SMALL(IF(OFFSET($M$31:$AY$262,0,0,FILAX($M$31:$AY$262),1)=L31,ROW(OFFSET($M$31:$AY$262,0,0,FILAX($M$31:$AY$262),1))-ROW(OFFSET($M$31:$AY$262,0,0,1,1))+1,ROW(OFFSET($M$31:$AY$262,FILAX($M$31:$AY$262)-1,0,1,1))+1),1),39))=VLOOKUP(M30,$M$31:$AY$262,39,FALSE),(INDEX($M$31:$AY$262,SMALL(IF(OFFSET($M$31:$AY$262,0,0,FILAX($M$31:$AY$262),1)=L31,ROW(OFFSET($M$31:$AY$262,0,0,FILAX($M$31:$AY$262),1))-ROW(OFFSET($M$31:$AY$262,0,0,1,1))+1,ROW(OFFSET($M$31:$AY$262,FILAX($M$31:$AY$262)-1,0,1,1))+1),6),39))),0)+IFERROR(IF((INDEX($M$31:$AY$262,SMALL(IF(OFFSET($M$31:$AY$262,0,0,FILAX($M$31:$AY$262),1)=L31,ROW(OFFSET($M$31:$AY$262,0,0,FILAX($M$31:$AY$262),1))-ROW(OFFSET($M$31:$AY$262,0,0,1,1))+1,ROW(OFFSET($M$31:$AY$262,FILAX($M$31:$AY$262)-1,0,1,1))+1),1),39))=VLOOKUP(M30,$M$31:$AY$262,39,FALSE),(INDEX($M$31:$AY$262,SMALL(IF(OFFSET($M$31:$AY$262,0,0,FILAX($M$31:$AY$262),1)=L31,ROW(OFFSET($M$31:$AY$262,0,0,FILAX($M$31:$AY$262),1))-ROW(OFFSET($M$31:$AY$262,0,0,1,1))+1,ROW(OFFSET($M$31:$AY$262,FILAX($M$31:$AY$262)-1,0,1,1))+1),7),39))),0)+IFERROR(IF((INDEX($M$31:$AY$262,SMALL(IF(OFFSET($M$31:$AY$262,0,0,FILAX($M$31:$AY$262),1)=L31,ROW(OFFSET($M$31:$AY$262,0,0,FILAX($M$31:$AY$262),1))-ROW(OFFSET($M$31:$AY$262,0,0,1,1))+1,ROW(OFFSET($M$31:$AY$262,FILAX($M$31:$AY$262)-1,0,1,1))+1),1),39))=VLOOKUP(M30,$M$31:$AY$262,39,FALSE),(INDEX($M$31:$AY$262,SMALL(IF(OFFSET($M$31:$AY$262,0,0,FILAX($M$31:$AY$262),1)=L31,ROW(OFFSET($M$31:$AY$262,0,0,FILAX($M$31:$AY$262),1))-ROW(OFFSET($M$31:$AY$262,0,0,1,1))+1,ROW(OFFSET($M$31:$AY$262,FILAX($M$31:$AY$262)-1,0,1,1))+1),8),39))),0)+IFERROR(IF((INDEX($M$31:$AY$262,SMALL(IF(OFFSET($M$31:$AY$262,0,0,FILAX($M$31:$AY$262),1)=L31,ROW(OFFSET($M$31:$AY$262,0,0,FILAX($M$31:$AY$262),1))-ROW(OFFSET($M$31:$AY$262,0,0,1,1))+1,ROW(OFFSET($M$31:$AY$262,FILAX($M$31:$AY$262)-1,0,1,1))+1),1),39))=VLOOKUP(M30,$M$31:$AY$262,39,FALSE),(INDEX($M$31:$AY$262,SMALL(IF(OFFSET($M$31:$AY$262,0,0,FILAX($M$31:$AY$262),1)=L31,ROW(OFFSET($M$31:$AY$262,0,0,FILAX($M$31:$AY$262),1))-ROW(OFFSET($M$31:$AY$262,0,0,1,1))+1,ROW(OFFSET($M$31:$AY$262,FILAX($M$31:$AY$262)-1,0,1,1))+1),9),39))),0)+IFERROR(IF((INDEX($M$31:$AY$262,SMALL(IF(OFFSET($M$31:$AY$262,0,0,FILAX($M$31:$AY$262),1)=L31,ROW(OFFSET($M$31:$AY$262,0,0,FILAX($M$31:$AY$262),1))-ROW(OFFSET($M$31:$AY$262,0,0,1,1))+1,ROW(OFFSET($M$31:$AY$262,FILAX($M$31:$AY$262)-1,0,1,1))+1),1),39))=VLOOKUP(M30,$M$31:$AY$262,39,FALSE),(INDEX($M$31:$AY$262,SMALL(IF(OFFSET($M$31:$AY$262,0,0,FILAX($M$31:$AY$262),1)=L31,ROW(OFFSET($M$31:$AY$262,0,0,FILAX($M$31:$AY$262),1))-ROW(OFFSET($M$31:$AY$262,0,0,1,1))+1,ROW(OFFSET($M$31:$AY$262,FILAX($M$31:$AY$262)-1,0,1,1))+1),10),39))),0),IF(M30<>L31,VLOOKUP(L31,$L$31:$AX$262,39,FALSE)+IFERROR(VLOOKUP(L31,$M$31:$AY$262,39,FALSE),0))))) -> 0 | AZ31: =IF(L31="","",IF($B$23="Determinación por areas aferentes",AV31,IF($B$23="Caudales fijos por nodo",AY31,IF($B$23="Areas aferentes y caudales por nodos",AV31+AY31,"Elija Metd")))) -> 10.23993002 | BA31: =IF(OR($L31="",$M31=""),"",IFERROR(AZ31/(AT31*10),"")) -> 6.560753358 | BB31: =IF(OR($L31="",$M31=""),"",IFERROR(R31/(BA31*60),"")) -> 0.253600639 | BC31: =IF(OR($L31="",$M31=""),"",IFERROR((BB31-AP31)/(BB31),"")) -> -1.329046187e-05 | BD31: =IF(L31="","",L31) -> PD11 | BE31: =IF(M31="","",M31) -> PD12 | BF31: =IF(R31="","",R31) -> 99.82867462 | BG31: PVC | BH31: =IF(OR($L31="",$M31="",BG31=""),"",INDEX('Tablas y listas'!$D$4:$G$17,MATCH('1. Analisis Flujo Uniforme'!BG31,'Tablas y listas'!$D$4:$D$17,0),4)) -> 0.0125 | BI31: 10 | BJ31: =IF(OR(BI31=""),"",IFERROR(IF($BI$30="Pulgadas",INDEX('Tablas y listas'!$B$64:$D$89,MATCH('1. Analisis Flujo Uniforme'!BI31,CONCRETO_Pulgadas,0),3),IF($BI$30="mm",BI31/(10*100))),"Indique φ")) -> 0.25 | BK31: =IF(OR(BF31="",BD31="",BE31=""),"",(N31-O31)/R31*100) -> 0.3506006679 | BL31: 0.4 | BM31: =IF(CT31="","",CT31) -> 0.6706168573 | BN31: Subcrítico | BO31: =IF(CK31="","",CK31) -> 0.2617904276 | BP31: =IF(CN31="","",CN31) -> 0.5658241713 | BQ31: =IF(DU31="","",DU31) -> 1.2 | BR31: 1.249314698 | BV31: =IF(DR31="","",DR31) -> 2543 | BW31: =IF(DS31="","",DS31) -> 2542.600685 | BX31: =IF(DW31="","",DW31) -> 2542.75 | BY31: 2542.350685 | BZ31: =IF(DY31="","",DY31) -> 2542.86369 | CA31: 2542.464375 | CB31: =IF(DM31="","",DM31) -> 0.2100204036 | CE31: =IF(L31="","",L31) -> PD11 | CF31: =IF(M31="","",M31) -> PD12 | CG31: =IF(OR($L31="",$M31=""),"",IF(MAX(IFERROR(INDEX(MatrizQs1,SMALL(IF(OFFSET(MatrizQs1,0,0,ROWS(MatrizQs1),1)=CF31,ROW(OFFSET(MatrizQs1,0,0,ROWS(MatrizQs1),1))-ROW(OFFSET(MatrizQs1,0,0,1,1))+1,ROW(OFFSET(MatrizQs1,ROWS(MatrizQs1)-1,0,1,1))+1),1),41),0),IFERROR(INDEX(MatrizQs1,SMALL(IF(OFFSET(MatrizQs1,0,0,ROWS(MatrizQs1),1)=CF31,ROW(OFFSET(MatrizQs1,0,0,ROWS(MatrizQs1),1))-ROW(OFFSET(MatrizQs1,0,0,1,1))+1,ROW(OFFSET(MatrizQs1,ROWS(MatrizQs1)-1,0,1,1))+1),2),41),0),IFERROR(INDEX(MatrizQs1,SMALL(IF(OFFSET(MatrizQs1,0,0,ROWS(MatrizQs1),1)=CF31,ROW(OFFSET(MatrizQs1,0,0,ROWS(MatrizQs1),1))-ROW(OFFSET(MatrizQs1,0,0,1,1))+1,ROW(OFFSET(MatrizQs1,ROWS(MatrizQs1)-1,0,1,1))+1),3),41),0),IFERROR(INDEX(MatrizQs1,SMALL(IF(OFFSET(MatrizQs1,0,0,ROWS(MatrizQs1),1)=CF31,ROW(OFFSET(MatrizQs1,0,0,ROWS(MatrizQs1),1))-ROW(OFFSET(MatrizQs1,0,0,1,1))+1,ROW(OFFSET(MatrizQs1,ROWS(MatrizQs1)-1,0,1,1))+1),4),41),0),IFERROR(INDEX(MatrizQs1,SMALL(IF(OFFSET(MatrizQs1,0,0,ROWS(MatrizQs1),1)=CF31,ROW(OFFSET(MatrizQs1,0,0,ROWS(MatrizQs1),1))-ROW(OFFSET(MatrizQs1,0,0,1,1))+1,ROW(OFFSET(MatrizQs1,ROWS(MatrizQs1)-1,0,1,1))+1),5),41),0),IFERROR(INDEX(MatrizQs1,SMALL(IF(OFFSET(MatrizQs1,0,0,ROWS(MatrizQs1),1)=CF31,ROW(OFFSET(MatrizQs1,0,0,ROWS(MatrizQs1),1))-ROW(OFFSET(MatrizQs1,0,0,1,1))+1,ROW(OFFSET(MatrizQs1,ROWS(MatrizQs1)-1,0,1,1))+1),6),41),0),IFERROR(INDEX(MatrizQs1,SMALL(IF(OFFSET(MatrizQs1,0,0,ROWS(MatrizQs1),1)=CF31,ROW(OFFSET(MatrizQs1,0,0,ROWS(MatrizQs1),1))-ROW(OFFSET(MatrizQs1,0,0,1,1))+1,ROW(OFFSET(MatrizQs1,ROWS(MatrizQs1)-1,0,1,1))+1),7),41),0),IFERROR(INDEX(MatrizQs1,SMALL(IF(OFFSET(MatrizQs1,0,0,ROWS(MatrizQs1),1)=CF31,ROW(OFFSET(MatrizQs1,0,0,ROWS(MatrizQs1),1))-ROW(OFFSET(MatrizQs1,0,0,1,1))+1,ROW(OFFSET(MatrizQs1,ROWS(MatrizQs1)-1,0,1,1))+1),8),41),0))=0,IFERROR(INDEX(matrizQs,SMALL(IF(OFFSET(matrizQs,0,0,ROWS(matrizQs),1)=CF31,ROW(OFFSET(matrizQs,0,0,ROWS(matrizQs),1))-ROW(OFFSET(matrizQs,0,0,1,1))+1,ROW(OFFSET(matrizQs,ROWS(matrizQs)-1,0,1,1))+1),1),40),0),MAX(IFERROR(INDEX(MatrizQs1,SMALL(IF(OFFSET(MatrizQs1,0,0,ROWS(MatrizQs1),1)=CF31,ROW(OFFSET(MatrizQs1,0,0,ROWS(MatrizQs1),1))-ROW(OFFSET(MatrizQs1,0,0,1,1))+1,ROW(OFFSET(MatrizQs1,ROWS(MatrizQs1)-1,0,1,1))+1),1),41),0),IFERROR(INDEX(MatrizQs1,SMALL(IF(OFFSET(MatrizQs1,0,0,ROWS(MatrizQs1),1)=CF31,ROW(OFFSET(MatrizQs1,0,0,ROWS(MatrizQs1),1))-ROW(OFFSET(MatrizQs1,0,0,1,1))+1,ROW(OFFSET(MatrizQs1,ROWS(MatrizQs1)-1,0,1,1))+1),2),41),0),IFERROR(INDEX(MatrizQs1,SMALL(IF(OFFSET(MatrizQs1,0,0,ROWS(MatrizQs1),1)=CF31,ROW(OFFSET(MatrizQs1,0,0,ROWS(MatrizQs1),1))-ROW(OFFSET(MatrizQs1,0,0,1,1))+1,ROW(OFFSET(MatrizQs1,ROWS(MatrizQs1)-1,0,1,1))+1),3),41),0),IFERROR(INDEX(MatrizQs1,SMALL(IF(OFFSET(MatrizQs1,0,0,ROWS(MatrizQs1),1)=CF31,ROW(OFFSET(MatrizQs1,0,0,ROWS(MatrizQs1),1))-ROW(OFFSET(MatrizQs1,0,0,1,1))+1,ROW(OFFSET(MatrizQs1,ROWS(MatrizQs1)-1,0,1,1))+1),4),41),0),IFERROR(INDEX(MatrizQs1,SMALL(IF(OFFSET(MatrizQs1,0,0,ROWS(MatrizQs1),1)=CF31,ROW(OFFSET(MatrizQs1,0,0,ROWS(MatrizQs1),1))-ROW(OFFSET(MatrizQs1,0,0,1,1))+1,ROW(OFFSET(MatrizQs1,ROWS(MatrizQs1)-1,0,1,1))+1),5),41),0),IFERROR(INDEX(MatrizQs1,SMALL(IF(OFFSET(MatrizQs1,0,0,ROWS(MatrizQs1),1)=CF31,ROW(OFFSET(MatrizQs1,0,0,ROWS(MatrizQs1),1))-ROW(OFFSET(MatrizQs1,0,0,1,1))+1,ROW(OFFSET(MatrizQs1,ROWS(MatrizQs1)-1,0,1,1))+1),6),41),0),IFERROR(INDEX(MatrizQs1,SMALL(IF(OFFSET(MatrizQs1,0,0,ROWS(MatrizQs1),1)=CF31,ROW(OFFSET(MatrizQs1,0,0,ROWS(MatrizQs1),1))-ROW(OFFSET(MatrizQs1,0,0,1,1))+1,ROW(OFFSET(MatrizQs1,ROWS(MatrizQs1)-1,0,1,1))+1),7),41),0),IFERROR(INDEX(MatrizQs1,SMALL(IF(OFFSET(MatrizQs1,0,0,ROWS(MatrizQs1),1)=CF31,ROW(OFFSET(MatrizQs1,0,0,ROWS(MatrizQs1),1))-ROW(OFFSET(MatrizQs1,0,0,1,1))+1,ROW(OFFSET(MatrizQs1,ROWS(MatrizQs1)-1,0,1,1))+1),8),41),0)))) -> 34.49622345 | CH31: =IF(OR($L31="",$M31=""),"",IF(MAX(IFERROR(INDEX(MDSU,SMALL(IF(OFFSET(MDSU,0,0,ROWS(MDSU),1)=CF31,ROW(OFFSET(MDSU,0,0,ROWS(MDSU),1))-ROW(OFFSET(MDSU,0,0,1,1))+1,ROW(OFFSET(MDSU,ROWS(MDSU)-1,0,1,1))+1),1),7),0),IFERROR(INDEX(MDSU,SMALL(IF(OFFSET(MDSU,0,0,ROWS(MDSU),1)=CF31,ROW(OFFSET(MDSU,0,0,ROWS(MDSU),1))-ROW(OFFSET(MDSU,0,0,1,1))+1,ROW(OFFSET(MDSU,ROWS(MDSU)-1,0,1,1))+1),2),7),0),IFERROR(INDEX(MDSU,SMALL(IF(OFFSET(MDSU,0,0,ROWS(MDSU),1)=CF31,ROW(OFFSET(MDSU,0,0,ROWS(MDSU),1))-ROW(OFFSET(MDSU,0,0,1,1))+1,ROW(OFFSET(MDSU,ROWS(MDSU)-1,0,1,1))+1),3),7),0),IFERROR(INDEX(MDSU,SMALL(IF(OFFSET(MDSU,0,0,ROWS(MDSU),1)=CF31,ROW(OFFSET(MDSU,0,0,ROWS(MDSU),1))-ROW(OFFSET(MDSU,0,0,1,1))+1,ROW(OFFSET(MDSU,ROWS(MDSU)-1,0,1,1))+1),4),7),0),IFERROR(INDEX(MDSU,SMALL(IF(OFFSET(MDSU,0,0,ROWS(MDSU),1)=CF31,ROW(OFFSET(MDSU,0,0,ROWS(MDSU),1))-ROW(OFFSET(MDSU,0,0,1,1))+1,ROW(OFFSET(MDSU,ROWS(MDSU)-1,0,1,1))+1),5),7),0),IFERROR(INDEX(MDSU,SMALL(IF(OFFSET(MDSU,0,0,ROWS(MDSU),1)=CF31,ROW(OFFSET(MDSU,0,0,ROWS(MDSU),1))-ROW(OFFSET(MDSU,0,0,1,1))+1,ROW(OFFSET(MDSU,ROWS(MDSU)-1,0,1,1))+1),6),7),0),IFERROR(INDEX(MDSU,SMALL(IF(OFFSET(MDSU,0,0,ROWS(MDSU),1)=CF31,ROW(OFFSET(MDSU,0,0,ROWS(MDSU),1))-ROW(OFFSET(MDSU,0,0,1,1))+1,ROW(OFFSET(MDSU,ROWS(MDSU)-1,0,1,1))+1),7),7),0),IFERROR(INDEX(MDSU,SMALL(IF(OFFSET(MDSU,0,0,ROWS(MDSU),1)=CF31,ROW(OFFSET(MDSU,0,0,ROWS(MDSU),1))-ROW(OFFSET(MDSU,0,0,1,1))+1,ROW(OFFSET(MDSU,ROWS(MDSU)-1,0,1,1))+1),8),7),0))=0,IFERROR(INDEX(MDS,SMALL(IF(OFFSET(MDS,0,0,ROWS(MDS),1)=CF31,ROW(OFFSET(MDS,0,0,ROWS(MDS),1))-ROW(OFFSET(MDS,0,0,1,1))+1,ROW(OFFSET(MDS,ROWS(MDS)-1,0,1,1))+1),1),6),0),MAX(IFERROR(INDEX(MDSU,SMALL(IF(OFFSET(MDSU,0,0,ROWS(MDSU),1)=CF31,ROW(OFFSET(MDSU,0,0,ROWS(MDSU),1))-ROW(OFFSET(MDSU,0,0,1,1))+1,ROW(OFFSET(MDSU,ROWS(MDSU)-1,0,1,1))+1),1),7),0),IFERROR(INDEX(MDSU,SMALL(IF(OFFSET(MDSU,0,0,ROWS(MDSU),1)=CF31,ROW(OFFSET(MDSU,0,0,ROWS(MDSU),1))-ROW(OFFSET(MDSU,0,0,1,1))+1,ROW(OFFSET(MDSU,ROWS(MDSU)-1,0,1,1))+1),2),7),0),IFERROR(INDEX(MDSU,SMALL(IF(OFFSET(MDSU,0,0,ROWS(MDSU),1)=CF31,ROW(OFFSET(MDSU,0,0,ROWS(MDSU),1))-ROW(OFFSET(MDSU,0,0,1,1))+1,ROW(OFFSET(MDSU,ROWS(MDSU)-1,0,1,1))+1),3),7),0),IFERROR(INDEX(MDSU,SMALL(IF(OFFSET(MDSU,0,0,ROWS(MDSU),1)=CF31,ROW(OFFSET(MDSU,0,0,ROWS(MDSU),1))-ROW(OFFSET(MDSU,0,0,1,1))+1,ROW(OFFSET(MDSU,ROWS(MDSU)-1,0,1,1))+1),4),7),0),IFERROR(INDEX(MDSU,SMALL(IF(OFFSET(MDSU,0,0,ROWS(MDSU),1)=CF31,ROW(OFFSET(MDSU,0,0,ROWS(MDSU),1))-ROW(OFFSET(MDSU,0,0,1,1))+1,ROW(OFFSET(MDSU,ROWS(MDSU)-1,0,1,1))+1),5),7),0),IFERROR(INDEX(MDSU,SMALL(IF(OFFSET(MDSU,0,0,ROWS(MDSU),1)=CF31,ROW(OFFSET(MDSU,0,0,ROWS(MDSU),1))-ROW(OFFSET(MDSU,0,0,1,1))+1,ROW(OFFSET(MDSU,ROWS(MDSU)-1,0,1,1))+1),6),7),0),IFERROR(INDEX(MDSU,SMALL(IF(OFFSET(MDSU,0,0,ROWS(MDSU),1)=CF31,ROW(OFFSET(MDSU,0,0,ROWS(MDSU),1))-ROW(OFFSET(MDSU,0,0,1,1))+1,ROW(OFFSET(MDSU,ROWS(MDSU)-1,0,1,1))+1),7),7),0),IFERROR(INDEX(MDSU,SMALL(IF(OFFSET(MDSU,0,0,ROWS(MDSU),1)=CF31,ROW(OFFSET(MDSU,0,0,ROWS(MDSU),1))-ROW(OFFSET(MDSU,0,0,1,1))+1,ROW(OFFSET(MDSU,ROWS(MDSU)-1,0,1,1))+1),8),7),0)))) -> 0.3 | CI31: =IF(OR($L31="",$M31=""),"",IF(BJ31=0,"",IFERROR(((CJ31*PI()*(BJ31^2)/4)*1000),""))) -> 39.11499024 | CJ31: =IF(OR($L31="",$M31=""),"",IF(BI31=0,"",IFERROR((1/BH31)*((BJ31/4)^(2/3))*(BL31/100)^(1/2),""))) -> 0.7968440379 | CK31: =IF(OR($L31="",$M31=""),"",IF(CI31=0,"",IFERROR((AZ31/CI31),""))) -> 0.2617904276 | CL31: =IF(OR($L31="",$M31=""),"",IF(BJ31=0,"",IFERROR((CM31/BJ31),""))) -> 0.3894873593 | CM31: =IF(OR($L31="",$M31=""),"",IF(BI31=0,"",IFERROR(BJ31*0.858451597*(CK31)^0.5896824401,""))) -> 0.09737183982 | CN31: =IF(OR($L31="",$M31=""),"",IF(BJ31=0,"",IFERROR(CJ31*1.054148687*(CK31)^0.2948111209,""))) -> 0.5658241713 | CO31: =IF(OR($L31="",$M31=""),"",IF(CM31=0,"",IFERROR(2*ACOS(1-(2*CM31)/BJ31),""))) -> 2.695861399 | CP31: =IF(OR($L31="",$M31=""),"",IFERROR(0.125*(CO31-SIN(CO31))*BJ31^2,"")) -> 0.01769330935 | CQ31: =IF(OR($L31="",$M31=""),"",IFERROR(0.5*CO31*BJ31,"")) -> 0.3369826749 | CR31: =IF(OR($L31="",$M31=""),"",IFERROR(IF(CP31=0,"",+CP31/CQ31),"")) -> 0.05250510089 | CS31: =IF(OR($L31="",$M31=""),"",IFERROR(IF(CO31=0,"",1/8*((CO31-SIN(CO31))/SIN(CO31/2))*BJ31),"")) -> 0.07256798304 | CT31: =IF(OR($L31="",$M31=""),"",IFERROR(IF(CN31=0,"",CN31/SQRT(9.81*CS31)),"")) -> 0.6706168573 | CU31: =IF(OR($L31="",$M31=""),"",IFERROR(IF(OR(CT31=0,CT31=""),"",IF(CT31<0.9,"Subcrítico",IF(CT31>1.1,"Supercrítico","Crítico"))),"")) -> Subcrítico | CV31: =IF(OR($L31="",$M31=""),"",IFERROR(CN31^2/(9.81*2),"")) -> 0.01631788954 | CW31: =IF(OR($L31="",$M31=""),"",IFERROR(IF(CV31=0,"",CM31+CV31),0)) -> 0.1136897294 | CX31: =IF(CW31=0,"",IF(CW32=0,"",+CW32)) -> 0.2115041856 | CY31: =IF(OR($L31="",$M31=""),"",IFERROR(IF(BJ31=0,"",DC31/2/CH31),"")) -> 2 | CZ31: =IF(CT31=0,"",IF(CT31<0.9,IF(CY31>3,0.05*CV31,IF(AND(CY31>=1.5,CY31<3),0.2*CV31,IF(AND(CY31>=1,CY31<1.5),0.4*CV31))),IF(CT31>1.1,""))) -> 0.003263577908 | DA31: =IF(OR($L31="",$M31=""),"",IFERROR(IF(CV31=0,"",0.2*((CV32-CV31))),0)) -> 0.003130545057 | DB31: =IF(OR($L31="",$M31=""),"",IFERROR(IF(CT31=0,0,IF(CT31<=0.9,IF(CX31>CW31,CZ31+DA31+CX31-CW31,CZ31+DA31),"")),0)) -> 0.1042085792 | DC31: =IF(OR($L31="",$M31=""),"",IFERROR(IF(CH31=0,"",IF(CH31<=0.6,1.2,IF(CH31<=0.75,1.5,1.8))),"")) -> 1.2 | DD31: =IF(OR($L31="",$M31=""),"",IFERROR(IF(DC31=0,"",DC31/CH31),"")) -> 4 | DE31: =IF(OR($L31="",$M31=""),"",IFERROR(IF(BI31=0,"",1.0381283*BJ31*DG31^0.5208062),0)) -> 0 | DF31: =IF(OR($L31="",$M31=""),"",IFERROR(IF(DD31=0,"",IF(DD31>2,1.2,IF(DD31>1.6,1.3,IF(DD31>1.3,1.4,1.5)))),"")) -> 1.2 | DG31: =IF(OR($L31="",$M31="",CT31=""),"",IFERROR(IF(CT31=0,"",IF(CT31>1.1,0.319*(CG31/1000)/CH31^2.5,"")),0)) ->  | DH31: =IF(OR($L31="",$M31=""),"",IFERROR(IF(DG31=0,"",IF(DG31>0.62,"",2*ACOS(1-2*DE31/CD31))),"")) ->  | DI31: =IF(OR($L31="",$M31=""),"",IFERROR(IF(DH31=0,"",IF(DG31>0.62,0,((BZ31*8)/(DH31-SIN(DH31))/1000/(CD31)^2)^2/19.62+DE31)),"")) -> 0 | DJ31: =IF(OR($L31="",$M31=""),"",IFERROR(IF(DG31=0,"",IF(DG31>0.62,"",0.589*DG31^2.67*CH31)),"")) ->  | DK31: =IF(OR($L31="",$M31=""),"",IFERROR(IF(BI31=0,"",IF(DG31>0.62,CH31*DF31*(DG31^2*1.91+0.7),DF31*(DI31+DJ31))),0)) -> 0 | DL31: =IF(OR($L31="",$M31=""),"",IFERROR(IF(BF31=0,"",BL31*BF31/100),"")) -> 0.3993146985 | DM31: =IF(OR($L31="",$M31=""),"",IFERROR(IF(BL31=0,"",1000*CR31*BL31/100),"")) -> 0.2100204036 | DN31: =IF(OR($L31="",$M31=""),"",IF(N31="","",N31)) -> 2544.2 | DO31: =IF(OR($L31="",$M31=""),"",IF(O31="","",O31)) -> 2543.85 | DP31: =IF(OR($L31="",$M31=""),"",IF(P31="","",P31)) -> 0 | DQ31: =IF(OR($L31="",$M31=""),"",IF(Q31="","",Q31)) -> 0 | DR31: =IF(OR($L31="",$M31=""),"",IFERROR(IF(DN31=0,"",IF(K31=1,IF(BT31=0,DN31-$BR$26-BS31,BT31),DT31-BJ30-DB30-DK30+BJ31-BS31)),"")) -> 2543 | DS31: =IF(OR($L31="",$M31=""),"",IFERROR(IF(DR31=0,"",DR31-DL31),"")) -> 2542.600685 | DT31: =IF(OR($L31="",$M31=""),"",IF(MIN(IFERROR(INDEX(Matriz_busq,SMALL(IF(OFFSET(Matriz_busq,0,0,ROWS(Matriz_busq),1)=BD31,ROW(OFFSET(Matriz_busq,0,0,ROWS(Matriz_busq),1))-ROW(OFFSET(Matriz_busq,0,0,1,1))+1,ROW(OFFSET(Matriz_busq,ROWS(Matriz_busq)-1,0,1,1))+1),1),40),10000),IFERROR(INDEX(Matriz_busq,SMALL(IF(OFFSET(Matriz_busq,0,0,ROWS(Matriz_busq),1)=BD31,ROW(OFFSET(Matriz_busq,0,0,ROWS(Matriz_busq),1))-ROW(OFFSET(Matriz_busq,0,0,1,1))+1,ROW(OFFSET(Matriz_busq,ROWS(Matriz_busq)-1,0,1,1))+1),2),40),10000),IFERROR(INDEX(Matriz_busq,SMALL(IF(OFFSET(Matriz_busq,0,0,ROWS(Matriz_busq),1)=BD31,ROW(OFFSET(Matriz_busq,0,0,ROWS(Matriz_busq),1))-ROW(OFFSET(Matriz_busq,0,0,1,1))+1,ROW(OFFSET(Matriz_busq,ROWS(Matriz_busq)-1,0,1,1))+1),3),40),10000),IFERROR(INDEX(Matriz_busq,SMALL(IF(OFFSET(Matriz_busq,0,0,ROWS(Matriz_busq),1)=BD31,ROW(OFFSET(Matriz_busq,0,0,ROWS(Matriz_busq),1))-ROW(OFFSET(Matriz_busq,0,0,1,1))+1,ROW(OFFSET(Matriz_busq,ROWS(Matriz_busq)-1,0,1,1))+1),4),40),10000),IFERROR(INDEX(Matriz_busq,SMALL(IF(OFFSET(Matriz_busq,0,0,ROWS(Matriz_busq),1)=BD31,ROW(OFFSET(Matriz_busq,0,0,ROWS(Matriz_busq),1))-ROW(OFFSET(Matriz_busq,0,0,1,1))+1,ROW(OFFSET(Matriz_busq,ROWS(Matriz_busq)-1,0,1,1))+1),5),40),10000),IFERROR(INDEX(Matriz_busq,SMALL(IF(OFFSET(Matriz_busq,0,0,ROWS(Matriz_busq),1)=BD31,ROW(OFFSET(Matriz_busq,0,0,ROWS(Matriz_busq),1))-ROW(OFFSET(Matriz_busq,0,0,1,1))+1,ROW(OFFSET(Matriz_busq,ROWS(Matriz_busq)-1,0,1,1))+1),6),40),10000),IFERROR(INDEX(Matriz_busq,SMALL(IF(OFFSET(Matriz_busq,0,0,ROWS(Matriz_busq),1)=BD31,ROW(OFFSET(Matriz_busq,0,0,ROWS(Matriz_busq),1))-ROW(OFFSET(Matriz_busq,0,0,1,1))+1,ROW(OFFSET(Matriz_busq,ROWS(Matriz_busq)-1,0,1,1))+1),7),40),10000),IFERROR(INDEX(Matriz_busq,SMALL(IF(OFFSET(Matriz_busq,0,0,ROWS(Matriz_busq),1)=BD31,ROW(OFFSET(Matriz_busq,0,0,ROWS(Matriz_busq),1))-ROW(OFFSET(Matriz_busq,0,0,1,1))+1,ROW(OFFSET(Matriz_busq,ROWS(Matriz_busq)-1,0,1,1))+1),8),40),10000))=10000,0,MIN(IFERROR(INDEX(Matriz_busq,SMALL(IF(OFFSET(Matriz_busq,0,0,ROWS(Matriz_busq),1)=BD31,ROW(OFFSET(Matriz_busq,0,0,ROWS(Matriz_busq),1))-ROW(OFFSET(Matriz_busq,0,0,1,1))+1,ROW(OFFSET(Matriz_busq,ROWS(Matriz_busq)-1,0,1,1))+1),1),40),10000),IFERROR(INDEX(Matriz_busq,SMALL(IF(OFFSET(Matriz_busq,0,0,ROWS(Matriz_busq),1)=BD31,ROW(OFFSET(Matriz_busq,0,0,ROWS(Matriz_busq),1))-ROW(OFFSET(Matriz_busq,0,0,1,1))+1,ROW(OFFSET(Matriz_busq,ROWS(Matriz_busq)-1,0,1,1))+1),2),40),10000),IFERROR(INDEX(Matriz_busq,SMALL(IF(OFFSET(Matriz_busq,0,0,ROWS(Matriz_busq),1)=BD31,ROW(OFFSET(Matriz_busq,0,0,ROWS(Matriz_busq),1))-ROW(OFFSET(Matriz_busq,0,0,1,1))+1,ROW(OFFSET(Matriz_busq,ROWS(Matriz_busq)-1,0,1,1))+1),3),40),10000),IFERROR(INDEX(Matriz_busq,SMALL(IF(OFFSET(Matriz_busq,0,0,ROWS(Matriz_busq),1)=BD31,ROW(OFFSET(Matriz_busq,0,0,ROWS(Matriz_busq),1))-ROW(OFFSET(Matriz_busq,0,0,1,1))+1,ROW(OFFSET(Matriz_busq,ROWS(Matriz_busq)-1,0,1,1))+1),4),40),10000),IFERROR(INDEX(Matriz_busq,SMALL(IF(OFFSET(Matriz_busq,0,0,ROWS(Matriz_busq),1)=BD31,ROW(OFFSET(Matriz_busq,0,0,ROWS(Matriz_busq),1))-ROW(OFFSET(Matriz_busq,0,0,1,1))+1,ROW(OFFSET(Matriz_busq,ROWS(Matriz_busq)-1,0,1,1))+1),5),40),10000),IFERROR(INDEX(Matriz_busq,SMALL(IF(OFFSET(Matriz_busq,0,0,ROWS(Matriz_busq),1)=BD31,ROW(OFFSET(Matriz_busq,0,0,ROWS(Matriz_busq),1))-ROW(OFFSET(Matriz_busq,0,0,1,1))+1,ROW(OFFSET(Matriz_busq,ROWS(Matriz_busq)-1,0,1,1))+1),6),40),10000),IFERROR(INDEX(Matriz_busq,SMALL(IF(OFFSET(Matriz_busq,0,0,ROWS(Matriz_busq),1)=BD31,ROW(OFFSET(Matriz_busq,0,0,ROWS(Matriz_busq),1))-ROW(OFFSET(Matriz_busq,0,0,1,1))+1,ROW(OFFSET(Matriz_busq,ROWS(Matriz_busq)-1,0,1,1))+1),7),40),10000),IFERROR(INDEX(Matriz_busq,SMALL(IF(OFFSET(Matriz_busq,0,0,ROWS(Matriz_busq),1)=BD31,ROW(OFFSET(Matriz_busq,0,0,ROWS(Matriz_busq),1))-ROW(OFFSET(Matriz_busq,0,0,1,1))+1,ROW(OFFSET(Matriz_busq,ROWS(Matriz_busq)-1,0,1,1))+1),8),40),10000)))) -> 0 | DU31: =IF(OR($L31="",$M31=""),"",IFERROR(IF(DN31=0,"",DN31-DR31),"")) -> 1.2 | DV31: 1.249314698 | DW31: =IF(OR($L31="",$M31=""),"",IFERROR(IF($BJ31=0,"",DR31-$BJ31),"")) -> 2542.75 | DX31: =IF(OR($L31="",$M31=""),"",IFERROR(IF($BJ31=0,"",DS31-$BJ31),"")) -> 2542.350685 | DY31: =IF(OR($L31="",$M31=""),"",IFERROR(IF(DW31=0,"",DW31+CW31),"")) -> 2542.86369 | DZ31: =IF(OR($L31="",$M31=""),"",IFERROR(IF(DX31=0,"",DX31+CW31),"")) -> 2542.464375
A32: PD12 | B32: Tipo_1 | D32: No aplica | F32: 93329.006 | G32: 107175.3489 | H32: 2543.85 | L32: PD12 | M32: PD13 | N32: =IF(OR(L32="",M32=""),"",INDEX($A$31:$I$70,MATCH(L32,$A$31:$A$70,0),8)) -> 2543.85 | O32: =IF(OR(L32="",M32=""),"",INDEX($A$31:$I$70,MATCH(M32,$A$31:$A$70,0),8)) -> 2543.8 | P32: =IF(OR(L32="",M32=""),"",INDEX($A$31:$I$70,MATCH(L32,$A$31:$A$70,0),9)) -> 0 | Q32: =IF(OR(M32="",N32=""),"",INDEX($A$31:$I$70,MATCH(M32,$A$31:$A$70,0),9)) -> 0 | R32: =IF(OR(L32="",M32=""),"",IFERROR(SQRT(POWER(VLOOKUP(L32,$A$31:$G$70,6,FALSE)-VLOOKUP(M32,$A$31:$G$70,6,FALSE),2)+POWER(VLOOKUP(L32,$A$31:$G$70,7,FALSE)-VLOOKUP(M32,$A$31:$G$70,7,FALSE),2)),"Revise")) -> 99.18961635 | T32: 0.36968928 | W32: =IF(OR(L32="",M32=""),"",SUM(T32:V32)) -> 0.36968928 | X32: 0.5 | Y32: 0 | Z32: 100 | AA32: =IF(OR(X32="",Y32=""),"",IFERROR((X32-Y32)/Z32,"")) -> 0.005 | AB32: 3 | AC32: 5 | AD32: AREAS DESARROLLADAS | AE32: =IF(OR(L32="",M32=""),"",IF(AD32="","",IF(AD32="AREAS DESARROLLADAS","CONCRETO/TECHO",IF(OR(AA32="",AA32=0),"",IF(AA32<=2%,"Plano i ≤ 2%",IF(AND(AA32>2%,AA32<=7%),"Promedio 2 < i ≤ 7%",IF(AA32>7%,"i > 7%"))))))) -> CONCRETO/TECHO | AF32: =IF(OR(L32="",M32=""),"",IF(AE32="","",IF(AE32="Elija","◄ Elija Tipo",IFERROR(INDEX(Coef_Area_desarrollada,MATCH(IF(AD32="AREAS DESARROLLADAS",AE32,AD32&"-"&AE32),Areas_desarrolladas,0),MATCH(IF(AC32="",AB32,AC32),Periodo_Retorno,0)),"")))) -> 0.8 | AI32: 0 | AL32: 0 | AM32: 0.8 | AN32: 12.40368325 | AO32: 6.56102616 | AP32: =IF(OR(L32="",M32=""),"",IFERROR(R32/(AO32*60),0)) -> 0.2519667247 | AQ32: =IF(OR($L32="",$M32=""),"",IFERROR((AN32+AP32),"")) -> 12.65564997 | AS32: =IF(OR($L32="",$M32=""),"",AR32+W32) -> 0.36968928 | AT32: =IF(L32="","",IF(M31=L32,VLOOKUP(L32,$L$31:$AS$262,34,FALSE)+VLOOKUP(M31,$M$31:$AT$262,34,FALSE)+IFERROR(IF((INDEX($M$31:$AT$262,SMALL(IF(OFFSET($M$31:$AT$262,0,0,ROWS($M$31:$AT$262),1)=L32,ROW(OFFSET($M$31:$AT$262,0,0,ROWS($M$31:$AT$262),1))-ROW(OFFSET($M$31:$AT$262,0,0,1,1))+1,ROW(OFFSET($M$31:$AT$262,ROWS($M$31:$AT$262)-1,0,1,1))+1),1),34))=VLOOKUP(M31,$M$31:$AT$262,34,FALSE),(INDEX($M$31:$AT$262,SMALL(IF(OFFSET($M$31:$AT$262,0,0,ROWS($M$31:$AT$262),1)=L32,ROW(OFFSET($M$31:$AT$262,0,0,ROWS($M$31:$AT$262),1))-ROW(OFFSET($M$31:$AT$262,0,0,1,1))+1,ROW(OFFSET($M$31:$AT$262,ROWS($M$31:$AT$262)-1,0,1,1))+1),2),34))),0)+IFERROR(IF((INDEX($M$31:$AT$262,SMALL(IF(OFFSET($M$31:$AT$262,0,0,ROWS($M$31:$AT$262),1)=L32,ROW(OFFSET($M$31:$AT$262,0,0,ROWS($M$31:$AT$262),1))-ROW(OFFSET($M$31:$AT$262,0,0,1,1))+1,ROW(OFFSET($M$31:$AT$262,ROWS($M$31:$AT$262)-1,0,1,1))+1),1),34))=VLOOKUP(M31,$M$31:$AT$262,34,FALSE),(INDEX($M$31:$AT$262,SMALL(IF(OFFSET($M$31:$AT$262,0,0,ROWS($M$31:$AT$262),1)=L32,ROW(OFFSET($M$31:$AT$262,0,0,ROWS($M$31:$AT$262),1))-ROW(OFFSET($M$31:$AT$262,0,0,1,1))+1,ROW(OFFSET($M$31:$AT$262,ROWS($M$31:$AT$262)-1,0,1,1))+1),3),34))),0)+IFERROR(IF((INDEX($M$31:$AT$262,SMALL(IF(OFFSET($M$31:$AT$262,0,0,ROWS($M$31:$AT$262),1)=L32,ROW(OFFSET($M$31:$AT$262,0,0,ROWS($M$31:$AT$262),1))-ROW(OFFSET($M$31:$AT$262,0,0,1,1))+1,ROW(OFFSET($M$31:$AT$262,ROWS($M$31:$AT$262)-1,0,1,1))+1),1),34))=VLOOKUP(M31,$M$31:$AT$262,34,FALSE),(INDEX($M$31:$AT$262,SMALL(IF(OFFSET($M$31:$AT$262,0,0,ROWS($M$31:$AT$262),1)=L32,ROW(OFFSET($M$31:$AT$262,0,0,ROWS($M$31:$AT$262),1))-ROW(OFFSET($M$31:$AT$262,0,0,1,1))+1,ROW(OFFSET($M$31:$AT$262,ROWS($M$31:$AT$262)-1,0,1,1))+1),4),34))),0)+IFERROR(IF((INDEX($M$31:$AT$262,SMALL(IF(OFFSET($M$31:$AT$262,0,0,ROWS($M$31:$AT$262),1)=L32,ROW(OFFSET($M$31:$AT$262,0,0,ROWS($M$31:$AT$262),1))-ROW(OFFSET($M$31:$AT$262,0,0,1,1))+1,ROW(OFFSET($M$31:$AT$262,ROWS($M$31:$AT$262)-1,0,1,1))+1),1),34))=VLOOKUP(M31,$M$31:$AT$262,34,FALSE),(INDEX($M$31:$AT$262,SMALL(IF(OFFSET($M$31:$AT$262,0,0,ROWS($M$31:$AT$262),1)=L32,ROW(OFFSET($M$31:$AT$262,0,0,ROWS($M$31:$AT$262),1))-ROW(OFFSET($M$31:$AT$262,0,0,1,1))+1,ROW(OFFSET($M$31:$AT$262,ROWS($M$31:$AT$262)-1,0,1,1))+1),5),34))),0)+IFERROR(IF((INDEX($M$31:$AT$262,SMALL(IF(OFFSET($M$31:$AT$262,0,0,ROWS($M$31:$AT$262),1)=L32,ROW(OFFSET($M$31:$AT$262,0,0,ROWS($M$31:$AT$262),1))-ROW(OFFSET($M$31:$AT$262,0,0,1,1))+1,ROW(OFFSET($M$31:$AT$262,ROWS($M$31:$AT$262)-1,0,1,1))+1),1),34))=VLOOKUP(M31,$M$31:$AT$262,34,FALSE),(INDEX($M$31:$AT$262,SMALL(IF(OFFSET($M$31:$AT$262,0,0,ROWS($M$31:$AT$262),1)=L32,ROW(OFFSET($M$31:$AT$262,0,0,ROWS($M$31:$AT$262),1))-ROW(OFFSET($M$31:$AT$262,0,0,1,1))+1,ROW(OFFSET($M$31:$AT$262,ROWS($M$31:$AT$262)-1,0,1,1))+1),6),34))),0)+IFERROR(IF((INDEX($M$31:$AT$262,SMALL(IF(OFFSET($M$31:$AT$262,0,0,ROWS($M$31:$AT$262),1)=L32,ROW(OFFSET($M$31:$AT$262,0,0,ROWS($M$31:$AT$262),1))-ROW(OFFSET($M$31:$AT$262,0,0,1,1))+1,ROW(OFFSET($M$31:$AT$262,ROWS($M$31:$AT$262)-1,0,1,1))+1),1),34))=VLOOKUP(M31,$M$31:$AT$262,34,FALSE),(INDEX($M$31:$AT$262,SMALL(IF(OFFSET($M$31:$AT$262,0,0,ROWS($M$31:$AT$262),1)=L32,ROW(OFFSET($M$31:$AT$262,0,0,ROWS($M$31:$AT$262),1))-ROW(OFFSET($M$31:$AT$262,0,0,1,1))+1,ROW(OFFSET($M$31:$AT$262,ROWS($M$31:$AT$262)-1,0,1,1))+1),7),34))),0)+IFERROR(IF((INDEX($M$31:$AT$262,SMALL(IF(OFFSET($M$31:$AT$262,0,0,ROWS($M$31:$AT$262),1)=L32,ROW(OFFSET($M$31:$AT$262,0,0,ROWS($M$31:$AT$262),1))-ROW(OFFSET($M$31:$AT$262,0,0,1,1))+1,ROW(OFFSET($M$31:$AT$262,ROWS($M$31:$AT$262)-1,0,1,1))+1),1),34))=VLOOKUP(M31,$M$31:$AT$262,34,FALSE),(INDEX($M$31:$AT$262,SMALL(IF(OFFSET($M$31:$AT$262,0,0,ROWS($M$31:$AT$262),1)=L32,ROW(OFFSET($M$31:$AT$262,0,0,ROWS($M$31:$AT$262),1))-ROW(OFFSET($M$31:$AT$262,0,0,1,1))+1,ROW(OFFSET($M$31:$AT$262,ROWS($M$31:$AT$262)-1,0,1,1))+1),8),34))),0)+IFERROR(IF((INDEX($M$31:$AT$262,SMALL(IF(OFFSET($M$31:$AT$262,0,0,ROWS($M$31:$AT$262),1)=L32,ROW(OFFSET($M$31:$AT$262,0,0,ROWS($M$31:$AT$262),1))-ROW(OFFSET($M$31:$AT$262,0,0,1,1))+1,ROW(OFFSET($M$31:$AT$262,ROWS($M$31:$AT$262)-1,0,1,1))+1),1),34))=VLOOKUP(M31,$M$31:$AT$262,34,FALSE),(INDEX($M$31:$AT$262,SMALL(IF(OFFSET($M$31:$AT$262,0,0,ROWS($M$31:$AT$262),1)=L32,ROW(OFFSET($M$31:$AT$262,0,0,ROWS($M$31:$AT$262),1))-ROW(OFFSET($M$31:$AT$262,0,0,1,1))+1,ROW(OFFSET($M$31:$AT$262,ROWS($M$31:$AT$262)-1,0,1,1))+1),9),34))),0)+IFERROR(IF((INDEX($M$31:$AT$262,SMALL(IF(OFFSET($M$31:$AT$262,0,0,ROWS($M$31:$AT$262),1)=L32,ROW(OFFSET($M$31:$AT$262,0,0,ROWS($M$31:$AT$262),1))-ROW(OFFSET($M$31:$AT$262,0,0,1,1))+1,ROW(OFFSET($M$31:$AT$262,ROWS($M$31:$AT$262)-1,0,1,1))+1),1),34))=VLOOKUP(M31,$M$31:$AT$262,34,FALSE),(INDEX($M$31:$AT$262,SMALL(IF(OFFSET($M$31:$AT$262,0,0,ROWS($M$31:$AT$262),1)=L32,ROW(OFFSET($M$31:$AT$262,0,0,ROWS($M$31:$AT$262),1))-ROW(OFFSET($M$31:$AT$262,0,0,1,1))+1,ROW(OFFSET($M$31:$AT$262,ROWS($M$31:$AT$262)-1,0,1,1))+1),10),34))),0),IF(M31<>L32,VLOOKUP(L32,$L$31:$AS$262,34,FALSE)+IFERROR(VLOOKUP(L32,$M$31:$AT$262,34,FALSE),0)))) -> 0.52576785 | AU32: 82.01391416 | AV32: =IF(OR(L32="",M32=""),"",IF(OR($B$23="Determinación por areas aferentes",$B$23="Areas aferentes y caudales por nodos"),IFERROR(AM32*AU32*AT32,0),0)) -> 34.49622345 | AX32: =IF(OR(L32="",M32=""),"",IF(OR($B$23="Caudales fijos por nodo",$B$23="Areas aferentes y caudales por nodos"),S32+AW32,0)) -> 0 | AY32: =IF(L32="","",IF(ROW()=31,VLOOKUP(L32,$L$31:$AX$262,39,FALSE),IF(M31=L32,VLOOKUP(L32,$L$31:$AX$262,39,FALSE)+VLOOKUP(M31,$M$31:$AY$262,39,FALSE)+IFERROR(IF((INDEX($M$31:$AY$262,SMALL(IF(OFFSET($M$31:$AY$262,0,0,FILAX($M$31:$AY$262),1)=L32,ROW(OFFSET($M$31:$AY$262,0,0,FILAX($M$31:$AY$262),1))-ROW(OFFSET($M$31:$AY$262,0,0,1,1))+1,ROW(OFFSET($M$31:$AY$262,FILAX($M$31:$AY$262)-1,0,1,1))+1),1),39))=VLOOKUP(M31,$M$31:$AY$262,39,FALSE),(INDEX($M$31:$AY$262,SMALL(IF(OFFSET($M$31:$AY$262,0,0,FILAX($M$31:$AY$262),1)=L32,ROW(OFFSET($M$31:$AY$262,0,0,FILAX($M$31:$AY$262),1))-ROW(OFFSET($M$31:$AY$262,0,0,1,1))+1,ROW(OFFSET($M$31:$AY$262,FILAX($M$31:$AY$262)-1,0,1,1))+1),2),39))),0)+IFERROR(IF((INDEX($M$31:$AY$262,SMALL(IF(OFFSET($M$31:$AY$262,0,0,FILAX($M$31:$AY$262),1)=L32,ROW(OFFSET($M$31:$AY$262,0,0,FILAX($M$31:$AY$262),1))-ROW(OFFSET($M$31:$AY$262,0,0,1,1))+1,ROW(OFFSET($M$31:$AY$262,FILAX($M$31:$AY$262)-1,0,1,1))+1),1),39))=VLOOKUP(M31,$M$31:$AY$262,39,FALSE),(INDEX($M$31:$AY$262,SMALL(IF(OFFSET($M$31:$AY$262,0,0,FILAX($M$31:$AY$262),1)=L32,ROW(OFFSET($M$31:$AY$262,0,0,FILAX($M$31:$AY$262),1))-ROW(OFFSET($M$31:$AY$262,0,0,1,1))+1,ROW(OFFSET($M$31:$AY$262,FILAX($M$31:$AY$262)-1,0,1,1))+1),3),39))),0)+IFERROR(IF((INDEX($M$31:$AY$262,SMALL(IF(OFFSET($M$31:$AY$262,0,0,FILAX($M$31:$AY$262),1)=L32,ROW(OFFSET($M$31:$AY$262,0,0,FILAX($M$31:$AY$262),1))-ROW(OFFSET($M$31:$AY$262,0,0,1,1))+1,ROW(OFFSET($M$31:$AY$262,FILAX($M$31:$AY$262)-1,0,1,1))+1),1),39))=VLOOKUP(M31,$M$31:$AY$262,39,FALSE),(INDEX($M$31:$AY$262,SMALL(IF(OFFSET($M$31:$AY$262,0,0,FILAX($M$31:$AY$262),1)=L32,ROW(OFFSET($M$31:$AY$262,0,0,FILAX($M$31:$AY$262),1))-ROW(OFFSET($M$31:$AY$262,0,0,1,1))+1,ROW(OFFSET($M$31:$AY$262,FILAX($M$31:$AY$262)-1,0,1,1))+1),4),39))),0)+IFERROR(IF((INDEX($M$31:$AY$262,SMALL(IF(OFFSET($M$31:$AY$262,0,0,FILAX($M$31:$AY$262),1)=L32,ROW(OFFSET($M$31:$AY$262,0,0,FILAX($M$31:$AY$262),1))-ROW(OFFSET($M$31:$AY$262,0,0,1,1))+1,ROW(OFFSET($M$31:$AY$262,FILAX($M$31:$AY$262)-1,0,1,1))+1),1),39))=VLOOKUP(M31,$M$31:$AY$262,39,FALSE),(INDEX($M$31:$AY$262,SMALL(IF(OFFSET($M$31:$AY$262,0,0,FILAX($M$31:$AY$262),1)=L32,ROW(OFFSET($M$31:$AY$262,0,0,FILAX($M$31:$AY$262),1))-ROW(OFFSET($M$31:$AY$262,0,0,1,1))+1,ROW(OFFSET($M$31:$AY$262,FILAX($M$31:$AY$262)-1,0,1,1))+1),5),39))),0)+IFERROR(IF((INDEX($M$31:$AY$262,SMALL(IF(OFFSET($M$31:$AY$262,0,0,FILAX($M$31:$AY$262),1)=L32,ROW(OFFSET($M$31:$AY$262,0,0,FILAX($M$31:$AY$262),1))-ROW(OFFSET($M$31:$AY$262,0,0,1,1))+1,ROW(OFFSET($M$31:$AY$262,FILAX($M$31:$AY$262)-1,0,1,1))+1),1),39))=VLOOKUP(M31,$M$31:$AY$262,39,FALSE),(INDEX($M$31:$AY$262,SMALL(IF(OFFSET($M$31:$AY$262,0,0,FILAX($M$31:$AY$262),1)=L32,ROW(OFFSET($M$31:$AY$262,0,0,FILAX($M$31:$AY$262),1))-ROW(OFFSET($M$31:$AY$262,0,0,1,1))+1,ROW(OFFSET($M$31:$AY$262,FILAX($M$31:$AY$262)-1,0,1,1))+1),6),39))),0)+IFERROR(IF((INDEX($M$31:$AY$262,SMALL(IF(OFFSET($M$31:$AY$262,0,0,FILAX($M$31:$AY$262),1)=L32,ROW(OFFSET($M$31:$AY$262,0,0,FILAX($M$31:$AY$262),1))-ROW(OFFSET($M$31:$AY$262,0,0,1,1))+1,ROW(OFFSET($M$31:$AY$262,FILAX($M$31:$AY$262)-1,0,1,1))+1),1),39))=VLOOKUP(M31,$M$31:$AY$262,39,FALSE),(INDEX($M$31:$AY$262,SMALL(IF(OFFSET($M$31:$AY$262,0,0,FILAX($M$31:$AY$262),1)=L32,ROW(OFFSET($M$31:$AY$262,0,0,FILAX($M$31:$AY$262),1))-ROW(OFFSET($M$31:$AY$262,0,0,1,1))+1,ROW(OFFSET($M$31:$AY$262,FILAX($M$31:$AY$262)-1,0,1,1))+1),7),39))),0)+IFERROR(IF((INDEX($M$31:$AY$262,SMALL(IF(OFFSET($M$31:$AY$262,0,0,FILAX($M$31:$AY$262),1)=L32,ROW(OFFSET($M$31:$AY$262,0,0,FILAX($M$31:$AY$262),1))-ROW(OFFSET($M$31:$AY$262,0,0,1,1))+1,ROW(OFFSET($M$31:$AY$262,FILAX($M$31:$AY$262)-1,0,1,1))+1),1),39))=VLOOKUP(M31,$M$31:$AY$262,39,FALSE),(INDEX($M$31:$AY$262,SMALL(IF(OFFSET($M$31:$AY$262,0,0,FILAX($M$31:$AY$262),1)=L32,ROW(OFFSET($M$31:$AY$262,0,0,FILAX($M$31:$AY$262),1))-ROW(OFFSET($M$31:$AY$262,0,0,1,1))+1,ROW(OFFSET($M$31:$AY$262,FILAX($M$31:$AY$262)-1,0,1,1))+1),8),39))),0)+IFERROR(IF((INDEX($M$31:$AY$262,SMALL(IF(OFFSET($M$31:$AY$262,0,0,FILAX($M$31:$AY$262),1)=L32,ROW(OFFSET($M$31:$AY$262,0,0,FILAX($M$31:$AY$262),1))-ROW(OFFSET($M$31:$AY$262,0,0,1,1))+1,ROW(OFFSET($M$31:$AY$262,FILAX($M$31:$AY$262)-1,0,1,1))+1),1),39))=VLOOKUP(M31,$M$31:$AY$262,39,FALSE),(INDEX($M$31:$AY$262,SMALL(IF(OFFSET($M$31:$AY$262,0,0,FILAX($M$31:$AY$262),1)=L32,ROW(OFFSET($M$31:$AY$262,0,0,FILAX($M$31:$AY$262),1))-ROW(OFFSET($M$31:$AY$262,0,0,1,1))+1,ROW(OFFSET($M$31:$AY$262,FILAX($M$31:$AY$262)-1,0,1,1))+1),9),39))),0)+IFERROR(IF((INDEX($M$31:$AY$262,SMALL(IF(OFFSET($M$31:$AY$262,0,0,FILAX($M$31:$AY$262),1)=L32,ROW(OFFSET($M$31:$AY$262,0,0,FILAX($M$31:$AY$262),1))-ROW(OFFSET($M$31:$AY$262,0,0,1,1))+1,ROW(OFFSET($M$31:$AY$262,FILAX($M$31:$AY$262)-1,0,1,1))+1),1),39))=VLOOKUP(M31,$M$31:$AY$262,39,FALSE),(INDEX($M$31:$AY$262,SMALL(IF(OFFSET($M$31:$AY$262,0,0,FILAX($M$31:$AY$262),1)=L32,ROW(OFFSET($M$31:$AY$262,0,0,FILAX($M$31:$AY$262),1))-ROW(OFFSET($M$31:$AY$262,0,0,1,1))+1,ROW(OFFSET($M$31:$AY$262,FILAX($M$31:$AY$262)-1,0,1,1))+1),10),39))),0),IF(M31<>L32,VLOOKUP(L32,$L$31:$AX$262,39,FALSE)+IFERROR(VLOOKUP(L32,$M$31:$AY$262,39,FALSE),0))))) -> 0 | AZ32: 34.49622345 | BA32: =IF(OR($L32="",$M32=""),"",IFERROR(AV32/(AT32*10),"")) -> 6.561113133 | BB32: 0.2519633847 | BC32: -1.325601653e-05 | BD32: PD12 | BE32: PD13 | BF32: 99.18961635 | BG32: PVC | BH32: =IF(OR($L32="",$M32="",BG32=""),"",INDEX('Tablas y listas'!$D$4:$G$17,MATCH('1. Analisis Flujo Uniforme'!BG32,'Tablas y listas'!$D$4:$D$17,0),4)) -> 0.0125 | BI32: 12 | BJ32: =IF(OR(BI32=""),"",IFERROR(IF($BI$30="Pulgadas",INDEX('Tablas y listas'!$B$64:$D$89,MATCH('1. Analisis Flujo Uniforme'!BI32,CONCRETO_Pulgadas,0),3),IF($BI$30="mm",BI32/(10*100))),"Indique φ")) -> 0.3 | BK32: 0.05040850226 | BL32: 0.4 | BM32: 0.6527030726 | BN32: Subcrítico | BO32: =IF(CK32="","",CK32) -> 0.5423483668 | BP32: 0.7919996609 | BQ32: =IF(DU32="","",DU32) -> 1.303523278 | BR32: 1.650281743 | BV32: =IF(DR32="","",DR32) -> 2542.546477 | BW32: =IF(DS32="","",DS32) -> 2542.149718 | BX32: =IF(DW32="","",DW32) -> 2542.246477 | BY32: 2541.849718 | BZ32: 2542.457981 | CA32: 2542.061222 | CB32: =IF(DM32="","",DM32) -> 0.3327368756 | CE32: PD12 | CF32: PD13 | CG32: =IF(OR($L32="",$M32=""),"",IF(MAX(IFERROR(INDEX(MatrizQs1,SMALL(IF(OFFSET(MatrizQs1,0,0,ROWS(MatrizQs1),1)=CF32,ROW(OFFSET(MatrizQs1,0,0,ROWS(MatrizQs1),1))-ROW(OFFSET(MatrizQs1,0,0,1,1))+1,ROW(OFFSET(MatrizQs1,ROWS(MatrizQs1)-1,0,1,1))+1),1),41),0),IFERROR(INDEX(MatrizQs1,SMALL(IF(OFFSET(MatrizQs1,0,0,ROWS(MatrizQs1),1)=CF32,ROW(OFFSET(MatrizQs1,0,0,ROWS(MatrizQs1),1))-ROW(OFFSET(MatrizQs1,0,0,1,1))+1,ROW(OFFSET(MatrizQs1,ROWS(MatrizQs1)-1,0,1,1))+1),2),41),0),IFERROR(INDEX(MatrizQs1,SMALL(IF(OFFSET(MatrizQs1,0,0,ROWS(MatrizQs1),1)=CF32,ROW(OFFSET(MatrizQs1,0,0,ROWS(MatrizQs1),1))-ROW(OFFSET(MatrizQs1,0,0,1,1))+1,ROW(OFFSET(MatrizQs1,ROWS(MatrizQs1)-1,0,1,1))+1),3),41),0),IFERROR(INDEX(MatrizQs1,SMALL(IF(OFFSET(MatrizQs1,0,0,ROWS(MatrizQs1),1)=CF32,ROW(OFFSET(MatrizQs1,0,0,ROWS(MatrizQs1),1))-ROW(OFFSET(MatrizQs1,0,0,1,1))+1,ROW(OFFSET(MatrizQs1,ROWS(MatrizQs1)-1,0,1,1))+1),4),41),0),IFERROR(INDEX(MatrizQs1,SMALL(IF(OFFSET(MatrizQs1,0,0,ROWS(MatrizQs1),1)=CF32,ROW(OFFSET(MatrizQs1,0,0,ROWS(MatrizQs1),1))-ROW(OFFSET(MatrizQs1,0,0,1,1))+1,ROW(OFFSET(MatrizQs1,ROWS(MatrizQs1)-1,0,1,1))+1),5),41),0),IFERROR(INDEX(MatrizQs1,SMALL(IF(OFFSET(MatrizQs1,0,0,ROWS(MatrizQs1),1)=CF32,ROW(OFFSET(MatrizQs1,0,0,ROWS(MatrizQs1),1))-ROW(OFFSET(MatrizQs1,0,0,1,1))+1,ROW(OFFSET(MatrizQs1,ROWS(MatrizQs1)-1,0,1,1))+1),6),41),0),IFERROR(INDEX(MatrizQs1,SMALL(IF(OFFSET(MatrizQs1,0,0,ROWS(MatrizQs1),1)=CF32,ROW(OFFSET(MatrizQs1,0,0,ROWS(MatrizQs1),1))-ROW(OFFSET(MatrizQs1,0,0,1,1))+1,ROW(OFFSET(MatrizQs1,ROWS(MatrizQs1)-1,0,1,1))+1),7),41),0),IFERROR(INDEX(MatrizQs1,SMALL(IF(OFFSET(MatrizQs1,0,0,ROWS(MatrizQs1),1)=CF32,ROW(OFFSET(MatrizQs1,0,0,ROWS(MatrizQs1),1))-ROW(OFFSET(MatrizQs1,0,0,1,1))+1,ROW(OFFSET(MatrizQs1,ROWS(MatrizQs1)-1,0,1,1))+1),8),41),0))=0,IFERROR(INDEX(matrizQs,SMALL(IF(OFFSET(matrizQs,0,0,ROWS(matrizQs),1)=CF32,ROW(OFFSET(matrizQs,0,0,ROWS(matrizQs),1))-ROW(OFFSET(matrizQs,0,0,1,1))+1,ROW(OFFSET(matrizQs,ROWS(matrizQs)-1,0,1,1))+1),1),40),0),MAX(IFERROR(INDEX(MatrizQs1,SMALL(IF(OFFSET(MatrizQs1,0,0,ROWS(MatrizQs1),1)=CF32,ROW(OFFSET(MatrizQs1,0,0,ROWS(MatrizQs1),1))-ROW(OFFSET(MatrizQs1,0,0,1,1))+1,ROW(OFFSET(MatrizQs1,ROWS(MatrizQs1)-1,0,1,1))+1),1),41),0),IFERROR(INDEX(MatrizQs1,SMALL(IF(OFFSET(MatrizQs1,0,0,ROWS(MatrizQs1),1)=CF32,ROW(OFFSET(MatrizQs1,0,0,ROWS(MatrizQs1),1))-ROW(OFFSET(MatrizQs1,0,0,1,1))+1,ROW(OFFSET(MatrizQs1,ROWS(MatrizQs1)-1,0,1,1))+1),2),41),0),IFERROR(INDEX(MatrizQs1,SMALL(IF(OFFSET(MatrizQs1,0,0,ROWS(MatrizQs1),1)=CF32,ROW(OFFSET(MatrizQs1,0,0,ROWS(MatrizQs1),1))-ROW(OFFSET(MatrizQs1,0,0,1,1))+1,ROW(OFFSET(MatrizQs1,ROWS(MatrizQs1)-1,0,1,1))+1),3),41),0),IFERROR(INDEX(MatrizQs1,SMALL(IF(OFFSET(MatrizQs1,0,0,ROWS(MatrizQs1),1)=CF32,ROW(OFFSET(MatrizQs1,0,0,ROWS(MatrizQs1),1))-ROW(OFFSET(MatrizQs1,0,0,1,1))+1,ROW(OFFSET(MatrizQs1,ROWS(MatrizQs1)-1,0,1,1))+1),4),41),0),IFERROR(INDEX(MatrizQs1,SMALL(IF(OFFSET(MatrizQs1,0,0,ROWS(MatrizQs1),1)=CF32,ROW(OFFSET(MatrizQs1,0,0,ROWS(MatrizQs1),1))-ROW(OFFSET(MatrizQs1,0,0,1,1))+1,ROW(OFFSET(MatrizQs1,ROWS(MatrizQs1)-1,0,1,1))+1),5),41),0),IFERROR(INDEX(MatrizQs1,SMALL(IF(OFFSET(MatrizQs1,0,0,ROWS(MatrizQs1),1)=CF32,ROW(OFFSET(MatrizQs1,0,0,ROWS(MatrizQs1),1))-ROW(OFFSET(MatrizQs1,0,0,1,1))+1,ROW(OFFSET(MatrizQs1,ROWS(MatrizQs1)-1,0,1,1))+1),6),41),0),IFERROR(INDEX(MatrizQs1,SMALL(IF(OFFSET(MatrizQs1,0,0,ROWS(MatrizQs1),1)=CF32,ROW(OFFSET(MatrizQs1,0,0,ROWS(MatrizQs1),1))-ROW(OFFSET(MatrizQs1,0,0,1,1))+1,ROW(OFFSET(MatrizQs1,ROWS(MatrizQs1)-1,0,1,1))+1),7),41),0),IFERROR(INDEX(MatrizQs1,SMALL(IF(OFFSET(MatrizQs1,0,0,ROWS(MatrizQs1),1)=CF32,ROW(OFFSET(MatrizQs1,0,0,ROWS(MatrizQs1),1))-ROW(OFFSET(MatrizQs1,0,0,1,1))+1,ROW(OFFSET(MatrizQs1,ROWS(MatrizQs1)-1,0,1,1))+1),8),41),0)))) -> 55.08702775 | CH32: =IF(OR($L32="",$M32=""),"",IF(MAX(IFERROR(INDEX(MDSU,SMALL(IF(OFFSET(MDSU,0,0,ROWS(MDSU),1)=CF32,ROW(OFFSET(MDSU,0,0,ROWS(MDSU),1))-ROW(OFFSET(MDSU,0,0,1,1))+1,ROW(OFFSET(MDSU,ROWS(MDSU)-1,0,1,1))+1),1),7),0),IFERROR(INDEX(MDSU,SMALL(IF(OFFSET(MDSU,0,0,ROWS(MDSU),1)=CF32,ROW(OFFSET(MDSU,0,0,ROWS(MDSU),1))-ROW(OFFSET(MDSU,0,0,1,1))+1,ROW(OFFSET(MDSU,ROWS(MDSU)-1,0,1,1))+1),2),7),0),IFERROR(INDEX(MDSU,SMALL(IF(OFFSET(MDSU,0,0,ROWS(MDSU),1)=CF32,ROW(OFFSET(MDSU,0,0,ROWS(MDSU),1))-ROW(OFFSET(MDSU,0,0,1,1))+1,ROW(OFFSET(MDSU,ROWS(MDSU)-1,0,1,1))+1),3),7),0),IFERROR(INDEX(MDSU,SMALL(IF(OFFSET(MDSU,0,0,ROWS(MDSU),1)=CF32,ROW(OFFSET(MDSU,0,0,ROWS(MDSU),1))-ROW(OFFSET(MDSU,0,0,1,1))+1,ROW(OFFSET(MDSU,ROWS(MDSU)-1,0,1,1))+1),4),7),0),IFERROR(INDEX(MDSU,SMALL(IF(OFFSET(MDSU,0,0,ROWS(MDSU),1)=CF32,ROW(OFFSET(MDSU,0,0,ROWS(MDSU),1))-ROW(OFFSET(MDSU,0,0,1,1))+1,ROW(OFFSET(MDSU,ROWS(MDSU)-1,0,1,1))+1),5),7),0),IFERROR(INDEX(MDSU,SMALL(IF(OFFSET(MDSU,0,0,ROWS(MDSU),1)=CF32,ROW(OFFSET(MDSU,0,0,ROWS(MDSU),1))-ROW(OFFSET(MDSU,0,0,1,1))+1,ROW(OFFSET(MDSU,ROWS(MDSU)-1,0,1,1))+1),6),7),0),IFERROR(INDEX(MDSU,SMALL(IF(OFFSET(MDSU,0,0,ROWS(MDSU),1)=CF32,ROW(OFFSET(MDSU,0,0,ROWS(MDSU),1))-ROW(OFFSET(MDSU,0,0,1,1))+1,ROW(OFFSET(MDSU,ROWS(MDSU)-1,0,1,1))+1),7),7),0),IFERROR(INDEX(MDSU,SMALL(IF(OFFSET(MDSU,0,0,ROWS(MDSU),1)=CF32,ROW(OFFSET(MDSU,0,0,ROWS(MDSU),1))-ROW(OFFSET(MDSU,0,0,1,1))+1,ROW(OFFSET(MDSU,ROWS(MDSU)-1,0,1,1))+1),8),7),0))=0,IFERROR(INDEX(MDS,SMALL(IF(OFFSET(MDS,0,0,ROWS(MDS),1)=CF32,ROW(OFFSET(MDS,0,0,ROWS(MDS),1))-ROW(OFFSET(MDS,0,0,1,1))+1,ROW(OFFSET(MDS,ROWS(MDS)-1,0,1,1))+1),1),6),0),MAX(IFERROR(INDEX(MDSU,SMALL(IF(OFFSET(MDSU,0,0,ROWS(MDSU),1)=CF32,ROW(OFFSET(MDSU,0,0,ROWS(MDSU),1))-ROW(OFFSET(MDSU,0,0,1,1))+1,ROW(OFFSET(MDSU,ROWS(MDSU)-1,0,1,1))+1),1),7),0),IFERROR(INDEX(MDSU,SMALL(IF(OFFSET(MDSU,0,0,ROWS(MDSU),1)=CF32,ROW(OFFSET(MDSU,0,0,ROWS(MDSU),1))-ROW(OFFSET(MDSU,0,0,1,1))+1,ROW(OFFSET(MDSU,ROWS(MDSU)-1,0,1,1))+1),2),7),0),IFERROR(INDEX(MDSU,SMALL(IF(OFFSET(MDSU,0,0,ROWS(MDSU),1)=CF32,ROW(OFFSET(MDSU,0,0,ROWS(MDSU),1))-ROW(OFFSET(MDSU,0,0,1,1))+1,ROW(OFFSET(MDSU,ROWS(MDSU)-1,0,1,1))+1),3),7),0),IFERROR(INDEX(MDSU,SMALL(IF(OFFSET(MDSU,0,0,ROWS(MDSU),1)=CF32,ROW(OFFSET(MDSU,0,0,ROWS(MDSU),1))-ROW(OFFSET(MDSU,0,0,1,1))+1,ROW(OFFSET(MDSU,ROWS(MDSU)-1,0,1,1))+1),4),7),0),IFERROR(INDEX(MDSU,SMALL(IF(OFFSET(MDSU,0,0,ROWS(MDSU),1)=CF32,ROW(OFFSET(MDSU,0,0,ROWS(MDSU),1))-ROW(OFFSET(MDSU,0,0,1,1))+1,ROW(OFFSET(MDSU,ROWS(MDSU)-1,0,1,1))+1),5),7),0),IFERROR(INDEX(MDSU,SMALL(IF(OFFSET(MDSU,0,0,ROWS(MDSU),1)=CF32,ROW(OFFSET(MDSU,0,0,ROWS(MDSU),1))-ROW(OFFSET(MDSU,0,0,1,1))+1,ROW(OFFSET(MDSU,ROWS(MDSU)-1,0,1,1))+1),6),7),0),IFERROR(INDEX(MDSU,SMALL(IF(OFFSET(MDSU,0,0,ROWS(MDSU),1)=CF32,ROW(OFFSET(MDSU,0,0,ROWS(MDSU),1))-ROW(OFFSET(MDSU,0,0,1,1))+1,ROW(OFFSET(MDSU,ROWS(MDSU)-1,0,1,1))+1),7),7),0),IFERROR(INDEX(MDSU,SMALL(IF(OFFSET(MDSU,0,0,ROWS(MDSU),1)=CF32,ROW(OFFSET(MDSU,0,0,ROWS(MDSU),1))-ROW(OFFSET(MDSU,0,0,1,1))+1,ROW(OFFSET(MDSU,ROWS(MDSU)-1,0,1,1))+1),8),7),0)))) -> 0.35 | CI32: =IF(BJ32=0,"",IFERROR(((CJ32*PI()*(BJ32^2)/4)*1000),"")) -> 63.60528687 | CJ32: =IF(BI32=0,"",IFERROR((1/BH32)*((BJ32/4)^(2/3))*(BL32/100)^(1/2),"")) -> 0.8998307389 | CK32: 0.5423483668 | CL32: =IF(BJ32=0,"",IFERROR((CM32/BJ32),"")) -> 0.598445236 | CM32: =IF(BI32=0,"",IFERROR(BJ32*0.858451597*(CK32)^0.5896824401,"")) -> 0.1795335708 | CN32: 0.7919996609 | CO32: 3.537963242 | CP32: 0.04414540631 | CQ32: 0.5306944863 | CR32: 0.0831842189 | CS32: 0.1500892784 | CT32: 0.6527030726 | CU32: Subcrítico | CV32: 0.03197061483 | CW32: 0.2115041856 | CX32: 0.2689417952 | CY32: =IF(OR($L32="",$M32=""),"",IFERROR(IF(BJ32=0,"",DC32/2/CH32),"")) -> 1.714285714 | CZ32: 0.006394122965 | DA32: 0.0002361726347 | DB32: 0.06406790515 | DC32: =IF(OR($L32="",$M32=""),"",IFERROR(IF(CH32=0,"",IF(CH32<=0.6,1.2,IF(CH32<=0.75,1.5,1.8))),"")) -> 1.2 | DD32: =IF(OR($L32="",$M32=""),"",IFERROR(IF(DC32=0,"",DC32/CH32),"")) -> 3.428571429 | DE32: 0 | DF32: =IF(OR($L32="",$M32=""),"",IFERROR(IF(DD32=0,"",IF(DD32>2,1.2,IF(DD32>1.6,1.3,IF(DD32>1.3,1.4,1.5)))),"")) -> 1.2 | DI32: 0 | DK32: 0 | DL32: =IF(OR($L32="",$M32=""),"",IFERROR(IF(BF32=0,"",BL32*BF32/100),"")) -> 0.3967584654 | DM32: =IF(OR($L32="",$M32=""),"",IFERROR(IF(BL32=0,"",1000*CR32*BL32/100),"")) -> 0.3327368756 | DN32: 2543.85 | DO32: 2543.8 | DP32: 0 | DQ32: 0 | DR32: 2542.546477 | DS32: =IF(OR($L32="",$M32=""),"",IFERROR(IF(DR32=0,"",DR32-DL32),"")) -> 2542.149718 | DT32: =IF(OR($L32="",$M32=""),"",IF(MIN(IFERROR(INDEX(Matriz_busq,SMALL(IF(OFFSET(Matriz_busq,0,0,ROWS(Matriz_busq),1)=BD32,ROW(OFFSET(Matriz_busq,0,0,ROWS(Matriz_busq),1))-ROW(OFFSET(Matriz_busq,0,0,1,1))+1,ROW(OFFSET(Matriz_busq,ROWS(Matriz_busq)-1,0,1,1))+1),1),40),10000),IFERROR(INDEX(Matriz_busq,SMALL(IF(OFFSET(Matriz_busq,0,0,ROWS(Matriz_busq),1)=BD32,ROW(OFFSET(Matriz_busq,0,0,ROWS(Matriz_busq),1))-ROW(OFFSET(Matriz_busq,0,0,1,1))+1,ROW(OFFSET(Matriz_busq,ROWS(Matriz_busq)-1,0,1,1))+1),2),40),10000),IFERROR(INDEX(Matriz_busq,SMALL(IF(OFFSET(Matriz_busq,0,0,ROWS(Matriz_busq),1)=BD32,ROW(OFFSET(Matriz_busq,0,0,ROWS(Matriz_busq),1))-ROW(OFFSET(Matriz_busq,0,0,1,1))+1,ROW(OFFSET(Matriz_busq,ROWS(Matriz_busq)-1,0,1,1))+1),3),40),10000),IFERROR(INDEX(Matriz_busq,SMALL(IF(OFFSET(Matriz_busq,0,0,ROWS(Matriz_busq),1)=BD32,ROW(OFFSET(Matriz_busq,0,0,ROWS(Matriz_busq),1))-ROW(OFFSET(Matriz_busq,0,0,1,1))+1,ROW(OFFSET(Matriz_busq,ROWS(Matriz_busq)-1,0,1,1))+1),4),40),10000),IFERROR(INDEX(Matriz_busq,SMALL(IF(OFFSET(Matriz_busq,0,0,ROWS(Matriz_busq),1)=BD32,ROW(OFFSET(Matriz_busq,0,0,ROWS(Matriz_busq),1))-ROW(OFFSET(Matriz_busq,0,0,1,1))+1,ROW(OFFSET(Matriz_busq,ROWS(Matriz_busq)-1,0,1,1))+1),5),40),10000),IFERROR(INDEX(Matriz_busq,SMALL(IF(OFFSET(Matriz_busq,0,0,ROWS(Matriz_busq),1)=BD32,ROW(OFFSET(Matriz_busq,0,0,ROWS(Matriz_busq),1))-ROW(OFFSET(Matriz_busq,0,0,1,1))+1,ROW(OFFSET(Matriz_busq,ROWS(Matriz_busq)-1,0,1,1))+1),6),40),10000),IFERROR(INDEX(Matriz_busq,SMALL(IF(OFFSET(Matriz_busq,0,0,ROWS(Matriz_busq),1)=BD32,ROW(OFFSET(Matriz_busq,0,0,ROWS(Matriz_busq),1))-ROW(OFFSET(Matriz_busq,0,0,1,1))+1,ROW(OFFSET(Matriz_busq,ROWS(Matriz_busq)-1,0,1,1))+1),7),40),10000),IFERROR(INDEX(Matriz_busq,SMALL(IF(OFFSET(Matriz_busq,0,0,ROWS(Matriz_busq),1)=BD32,ROW(OFFSET(Matriz_busq,0,0,ROWS(Matriz_busq),1))-ROW(OFFSET(Matriz_busq,0,0,1,1))+1,ROW(OFFSET(Matriz_busq,ROWS(Matriz_busq)-1,0,1,1))+1),8),40),10000))=10000,0,MIN(IFERROR(INDEX(Matriz_busq,SMALL(IF(OFFSET(Matriz_busq,0,0,ROWS(Matriz_busq),1)=BD32,ROW(OFFSET(Matriz_busq,0,0,ROWS(Matriz_busq),1))-ROW(OFFSET(Matriz_busq,0,0,1,1))+1,ROW(OFFSET(Matriz_busq,ROWS(Matriz_busq)-1,0,1,1))+1),1),40),10000),IFERROR(INDEX(Matriz_busq,SMALL(IF(OFFSET(Matriz_busq,0,0,ROWS(Matriz_busq),1)=BD32,ROW(OFFSET(Matriz_busq,0,0,ROWS(Matriz_busq),1))-ROW(OFFSET(Matriz_busq,0,0,1,1))+1,ROW(OFFSET(Matriz_busq,ROWS(Matriz_busq)-1,0,1,1))+1),2),40),10000),IFERROR(INDEX(Matriz_busq,SMALL(IF(OFFSET(Matriz_busq,0,0,ROWS(Matriz_busq),1)=BD32,ROW(OFFSET(Matriz_busq,0,0,ROWS(Matriz_busq),1))-ROW(OFFSET(Matriz_busq,0,0,1,1))+1,ROW(OFFSET(Matriz_busq,ROWS(Matriz_busq)-1,0,1,1))+1),3),40),10000),IFERROR(INDEX(Matriz_busq,SMALL(IF(OFFSET(Matriz_busq,0,0,ROWS(Matriz_busq),1)=BD32,ROW(OFFSET(Matriz_busq,0,0,ROWS(Matriz_busq),1))-ROW(OFFSET(Matriz_busq,0,0,1,1))+1,ROW(OFFSET(Matriz_busq,ROWS(Matriz_busq)-1,0,1,1))+1),4),40),10000),IFERROR(INDEX(Matriz_busq,SMALL(IF(OFFSET(Matriz_busq,0,0,ROWS(Matriz_busq),1)=BD32,ROW(OFFSET(Matriz_busq,0,0,ROWS(Matriz_busq),1))-ROW(OFFSET(Matriz_busq,0,0,1,1))+1,ROW(OFFSET(Matriz_busq,ROWS(Matriz_busq)-1,0,1,1))+1),5),40),10000),IFERROR(INDEX(Matriz_busq,SMALL(IF(OFFSET(Matriz_busq,0,0,ROWS(Matriz_busq),1)=BD32,ROW(OFFSET(Matriz_busq,0,0,ROWS(Matriz_busq),1))-ROW(OFFSET(Matriz_busq,0,0,1,1))+1,ROW(OFFSET(Matriz_busq,ROWS(Matriz_busq)-1,0,1,1))+1),6),40),10000),IFERROR(INDEX(Matriz_busq,SMALL(IF(OFFSET(Matriz_busq,0,0,ROWS(Matriz_busq),1)=BD32,ROW(OFFSET(Matriz_busq,0,0,ROWS(Matriz_busq),1))-ROW(OFFSET(Matriz_busq,0,0,1,1))+1,ROW(OFFSET(Matriz_busq,ROWS(Matriz_busq)-1,0,1,1))+1),7),40),10000),IFERROR(INDEX(Matriz_busq,SMALL(IF(OFFSET(Matriz_busq,0,0,ROWS(Matriz_busq),1)=BD32,ROW(OFFSET(Matriz_busq,0,0,ROWS(Matriz_busq),1))-ROW(OFFSET(Matriz_busq,0,0,1,1))+1,ROW(OFFSET(Matriz_busq,ROWS(Matriz_busq)-1,0,1,1))+1),8),40),10000)))) -> 2542.600685 | DU32: =IF(OR($L32="",$M32=""),"",IFERROR(IF(DN32=0,"",DN32-DR32),"")) -> 1.303523278 | DV32: 1.650281743 | DW32: 2542.246477 | DX32: 2541.849718 | DY32: 2542.457981 | DZ32: 2542.061222
A33: PD13 | B33: Tipo_1 | D33: No aplica | F33: 93265.8278 | G33: 107251.8152 | H33: 2543.8 | L33: PD13 | M33: PD14 | N33: 2543.8 | O33: 2543.8 | P33: 0 | Q33: 0 | R33: =IF(OR(L33="",M33=""),"",IFERROR(SQRT(POWER(VLOOKUP(L33,$A$31:$G$70,6,FALSE)-VLOOKUP(M33,$A$31:$G$70,6,FALSE),2)+POWER(VLOOKUP(L33,$A$31:$G$70,7,FALSE)-VLOOKUP(M33,$A$31:$G$70,7,FALSE),2)),"Revise")) -> 95.84614813 | T33: 0.31359016 | W33: =IF(OR(L33="",M33=""),"",SUM(T33:V33)) -> 0.31359016 | X33: 0.5 | Y33: 0 | Z33: 100 | AA33: 0.005 | AB33: 3 | AC33: 5 | AD33: AREAS DESARROLLADAS | AE33: CONCRETO/TECHO | AF33: 0.8 | AI33: 0 | AL33: 0 | AM33: 0.8 | AN33: 12.40368325 | AO33: 6.562909208 | AP33: 0.2434036113 | AQ33: =IF(OR($L33="",$M33=""),"",IFERROR((AN33+AP33),"")) -> 12.64708686 | AS33: 0.31359016 | AT33: =IF(L33="","",IF(M32=L33,VLOOKUP(L33,$L$31:$AS$262,34,FALSE)+VLOOKUP(M32,$M$31:$AT$262,34,FALSE)+IFERROR(IF((INDEX($M$31:$AT$262,SMALL(IF(OFFSET($M$31:$AT$262,0,0,ROWS($M$31:$AT$262),1)=L33,ROW(OFFSET($M$31:$AT$262,0,0,ROWS($M$31:$AT$262),1))-ROW(OFFSET($M$31:$AT$262,0,0,1,1))+1,ROW(OFFSET($M$31:$AT$262,ROWS($M$31:$AT$262)-1,0,1,1))+1),1),34))=VLOOKUP(M32,$M$31:$AT$262,34,FALSE),(INDEX($M$31:$AT$262,SMALL(IF(OFFSET($M$31:$AT$262,0,0,ROWS($M$31:$AT$262),1)=L33,ROW(OFFSET($M$31:$AT$262,0,0,ROWS($M$31:$AT$262),1))-ROW(OFFSET($M$31:$AT$262,0,0,1,1))+1,ROW(OFFSET($M$31:$AT$262,ROWS($M$31:$AT$262)-1,0,1,1))+1),2),34))),0)+IFERROR(IF((INDEX($M$31:$AT$262,SMALL(IF(OFFSET($M$31:$AT$262,0,0,ROWS($M$31:$AT$262),1)=L33,ROW(OFFSET($M$31:$AT$262,0,0,ROWS($M$31:$AT$262),1))-ROW(OFFSET($M$31:$AT$262,0,0,1,1))+1,ROW(OFFSET($M$31:$AT$262,ROWS($M$31:$AT$262)-1,0,1,1))+1),1),34))=VLOOKUP(M32,$M$31:$AT$262,34,FALSE),(INDEX($M$31:$AT$262,SMALL(IF(OFFSET($M$31:$AT$262,0,0,ROWS($M$31:$AT$262),1)=L33,ROW(OFFSET($M$31:$AT$262,0,0,ROWS($M$31:$AT$262),1))-ROW(OFFSET($M$31:$AT$262,0,0,1,1))+1,ROW(OFFSET($M$31:$AT$262,ROWS($M$31:$AT$262)-1,0,1,1))+1),3),34))),0)+IFERROR(IF((INDEX($M$31:$AT$262,SMALL(IF(OFFSET($M$31:$AT$262,0,0,ROWS($M$31:$AT$262),1)=L33,ROW(OFFSET($M$31:$AT$262,0,0,ROWS($M$31:$AT$262),1))-ROW(OFFSET($M$31:$AT$262,0,0,1,1))+1,ROW(OFFSET($M$31:$AT$262,ROWS($M$31:$AT$262)-1,0,1,1))+1),1),34))=VLOOKUP(M32,$M$31:$AT$262,34,FALSE),(INDEX($M$31:$AT$262,SMALL(IF(OFFSET($M$31:$AT$262,0,0,ROWS($M$31:$AT$262),1)=L33,ROW(OFFSET($M$31:$AT$262,0,0,ROWS($M$31:$AT$262),1))-ROW(OFFSET($M$31:$AT$262,0,0,1,1))+1,ROW(OFFSET($M$31:$AT$262,ROWS($M$31:$AT$262)-1,0,1,1))+1),4),34))),0)+IFERROR(IF((INDEX($M$31:$AT$262,SMALL(IF(OFFSET($M$31:$AT$262,0,0,ROWS($M$31:$AT$262),1)=L33,ROW(OFFSET($M$31:$AT$262,0,0,ROWS($M$31:$AT$262),1))-ROW(OFFSET($M$31:$AT$262,0,0,1,1))+1,ROW(OFFSET($M$31:$AT$262,ROWS($M$31:$AT$262)-1,0,1,1))+1),1),34))=VLOOKUP(M32,$M$31:$AT$262,34,FALSE),(INDEX($M$31:$AT$262,SMALL(IF(OFFSET($M$31:$AT$262,0,0,ROWS($M$31:$AT$262),1)=L33,ROW(OFFSET($M$31:$AT$262,0,0,ROWS($M$31:$AT$262),1))-ROW(OFFSET($M$31:$AT$262,0,0,1,1))+1,ROW(OFFSET($M$31:$AT$262,ROWS($M$31:$AT$262)-1,0,1,1))+1),5),34))),0)+IFERROR(IF((INDEX($M$31:$AT$262,SMALL(IF(OFFSET($M$31:$AT$262,0,0,ROWS($M$31:$AT$262),1)=L33,ROW(OFFSET($M$31:$AT$262,0,0,ROWS($M$31:$AT$262),1))-ROW(OFFSET($M$31:$AT$262,0,0,1,1))+1,ROW(OFFSET($M$31:$AT$262,ROWS($M$31:$AT$262)-1,0,1,1))+1),1),34))=VLOOKUP(M32,$M$31:$AT$262,34,FALSE),(INDEX($M$31:$AT$262,SMALL(IF(OFFSET($M$31:$AT$262,0,0,ROWS($M$31:$AT$262),1)=L33,ROW(OFFSET($M$31:$AT$262,0,0,ROWS($M$31:$AT$262),1))-ROW(OFFSET($M$31:$AT$262,0,0,1,1))+1,ROW(OFFSET($M$31:$AT$262,ROWS($M$31:$AT$262)-1,0,1,1))+1),6),34))),0)+IFERROR(IF((INDEX($M$31:$AT$262,SMALL(IF(OFFSET($M$31:$AT$262,0,0,ROWS($M$31:$AT$262),1)=L33,ROW(OFFSET($M$31:$AT$262,0,0,ROWS($M$31:$AT$262),1))-ROW(OFFSET($M$31:$AT$262,0,0,1,1))+1,ROW(OFFSET($M$31:$AT$262,ROWS($M$31:$AT$262)-1,0,1,1))+1),1),34))=VLOOKUP(M32,$M$31:$AT$262,34,FALSE),(INDEX($M$31:$AT$262,SMALL(IF(OFFSET($M$31:$AT$262,0,0,ROWS($M$31:$AT$262),1)=L33,ROW(OFFSET($M$31:$AT$262,0,0,ROWS($M$31:$AT$262),1))-ROW(OFFSET($M$31:$AT$262,0,0,1,1))+1,ROW(OFFSET($M$31:$AT$262,ROWS($M$31:$AT$262)-1,0,1,1))+1),7),34))),0)+IFERROR(IF((INDEX($M$31:$AT$262,SMALL(IF(OFFSET($M$31:$AT$262,0,0,ROWS($M$31:$AT$262),1)=L33,ROW(OFFSET($M$31:$AT$262,0,0,ROWS($M$31:$AT$262),1))-ROW(OFFSET($M$31:$AT$262,0,0,1,1))+1,ROW(OFFSET($M$31:$AT$262,ROWS($M$31:$AT$262)-1,0,1,1))+1),1),34))=VLOOKUP(M32,$M$31:$AT$262,34,FALSE),(INDEX($M$31:$AT$262,SMALL(IF(OFFSET($M$31:$AT$262,0,0,ROWS($M$31:$AT$262),1)=L33,ROW(OFFSET($M$31:$AT$262,0,0,ROWS($M$31:$AT$262),1))-ROW(OFFSET($M$31:$AT$262,0,0,1,1))+1,ROW(OFFSET($M$31:$AT$262,ROWS($M$31:$AT$262)-1,0,1,1))+1),8),34))),0)+IFERROR(IF((INDEX($M$31:$AT$262,SMALL(IF(OFFSET($M$31:$AT$262,0,0,ROWS($M$31:$AT$262),1)=L33,ROW(OFFSET($M$31:$AT$262,0,0,ROWS($M$31:$AT$262),1))-ROW(OFFSET($M$31:$AT$262,0,0,1,1))+1,ROW(OFFSET($M$31:$AT$262,ROWS($M$31:$AT$262)-1,0,1,1))+1),1),34))=VLOOKUP(M32,$M$31:$AT$262,34,FALSE),(INDEX($M$31:$AT$262,SMALL(IF(OFFSET($M$31:$AT$262,0,0,ROWS($M$31:$AT$262),1)=L33,ROW(OFFSET($M$31:$AT$262,0,0,ROWS($M$31:$AT$262),1))-ROW(OFFSET($M$31:$AT$262,0,0,1,1))+1,ROW(OFFSET($M$31:$AT$262,ROWS($M$31:$AT$262)-1,0,1,1))+1),9),34))),0)+IFERROR(IF((INDEX($M$31:$AT$262,SMALL(IF(OFFSET($M$31:$AT$262,0,0,ROWS($M$31:$AT$262),1)=L33,ROW(OFFSET($M$31:$AT$262,0,0,ROWS($M$31:$AT$262),1))-ROW(OFFSET($M$31:$AT$262,0,0,1,1))+1,ROW(OFFSET($M$31:$AT$262,ROWS($M$31:$AT$262)-1,0,1,1))+1),1),34))=VLOOKUP(M32,$M$31:$AT$262,34,FALSE),(INDEX($M$31:$AT$262,SMALL(IF(OFFSET($M$31:$AT$262,0,0,ROWS($M$31:$AT$262),1)=L33,ROW(OFFSET($M$31:$AT$262,0,0,ROWS($M$31:$AT$262),1))-ROW(OFFSET($M$31:$AT$262,0,0,1,1))+1,ROW(OFFSET($M$31:$AT$262,ROWS($M$31:$AT$262)-1,0,1,1))+1),10),34))),0),IF(M32<>L33,VLOOKUP(L33,$L$31:$AS$262,34,FALSE)+IFERROR(VLOOKUP(L33,$M$31:$AT$262,34,FALSE),0)))) -> 0.83935801 | AU33: 82.03744275 | AV33: 55.08702775 | AX33: 0 | AY33: =IF(L33="","",IF(ROW()=31,VLOOKUP(L33,$L$31:$AX$262,39,FALSE),IF(M32=L33,VLOOKUP(L33,$L$31:$AX$262,39,FALSE)+VLOOKUP(M32,$M$31:$AY$262,39,FALSE)+IFERROR(IF((INDEX($M$31:$AY$262,SMALL(IF(OFFSET($M$31:$AY$262,0,0,FILAX($M$31:$AY$262),1)=L33,ROW(OFFSET($M$31:$AY$262,0,0,FILAX($M$31:$AY$262),1))-ROW(OFFSET($M$31:$AY$262,0,0,1,1))+1,ROW(OFFSET($M$31:$AY$262,FILAX($M$31:$AY$262)-1,0,1,1))+1),1),39))=VLOOKUP(M32,$M$31:$AY$262,39,FALSE),(INDEX($M$31:$AY$262,SMALL(IF(OFFSET($M$31:$AY$262,0,0,FILAX($M$31:$AY$262),1)=L33,ROW(OFFSET($M$31:$AY$262,0,0,FILAX($M$31:$AY$262),1))-ROW(OFFSET($M$31:$AY$262,0,0,1,1))+1,ROW(OFFSET($M$31:$AY$262,FILAX($M$31:$AY$262)-1,0,1,1))+1),2),39))),0)+IFERROR(IF((INDEX($M$31:$AY$262,SMALL(IF(OFFSET($M$31:$AY$262,0,0,FILAX($M$31:$AY$262),1)=L33,ROW(OFFSET($M$31:$AY$262,0,0,FILAX($M$31:$AY$262),1))-ROW(OFFSET($M$31:$AY$262,0,0,1,1))+1,ROW(OFFSET($M$31:$AY$262,FILAX($M$31:$AY$262)-1,0,1,1))+1),1),39))=VLOOKUP(M32,$M$31:$AY$262,39,FALSE),(INDEX($M$31:$AY$262,SMALL(IF(OFFSET($M$31:$AY$262,0,0,FILAX($M$31:$AY$262),1)=L33,ROW(OFFSET($M$31:$AY$262,0,0,FILAX($M$31:$AY$262),1))-ROW(OFFSET($M$31:$AY$262,0,0,1,1))+1,ROW(OFFSET($M$31:$AY$262,FILAX($M$31:$AY$262)-1,0,1,1))+1),3),39))),0)+IFERROR(IF((INDEX($M$31:$AY$262,SMALL(IF(OFFSET($M$31:$AY$262,0,0,FILAX($M$31:$AY$262),1)=L33,ROW(OFFSET($M$31:$AY$262,0,0,FILAX($M$31:$AY$262),1))-ROW(OFFSET($M$31:$AY$262,0,0,1,1))+1,ROW(OFFSET($M$31:$AY$262,FILAX($M$31:$AY$262)-1,0,1,1))+1),1),39))=VLOOKUP(M32,$M$31:$AY$262,39,FALSE),(INDEX($M$31:$AY$262,SMALL(IF(OFFSET($M$31:$AY$262,0,0,FILAX($M$31:$AY$262),1)=L33,ROW(OFFSET($M$31:$AY$262,0,0,FILAX($M$31:$AY$262),1))-ROW(OFFSET($M$31:$AY$262,0,0,1,1))+1,ROW(OFFSET($M$31:$AY$262,FILAX($M$31:$AY$262)-1,0,1,1))+1),4),39))),0)+IFERROR(IF((INDEX($M$31:$AY$262,SMALL(IF(OFFSET($M$31:$AY$262,0,0,FILAX($M$31:$AY$262),1)=L33,ROW(OFFSET($M$31:$AY$262,0,0,FILAX($M$31:$AY$262),1))-ROW(OFFSET($M$31:$AY$262,0,0,1,1))+1,ROW(OFFSET($M$31:$AY$262,FILAX($M$31:$AY$262)-1,0,1,1))+1),1),39))=VLOOKUP(M32,$M$31:$AY$262,39,FALSE),(INDEX($M$31:$AY$262,SMALL(IF(OFFSET($M$31:$AY$262,0,0,FILAX($M$31:$AY$262),1)=L33,ROW(OFFSET($M$31:$AY$262,0,0,FILAX($M$31:$AY$262),1))-ROW(OFFSET($M$31:$AY$262,0,0,1,1))+1,ROW(OFFSET($M$31:$AY$262,FILAX($M$31:$AY$262)-1,0,1,1))+1),5),39))),0)+IFERROR(IF((INDEX($M$31:$AY$262,SMALL(IF(OFFSET($M$31:$AY$262,0,0,FILAX($M$31:$AY$262),1)=L33,ROW(OFFSET($M$31:$AY$262,0,0,FILAX($M$31:$AY$262),1))-ROW(OFFSET($M$31:$AY$262,0,0,1,1))+1,ROW(OFFSET($M$31:$AY$262,FILAX($M$31:$AY$262)-1,0,1,1))+1),1),39))=VLOOKUP(M32,$M$31:$AY$262,39,FALSE),(INDEX($M$31:$AY$262,SMALL(IF(OFFSET($M$31:$AY$262,0,0,FILAX($M$31:$AY$262),1)=L33,ROW(OFFSET($M$31:$AY$262,0,0,FILAX($M$31:$AY$262),1))-ROW(OFFSET($M$31:$AY$262,0,0,1,1))+1,ROW(OFFSET($M$31:$AY$262,FILAX($M$31:$AY$262)-1,0,1,1))+1),6),39))),0)+IFERROR(IF((INDEX($M$31:$AY$262,SMALL(IF(OFFSET($M$31:$AY$262,0,0,FILAX($M$31:$AY$262),1)=L33,ROW(OFFSET($M$31:$AY$262,0,0,FILAX($M$31:$AY$262),1))-ROW(OFFSET($M$31:$AY$262,0,0,1,1))+1,ROW(OFFSET($M$31:$AY$262,FILAX($M$31:$AY$262)-1,0,1,1))+1),1),39))=VLOOKUP(M32,$M$31:$AY$262,39,FALSE),(INDEX($M$31:$AY$262,SMALL(IF(OFFSET($M$31:$AY$262,0,0,FILAX($M$31:$AY$262),1)=L33,ROW(OFFSET($M$31:$AY$262,0,0,FILAX($M$31:$AY$262),1))-ROW(OFFSET($M$31:$AY$262,0,0,1,1))+1,ROW(OFFSET($M$31:$AY$262,FILAX($M$31:$AY$262)-1,0,1,1))+1),7),39))),0)+IFERROR(IF((INDEX($M$31:$AY$262,SMALL(IF(OFFSET($M$31:$AY$262,0,0,FILAX($M$31:$AY$262),1)=L33,ROW(OFFSET($M$31:$AY$262,0,0,FILAX($M$31:$AY$262),1))-ROW(OFFSET($M$31:$AY$262,0,0,1,1))+1,ROW(OFFSET($M$31:$AY$262,FILAX($M$31:$AY$262)-1,0,1,1))+1),1),39))=VLOOKUP(M32,$M$31:$AY$262,39,FALSE),(INDEX($M$31:$AY$262,SMALL(IF(OFFSET($M$31:$AY$262,0,0,FILAX($M$31:$AY$262),1)=L33,ROW(OFFSET($M$31:$AY$262,0,0,FILAX($M$31:$AY$262),1))-ROW(OFFSET($M$31:$AY$262,0,0,1,1))+1,ROW(OFFSET($M$31:$AY$262,FILAX($M$31:$AY$262)-1,0,1,1))+1),8),39))),0)+IFERROR(IF((INDEX($M$31:$AY$262,SMALL(IF(OFFSET($M$31:$AY$262,0,0,FILAX($M$31:$AY$262),1)=L33,ROW(OFFSET($M$31:$AY$262,0,0,FILAX($M$31:$AY$262),1))-ROW(OFFSET($M$31:$AY$262,0,0,1,1))+1,ROW(OFFSET($M$31:$AY$262,FILAX($M$31:$AY$262)-1,0,1,1))+1),1),39))=VLOOKUP(M32,$M$31:$AY$262,39,FALSE),(INDEX($M$31:$AY$262,SMALL(IF(OFFSET($M$31:$AY$262,0,0,FILAX($M$31:$AY$262),1)=L33,ROW(OFFSET($M$31:$AY$262,0,0,FILAX($M$31:$AY$262),1))-ROW(OFFSET($M$31:$AY$262,0,0,1,1))+1,ROW(OFFSET($M$31:$AY$262,FILAX($M$31:$AY$262)-1,0,1,1))+1),9),39))),0)+IFERROR(IF((INDEX($M$31:$AY$262,SMALL(IF(OFFSET($M$31:$AY$262,0,0,FILAX($M$31:$AY$262),1)=L33,ROW(OFFSET($M$31:$AY$262,0,0,FILAX($M$31:$AY$262),1))-ROW(OFFSET($M$31:$AY$262,0,0,1,1))+1,ROW(OFFSET($M$31:$AY$262,FILAX($M$31:$AY$262)-1,0,1,1))+1),1),39))=VLOOKUP(M32,$M$31:$AY$262,39,FALSE),(INDEX($M$31:$AY$262,SMALL(IF(OFFSET($M$31:$AY$262,0,0,FILAX($M$31:$AY$262),1)=L33,ROW(OFFSET($M$31:$AY$262,0,0,FILAX($M$31:$AY$262),1))-ROW(OFFSET($M$31:$AY$262,0,0,1,1))+1,ROW(OFFSET($M$31:$AY$262,FILAX($M$31:$AY$262)-1,0,1,1))+1),10),39))),0),IF(M32<>L33,VLOOKUP(L33,$L$31:$AX$262,39,FALSE)+IFERROR(VLOOKUP(L33,$M$31:$AY$262,39,FALSE),0))))) -> 0 | AZ33: 55.08702775 | BA33: 6.56299542 | BB33: 0.243400414 | BC33: -1.313617259e-05 | BD33: PD13 | BE33: PD14 | BF33: 95.84614813 | BG33: PVC | BH33: =IF(OR($L33="",$M33="",BG33=""),"",INDEX('Tablas y listas'!$D$4:$G$17,MATCH('1. Analisis Flujo Uniforme'!BG33,'Tablas y listas'!$D$4:$D$17,0),4)) -> 0.0125 | BI33: 14 | BJ33: =IF(OR(BI33=""),"",IFERROR(IF($BI$30="Pulgadas",INDEX('Tablas y listas'!$B$64:$D$89,MATCH('1. Analisis Flujo Uniforme'!BI33,CONCRETO_Pulgadas,0),3),IF($BI$30="mm",BI33/(10*100))),"Indique φ")) -> 0.35 | BK33: 0 | BL33: 0.3 | BM33: 0.5618020907 | BN33: Subcrítico | BO33: 0.6629804478 | BP33: 0.8064936443 | BQ33: 1.664349648 | BR33: 1.951888093 | BV33: 2542.13565 | BW33: 2541.848112 | BX33: 2541.78565 | BY33: 2541.498112 | BZ33: 2542.054592 | CA33: 2541.767054 | CB33: 0.306906233 | CE33: PD13 | CF33: PD14 | CG33: =IF(OR($L33="",$M33=""),"",IF(MAX(IFERROR(INDEX(MatrizQs1,SMALL(IF(OFFSET(MatrizQs1,0,0,ROWS(MatrizQs1),1)=CF33,ROW(OFFSET(MatrizQs1,0,0,ROWS(MatrizQs1),1))-ROW(OFFSET(MatrizQs1,0,0,1,1))+1,ROW(OFFSET(MatrizQs1,ROWS(MatrizQs1)-1,0,1,1))+1),1),41),0),IFERROR(INDEX(MatrizQs1,SMALL(IF(OFFSET(MatrizQs1,0,0,ROWS(MatrizQs1),1)=CF33,ROW(OFFSET(MatrizQs1,0,0,ROWS(MatrizQs1),1))-ROW(OFFSET(MatrizQs1,0,0,1,1))+1,ROW(OFFSET(MatrizQs1,ROWS(MatrizQs1)-1,0,1,1))+1),2),41),0),IFERROR(INDEX(MatrizQs1,SMALL(IF(OFFSET(MatrizQs1,0,0,ROWS(MatrizQs1),1)=CF33,ROW(OFFSET(MatrizQs1,0,0,ROWS(MatrizQs1),1))-ROW(OFFSET(MatrizQs1,0,0,1,1))+1,ROW(OFFSET(MatrizQs1,ROWS(MatrizQs1)-1,0,1,1))+1),3),41),0),IFERROR(INDEX(MatrizQs1,SMALL(IF(OFFSET(MatrizQs1,0,0,ROWS(MatrizQs1),1)=CF33,ROW(OFFSET(MatrizQs1,0,0,ROWS(MatrizQs1),1))-ROW(OFFSET(MatrizQs1,0,0,1,1))+1,ROW(OFFSET(MatrizQs1,ROWS(MatrizQs1)-1,0,1,1))+1),4),41),0),IFERROR(INDEX(MatrizQs1,SMALL(IF(OFFSET(MatrizQs1,0,0,ROWS(MatrizQs1),1)=CF33,ROW(OFFSET(MatrizQs1,0,0,ROWS(MatrizQs1),1))-ROW(OFFSET(MatrizQs1,0,0,1,1))+1,ROW(OFFSET(MatrizQs1,ROWS(MatrizQs1)-1,0,1,1))+1),5),41),0),IFERROR(INDEX(MatrizQs1,SMALL(IF(OFFSET(MatrizQs1,0,0,ROWS(MatrizQs1),1)=CF33,ROW(OFFSET(MatrizQs1,0,0,ROWS(MatrizQs1),1))-ROW(OFFSET(MatrizQs1,0,0,1,1))+1,ROW(OFFSET(MatrizQs1,ROWS(MatrizQs1)-1,0,1,1))+1),6),41),0),IFERROR(INDEX(MatrizQs1,SMALL(IF(OFFSET(MatrizQs1,0,0,ROWS(MatrizQs1),1)=CF33,ROW(OFFSET(MatrizQs1,0,0,ROWS(MatrizQs1),1))-ROW(OFFSET(MatrizQs1,0,0,1,1))+1,ROW(OFFSET(MatrizQs1,ROWS(MatrizQs1)-1,0,1,1))+1),7),41),0),IFERROR(INDEX(MatrizQs1,SMALL(IF(OFFSET(MatrizQs1,0,0,ROWS(MatrizQs1),1)=CF33,ROW(OFFSET(MatrizQs1,0,0,ROWS(MatrizQs1),1))-ROW(OFFSET(MatrizQs1,0,0,1,1))+1,ROW(OFFSET(MatrizQs1,ROWS(MatrizQs1)-1,0,1,1))+1),8),41),0))=0,IFERROR(INDEX(matrizQs,SMALL(IF(OFFSET(matrizQs,0,0,ROWS(matrizQs),1)=CF33,ROW(OFFSET(matrizQs,0,0,ROWS(matrizQs),1))-ROW(OFFSET(matrizQs,0,0,1,1))+1,ROW(OFFSET(matrizQs,ROWS(matrizQs)-1,0,1,1))+1),1),40),0),MAX(IFERROR(INDEX(MatrizQs1,SMALL(IF(OFFSET(MatrizQs1,0,0,ROWS(MatrizQs1),1)=CF33,ROW(OFFSET(MatrizQs1,0,0,ROWS(MatrizQs1),1))-ROW(OFFSET(MatrizQs1,0,0,1,1))+1,ROW(OFFSET(MatrizQs1,ROWS(MatrizQs1)-1,0,1,1))+1),1),41),0),IFERROR(INDEX(MatrizQs1,SMALL(IF(OFFSET(MatrizQs1,0,0,ROWS(MatrizQs1),1)=CF33,ROW(OFFSET(MatrizQs1,0,0,ROWS(MatrizQs1),1))-ROW(OFFSET(MatrizQs1,0,0,1,1))+1,ROW(OFFSET(MatrizQs1,ROWS(MatrizQs1)-1,0,1,1))+1),2),41),0),IFERROR(INDEX(MatrizQs1,SMALL(IF(OFFSET(MatrizQs1,0,0,ROWS(MatrizQs1),1)=CF33,ROW(OFFSET(MatrizQs1,0,0,ROWS(MatrizQs1),1))-ROW(OFFSET(MatrizQs1,0,0,1,1))+1,ROW(OFFSET(MatrizQs1,ROWS(MatrizQs1)-1,0,1,1))+1),3),41),0),IFERROR(INDEX(MatrizQs1,SMALL(IF(OFFSET(MatrizQs1,0,0,ROWS(MatrizQs1),1)=CF33,ROW(OFFSET(MatrizQs1,0,0,ROWS(MatrizQs1),1))-ROW(OFFSET(MatrizQs1,0,0,1,1))+1,ROW(OFFSET(MatrizQs1,ROWS(MatrizQs1)-1,0,1,1))+1),4),41),0),IFERROR(INDEX(MatrizQs1,SMALL(IF(OFFSET(MatrizQs1,0,0,ROWS(MatrizQs1),1)=CF33,ROW(OFFSET(MatrizQs1,0,0,ROWS(MatrizQs1),1))-ROW(OFFSET(MatrizQs1,0,0,1,1))+1,ROW(OFFSET(MatrizQs1,ROWS(MatrizQs1)-1,0,1,1))+1),5),41),0),IFERROR(INDEX(MatrizQs1,SMALL(IF(OFFSET(MatrizQs1,0,0,ROWS(MatrizQs1),1)=CF33,ROW(OFFSET(MatrizQs1,0,0,ROWS(MatrizQs1),1))-ROW(OFFSET(MatrizQs1,0,0,1,1))+1,ROW(OFFSET(MatrizQs1,ROWS(MatrizQs1)-1,0,1,1))+1),6),41),0),IFERROR(INDEX(MatrizQs1,SMALL(IF(OFFSET(MatrizQs1,0,0,ROWS(MatrizQs1),1)=CF33,ROW(OFFSET(MatrizQs1,0,0,ROWS(MatrizQs1),1))-ROW(OFFSET(MatrizQs1,0,0,1,1))+1,ROW(OFFSET(MatrizQs1,ROWS(MatrizQs1)-1,0,1,1))+1),7),41),0),IFERROR(INDEX(MatrizQs1,SMALL(IF(OFFSET(MatrizQs1,0,0,ROWS(MatrizQs1),1)=CF33,ROW(OFFSET(MatrizQs1,0,0,ROWS(MatrizQs1),1))-ROW(OFFSET(MatrizQs1,0,0,1,1))+1,ROW(OFFSET(MatrizQs1,ROWS(MatrizQs1)-1,0,1,1))+1),8),41),0)))) -> 72.20188178 | CH33: =IF(OR($L33="",$M33=""),"",IF(MAX(IFERROR(INDEX(MDSU,SMALL(IF(OFFSET(MDSU,0,0,ROWS(MDSU),1)=CF33,ROW(OFFSET(MDSU,0,0,ROWS(MDSU),1))-ROW(OFFSET(MDSU,0,0,1,1))+1,ROW(OFFSET(MDSU,ROWS(MDSU)-1,0,1,1))+1),1),7),0),IFERROR(INDEX(MDSU,SMALL(IF(OFFSET(MDSU,0,0,ROWS(MDSU),1)=CF33,ROW(OFFSET(MDSU,0,0,ROWS(MDSU),1))-ROW(OFFSET(MDSU,0,0,1,1))+1,ROW(OFFSET(MDSU,ROWS(MDSU)-1,0,1,1))+1),2),7),0),IFERROR(INDEX(MDSU,SMALL(IF(OFFSET(MDSU,0,0,ROWS(MDSU),1)=CF33,ROW(OFFSET(MDSU,0,0,ROWS(MDSU),1))-ROW(OFFSET(MDSU,0,0,1,1))+1,ROW(OFFSET(MDSU,ROWS(MDSU)-1,0,1,1))+1),3),7),0),IFERROR(INDEX(MDSU,SMALL(IF(OFFSET(MDSU,0,0,ROWS(MDSU),1)=CF33,ROW(OFFSET(MDSU,0,0,ROWS(MDSU),1))-ROW(OFFSET(MDSU,0,0,1,1))+1,ROW(OFFSET(MDSU,ROWS(MDSU)-1,0,1,1))+1),4),7),0),IFERROR(INDEX(MDSU,SMALL(IF(OFFSET(MDSU,0,0,ROWS(MDSU),1)=CF33,ROW(OFFSET(MDSU,0,0,ROWS(MDSU),1))-ROW(OFFSET(MDSU,0,0,1,1))+1,ROW(OFFSET(MDSU,ROWS(MDSU)-1,0,1,1))+1),5),7),0),IFERROR(INDEX(MDSU,SMALL(IF(OFFSET(MDSU,0,0,ROWS(MDSU),1)=CF33,ROW(OFFSET(MDSU,0,0,ROWS(MDSU),1))-ROW(OFFSET(MDSU,0,0,1,1))+1,ROW(OFFSET(MDSU,ROWS(MDSU)-1,0,1,1))+1),6),7),0),IFERROR(INDEX(MDSU,SMALL(IF(OFFSET(MDSU,0,0,ROWS(MDSU),1)=CF33,ROW(OFFSET(MDSU,0,0,ROWS(MDSU),1))-ROW(OFFSET(MDSU,0,0,1,1))+1,ROW(OFFSET(MDSU,ROWS(MDSU)-1,0,1,1))+1),7),7),0),IFERROR(INDEX(MDSU,SMALL(IF(OFFSET(MDSU,0,0,ROWS(MDSU),1)=CF33,ROW(OFFSET(MDSU,0,0,ROWS(MDSU),1))-ROW(OFFSET(MDSU,0,0,1,1))+1,ROW(OFFSET(MDSU,ROWS(MDSU)-1,0,1,1))+1),8),7),0))=0,IFERROR(INDEX(MDS,SMALL(IF(OFFSET(MDS,0,0,ROWS(MDS),1)=CF33,ROW(OFFSET(MDS,0,0,ROWS(MDS),1))-ROW(OFFSET(MDS,0,0,1,1))+1,ROW(OFFSET(MDS,ROWS(MDS)-1,0,1,1))+1),1),6),0),MAX(IFERROR(INDEX(MDSU,SMALL(IF(OFFSET(MDSU,0,0,ROWS(MDSU),1)=CF33,ROW(OFFSET(MDSU,0,0,ROWS(MDSU),1))-ROW(OFFSET(MDSU,0,0,1,1))+1,ROW(OFFSET(MDSU,ROWS(MDSU)-1,0,1,1))+1),1),7),0),IFERROR(INDEX(MDSU,SMALL(IF(OFFSET(MDSU,0,0,ROWS(MDSU),1)=CF33,ROW(OFFSET(MDSU,0,0,ROWS(MDSU),1))-ROW(OFFSET(MDSU,0,0,1,1))+1,ROW(OFFSET(MDSU,ROWS(MDSU)-1,0,1,1))+1),2),7),0),IFERROR(INDEX(MDSU,SMALL(IF(OFFSET(MDSU,0,0,ROWS(MDSU),1)=CF33,ROW(OFFSET(MDSU,0,0,ROWS(MDSU),1))-ROW(OFFSET(MDSU,0,0,1,1))+1,ROW(OFFSET(MDSU,ROWS(MDSU)-1,0,1,1))+1),3),7),0),IFERROR(INDEX(MDSU,SMALL(IF(OFFSET(MDSU,0,0,ROWS(MDSU),1)=CF33,ROW(OFFSET(MDSU,0,0,ROWS(MDSU),1))-ROW(OFFSET(MDSU,0,0,1,1))+1,ROW(OFFSET(MDSU,ROWS(MDSU)-1,0,1,1))+1),4),7),0),IFERROR(INDEX(MDSU,SMALL(IF(OFFSET(MDSU,0,0,ROWS(MDSU),1)=CF33,ROW(OFFSET(MDSU,0,0,ROWS(MDSU),1))-ROW(OFFSET(MDSU,0,0,1,1))+1,ROW(OFFSET(MDSU,ROWS(MDSU)-1,0,1,1))+1),5),7),0),IFERROR(INDEX(MDSU,SMALL(IF(OFFSET(MDSU,0,0,ROWS(MDSU),1)=CF33,ROW(OFFSET(MDSU,0,0,ROWS(MDSU),1))-ROW(OFFSET(MDSU,0,0,1,1))+1,ROW(OFFSET(MDSU,ROWS(MDSU)-1,0,1,1))+1),6),7),0),IFERROR(INDEX(MDSU,SMALL(IF(OFFSET(MDSU,0,0,ROWS(MDSU),1)=CF33,ROW(OFFSET(MDSU,0,0,ROWS(MDSU),1))-ROW(OFFSET(MDSU,0,0,1,1))+1,ROW(OFFSET(MDSU,ROWS(MDSU)-1,0,1,1))+1),7),7),0),IFERROR(INDEX(MDSU,SMALL(IF(OFFSET(MDSU,0,0,ROWS(MDSU),1)=CF33,ROW(OFFSET(MDSU,0,0,ROWS(MDSU),1))-ROW(OFFSET(MDSU,0,0,1,1))+1,ROW(OFFSET(MDSU,ROWS(MDSU)-1,0,1,1))+1),8),7),0)))) -> 0.35 | CI33: 83.08997337 | CJ33: 0.8636199172 | CK33: 0.6629804478 | CL33: 0.6736866205 | CM33: 0.2357903172 | CN33: 0.8064936443 | CO33: 3.851129548 | CP33: 0.06894624696 | CQ33: 0.6739476708 | CR33: 0.1023020777 | CS33: 0.2100710417 | CT33: 0.5618020907 | CU33: Subcrítico | CV33: 0.033151478 | CW33: 0.2689417952 | CX33: 0.3154602393 | CY33: 1.714285714 | CZ33: 0.0066302956 | DA33: 0.001146720871 | DB33: 0.05429546064 | DC33: 1.2 | DD33: 3.428571429 | DE33: 0 | DF33: 1.2 | DI33: 0 | DK33: 0 | DL33: 0.2875384444 | DM33: 0.306906233 | DN33: 2543.8 | DO33: 2543.8 | DP33: 0 | DQ33: 0 | DR33: 2542.13565 | DS33: =IF(OR($L33="",$M33=""),"",IFERROR(IF(DR33=0,"",DR33-DL33),"")) -> 2541.848112 | DT33: =IF(OR($L33="",$M33=""),"",IF(MIN(IFERROR(INDEX(Matriz_busq,SMALL(IF(OFFSET(Matriz_busq,0,0,ROWS(Matriz_busq),1)=BD33,ROW(OFFSET(Matriz_busq,0,0,ROWS(Matriz_busq),1))-ROW(OFFSET(Matriz_busq,0,0,1,1))+1,ROW(OFFSET(Matriz_busq,ROWS(Matriz_busq)-1,0,1,1))+1),1),40),10000),IFERROR(INDEX(Matriz_busq,SMALL(IF(OFFSET(Matriz_busq,0,0,ROWS(Matriz_busq),1)=BD33,ROW(OFFSET(Matriz_busq,0,0,ROWS(Matriz_busq),1))-ROW(OFFSET(Matriz_busq,0,0,1,1))+1,ROW(OFFSET(Matriz_busq,ROWS(Matriz_busq)-1,0,1,1))+1),2),40),10000),IFERROR(INDEX(Matriz_busq,SMALL(IF(OFFSET(Matriz_busq,0,0,ROWS(Matriz_busq),1)=BD33,ROW(OFFSET(Matriz_busq,0,0,ROWS(Matriz_busq),1))-ROW(OFFSET(Matriz_busq,0,0,1,1))+1,ROW(OFFSET(Matriz_busq,ROWS(Matriz_busq)-1,0,1,1))+1),3),40),10000),IFERROR(INDEX(Matriz_busq,SMALL(IF(OFFSET(Matriz_busq,0,0,ROWS(Matriz_busq),1)=BD33,ROW(OFFSET(Matriz_busq,0,0,ROWS(Matriz_busq),1))-ROW(OFFSET(Matriz_busq,0,0,1,1))+1,ROW(OFFSET(Matriz_busq,ROWS(Matriz_busq)-1,0,1,1))+1),4),40),10000),IFERROR(INDEX(Matriz_busq,SMALL(IF(OFFSET(Matriz_busq,0,0,ROWS(Matriz_busq),1)=BD33,ROW(OFFSET(Matriz_busq,0,0,ROWS(Matriz_busq),1))-ROW(OFFSET(Matriz_busq,0,0,1,1))+1,ROW(OFFSET(Matriz_busq,ROWS(Matriz_busq)-1,0,1,1))+1),5),40),10000),IFERROR(INDEX(Matriz_busq,SMALL(IF(OFFSET(Matriz_busq,0,0,ROWS(Matriz_busq),1)=BD33,ROW(OFFSET(Matriz_busq,0,0,ROWS(Matriz_busq),1))-ROW(OFFSET(Matriz_busq,0,0,1,1))+1,ROW(OFFSET(Matriz_busq,ROWS(Matriz_busq)-1,0,1,1))+1),6),40),10000),IFERROR(INDEX(Matriz_busq,SMALL(IF(OFFSET(Matriz_busq,0,0,ROWS(Matriz_busq),1)=BD33,ROW(OFFSET(Matriz_busq,0,0,ROWS(Matriz_busq),1))-ROW(OFFSET(Matriz_busq,0,0,1,1))+1,ROW(OFFSET(Matriz_busq,ROWS(Matriz_busq)-1,0,1,1))+1),7),40),10000),IFERROR(INDEX(Matriz_busq,SMALL(IF(OFFSET(Matriz_busq,0,0,ROWS(Matriz_busq),1)=BD33,ROW(OFFSET(Matriz_busq,0,0,ROWS(Matriz_busq),1))-ROW(OFFSET(Matriz_busq,0,0,1,1))+1,ROW(OFFSET(Matriz_busq,ROWS(Matriz_busq)-1,0,1,1))+1),8),40),10000))=10000,0,MIN(IFERROR(INDEX(Matriz_busq,SMALL(IF(OFFSET(Matriz_busq,0,0,ROWS(Matriz_busq),1)=BD33,ROW(OFFSET(Matriz_busq,0,0,ROWS(Matriz_busq),1))-ROW(OFFSET(Matriz_busq,0,0,1,1))+1,ROW(OFFSET(Matriz_busq,ROWS(Matriz_busq)-1,0,1,1))+1),1),40),10000),IFERROR(INDEX(Matriz_busq,SMALL(IF(OFFSET(Matriz_busq,0,0,ROWS(Matriz_busq),1)=BD33,ROW(OFFSET(Matriz_busq,0,0,ROWS(Matriz_busq),1))-ROW(OFFSET(Matriz_busq,0,0,1,1))+1,ROW(OFFSET(Matriz_busq,ROWS(Matriz_busq)-1,0,1,1))+1),2),40),10000),IFERROR(INDEX(Matriz_busq,SMALL(IF(OFFSET(Matriz_busq,0,0,ROWS(Matriz_busq),1)=BD33,ROW(OFFSET(Matriz_busq,0,0,ROWS(Matriz_busq),1))-ROW(OFFSET(Matriz_busq,0,0,1,1))+1,ROW(OFFSET(Matriz_busq,ROWS(Matriz_busq)-1,0,1,1))+1),3),40),10000),IFERROR(INDEX(Matriz_busq,SMALL(IF(OFFSET(Matriz_busq,0,0,ROWS(Matriz_busq),1)=BD33,ROW(OFFSET(Matriz_busq,0,0,ROWS(Matriz_busq),1))-ROW(OFFSET(Matriz_busq,0,0,1,1))+1,ROW(OFFSET(Matriz_busq,ROWS(Matriz_busq)-1,0,1,1))+1),4),40),10000),IFERROR(INDEX(Matriz_busq,SMALL(IF(OFFSET(Matriz_busq,0,0,ROWS(Matriz_busq),1)=BD33,ROW(OFFSET(Matriz_busq,0,0,ROWS(Matriz_busq),1))-ROW(OFFSET(Matriz_busq,0,0,1,1))+1,ROW(OFFSET(Matriz_busq,ROWS(Matriz_busq)-1,0,1,1))+1),5),40),10000),IFERROR(INDEX(Matriz_busq,SMALL(IF(OFFSET(Matriz_busq,0,0,ROWS(Matriz_busq),1)=BD33,ROW(OFFSET(Matriz_busq,0,0,ROWS(Matriz_busq),1))-ROW(OFFSET(Matriz_busq,0,0,1,1))+1,ROW(OFFSET(Matriz_busq,ROWS(Matriz_busq)-1,0,1,1))+1),6),40),10000),IFERROR(INDEX(Matriz_busq,SMALL(IF(OFFSET(Matriz_busq,0,0,ROWS(Matriz_busq),1)=BD33,ROW(OFFSET(Matriz_busq,0,0,ROWS(Matriz_busq),1))-ROW(OFFSET(Matriz_busq,0,0,1,1))+1,ROW(OFFSET(Matriz_busq,ROWS(Matriz_busq)-1,0,1,1))+1),7),40),10000),IFERROR(INDEX(Matriz_busq,SMALL(IF(OFFSET(Matriz_busq,0,0,ROWS(Matriz_busq),1)=BD33,ROW(OFFSET(Matriz_busq,0,0,ROWS(Matriz_busq),1))-ROW(OFFSET(Matriz_busq,0,0,1,1))+1,ROW(OFFSET(Matriz_busq,ROWS(Matriz_busq)-1,0,1,1))+1),8),40),10000)))) -> 2542.149718 | DU33: 1.664349648 | DV33: 1.951888093 | DW33: 2541.78565 | DX33: 2541.498112 | DY33: 2542.054592 | DZ33: 2541.767054
A34: PD14 | B34: Tipo_1 | D34: No aplica | F34: 93201.9637 | G34: 107323.2845 | H34: 2543.8 | L34: PD14 | M34: PD15 | N34: 2543.8 | O34: 2543.1 | P34: 0 | Q34: 0 | R34: 99.85761898 | T34: 0.26115678 | W34: 0.26115678 | X34: 0.5 | Y34: 0 | Z34: 100 | AA34: 0.005 | AB34: 3 | AC34: 5 | AD34: AREAS DESARROLLADAS | AE34: CONCRETO/TECHO | AF34: 0.8 | AI34: 0 | AL34: 0 | AM34: 0.8 | AN34: 12.40368325 | AO34: 6.560650591 | AP34: 0.2536781416 | AQ34: 12.65736139 | AS34: 0.26115678 | AT34: =IF(L34="","",IF(M33=L34,VLOOKUP(L34,$L$31:$AS$262,34,FALSE)+VLOOKUP(M33,$M$31:$AT$262,34,FALSE)+IFERROR(IF((INDEX($M$31:$AT$262,SMALL(IF(OFFSET($M$31:$AT$262,0,0,ROWS($M$31:$AT$262),1)=L34,ROW(OFFSET($M$31:$AT$262,0,0,ROWS($M$31:$AT$262),1))-ROW(OFFSET($M$31:$AT$262,0,0,1,1))+1,ROW(OFFSET($M$31:$AT$262,ROWS($M$31:$AT$262)-1,0,1,1))+1),1),34))=VLOOKUP(M33,$M$31:$AT$262,34,FALSE),(INDEX($M$31:$AT$262,SMALL(IF(OFFSET($M$31:$AT$262,0,0,ROWS($M$31:$AT$262),1)=L34,ROW(OFFSET($M$31:$AT$262,0,0,ROWS($M$31:$AT$262),1))-ROW(OFFSET($M$31:$AT$262,0,0,1,1))+1,ROW(OFFSET($M$31:$AT$262,ROWS($M$31:$AT$262)-1,0,1,1))+1),2),34))),0)+IFERROR(IF((INDEX($M$31:$AT$262,SMALL(IF(OFFSET($M$31:$AT$262,0,0,ROWS($M$31:$AT$262),1)=L34,ROW(OFFSET($M$31:$AT$262,0,0,ROWS($M$31:$AT$262),1))-ROW(OFFSET($M$31:$AT$262,0,0,1,1))+1,ROW(OFFSET($M$31:$AT$262,ROWS($M$31:$AT$262)-1,0,1,1))+1),1),34))=VLOOKUP(M33,$M$31:$AT$262,34,FALSE),(INDEX($M$31:$AT$262,SMALL(IF(OFFSET($M$31:$AT$262,0,0,ROWS($M$31:$AT$262),1)=L34,ROW(OFFSET($M$31:$AT$262,0,0,ROWS($M$31:$AT$262),1))-ROW(OFFSET($M$31:$AT$262,0,0,1,1))+1,ROW(OFFSET($M$31:$AT$262,ROWS($M$31:$AT$262)-1,0,1,1))+1),3),34))),0)+IFERROR(IF((INDEX($M$31:$AT$262,SMALL(IF(OFFSET($M$31:$AT$262,0,0,ROWS($M$31:$AT$262),1)=L34,ROW(OFFSET($M$31:$AT$262,0,0,ROWS($M$31:$AT$262),1))-ROW(OFFSET($M$31:$AT$262,0,0,1,1))+1,ROW(OFFSET($M$31:$AT$262,ROWS($M$31:$AT$262)-1,0,1,1))+1),1),34))=VLOOKUP(M33,$M$31:$AT$262,34,FALSE),(INDEX($M$31:$AT$262,SMALL(IF(OFFSET($M$31:$AT$262,0,0,ROWS($M$31:$AT$262),1)=L34,ROW(OFFSET($M$31:$AT$262,0,0,ROWS($M$31:$AT$262),1))-ROW(OFFSET($M$31:$AT$262,0,0,1,1))+1,ROW(OFFSET($M$31:$AT$262,ROWS($M$31:$AT$262)-1,0,1,1))+1),4),34))),0)+IFERROR(IF((INDEX($M$31:$AT$262,SMALL(IF(OFFSET($M$31:$AT$262,0,0,ROWS($M$31:$AT$262),1)=L34,ROW(OFFSET($M$31:$AT$262,0,0,ROWS($M$31:$AT$262),1))-ROW(OFFSET($M$31:$AT$262,0,0,1,1))+1,ROW(OFFSET($M$31:$AT$262,ROWS($M$31:$AT$262)-1,0,1,1))+1),1),34))=VLOOKUP(M33,$M$31:$AT$262,34,FALSE),(INDEX($M$31:$AT$262,SMALL(IF(OFFSET($M$31:$AT$262,0,0,ROWS($M$31:$AT$262),1)=L34,ROW(OFFSET($M$31:$AT$262,0,0,ROWS($M$31:$AT$262),1))-ROW(OFFSET($M$31:$AT$262,0,0,1,1))+1,ROW(OFFSET($M$31:$AT$262,ROWS($M$31:$AT$262)-1,0,1,1))+1),5),34))),0)+IFERROR(IF((INDEX($M$31:$AT$262,SMALL(IF(OFFSET($M$31:$AT$262,0,0,ROWS($M$31:$AT$262),1)=L34,ROW(OFFSET($M$31:$AT$262,0,0,ROWS($M$31:$AT$262),1))-ROW(OFFSET($M$31:$AT$262,0,0,1,1))+1,ROW(OFFSET($M$31:$AT$262,ROWS($M$31:$AT$262)-1,0,1,1))+1),1),34))=VLOOKUP(M33,$M$31:$AT$262,34,FALSE),(INDEX($M$31:$AT$262,SMALL(IF(OFFSET($M$31:$AT$262,0,0,ROWS($M$31:$AT$262),1)=L34,ROW(OFFSET($M$31:$AT$262,0,0,ROWS($M$31:$AT$262),1))-ROW(OFFSET($M$31:$AT$262,0,0,1,1))+1,ROW(OFFSET($M$31:$AT$262,ROWS($M$31:$AT$262)-1,0,1,1))+1),6),34))),0)+IFERROR(IF((INDEX($M$31:$AT$262,SMALL(IF(OFFSET($M$31:$AT$262,0,0,ROWS($M$31:$AT$262),1)=L34,ROW(OFFSET($M$31:$AT$262,0,0,ROWS($M$31:$AT$262),1))-ROW(OFFSET($M$31:$AT$262,0,0,1,1))+1,ROW(OFFSET($M$31:$AT$262,ROWS($M$31:$AT$262)-1,0,1,1))+1),1),34))=VLOOKUP(M33,$M$31:$AT$262,34,FALSE),(INDEX($M$31:$AT$262,SMALL(IF(OFFSET($M$31:$AT$262,0,0,ROWS($M$31:$AT$262),1)=L34,ROW(OFFSET($M$31:$AT$262,0,0,ROWS($M$31:$AT$262),1))-ROW(OFFSET($M$31:$AT$262,0,0,1,1))+1,ROW(OFFSET($M$31:$AT$262,ROWS($M$31:$AT$262)-1,0,1,1))+1),7),34))),0)+IFERROR(IF((INDEX($M$31:$AT$262,SMALL(IF(OFFSET($M$31:$AT$262,0,0,ROWS($M$31:$AT$262),1)=L34,ROW(OFFSET($M$31:$AT$262,0,0,ROWS($M$31:$AT$262),1))-ROW(OFFSET($M$31:$AT$262,0,0,1,1))+1,ROW(OFFSET($M$31:$AT$262,ROWS($M$31:$AT$262)-1,0,1,1))+1),1),34))=VLOOKUP(M33,$M$31:$AT$262,34,FALSE),(INDEX($M$31:$AT$262,SMALL(IF(OFFSET($M$31:$AT$262,0,0,ROWS($M$31:$AT$262),1)=L34,ROW(OFFSET($M$31:$AT$262,0,0,ROWS($M$31:$AT$262),1))-ROW(OFFSET($M$31:$AT$262,0,0,1,1))+1,ROW(OFFSET($M$31:$AT$262,ROWS($M$31:$AT$262)-1,0,1,1))+1),8),34))),0)+IFERROR(IF((INDEX($M$31:$AT$262,SMALL(IF(OFFSET($M$31:$AT$262,0,0,ROWS($M$31:$AT$262),1)=L34,ROW(OFFSET($M$31:$AT$262,0,0,ROWS($M$31:$AT$262),1))-ROW(OFFSET($M$31:$AT$262,0,0,1,1))+1,ROW(OFFSET($M$31:$AT$262,ROWS($M$31:$AT$262)-1,0,1,1))+1),1),34))=VLOOKUP(M33,$M$31:$AT$262,34,FALSE),(INDEX($M$31:$AT$262,SMALL(IF(OFFSET($M$31:$AT$262,0,0,ROWS($M$31:$AT$262),1)=L34,ROW(OFFSET($M$31:$AT$262,0,0,ROWS($M$31:$AT$262),1))-ROW(OFFSET($M$31:$AT$262,0,0,1,1))+1,ROW(OFFSET($M$31:$AT$262,ROWS($M$31:$AT$262)-1,0,1,1))+1),9),34))),0)+IFERROR(IF((INDEX($M$31:$AT$262,SMALL(IF(OFFSET($M$31:$AT$262,0,0,ROWS($M$31:$AT$262),1)=L34,ROW(OFFSET($M$31:$AT$262,0,0,ROWS($M$31:$AT$262),1))-ROW(OFFSET($M$31:$AT$262,0,0,1,1))+1,ROW(OFFSET($M$31:$AT$262,ROWS($M$31:$AT$262)-1,0,1,1))+1),1),34))=VLOOKUP(M33,$M$31:$AT$262,34,FALSE),(INDEX($M$31:$AT$262,SMALL(IF(OFFSET($M$31:$AT$262,0,0,ROWS($M$31:$AT$262),1)=L34,ROW(OFFSET($M$31:$AT$262,0,0,ROWS($M$31:$AT$262),1))-ROW(OFFSET($M$31:$AT$262,0,0,1,1))+1,ROW(OFFSET($M$31:$AT$262,ROWS($M$31:$AT$262)-1,0,1,1))+1),10),34))),0),IF(M33<>L34,VLOOKUP(L34,$L$31:$AS$262,34,FALSE)+IFERROR(VLOOKUP(L34,$M$31:$AT$262,34,FALSE),0)))) -> 1.10051479 | AU34: 82.00921337 | AV34: 72.20188178 | AX34: 0 | AY34: =IF(L34="","",IF(ROW()=31,VLOOKUP(L34,$L$31:$AX$262,39,FALSE),IF(M33=L34,VLOOKUP(L34,$L$31:$AX$262,39,FALSE)+VLOOKUP(M33,$M$31:$AY$262,39,FALSE)+IFERROR(IF((INDEX($M$31:$AY$262,SMALL(IF(OFFSET($M$31:$AY$262,0,0,FILAX($M$31:$AY$262),1)=L34,ROW(OFFSET($M$31:$AY$262,0,0,FILAX($M$31:$AY$262),1))-ROW(OFFSET($M$31:$AY$262,0,0,1,1))+1,ROW(OFFSET($M$31:$AY$262,FILAX($M$31:$AY$262)-1,0,1,1))+1),1),39))=VLOOKUP(M33,$M$31:$AY$262,39,FALSE),(INDEX($M$31:$AY$262,SMALL(IF(OFFSET($M$31:$AY$262,0,0,FILAX($M$31:$AY$262),1)=L34,ROW(OFFSET($M$31:$AY$262,0,0,FILAX($M$31:$AY$262),1))-ROW(OFFSET($M$31:$AY$262,0,0,1,1))+1,ROW(OFFSET($M$31:$AY$262,FILAX($M$31:$AY$262)-1,0,1,1))+1),2),39))),0)+IFERROR(IF((INDEX($M$31:$AY$262,SMALL(IF(OFFSET($M$31:$AY$262,0,0,FILAX($M$31:$AY$262),1)=L34,ROW(OFFSET($M$31:$AY$262,0,0,FILAX($M$31:$AY$262),1))-ROW(OFFSET($M$31:$AY$262,0,0,1,1))+1,ROW(OFFSET($M$31:$AY$262,FILAX($M$31:$AY$262)-1,0,1,1))+1),1),39))=VLOOKUP(M33,$M$31:$AY$262,39,FALSE),(INDEX($M$31:$AY$262,SMALL(IF(OFFSET($M$31:$AY$262,0,0,FILAX($M$31:$AY$262),1)=L34,ROW(OFFSET($M$31:$AY$262,0,0,FILAX($M$31:$AY$262),1))-ROW(OFFSET($M$31:$AY$262,0,0,1,1))+1,ROW(OFFSET($M$31:$AY$262,FILAX($M$31:$AY$262)-1,0,1,1))+1),3),39))),0)+IFERROR(IF((INDEX($M$31:$AY$262,SMALL(IF(OFFSET($M$31:$AY$262,0,0,FILAX($M$31:$AY$262),1)=L34,ROW(OFFSET($M$31:$AY$262,0,0,FILAX($M$31:$AY$262),1))-ROW(OFFSET($M$31:$AY$262,0,0,1,1))+1,ROW(OFFSET($M$31:$AY$262,FILAX($M$31:$AY$262)-1,0,1,1))+1),1),39))=VLOOKUP(M33,$M$31:$AY$262,39,FALSE),(INDEX($M$31:$AY$262,SMALL(IF(OFFSET($M$31:$AY$262,0,0,FILAX($M$31:$AY$262),1)=L34,ROW(OFFSET($M$31:$AY$262,0,0,FILAX($M$31:$AY$262),1))-ROW(OFFSET($M$31:$AY$262,0,0,1,1))+1,ROW(OFFSET($M$31:$AY$262,FILAX($M$31:$AY$262)-1,0,1,1))+1),4),39))),0)+IFERROR(IF((INDEX($M$31:$AY$262,SMALL(IF(OFFSET($M$31:$AY$262,0,0,FILAX($M$31:$AY$262),1)=L34,ROW(OFFSET($M$31:$AY$262,0,0,FILAX($M$31:$AY$262),1))-ROW(OFFSET($M$31:$AY$262,0,0,1,1))+1,ROW(OFFSET($M$31:$AY$262,FILAX($M$31:$AY$262)-1,0,1,1))+1),1),39))=VLOOKUP(M33,$M$31:$AY$262,39,FALSE),(INDEX($M$31:$AY$262,SMALL(IF(OFFSET($M$31:$AY$262,0,0,FILAX($M$31:$AY$262),1)=L34,ROW(OFFSET($M$31:$AY$262,0,0,FILAX($M$31:$AY$262),1))-ROW(OFFSET($M$31:$AY$262,0,0,1,1))+1,ROW(OFFSET($M$31:$AY$262,FILAX($M$31:$AY$262)-1,0,1,1))+1),5),39))),0)+IFERROR(IF((INDEX($M$31:$AY$262,SMALL(IF(OFFSET($M$31:$AY$262,0,0,FILAX($M$31:$AY$262),1)=L34,ROW(OFFSET($M$31:$AY$262,0,0,FILAX($M$31:$AY$262),1))-ROW(OFFSET($M$31:$AY$262,0,0,1,1))+1,ROW(OFFSET($M$31:$AY$262,FILAX($M$31:$AY$262)-1,0,1,1))+1),1),39))=VLOOKUP(M33,$M$31:$AY$262,39,FALSE),(INDEX($M$31:$AY$262,SMALL(IF(OFFSET($M$31:$AY$262,0,0,FILAX($M$31:$AY$262),1)=L34,ROW(OFFSET($M$31:$AY$262,0,0,FILAX($M$31:$AY$262),1))-ROW(OFFSET($M$31:$AY$262,0,0,1,1))+1,ROW(OFFSET($M$31:$AY$262,FILAX($M$31:$AY$262)-1,0,1,1))+1),6),39))),0)+IFERROR(IF((INDEX($M$31:$AY$262,SMALL(IF(OFFSET($M$31:$AY$262,0,0,FILAX($M$31:$AY$262),1)=L34,ROW(OFFSET($M$31:$AY$262,0,0,FILAX($M$31:$AY$262),1))-ROW(OFFSET($M$31:$AY$262,0,0,1,1))+1,ROW(OFFSET($M$31:$AY$262,FILAX($M$31:$AY$262)-1,0,1,1))+1),1),39))=VLOOKUP(M33,$M$31:$AY$262,39,FALSE),(INDEX($M$31:$AY$262,SMALL(IF(OFFSET($M$31:$AY$262,0,0,FILAX($M$31:$AY$262),1)=L34,ROW(OFFSET($M$31:$AY$262,0,0,FILAX($M$31:$AY$262),1))-ROW(OFFSET($M$31:$AY$262,0,0,1,1))+1,ROW(OFFSET($M$31:$AY$262,FILAX($M$31:$AY$262)-1,0,1,1))+1),7),39))),0)+IFERROR(IF((INDEX($M$31:$AY$262,SMALL(IF(OFFSET($M$31:$AY$262,0,0,FILAX($M$31:$AY$262),1)=L34,ROW(OFFSET($M$31:$AY$262,0,0,FILAX($M$31:$AY$262),1))-ROW(OFFSET($M$31:$AY$262,0,0,1,1))+1,ROW(OFFSET($M$31:$AY$262,FILAX($M$31:$AY$262)-1,0,1,1))+1),1),39))=VLOOKUP(M33,$M$31:$AY$262,39,FALSE),(INDEX($M$31:$AY$262,SMALL(IF(OFFSET($M$31:$AY$262,0,0,FILAX($M$31:$AY$262),1)=L34,ROW(OFFSET($M$31:$AY$262,0,0,FILAX($M$31:$AY$262),1))-ROW(OFFSET($M$31:$AY$262,0,0,1,1))+1,ROW(OFFSET($M$31:$AY$262,FILAX($M$31:$AY$262)-1,0,1,1))+1),8),39))),0)+IFERROR(IF((INDEX($M$31:$AY$262,SMALL(IF(OFFSET($M$31:$AY$262,0,0,FILAX($M$31:$AY$262),1)=L34,ROW(OFFSET($M$31:$AY$262,0,0,FILAX($M$31:$AY$262),1))-ROW(OFFSET($M$31:$AY$262,0,0,1,1))+1,ROW(OFFSET($M$31:$AY$262,FILAX($M$31:$AY$262)-1,0,1,1))+1),1),39))=VLOOKUP(M33,$M$31:$AY$262,39,FALSE),(INDEX($M$31:$AY$262,SMALL(IF(OFFSET($M$31:$AY$262,0,0,FILAX($M$31:$AY$262),1)=L34,ROW(OFFSET($M$31:$AY$262,0,0,FILAX($M$31:$AY$262),1))-ROW(OFFSET($M$31:$AY$262,0,0,1,1))+1,ROW(OFFSET($M$31:$AY$262,FILAX($M$31:$AY$262)-1,0,1,1))+1),9),39))),0)+IFERROR(IF((INDEX($M$31:$AY$262,SMALL(IF(OFFSET($M$31:$AY$262,0,0,FILAX($M$31:$AY$262),1)=L34,ROW(OFFSET($M$31:$AY$262,0,0,FILAX($M$31:$AY$262),1))-ROW(OFFSET($M$31:$AY$262,0,0,1,1))+1,ROW(OFFSET($M$31:$AY$262,FILAX($M$31:$AY$262)-1,0,1,1))+1),1),39))=VLOOKUP(M33,$M$31:$AY$262,39,FALSE),(INDEX($M$31:$AY$262,SMALL(IF(OFFSET($M$31:$AY$262,0,0,FILAX($M$31:$AY$262),1)=L34,ROW(OFFSET($M$31:$AY$262,0,0,FILAX($M$31:$AY$262),1))-ROW(OFFSET($M$31:$AY$262,0,0,1,1))+1,ROW(OFFSET($M$31:$AY$262,FILAX($M$31:$AY$262)-1,0,1,1))+1),10),39))),0),IF(M33<>L34,VLOOKUP(L34,$L$31:$AX$262,39,FALSE)+IFERROR(VLOOKUP(L34,$M$31:$AY$262,39,FALSE),0))))) -> 0 | AZ34: 72.20188178 | BA34: 6.560737069 | BB34: 0.2536747978 | BC34: -1.318139554e-05 | BD34: PD14 | BE34: PD15 | BF34: 99.85761898 | BG34: PVC | BH34: =IF(OR($L34="",$M34="",BG34=""),"",INDEX('Tablas y listas'!$D$4:$G$17,MATCH('1. Analisis Flujo Uniforme'!BG34,'Tablas y listas'!$D$4:$D$17,0),4)) -> 0.0125 | BI34: 14 | BJ34: =IF(OR(BI34=""),"",IFERROR(IF($BI$30="Pulgadas",INDEX('Tablas y listas'!$B$64:$D$89,MATCH('1. Analisis Flujo Uniforme'!BI34,CONCRETO_Pulgadas,0),3),IF($BI$30="mm",BI34/(10*100))),"Indique φ")) -> 0.35 | BK34: 0.7009980883 | BL34: 0.3 | BM34: 0.5213582053 | BN34: Subcrítico | BO34: 0.8689602229 | BP34: 0.873455961 | BQ34: 2.006183553 | BR34: 1.60575641 | BV34: 2541.793816 | BW34: 2541.494244 | BX34: 2541.443816 | BY34: 2541.144244 | BZ34: 2541.759277 | CA34: 2541.459704 | CB34: 0.3191518791 | CE34: PD14 | CF34: PD15 | CG34: =IF(OR($L34="",$M34=""),"",IF(MAX(IFERROR(INDEX(MatrizQs1,SMALL(IF(OFFSET(MatrizQs1,0,0,ROWS(MatrizQs1),1)=CF34,ROW(OFFSET(MatrizQs1,0,0,ROWS(MatrizQs1),1))-ROW(OFFSET(MatrizQs1,0,0,1,1))+1,ROW(OFFSET(MatrizQs1,ROWS(MatrizQs1)-1,0,1,1))+1),1),41),0),IFERROR(INDEX(MatrizQs1,SMALL(IF(OFFSET(MatrizQs1,0,0,ROWS(MatrizQs1),1)=CF34,ROW(OFFSET(MatrizQs1,0,0,ROWS(MatrizQs1),1))-ROW(OFFSET(MatrizQs1,0,0,1,1))+1,ROW(OFFSET(MatrizQs1,ROWS(MatrizQs1)-1,0,1,1))+1),2),41),0),IFERROR(INDEX(MatrizQs1,SMALL(IF(OFFSET(MatrizQs1,0,0,ROWS(MatrizQs1),1)=CF34,ROW(OFFSET(MatrizQs1,0,0,ROWS(MatrizQs1),1))-ROW(OFFSET(MatrizQs1,0,0,1,1))+1,ROW(OFFSET(MatrizQs1,ROWS(MatrizQs1)-1,0,1,1))+1),3),41),0),IFERROR(INDEX(MatrizQs1,SMALL(IF(OFFSET(MatrizQs1,0,0,ROWS(MatrizQs1),1)=CF34,ROW(OFFSET(MatrizQs1,0,0,ROWS(MatrizQs1),1))-ROW(OFFSET(MatrizQs1,0,0,1,1))+1,ROW(OFFSET(MatrizQs1,ROWS(MatrizQs1)-1,0,1,1))+1),4),41),0),IFERROR(INDEX(MatrizQs1,SMALL(IF(OFFSET(MatrizQs1,0,0,ROWS(MatrizQs1),1)=CF34,ROW(OFFSET(MatrizQs1,0,0,ROWS(MatrizQs1),1))-ROW(OFFSET(MatrizQs1,0,0,1,1))+1,ROW(OFFSET(MatrizQs1,ROWS(MatrizQs1)-1,0,1,1))+1),5),41),0),IFERROR(INDEX(MatrizQs1,SMALL(IF(OFFSET(MatrizQs1,0,0,ROWS(MatrizQs1),1)=CF34,ROW(OFFSET(MatrizQs1,0,0,ROWS(MatrizQs1),1))-ROW(OFFSET(MatrizQs1,0,0,1,1))+1,ROW(OFFSET(MatrizQs1,ROWS(MatrizQs1)-1,0,1,1))+1),6),41),0),IFERROR(INDEX(MatrizQs1,SMALL(IF(OFFSET(MatrizQs1,0,0,ROWS(MatrizQs1),1)=CF34,ROW(OFFSET(MatrizQs1,0,0,ROWS(MatrizQs1),1))-ROW(OFFSET(MatrizQs1,0,0,1,1))+1,ROW(OFFSET(MatrizQs1,ROWS(MatrizQs1)-1,0,1,1))+1),7),41),0),IFERROR(INDEX(MatrizQs1,SMALL(IF(OFFSET(MatrizQs1,0,0,ROWS(MatrizQs1),1)=CF34,ROW(OFFSET(MatrizQs1,0,0,ROWS(MatrizQs1),1))-ROW(OFFSET(MatrizQs1,0,0,1,1))+1,ROW(OFFSET(MatrizQs1,ROWS(MatrizQs1)-1,0,1,1))+1),8),41),0))=0,IFERROR(INDEX(matrizQs,SMALL(IF(OFFSET(matrizQs,0,0,ROWS(matrizQs),1)=CF34,ROW(OFFSET(matrizQs,0,0,ROWS(matrizQs),1))-ROW(OFFSET(matrizQs,0,0,1,1))+1,ROW(OFFSET(matrizQs,ROWS(matrizQs)-1,0,1,1))+1),1),40),0),MAX(IFERROR(INDEX(MatrizQs1,SMALL(IF(OFFSET(MatrizQs1,0,0,ROWS(MatrizQs1),1)=CF34,ROW(OFFSET(MatrizQs1,0,0,ROWS(MatrizQs1),1))-ROW(OFFSET(MatrizQs1,0,0,1,1))+1,ROW(OFFSET(MatrizQs1,ROWS(MatrizQs1)-1,0,1,1))+1),1),41),0),IFERROR(INDEX(MatrizQs1,SMALL(IF(OFFSET(MatrizQs1,0,0,ROWS(MatrizQs1),1)=CF34,ROW(OFFSET(MatrizQs1,0,0,ROWS(MatrizQs1),1))-ROW(OFFSET(MatrizQs1,0,0,1,1))+1,ROW(OFFSET(MatrizQs1,ROWS(MatrizQs1)-1,0,1,1))+1),2),41),0),IFERROR(INDEX(MatrizQs1,SMALL(IF(OFFSET(MatrizQs1,0,0,ROWS(MatrizQs1),1)=CF34,ROW(OFFSET(MatrizQs1,0,0,ROWS(MatrizQs1),1))-ROW(OFFSET(MatrizQs1,0,0,1,1))+1,ROW(OFFSET(MatrizQs1,ROWS(MatrizQs1)-1,0,1,1))+1),3),41),0),IFERROR(INDEX(MatrizQs1,SMALL(IF(OFFSET(MatrizQs1,0,0,ROWS(MatrizQs1),1)=CF34,ROW(OFFSET(MatrizQs1,0,0,ROWS(MatrizQs1),1))-ROW(OFFSET(MatrizQs1,0,0,1,1))+1,ROW(OFFSET(MatrizQs1,ROWS(MatrizQs1)-1,0,1,1))+1),4),41),0),IFERROR(INDEX(MatrizQs1,SMALL(IF(OFFSET(MatrizQs1,0,0,ROWS(MatrizQs1),1)=CF34,ROW(OFFSET(MatrizQs1,0,0,ROWS(MatrizQs1),1))-ROW(OFFSET(MatrizQs1,0,0,1,1))+1,ROW(OFFSET(MatrizQs1,ROWS(MatrizQs1)-1,0,1,1))+1),5),41),0),IFERROR(INDEX(MatrizQs1,SMALL(IF(OFFSET(MatrizQs1,0,0,ROWS(MatrizQs1),1)=CF34,ROW(OFFSET(MatrizQs1,0,0,ROWS(MatrizQs1),1))-ROW(OFFSET(MatrizQs1,0,0,1,1))+1,ROW(OFFSET(MatrizQs1,ROWS(MatrizQs1)-1,0,1,1))+1),6),41),0),IFERROR(INDEX(MatrizQs1,SMALL(IF(OFFSET(MatrizQs1,0,0,ROWS(MatrizQs1),1)=CF34,ROW(OFFSET(MatrizQs1,0,0,ROWS(MatrizQs1),1))-ROW(OFFSET(MatrizQs1,0,0,1,1))+1,ROW(OFFSET(MatrizQs1,ROWS(MatrizQs1)-1,0,1,1))+1),7),41),0),IFERROR(INDEX(MatrizQs1,SMALL(IF(OFFSET(MatrizQs1,0,0,ROWS(MatrizQs1),1)=CF34,ROW(OFFSET(MatrizQs1,0,0,ROWS(MatrizQs1),1))-ROW(OFFSET(MatrizQs1,0,0,1,1))+1,ROW(OFFSET(MatrizQs1,ROWS(MatrizQs1)-1,0,1,1))+1),8),41),0)))) -> 99.95522264 | CH34: =IF(OR($L34="",$M34=""),"",IF(MAX(IFERROR(INDEX(MDSU,SMALL(IF(OFFSET(MDSU,0,0,ROWS(MDSU),1)=CF34,ROW(OFFSET(MDSU,0,0,ROWS(MDSU),1))-ROW(OFFSET(MDSU,0,0,1,1))+1,ROW(OFFSET(MDSU,ROWS(MDSU)-1,0,1,1))+1),1),7),0),IFERROR(INDEX(MDSU,SMALL(IF(OFFSET(MDSU,0,0,ROWS(MDSU),1)=CF34,ROW(OFFSET(MDSU,0,0,ROWS(MDSU),1))-ROW(OFFSET(MDSU,0,0,1,1))+1,ROW(OFFSET(MDSU,ROWS(MDSU)-1,0,1,1))+1),2),7),0),IFERROR(INDEX(MDSU,SMALL(IF(OFFSET(MDSU,0,0,ROWS(MDSU),1)=CF34,ROW(OFFSET(MDSU,0,0,ROWS(MDSU),1))-ROW(OFFSET(MDSU,0,0,1,1))+1,ROW(OFFSET(MDSU,ROWS(MDSU)-1,0,1,1))+1),3),7),0),IFERROR(INDEX(MDSU,SMALL(IF(OFFSET(MDSU,0,0,ROWS(MDSU),1)=CF34,ROW(OFFSET(MDSU,0,0,ROWS(MDSU),1))-ROW(OFFSET(MDSU,0,0,1,1))+1,ROW(OFFSET(MDSU,ROWS(MDSU)-1,0,1,1))+1),4),7),0),IFERROR(INDEX(MDSU,SMALL(IF(OFFSET(MDSU,0,0,ROWS(MDSU),1)=CF34,ROW(OFFSET(MDSU,0,0,ROWS(MDSU),1))-ROW(OFFSET(MDSU,0,0,1,1))+1,ROW(OFFSET(MDSU,ROWS(MDSU)-1,0,1,1))+1),5),7),0),IFERROR(INDEX(MDSU,SMALL(IF(OFFSET(MDSU,0,0,ROWS(MDSU),1)=CF34,ROW(OFFSET(MDSU,0,0,ROWS(MDSU),1))-ROW(OFFSET(MDSU,0,0,1,1))+1,ROW(OFFSET(MDSU,ROWS(MDSU)-1,0,1,1))+1),6),7),0),IFERROR(INDEX(MDSU,SMALL(IF(OFFSET(MDSU,0,0,ROWS(MDSU),1)=CF34,ROW(OFFSET(MDSU,0,0,ROWS(MDSU),1))-ROW(OFFSET(MDSU,0,0,1,1))+1,ROW(OFFSET(MDSU,ROWS(MDSU)-1,0,1,1))+1),7),7),0),IFERROR(INDEX(MDSU,SMALL(IF(OFFSET(MDSU,0,0,ROWS(MDSU),1)=CF34,ROW(OFFSET(MDSU,0,0,ROWS(MDSU),1))-ROW(OFFSET(MDSU,0,0,1,1))+1,ROW(OFFSET(MDSU,ROWS(MDSU)-1,0,1,1))+1),8),7),0))=0,IFERROR(INDEX(MDS,SMALL(IF(OFFSET(MDS,0,0,ROWS(MDS),1)=CF34,ROW(OFFSET(MDS,0,0,ROWS(MDS),1))-ROW(OFFSET(MDS,0,0,1,1))+1,ROW(OFFSET(MDS,ROWS(MDS)-1,0,1,1))+1),1),6),0),MAX(IFERROR(INDEX(MDSU,SMALL(IF(OFFSET(MDSU,0,0,ROWS(MDSU),1)=CF34,ROW(OFFSET(MDSU,0,0,ROWS(MDSU),1))-ROW(OFFSET(MDSU,0,0,1,1))+1,ROW(OFFSET(MDSU,ROWS(MDSU)-1,0,1,1))+1),1),7),0),IFERROR(INDEX(MDSU,SMALL(IF(OFFSET(MDSU,0,0,ROWS(MDSU),1)=CF34,ROW(OFFSET(MDSU,0,0,ROWS(MDSU),1))-ROW(OFFSET(MDSU,0,0,1,1))+1,ROW(OFFSET(MDSU,ROWS(MDSU)-1,0,1,1))+1),2),7),0),IFERROR(INDEX(MDSU,SMALL(IF(OFFSET(MDSU,0,0,ROWS(MDSU),1)=CF34,ROW(OFFSET(MDSU,0,0,ROWS(MDSU),1))-ROW(OFFSET(MDSU,0,0,1,1))+1,ROW(OFFSET(MDSU,ROWS(MDSU)-1,0,1,1))+1),3),7),0),IFERROR(INDEX(MDSU,SMALL(IF(OFFSET(MDSU,0,0,ROWS(MDSU),1)=CF34,ROW(OFFSET(MDSU,0,0,ROWS(MDSU),1))-ROW(OFFSET(MDSU,0,0,1,1))+1,ROW(OFFSET(MDSU,ROWS(MDSU)-1,0,1,1))+1),4),7),0),IFERROR(INDEX(MDSU,SMALL(IF(OFFSET(MDSU,0,0,ROWS(MDSU),1)=CF34,ROW(OFFSET(MDSU,0,0,ROWS(MDSU),1))-ROW(OFFSET(MDSU,0,0,1,1))+1,ROW(OFFSET(MDSU,ROWS(MDSU)-1,0,1,1))+1),5),7),0),IFERROR(INDEX(MDSU,SMALL(IF(OFFSET(MDSU,0,0,ROWS(MDSU),1)=CF34,ROW(OFFSET(MDSU,0,0,ROWS(MDSU),1))-ROW(OFFSET(MDSU,0,0,1,1))+1,ROW(OFFSET(MDSU,ROWS(MDSU)-1,0,1,1))+1),6),7),0),IFERROR(INDEX(MDSU,SMALL(IF(OFFSET(MDSU,0,0,ROWS(MDSU),1)=CF34,ROW(OFFSET(MDSU,0,0,ROWS(MDSU),1))-ROW(OFFSET(MDSU,0,0,1,1))+1,ROW(OFFSET(MDSU,ROWS(MDSU)-1,0,1,1))+1),7),7),0),IFERROR(INDEX(MDSU,SMALL(IF(OFFSET(MDSU,0,0,ROWS(MDSU),1)=CF34,ROW(OFFSET(MDSU,0,0,ROWS(MDSU),1))-ROW(OFFSET(MDSU,0,0,1,1))+1,ROW(OFFSET(MDSU,ROWS(MDSU)-1,0,1,1))+1),8),7),0)))) -> 0.4 | CI34: 83.08997337 | CJ34: 0.8636199172 | CK34: 0.8689602229 | CL34: 0.7902147343 | CM34: 0.276575157 | CN34: 0.873455961 | CO34: 4.38010464 | CP34: 0.0815452532 | CQ34: 0.7665183119 | CR34: 0.1063839597 | CS34: 0.2861149775 | CT34: 0.5213582053 | CU34: Subcrítico | CV34: 0.03888508236 | CW34: 0.3154602393 | CX34: 0.3560177752 | CY34: 1.5 | CZ34: 0.007777016471 | DA34: 0.001348167391 | DB34: 0.04968271972 | DC34: 1.2 | DD34: 3 | DE34: 0 | DF34: 1.2 | DI34: 0 | DK34: 0 | DL34: 0.2995728569 | DM34: 0.3191518791 | DN34: 2543.8 | DO34: 2543.1 | DP34: 0 | DQ34: 0 | DR34: 2541.793816 | DS34: 2541.494244 | DT34: =IF(OR($L34="",$M34=""),"",IF(MIN(IFERROR(INDEX(Matriz_busq,SMALL(IF(OFFSET(Matriz_busq,0,0,ROWS(Matriz_busq),1)=BD34,ROW(OFFSET(Matriz_busq,0,0,ROWS(Matriz_busq),1))-ROW(OFFSET(Matriz_busq,0,0,1,1))+1,ROW(OFFSET(Matriz_busq,ROWS(Matriz_busq)-1,0,1,1))+1),1),40),10000),IFERROR(INDEX(Matriz_busq,SMALL(IF(OFFSET(Matriz_busq,0,0,ROWS(Matriz_busq),1)=BD34,ROW(OFFSET(Matriz_busq,0,0,ROWS(Matriz_busq),1))-ROW(OFFSET(Matriz_busq,0,0,1,1))+1,ROW(OFFSET(Matriz_busq,ROWS(Matriz_busq)-1,0,1,1))+1),2),40),10000),IFERROR(INDEX(Matriz_busq,SMALL(IF(OFFSET(Matriz_busq,0,0,ROWS(Matriz_busq),1)=BD34,ROW(OFFSET(Matriz_busq,0,0,ROWS(Matriz_busq),1))-ROW(OFFSET(Matriz_busq,0,0,1,1))+1,ROW(OFFSET(Matriz_busq,ROWS(Matriz_busq)-1,0,1,1))+1),3),40),10000),IFERROR(INDEX(Matriz_busq,SMALL(IF(OFFSET(Matriz_busq,0,0,ROWS(Matriz_busq),1)=BD34,ROW(OFFSET(Matriz_busq,0,0,ROWS(Matriz_busq),1))-ROW(OFFSET(Matriz_busq,0,0,1,1))+1,ROW(OFFSET(Matriz_busq,ROWS(Matriz_busq)-1,0,1,1))+1),4),40),10000),IFERROR(INDEX(Matriz_busq,SMALL(IF(OFFSET(Matriz_busq,0,0,ROWS(Matriz_busq),1)=BD34,ROW(OFFSET(Matriz_busq,0,0,ROWS(Matriz_busq),1))-ROW(OFFSET(Matriz_busq,0,0,1,1))+1,ROW(OFFSET(Matriz_busq,ROWS(Matriz_busq)-1,0,1,1))+1),5),40),10000),IFERROR(INDEX(Matriz_busq,SMALL(IF(OFFSET(Matriz_busq,0,0,ROWS(Matriz_busq),1)=BD34,ROW(OFFSET(Matriz_busq,0,0,ROWS(Matriz_busq),1))-ROW(OFFSET(Matriz_busq,0,0,1,1))+1,ROW(OFFSET(Matriz_busq,ROWS(Matriz_busq)-1,0,1,1))+1),6),40),10000),IFERROR(INDEX(Matriz_busq,SMALL(IF(OFFSET(Matriz_busq,0,0,ROWS(Matriz_busq),1)=BD34,ROW(OFFSET(Matriz_busq,0,0,ROWS(Matriz_busq),1))-ROW(OFFSET(Matriz_busq,0,0,1,1))+1,ROW(OFFSET(Matriz_busq,ROWS(Matriz_busq)-1,0,1,1))+1),7),40),10000),IFERROR(INDEX(Matriz_busq,SMALL(IF(OFFSET(Matriz_busq,0,0,ROWS(Matriz_busq),1)=BD34,ROW(OFFSET(Matriz_busq,0,0,ROWS(Matriz_busq),1))-ROW(OFFSET(Matriz_busq,0,0,1,1))+1,ROW(OFFSET(Matriz_busq,ROWS(Matriz_busq)-1,0,1,1))+1),8),40),10000))=10000,0,MIN(IFERROR(INDEX(Matriz_busq,SMALL(IF(OFFSET(Matriz_busq,0,0,ROWS(Matriz_busq),1)=BD34,ROW(OFFSET(Matriz_busq,0,0,ROWS(Matriz_busq),1))-ROW(OFFSET(Matriz_busq,0,0,1,1))+1,ROW(OFFSET(Matriz_busq,ROWS(Matriz_busq)-1,0,1,1))+1),1),40),10000),IFERROR(INDEX(Matriz_busq,SMALL(IF(OFFSET(Matriz_busq,0,0,ROWS(Matriz_busq),1)=BD34,ROW(OFFSET(Matriz_busq,0,0,ROWS(Matriz_busq),1))-ROW(OFFSET(Matriz_busq,0,0,1,1))+1,ROW(OFFSET(Matriz_busq,ROWS(Matriz_busq)-1,0,1,1))+1),2),40),10000),IFERROR(INDEX(Matriz_busq,SMALL(IF(OFFSET(Matriz_busq,0,0,ROWS(Matriz_busq),1)=BD34,ROW(OFFSET(Matriz_busq,0,0,ROWS(Matriz_busq),1))-ROW(OFFSET(Matriz_busq,0,0,1,1))+1,ROW(OFFSET(Matriz_busq,ROWS(Matriz_busq)-1,0,1,1))+1),3),40),10000),IFERROR(INDEX(Matriz_busq,SMALL(IF(OFFSET(Matriz_busq,0,0,ROWS(Matriz_busq),1)=BD34,ROW(OFFSET(Matriz_busq,0,0,ROWS(Matriz_busq),1))-ROW(OFFSET(Matriz_busq,0,0,1,1))+1,ROW(OFFSET(Matriz_busq,ROWS(Matriz_busq)-1,0,1,1))+1),4),40),10000),IFERROR(INDEX(Matriz_busq,SMALL(IF(OFFSET(Matriz_busq,0,0,ROWS(Matriz_busq),1)=BD34,ROW(OFFSET(Matriz_busq,0,0,ROWS(Matriz_busq),1))-ROW(OFFSET(Matriz_busq,0,0,1,1))+1,ROW(OFFSET(Matriz_busq,ROWS(Matriz_busq)-1,0,1,1))+1),5),40),10000),IFERROR(INDEX(Matriz_busq,SMALL(IF(OFFSET(Matriz_busq,0,0,ROWS(Matriz_busq),1)=BD34,ROW(OFFSET(Matriz_busq,0,0,ROWS(Matriz_busq),1))-ROW(OFFSET(Matriz_busq,0,0,1,1))+1,ROW(OFFSET(Matriz_busq,ROWS(Matriz_busq)-1,0,1,1))+1),6),40),10000),IFERROR(INDEX(Matriz_busq,SMALL(IF(OFFSET(Matriz_busq,0,0,ROWS(Matriz_busq),1)=BD34,ROW(OFFSET(Matriz_busq,0,0,ROWS(Matriz_busq),1))-ROW(OFFSET(Matriz_busq,0,0,1,1))+1,ROW(OFFSET(Matriz_busq,ROWS(Matriz_busq)-1,0,1,1))+1),7),40),10000),IFERROR(INDEX(Matriz_busq,SMALL(IF(OFFSET(Matriz_busq,0,0,ROWS(Matriz_busq),1)=BD34,ROW(OFFSET(Matriz_busq,0,0,ROWS(Matriz_busq),1))-ROW(OFFSET(Matriz_busq,0,0,1,1))+1,ROW(OFFSET(Matriz_busq,ROWS(Matriz_busq)-1,0,1,1))+1),8),40),10000)))) -> 2541.848112 | DU34: 2.006183553 | DV34: 1.60575641 | DW34: 2541.443816 | DX34: 2541.144244 | DY34: 2541.759277 | DZ34: 2541.459704
A35: PD15 | B35: Tipo_1 | D35: No aplica | F35: 93128.5151 | G35: 107390.9369 | H35: 2543.1 | L35: PD15 | M35: PD16 | N35: 2543.1 | O35: 2542.85 | P35: 0 | Q35: 0 | R35: =IF(OR(L35="",M35=""),"",IFERROR(SQRT(POWER(VLOOKUP(L35,$A$31:$G$70,6,FALSE)-VLOOKUP(M35,$A$31:$G$70,6,FALSE),2)+POWER(VLOOKUP(L35,$A$31:$G$70,7,FALSE)-VLOOKUP(M35,$A$31:$G$70,7,FALSE),2)),"Revise")) -> 99.42183423 | T35: 0.42296472 | W35: =IF(OR(L35="",M35=""),"",SUM(T35:V35)) -> 0.42296472 | X35: 0.5 | Y35: 0 | Z35: 100 | AA35: 0.005 | AB35: 3 | AC35: 5 | AD35: AREAS DESARROLLADAS | AE35: CONCRETO/TECHO | AF35: 0.8 | AI35: 0 | AL35: 0 | AM35: 0.8 | AN35: 12.40368325 | AO35: 6.560896302 | AP35: 0.2525616157 | AQ35: =IF(OR($L35="",$M35=""),"",IFERROR((AN35+AP35),"")) -> 12.65624486 | AS35: 0.42296472 | AT35: =IF(L35="","",IF(M34=L35,VLOOKUP(L35,$L$31:$AS$262,34,FALSE)+VLOOKUP(M34,$M$31:$AT$262,34,FALSE)+IFERROR(IF((INDEX($M$31:$AT$262,SMALL(IF(OFFSET($M$31:$AT$262,0,0,ROWS($M$31:$AT$262),1)=L35,ROW(OFFSET($M$31:$AT$262,0,0,ROWS($M$31:$AT$262),1))-ROW(OFFSET($M$31:$AT$262,0,0,1,1))+1,ROW(OFFSET($M$31:$AT$262,ROWS($M$31:$AT$262)-1,0,1,1))+1),1),34))=VLOOKUP(M34,$M$31:$AT$262,34,FALSE),(INDEX($M$31:$AT$262,SMALL(IF(OFFSET($M$31:$AT$262,0,0,ROWS($M$31:$AT$262),1)=L35,ROW(OFFSET($M$31:$AT$262,0,0,ROWS($M$31:$AT$262),1))-ROW(OFFSET($M$31:$AT$262,0,0,1,1))+1,ROW(OFFSET($M$31:$AT$262,ROWS($M$31:$AT$262)-1,0,1,1))+1),2),34))),0)+IFERROR(IF((INDEX($M$31:$AT$262,SMALL(IF(OFFSET($M$31:$AT$262,0,0,ROWS($M$31:$AT$262),1)=L35,ROW(OFFSET($M$31:$AT$262,0,0,ROWS($M$31:$AT$262),1))-ROW(OFFSET($M$31:$AT$262,0,0,1,1))+1,ROW(OFFSET($M$31:$AT$262,ROWS($M$31:$AT$262)-1,0,1,1))+1),1),34))=VLOOKUP(M34,$M$31:$AT$262,34,FALSE),(INDEX($M$31:$AT$262,SMALL(IF(OFFSET($M$31:$AT$262,0,0,ROWS($M$31:$AT$262),1)=L35,ROW(OFFSET($M$31:$AT$262,0,0,ROWS($M$31:$AT$262),1))-ROW(OFFSET($M$31:$AT$262,0,0,1,1))+1,ROW(OFFSET($M$31:$AT$262,ROWS($M$31:$AT$262)-1,0,1,1))+1),3),34))),0)+IFERROR(IF((INDEX($M$31:$AT$262,SMALL(IF(OFFSET($M$31:$AT$262,0,0,ROWS($M$31:$AT$262),1)=L35,ROW(OFFSET($M$31:$AT$262,0,0,ROWS($M$31:$AT$262),1))-ROW(OFFSET($M$31:$AT$262,0,0,1,1))+1,ROW(OFFSET($M$31:$AT$262,ROWS($M$31:$AT$262)-1,0,1,1))+1),1),34))=VLOOKUP(M34,$M$31:$AT$262,34,FALSE),(INDEX($M$31:$AT$262,SMALL(IF(OFFSET($M$31:$AT$262,0,0,ROWS($M$31:$AT$262),1)=L35,ROW(OFFSET($M$31:$AT$262,0,0,ROWS($M$31:$AT$262),1))-ROW(OFFSET($M$31:$AT$262,0,0,1,1))+1,ROW(OFFSET($M$31:$AT$262,ROWS($M$31:$AT$262)-1,0,1,1))+1),4),34))),0)+IFERROR(IF((INDEX($M$31:$AT$262,SMALL(IF(OFFSET($M$31:$AT$262,0,0,ROWS($M$31:$AT$262),1)=L35,ROW(OFFSET($M$31:$AT$262,0,0,ROWS($M$31:$AT$262),1))-ROW(OFFSET($M$31:$AT$262,0,0,1,1))+1,ROW(OFFSET($M$31:$AT$262,ROWS($M$31:$AT$262)-1,0,1,1))+1),1),34))=VLOOKUP(M34,$M$31:$AT$262,34,FALSE),(INDEX($M$31:$AT$262,SMALL(IF(OFFSET($M$31:$AT$262,0,0,ROWS($M$31:$AT$262),1)=L35,ROW(OFFSET($M$31:$AT$262,0,0,ROWS($M$31:$AT$262),1))-ROW(OFFSET($M$31:$AT$262,0,0,1,1))+1,ROW(OFFSET($M$31:$AT$262,ROWS($M$31:$AT$262)-1,0,1,1))+1),5),34))),0)+IFERROR(IF((INDEX($M$31:$AT$262,SMALL(IF(OFFSET($M$31:$AT$262,0,0,ROWS($M$31:$AT$262),1)=L35,ROW(OFFSET($M$31:$AT$262,0,0,ROWS($M$31:$AT$262),1))-ROW(OFFSET($M$31:$AT$262,0,0,1,1))+1,ROW(OFFSET($M$31:$AT$262,ROWS($M$31:$AT$262)-1,0,1,1))+1),1),34))=VLOOKUP(M34,$M$31:$AT$262,34,FALSE),(INDEX($M$31:$AT$262,SMALL(IF(OFFSET($M$31:$AT$262,0,0,ROWS($M$31:$AT$262),1)=L35,ROW(OFFSET($M$31:$AT$262,0,0,ROWS($M$31:$AT$262),1))-ROW(OFFSET($M$31:$AT$262,0,0,1,1))+1,ROW(OFFSET($M$31:$AT$262,ROWS($M$31:$AT$262)-1,0,1,1))+1),6),34))),0)+IFERROR(IF((INDEX($M$31:$AT$262,SMALL(IF(OFFSET($M$31:$AT$262,0,0,ROWS($M$31:$AT$262),1)=L35,ROW(OFFSET($M$31:$AT$262,0,0,ROWS($M$31:$AT$262),1))-ROW(OFFSET($M$31:$AT$262,0,0,1,1))+1,ROW(OFFSET($M$31:$AT$262,ROWS($M$31:$AT$262)-1,0,1,1))+1),1),34))=VLOOKUP(M34,$M$31:$AT$262,34,FALSE),(INDEX($M$31:$AT$262,SMALL(IF(OFFSET($M$31:$AT$262,0,0,ROWS($M$31:$AT$262),1)=L35,ROW(OFFSET($M$31:$AT$262,0,0,ROWS($M$31:$AT$262),1))-ROW(OFFSET($M$31:$AT$262,0,0,1,1))+1,ROW(OFFSET($M$31:$AT$262,ROWS($M$31:$AT$262)-1,0,1,1))+1),7),34))),0)+IFERROR(IF((INDEX($M$31:$AT$262,SMALL(IF(OFFSET($M$31:$AT$262,0,0,ROWS($M$31:$AT$262),1)=L35,ROW(OFFSET($M$31:$AT$262,0,0,ROWS($M$31:$AT$262),1))-ROW(OFFSET($M$31:$AT$262,0,0,1,1))+1,ROW(OFFSET($M$31:$AT$262,ROWS($M$31:$AT$262)-1,0,1,1))+1),1),34))=VLOOKUP(M34,$M$31:$AT$262,34,FALSE),(INDEX($M$31:$AT$262,SMALL(IF(OFFSET($M$31:$AT$262,0,0,ROWS($M$31:$AT$262),1)=L35,ROW(OFFSET($M$31:$AT$262,0,0,ROWS($M$31:$AT$262),1))-ROW(OFFSET($M$31:$AT$262,0,0,1,1))+1,ROW(OFFSET($M$31:$AT$262,ROWS($M$31:$AT$262)-1,0,1,1))+1),8),34))),0)+IFERROR(IF((INDEX($M$31:$AT$262,SMALL(IF(OFFSET($M$31:$AT$262,0,0,ROWS($M$31:$AT$262),1)=L35,ROW(OFFSET($M$31:$AT$262,0,0,ROWS($M$31:$AT$262),1))-ROW(OFFSET($M$31:$AT$262,0,0,1,1))+1,ROW(OFFSET($M$31:$AT$262,ROWS($M$31:$AT$262)-1,0,1,1))+1),1),34))=VLOOKUP(M34,$M$31:$AT$262,34,FALSE),(INDEX($M$31:$AT$262,SMALL(IF(OFFSET($M$31:$AT$262,0,0,ROWS($M$31:$AT$262),1)=L35,ROW(OFFSET($M$31:$AT$262,0,0,ROWS($M$31:$AT$262),1))-ROW(OFFSET($M$31:$AT$262,0,0,1,1))+1,ROW(OFFSET($M$31:$AT$262,ROWS($M$31:$AT$262)-1,0,1,1))+1),9),34))),0)+IFERROR(IF((INDEX($M$31:$AT$262,SMALL(IF(OFFSET($M$31:$AT$262,0,0,ROWS($M$31:$AT$262),1)=L35,ROW(OFFSET($M$31:$AT$262,0,0,ROWS($M$31:$AT$262),1))-ROW(OFFSET($M$31:$AT$262,0,0,1,1))+1,ROW(OFFSET($M$31:$AT$262,ROWS($M$31:$AT$262)-1,0,1,1))+1),1),34))=VLOOKUP(M34,$M$31:$AT$262,34,FALSE),(INDEX($M$31:$AT$262,SMALL(IF(OFFSET($M$31:$AT$262,0,0,ROWS($M$31:$AT$262),1)=L35,ROW(OFFSET($M$31:$AT$262,0,0,ROWS($M$31:$AT$262),1))-ROW(OFFSET($M$31:$AT$262,0,0,1,1))+1,ROW(OFFSET($M$31:$AT$262,ROWS($M$31:$AT$262)-1,0,1,1))+1),10),34))),0),IF(M34<>L35,VLOOKUP(L35,$L$31:$AS$262,34,FALSE)+IFERROR(VLOOKUP(L35,$M$31:$AT$262,34,FALSE),0)))) -> 1.52347951 | AU35: 82.0122801 | AV35: 99.95522264 | AX35: 0 | AY35: =IF(L35="","",IF(ROW()=31,VLOOKUP(L35,$L$31:$AX$262,39,FALSE),IF(M34=L35,VLOOKUP(L35,$L$31:$AX$262,39,FALSE)+VLOOKUP(M34,$M$31:$AY$262,39,FALSE)+IFERROR(IF((INDEX($M$31:$AY$262,SMALL(IF(OFFSET($M$31:$AY$262,0,0,FILAX($M$31:$AY$262),1)=L35,ROW(OFFSET($M$31:$AY$262,0,0,FILAX($M$31:$AY$262),1))-ROW(OFFSET($M$31:$AY$262,0,0,1,1))+1,ROW(OFFSET($M$31:$AY$262,FILAX($M$31:$AY$262)-1,0,1,1))+1),1),39))=VLOOKUP(M34,$M$31:$AY$262,39,FALSE),(INDEX($M$31:$AY$262,SMALL(IF(OFFSET($M$31:$AY$262,0,0,FILAX($M$31:$AY$262),1)=L35,ROW(OFFSET($M$31:$AY$262,0,0,FILAX($M$31:$AY$262),1))-ROW(OFFSET($M$31:$AY$262,0,0,1,1))+1,ROW(OFFSET($M$31:$AY$262,FILAX($M$31:$AY$262)-1,0,1,1))+1),2),39))),0)+IFERROR(IF((INDEX($M$31:$AY$262,SMALL(IF(OFFSET($M$31:$AY$262,0,0,FILAX($M$31:$AY$262),1)=L35,ROW(OFFSET($M$31:$AY$262,0,0,FILAX($M$31:$AY$262),1))-ROW(OFFSET($M$31:$AY$262,0,0,1,1))+1,ROW(OFFSET($M$31:$AY$262,FILAX($M$31:$AY$262)-1,0,1,1))+1),1),39))=VLOOKUP(M34,$M$31:$AY$262,39,FALSE),(INDEX($M$31:$AY$262,SMALL(IF(OFFSET($M$31:$AY$262,0,0,FILAX($M$31:$AY$262),1)=L35,ROW(OFFSET($M$31:$AY$262,0,0,FILAX($M$31:$AY$262),1))-ROW(OFFSET($M$31:$AY$262,0,0,1,1))+1,ROW(OFFSET($M$31:$AY$262,FILAX($M$31:$AY$262)-1,0,1,1))+1),3),39))),0)+IFERROR(IF((INDEX($M$31:$AY$262,SMALL(IF(OFFSET($M$31:$AY$262,0,0,FILAX($M$31:$AY$262),1)=L35,ROW(OFFSET($M$31:$AY$262,0,0,FILAX($M$31:$AY$262),1))-ROW(OFFSET($M$31:$AY$262,0,0,1,1))+1,ROW(OFFSET($M$31:$AY$262,FILAX($M$31:$AY$262)-1,0,1,1))+1),1),39))=VLOOKUP(M34,$M$31:$AY$262,39,FALSE),(INDEX($M$31:$AY$262,SMALL(IF(OFFSET($M$31:$AY$262,0,0,FILAX($M$31:$AY$262),1)=L35,ROW(OFFSET($M$31:$AY$262,0,0,FILAX($M$31:$AY$262),1))-ROW(OFFSET($M$31:$AY$262,0,0,1,1))+1,ROW(OFFSET($M$31:$AY$262,FILAX($M$31:$AY$262)-1,0,1,1))+1),4),39))),0)+IFERROR(IF((INDEX($M$31:$AY$262,SMALL(IF(OFFSET($M$31:$AY$262,0,0,FILAX($M$31:$AY$262),1)=L35,ROW(OFFSET($M$31:$AY$262,0,0,FILAX($M$31:$AY$262),1))-ROW(OFFSET($M$31:$AY$262,0,0,1,1))+1,ROW(OFFSET($M$31:$AY$262,FILAX($M$31:$AY$262)-1,0,1,1))+1),1),39))=VLOOKUP(M34,$M$31:$AY$262,39,FALSE),(INDEX($M$31:$AY$262,SMALL(IF(OFFSET($M$31:$AY$262,0,0,FILAX($M$31:$AY$262),1)=L35,ROW(OFFSET($M$31:$AY$262,0,0,FILAX($M$31:$AY$262),1))-ROW(OFFSET($M$31:$AY$262,0,0,1,1))+1,ROW(OFFSET($M$31:$AY$262,FILAX($M$31:$AY$262)-1,0,1,1))+1),5),39))),0)+IFERROR(IF((INDEX($M$31:$AY$262,SMALL(IF(OFFSET($M$31:$AY$262,0,0,FILAX($M$31:$AY$262),1)=L35,ROW(OFFSET($M$31:$AY$262,0,0,FILAX($M$31:$AY$262),1))-ROW(OFFSET($M$31:$AY$262,0,0,1,1))+1,ROW(OFFSET($M$31:$AY$262,FILAX($M$31:$AY$262)-1,0,1,1))+1),1),39))=VLOOKUP(M34,$M$31:$AY$262,39,FALSE),(INDEX($M$31:$AY$262,SMALL(IF(OFFSET($M$31:$AY$262,0,0,FILAX($M$31:$AY$262),1)=L35,ROW(OFFSET($M$31:$AY$262,0,0,FILAX($M$31:$AY$262),1))-ROW(OFFSET($M$31:$AY$262,0,0,1,1))+1,ROW(OFFSET($M$31:$AY$262,FILAX($M$31:$AY$262)-1,0,1,1))+1),6),39))),0)+IFERROR(IF((INDEX($M$31:$AY$262,SMALL(IF(OFFSET($M$31:$AY$262,0,0,FILAX($M$31:$AY$262),1)=L35,ROW(OFFSET($M$31:$AY$262,0,0,FILAX($M$31:$AY$262),1))-ROW(OFFSET($M$31:$AY$262,0,0,1,1))+1,ROW(OFFSET($M$31:$AY$262,FILAX($M$31:$AY$262)-1,0,1,1))+1),1),39))=VLOOKUP(M34,$M$31:$AY$262,39,FALSE),(INDEX($M$31:$AY$262,SMALL(IF(OFFSET($M$31:$AY$262,0,0,FILAX($M$31:$AY$262),1)=L35,ROW(OFFSET($M$31:$AY$262,0,0,FILAX($M$31:$AY$262),1))-ROW(OFFSET($M$31:$AY$262,0,0,1,1))+1,ROW(OFFSET($M$31:$AY$262,FILAX($M$31:$AY$262)-1,0,1,1))+1),7),39))),0)+IFERROR(IF((INDEX($M$31:$AY$262,SMALL(IF(OFFSET($M$31:$AY$262,0,0,FILAX($M$31:$AY$262),1)=L35,ROW(OFFSET($M$31:$AY$262,0,0,FILAX($M$31:$AY$262),1))-ROW(OFFSET($M$31:$AY$262,0,0,1,1))+1,ROW(OFFSET($M$31:$AY$262,FILAX($M$31:$AY$262)-1,0,1,1))+1),1),39))=VLOOKUP(M34,$M$31:$AY$262,39,FALSE),(INDEX($M$31:$AY$262,SMALL(IF(OFFSET($M$31:$AY$262,0,0,FILAX($M$31:$AY$262),1)=L35,ROW(OFFSET($M$31:$AY$262,0,0,FILAX($M$31:$AY$262),1))-ROW(OFFSET($M$31:$AY$262,0,0,1,1))+1,ROW(OFFSET($M$31:$AY$262,FILAX($M$31:$AY$262)-1,0,1,1))+1),8),39))),0)+IFERROR(IF((INDEX($M$31:$AY$262,SMALL(IF(OFFSET($M$31:$AY$262,0,0,FILAX($M$31:$AY$262),1)=L35,ROW(OFFSET($M$31:$AY$262,0,0,FILAX($M$31:$AY$262),1))-ROW(OFFSET($M$31:$AY$262,0,0,1,1))+1,ROW(OFFSET($M$31:$AY$262,FILAX($M$31:$AY$262)-1,0,1,1))+1),1),39))=VLOOKUP(M34,$M$31:$AY$262,39,FALSE),(INDEX($M$31:$AY$262,SMALL(IF(OFFSET($M$31:$AY$262,0,0,FILAX($M$31:$AY$262),1)=L35,ROW(OFFSET($M$31:$AY$262,0,0,FILAX($M$31:$AY$262),1))-ROW(OFFSET($M$31:$AY$262,0,0,1,1))+1,ROW(OFFSET($M$31:$AY$262,FILAX($M$31:$AY$262)-1,0,1,1))+1),9),39))),0)+IFERROR(IF((INDEX($M$31:$AY$262,SMALL(IF(OFFSET($M$31:$AY$262,0,0,FILAX($M$31:$AY$262),1)=L35,ROW(OFFSET($M$31:$AY$262,0,0,FILAX($M$31:$AY$262),1))-ROW(OFFSET($M$31:$AY$262,0,0,1,1))+1,ROW(OFFSET($M$31:$AY$262,FILAX($M$31:$AY$262)-1,0,1,1))+1),1),39))=VLOOKUP(M34,$M$31:$AY$262,39,FALSE),(INDEX($M$31:$AY$262,SMALL(IF(OFFSET($M$31:$AY$262,0,0,FILAX($M$31:$AY$262),1)=L35,ROW(OFFSET($M$31:$AY$262,0,0,FILAX($M$31:$AY$262),1))-ROW(OFFSET($M$31:$AY$262,0,0,1,1))+1,ROW(OFFSET($M$31:$AY$262,FILAX($M$31:$AY$262)-1,0,1,1))+1),10),39))),0),IF(M34<>L35,VLOOKUP(L35,$L$31:$AX$262,39,FALSE)+IFERROR(VLOOKUP(L35,$M$31:$AY$262,39,FALSE),0))))) -> 0 | AZ35: 99.95522264 | BA35: 6.560982408 | BB35: 0.2525583011 | BC35: -1.312414214e-05 | BD35: PD15 | BE35: PD16 | BF35: 99.42183423 | BG35: PVC | BH35: =IF(OR($L35="",$M35="",BG35=""),"",INDEX('Tablas y listas'!$D$4:$G$17,MATCH('1. Analisis Flujo Uniforme'!BG35,'Tablas y listas'!$D$4:$D$17,0),4)) -> 0.0125 | BI35: 16 | BJ35: =IF(OR(BI35=""),"",IFERROR(IF($BI$30="Pulgadas",INDEX('Tablas y listas'!$B$64:$D$89,MATCH('1. Analisis Flujo Uniforme'!BI35,CONCRETO_Pulgadas,0),3),IF($BI$30="mm",BI35/(10*100))),"Indique φ")) -> 0.4 | BK35: 0.2514538199 | BL35: 0.3 | BM35: 0.5393496291 | BN35: Subcrítico | BO35: 0.8425810339 | BP35: 0.9461398083 | BQ35: 1.60543913 | BR35: 1.653704633 | BV35: 2541.494561 | BW35: 2541.196295 | BX35: 2541.094561 | BY35: 2540.796295 | BZ35: 2541.450579 | CA35: 2541.152313 | CB35: 0.3640586064 | CE35: PD15 | CF35: PD16 | CG35: =IF(OR($L35="",$M35=""),"",IF(MAX(IFERROR(INDEX(MatrizQs1,SMALL(IF(OFFSET(MatrizQs1,0,0,ROWS(MatrizQs1),1)=CF35,ROW(OFFSET(MatrizQs1,0,0,ROWS(MatrizQs1),1))-ROW(OFFSET(MatrizQs1,0,0,1,1))+1,ROW(OFFSET(MatrizQs1,ROWS(MatrizQs1)-1,0,1,1))+1),1),41),0),IFERROR(INDEX(MatrizQs1,SMALL(IF(OFFSET(MatrizQs1,0,0,ROWS(MatrizQs1),1)=CF35,ROW(OFFSET(MatrizQs1,0,0,ROWS(MatrizQs1),1))-ROW(OFFSET(MatrizQs1,0,0,1,1))+1,ROW(OFFSET(MatrizQs1,ROWS(MatrizQs1)-1,0,1,1))+1),2),41),0),IFERROR(INDEX(MatrizQs1,SMALL(IF(OFFSET(MatrizQs1,0,0,ROWS(MatrizQs1),1)=CF35,ROW(OFFSET(MatrizQs1,0,0,ROWS(MatrizQs1),1))-ROW(OFFSET(MatrizQs1,0,0,1,1))+1,ROW(OFFSET(MatrizQs1,ROWS(MatrizQs1)-1,0,1,1))+1),3),41),0),IFERROR(INDEX(MatrizQs1,SMALL(IF(OFFSET(MatrizQs1,0,0,ROWS(MatrizQs1),1)=CF35,ROW(OFFSET(MatrizQs1,0,0,ROWS(MatrizQs1),1))-ROW(OFFSET(MatrizQs1,0,0,1,1))+1,ROW(OFFSET(MatrizQs1,ROWS(MatrizQs1)-1,0,1,1))+1),4),41),0),IFERROR(INDEX(MatrizQs1,SMALL(IF(OFFSET(MatrizQs1,0,0,ROWS(MatrizQs1),1)=CF35,ROW(OFFSET(MatrizQs1,0,0,ROWS(MatrizQs1),1))-ROW(OFFSET(MatrizQs1,0,0,1,1))+1,ROW(OFFSET(MatrizQs1,ROWS(MatrizQs1)-1,0,1,1))+1),5),41),0),IFERROR(INDEX(MatrizQs1,SMALL(IF(OFFSET(MatrizQs1,0,0,ROWS(MatrizQs1),1)=CF35,ROW(OFFSET(MatrizQs1,0,0,ROWS(MatrizQs1),1))-ROW(OFFSET(MatrizQs1,0,0,1,1))+1,ROW(OFFSET(MatrizQs1,ROWS(MatrizQs1)-1,0,1,1))+1),6),41),0),IFERROR(INDEX(MatrizQs1,SMALL(IF(OFFSET(MatrizQs1,0,0,ROWS(MatrizQs1),1)=CF35,ROW(OFFSET(MatrizQs1,0,0,ROWS(MatrizQs1),1))-ROW(OFFSET(MatrizQs1,0,0,1,1))+1,ROW(OFFSET(MatrizQs1,ROWS(MatrizQs1)-1,0,1,1))+1),7),41),0),IFERROR(INDEX(MatrizQs1,SMALL(IF(OFFSET(MatrizQs1,0,0,ROWS(MatrizQs1),1)=CF35,ROW(OFFSET(MatrizQs1,0,0,ROWS(MatrizQs1),1))-ROW(OFFSET(MatrizQs1,0,0,1,1))+1,ROW(OFFSET(MatrizQs1,ROWS(MatrizQs1)-1,0,1,1))+1),8),41),0))=0,IFERROR(INDEX(matrizQs,SMALL(IF(OFFSET(matrizQs,0,0,ROWS(matrizQs),1)=CF35,ROW(OFFSET(matrizQs,0,0,ROWS(matrizQs),1))-ROW(OFFSET(matrizQs,0,0,1,1))+1,ROW(OFFSET(matrizQs,ROWS(matrizQs)-1,0,1,1))+1),1),40),0),MAX(IFERROR(INDEX(MatrizQs1,SMALL(IF(OFFSET(MatrizQs1,0,0,ROWS(MatrizQs1),1)=CF35,ROW(OFFSET(MatrizQs1,0,0,ROWS(MatrizQs1),1))-ROW(OFFSET(MatrizQs1,0,0,1,1))+1,ROW(OFFSET(MatrizQs1,ROWS(MatrizQs1)-1,0,1,1))+1),1),41),0),IFERROR(INDEX(MatrizQs1,SMALL(IF(OFFSET(MatrizQs1,0,0,ROWS(MatrizQs1),1)=CF35,ROW(OFFSET(MatrizQs1,0,0,ROWS(MatrizQs1),1))-ROW(OFFSET(MatrizQs1,0,0,1,1))+1,ROW(OFFSET(MatrizQs1,ROWS(MatrizQs1)-1,0,1,1))+1),2),41),0),IFERROR(INDEX(MatrizQs1,SMALL(IF(OFFSET(MatrizQs1,0,0,ROWS(MatrizQs1),1)=CF35,ROW(OFFSET(MatrizQs1,0,0,ROWS(MatrizQs1),1))-ROW(OFFSET(MatrizQs1,0,0,1,1))+1,ROW(OFFSET(MatrizQs1,ROWS(MatrizQs1)-1,0,1,1))+1),3),41),0),IFERROR(INDEX(MatrizQs1,SMALL(IF(OFFSET(MatrizQs1,0,0,ROWS(MatrizQs1),1)=CF35,ROW(OFFSET(MatrizQs1,0,0,ROWS(MatrizQs1),1))-ROW(OFFSET(MatrizQs1,0,0,1,1))+1,ROW(OFFSET(MatrizQs1,ROWS(MatrizQs1)-1,0,1,1))+1),4),41),0),IFERROR(INDEX(MatrizQs1,SMALL(IF(OFFSET(MatrizQs1,0,0,ROWS(MatrizQs1),1)=CF35,ROW(OFFSET(MatrizQs1,0,0,ROWS(MatrizQs1),1))-ROW(OFFSET(MatrizQs1,0,0,1,1))+1,ROW(OFFSET(MatrizQs1,ROWS(MatrizQs1)-1,0,1,1))+1),5),41),0),IFERROR(INDEX(MatrizQs1,SMALL(IF(OFFSET(MatrizQs1,0,0,ROWS(MatrizQs1),1)=CF35,ROW(OFFSET(MatrizQs1,0,0,ROWS(MatrizQs1),1))-ROW(OFFSET(MatrizQs1,0,0,1,1))+1,ROW(OFFSET(MatrizQs1,ROWS(MatrizQs1)-1,0,1,1))+1),6),41),0),IFERROR(INDEX(MatrizQs1,SMALL(IF(OFFSET(MatrizQs1,0,0,ROWS(MatrizQs1),1)=CF35,ROW(OFFSET(MatrizQs1,0,0,ROWS(MatrizQs1),1))-ROW(OFFSET(MatrizQs1,0,0,1,1))+1,ROW(OFFSET(MatrizQs1,ROWS(MatrizQs1)-1,0,1,1))+1),7),41),0),IFERROR(INDEX(MatrizQs1,SMALL(IF(OFFSET(MatrizQs1,0,0,ROWS(MatrizQs1),1)=CF35,ROW(OFFSET(MatrizQs1,0,0,ROWS(MatrizQs1),1))-ROW(OFFSET(MatrizQs1,0,0,1,1))+1,ROW(OFFSET(MatrizQs1,ROWS(MatrizQs1)-1,0,1,1))+1),8),41),0)))) -> 129.7819956 | CH35: =IF(OR($L35="",$M35=""),"",IF(MAX(IFERROR(INDEX(MDSU,SMALL(IF(OFFSET(MDSU,0,0,ROWS(MDSU),1)=CF35,ROW(OFFSET(MDSU,0,0,ROWS(MDSU),1))-ROW(OFFSET(MDSU,0,0,1,1))+1,ROW(OFFSET(MDSU,ROWS(MDSU)-1,0,1,1))+1),1),7),0),IFERROR(INDEX(MDSU,SMALL(IF(OFFSET(MDSU,0,0,ROWS(MDSU),1)=CF35,ROW(OFFSET(MDSU,0,0,ROWS(MDSU),1))-ROW(OFFSET(MDSU,0,0,1,1))+1,ROW(OFFSET(MDSU,ROWS(MDSU)-1,0,1,1))+1),2),7),0),IFERROR(INDEX(MDSU,SMALL(IF(OFFSET(MDSU,0,0,ROWS(MDSU),1)=CF35,ROW(OFFSET(MDSU,0,0,ROWS(MDSU),1))-ROW(OFFSET(MDSU,0,0,1,1))+1,ROW(OFFSET(MDSU,ROWS(MDSU)-1,0,1,1))+1),3),7),0),IFERROR(INDEX(MDSU,SMALL(IF(OFFSET(MDSU,0,0,ROWS(MDSU),1)=CF35,ROW(OFFSET(MDSU,0,0,ROWS(MDSU),1))-ROW(OFFSET(MDSU,0,0,1,1))+1,ROW(OFFSET(MDSU,ROWS(MDSU)-1,0,1,1))+1),4),7),0),IFERROR(INDEX(MDSU,SMALL(IF(OFFSET(MDSU,0,0,ROWS(MDSU),1)=CF35,ROW(OFFSET(MDSU,0,0,ROWS(MDSU),1))-ROW(OFFSET(MDSU,0,0,1,1))+1,ROW(OFFSET(MDSU,ROWS(MDSU)-1,0,1,1))+1),5),7),0),IFERROR(INDEX(MDSU,SMALL(IF(OFFSET(MDSU,0,0,ROWS(MDSU),1)=CF35,ROW(OFFSET(MDSU,0,0,ROWS(MDSU),1))-ROW(OFFSET(MDSU,0,0,1,1))+1,ROW(OFFSET(MDSU,ROWS(MDSU)-1,0,1,1))+1),6),7),0),IFERROR(INDEX(MDSU,SMALL(IF(OFFSET(MDSU,0,0,ROWS(MDSU),1)=CF35,ROW(OFFSET(MDSU,0,0,ROWS(MDSU),1))-ROW(OFFSET(MDSU,0,0,1,1))+1,ROW(OFFSET(MDSU,ROWS(MDSU)-1,0,1,1))+1),7),7),0),IFERROR(INDEX(MDSU,SMALL(IF(OFFSET(MDSU,0,0,ROWS(MDSU),1)=CF35,ROW(OFFSET(MDSU,0,0,ROWS(MDSU),1))-ROW(OFFSET(MDSU,0,0,1,1))+1,ROW(OFFSET(MDSU,ROWS(MDSU)-1,0,1,1))+1),8),7),0))=0,IFERROR(INDEX(MDS,SMALL(IF(OFFSET(MDS,0,0,ROWS(MDS),1)=CF35,ROW(OFFSET(MDS,0,0,ROWS(MDS),1))-ROW(OFFSET(MDS,0,0,1,1))+1,ROW(OFFSET(MDS,ROWS(MDS)-1,0,1,1))+1),1),6),0),MAX(IFERROR(INDEX(MDSU,SMALL(IF(OFFSET(MDSU,0,0,ROWS(MDSU),1)=CF35,ROW(OFFSET(MDSU,0,0,ROWS(MDSU),1))-ROW(OFFSET(MDSU,0,0,1,1))+1,ROW(OFFSET(MDSU,ROWS(MDSU)-1,0,1,1))+1),1),7),0),IFERROR(INDEX(MDSU,SMALL(IF(OFFSET(MDSU,0,0,ROWS(MDSU),1)=CF35,ROW(OFFSET(MDSU,0,0,ROWS(MDSU),1))-ROW(OFFSET(MDSU,0,0,1,1))+1,ROW(OFFSET(MDSU,ROWS(MDSU)-1,0,1,1))+1),2),7),0),IFERROR(INDEX(MDSU,SMALL(IF(OFFSET(MDSU,0,0,ROWS(MDSU),1)=CF35,ROW(OFFSET(MDSU,0,0,ROWS(MDSU),1))-ROW(OFFSET(MDSU,0,0,1,1))+1,ROW(OFFSET(MDSU,ROWS(MDSU)-1,0,1,1))+1),3),7),0),IFERROR(INDEX(MDSU,SMALL(IF(OFFSET(MDSU,0,0,ROWS(MDSU),1)=CF35,ROW(OFFSET(MDSU,0,0,ROWS(MDSU),1))-ROW(OFFSET(MDSU,0,0,1,1))+1,ROW(OFFSET(MDSU,ROWS(MDSU)-1,0,1,1))+1),4),7),0),IFERROR(INDEX(MDSU,SMALL(IF(OFFSET(MDSU,0,0,ROWS(MDSU),1)=CF35,ROW(OFFSET(MDSU,0,0,ROWS(MDSU),1))-ROW(OFFSET(MDSU,0,0,1,1))+1,ROW(OFFSET(MDSU,ROWS(MDSU)-1,0,1,1))+1),5),7),0),IFERROR(INDEX(MDSU,SMALL(IF(OFFSET(MDSU,0,0,ROWS(MDSU),1)=CF35,ROW(OFFSET(MDSU,0,0,ROWS(MDSU),1))-ROW(OFFSET(MDSU,0,0,1,1))+1,ROW(OFFSET(MDSU,ROWS(MDSU)-1,0,1,1))+1),6),7),0),IFERROR(INDEX(MDSU,SMALL(IF(OFFSET(MDSU,0,0,ROWS(MDSU),1)=CF35,ROW(OFFSET(MDSU,0,0,ROWS(MDSU),1))-ROW(OFFSET(MDSU,0,0,1,1))+1,ROW(OFFSET(MDSU,ROWS(MDSU)-1,0,1,1))+1),7),7),0),IFERROR(INDEX(MDSU,SMALL(IF(OFFSET(MDSU,0,0,ROWS(MDSU),1)=CF35,ROW(OFFSET(MDSU,0,0,ROWS(MDSU),1))-ROW(OFFSET(MDSU,0,0,1,1))+1,ROW(OFFSET(MDSU,ROWS(MDSU)-1,0,1,1))+1),8),7),0)))) -> 0.45 | CI35: 118.6298037 | CJ35: 0.9440259827 | CK35: 0.8425810339 | CL35: 0.7759796397 | CM35: 0.3103918559 | CN35: 0.9461398083 | CO35: 4.311016723 | CP35: 0.1046308494 | CQ35: 0.8622033447 | CR35: 0.1213528688 | CS35: 0.3136901306 | CT35: 0.5393496291 | CU35: Subcrítico | CV35: 0.04562591931 | CW35: 0.3560177752 | CX35: 0.390198813 | CY35: 1.333333333 | CZ35: 0.01825036773 | DA35: 0.001223496915 | DB35: 0.0536549024 | DC35: 1.2 | DD35: 2.666666667 | DE35: 0 | DF35: 1.2 | DI35: 0 | DK35: 0 | DL35: 0.2982655027 | DM35: 0.3640586064 | DN35: 2543.1 | DO35: 2542.85 | DP35: 0 | DQ35: 0 | DR35: 2541.494561 | DS35: 2541.196295 | DT35: =IF(OR($L35="",$M35=""),"",IF(MIN(IFERROR(INDEX(Matriz_busq,SMALL(IF(OFFSET(Matriz_busq,0,0,ROWS(Matriz_busq),1)=BD35,ROW(OFFSET(Matriz_busq,0,0,ROWS(Matriz_busq),1))-ROW(OFFSET(Matriz_busq,0,0,1,1))+1,ROW(OFFSET(Matriz_busq,ROWS(Matriz_busq)-1,0,1,1))+1),1),40),10000),IFERROR(INDEX(Matriz_busq,SMALL(IF(OFFSET(Matriz_busq,0,0,ROWS(Matriz_busq),1)=BD35,ROW(OFFSET(Matriz_busq,0,0,ROWS(Matriz_busq),1))-ROW(OFFSET(Matriz_busq,0,0,1,1))+1,ROW(OFFSET(Matriz_busq,ROWS(Matriz_busq)-1,0,1,1))+1),2),40),10000),IFERROR(INDEX(Matriz_busq,SMALL(IF(OFFSET(Matriz_busq,0,0,ROWS(Matriz_busq),1)=BD35,ROW(OFFSET(Matriz_busq,0,0,ROWS(Matriz_busq),1))-ROW(OFFSET(Matriz_busq,0,0,1,1))+1,ROW(OFFSET(Matriz_busq,ROWS(Matriz_busq)-1,0,1,1))+1),3),40),10000),IFERROR(INDEX(Matriz_busq,SMALL(IF(OFFSET(Matriz_busq,0,0,ROWS(Matriz_busq),1)=BD35,ROW(OFFSET(Matriz_busq,0,0,ROWS(Matriz_busq),1))-ROW(OFFSET(Matriz_busq,0,0,1,1))+1,ROW(OFFSET(Matriz_busq,ROWS(Matriz_busq)-1,0,1,1))+1),4),40),10000),IFERROR(INDEX(Matriz_busq,SMALL(IF(OFFSET(Matriz_busq,0,0,ROWS(Matriz_busq),1)=BD35,ROW(OFFSET(Matriz_busq,0,0,ROWS(Matriz_busq),1))-ROW(OFFSET(Matriz_busq,0,0,1,1))+1,ROW(OFFSET(Matriz_busq,ROWS(Matriz_busq)-1,0,1,1))+1),5),40),10000),IFERROR(INDEX(Matriz_busq,SMALL(IF(OFFSET(Matriz_busq,0,0,ROWS(Matriz_busq),1)=BD35,ROW(OFFSET(Matriz_busq,0,0,ROWS(Matriz_busq),1))-ROW(OFFSET(Matriz_busq,0,0,1,1))+1,ROW(OFFSET(Matriz_busq,ROWS(Matriz_busq)-1,0,1,1))+1),6),40),10000),IFERROR(INDEX(Matriz_busq,SMALL(IF(OFFSET(Matriz_busq,0,0,ROWS(Matriz_busq),1)=BD35,ROW(OFFSET(Matriz_busq,0,0,ROWS(Matriz_busq),1))-ROW(OFFSET(Matriz_busq,0,0,1,1))+1,ROW(OFFSET(Matriz_busq,ROWS(Matriz_busq)-1,0,1,1))+1),7),40),10000),IFERROR(INDEX(Matriz_busq,SMALL(IF(OFFSET(Matriz_busq,0,0,ROWS(Matriz_busq),1)=BD35,ROW(OFFSET(Matriz_busq,0,0,ROWS(Matriz_busq),1))-ROW(OFFSET(Matriz_busq,0,0,1,1))+1,ROW(OFFSET(Matriz_busq,ROWS(Matriz_busq)-1,0,1,1))+1),8),40),10000))=10000,0,MIN(IFERROR(INDEX(Matriz_busq,SMALL(IF(OFFSET(Matriz_busq,0,0,ROWS(Matriz_busq),1)=BD35,ROW(OFFSET(Matriz_busq,0,0,ROWS(Matriz_busq),1))-ROW(OFFSET(Matriz_busq,0,0,1,1))+1,ROW(OFFSET(Matriz_busq,ROWS(Matriz_busq)-1,0,1,1))+1),1),40),10000),IFERROR(INDEX(Matriz_busq,SMALL(IF(OFFSET(Matriz_busq,0,0,ROWS(Matriz_busq),1)=BD35,ROW(OFFSET(Matriz_busq,0,0,ROWS(Matriz_busq),1))-ROW(OFFSET(Matriz_busq,0,0,1,1))+1,ROW(OFFSET(Matriz_busq,ROWS(Matriz_busq)-1,0,1,1))+1),2),40),10000),IFERROR(INDEX(Matriz_busq,SMALL(IF(OFFSET(Matriz_busq,0,0,ROWS(Matriz_busq),1)=BD35,ROW(OFFSET(Matriz_busq,0,0,ROWS(Matriz_busq),1))-ROW(OFFSET(Matriz_busq,0,0,1,1))+1,ROW(OFFSET(Matriz_busq,ROWS(Matriz_busq)-1,0,1,1))+1),3),40),10000),IFERROR(INDEX(Matriz_busq,SMALL(IF(OFFSET(Matriz_busq,0,0,ROWS(Matriz_busq),1)=BD35,ROW(OFFSET(Matriz_busq,0,0,ROWS(Matriz_busq),1))-ROW(OFFSET(Matriz_busq,0,0,1,1))+1,ROW(OFFSET(Matriz_busq,ROWS(Matriz_busq)-1,0,1,1))+1),4),40),10000),IFERROR(INDEX(Matriz_busq,SMALL(IF(OFFSET(Matriz_busq,0,0,ROWS(Matriz_busq),1)=BD35,ROW(OFFSET(Matriz_busq,0,0,ROWS(Matriz_busq),1))-ROW(OFFSET(Matriz_busq,0,0,1,1))+1,ROW(OFFSET(Matriz_busq,ROWS(Matriz_busq)-1,0,1,1))+1),5),40),10000),IFERROR(INDEX(Matriz_busq,SMALL(IF(OFFSET(Matriz_busq,0,0,ROWS(Matriz_busq),1)=BD35,ROW(OFFSET(Matriz_busq,0,0,ROWS(Matriz_busq),1))-ROW(OFFSET(Matriz_busq,0,0,1,1))+1,ROW(OFFSET(Matriz_busq,ROWS(Matriz_busq)-1,0,1,1))+1),6),40),10000),IFERROR(INDEX(Matriz_busq,SMALL(IF(OFFSET(Matriz_busq,0,0,ROWS(Matriz_busq),1)=BD35,ROW(OFFSET(Matriz_busq,0,0,ROWS(Matriz_busq),1))-ROW(OFFSET(Matriz_busq,0,0,1,1))+1,ROW(OFFSET(Matriz_busq,ROWS(Matriz_busq)-1,0,1,1))+1),7),40),10000),IFERROR(INDEX(Matriz_busq,SMALL(IF(OFFSET(Matriz_busq,0,0,ROWS(Matriz_busq),1)=BD35,ROW(OFFSET(Matriz_busq,0,0,ROWS(Matriz_busq),1))-ROW(OFFSET(Matriz_busq,0,0,1,1))+1,ROW(OFFSET(Matriz_busq,ROWS(Matriz_busq)-1,0,1,1))+1),8),40),10000)))) -> 2541.494244 | DU35: 1.60543913 | DV35: 1.653704633 | DW35: 2541.094561 | DX35: 2540.796295 | DY35: 2541.450579 | DZ35: 2541.152313
A36: PD16 | B36: Tipo_1 | D36: No aplica | F36: 93041.5925 | G36: 107439.1983 | H36: 2542.85 | L36: PD16 | M36: PD17 | N36: 2542.85 | O36: 2542.8 | P36: 0 | Q36: 0 | R36: 48.33146155 | T36: 0.44597469 | W36: 0.44597469 | X36: 0.5 | Y36: 0 | Z36: 100 | AA36: 0.005 | AB36: 3 | AC36: 5 | AD36: AREAS DESARROLLADAS | AE36: CONCRETO/TECHO | AF36: 0.8 | AI36: 0 | AL36: 0 | AM36: 0.8 | AN36: 12.40368325 | AO36: 6.589654864 | AP36: 0.122240751 | AQ36: 12.525924 | AS36: 0.44597469 | AT36: =IF(L36="","",IF(M35=L36,VLOOKUP(L36,$L$31:$AS$262,34,FALSE)+VLOOKUP(M35,$M$31:$AT$262,34,FALSE)+IFERROR(IF((INDEX($M$31:$AT$262,SMALL(IF(OFFSET($M$31:$AT$262,0,0,ROWS($M$31:$AT$262),1)=L36,ROW(OFFSET($M$31:$AT$262,0,0,ROWS($M$31:$AT$262),1))-ROW(OFFSET($M$31:$AT$262,0,0,1,1))+1,ROW(OFFSET($M$31:$AT$262,ROWS($M$31:$AT$262)-1,0,1,1))+1),1),34))=VLOOKUP(M35,$M$31:$AT$262,34,FALSE),(INDEX($M$31:$AT$262,SMALL(IF(OFFSET($M$31:$AT$262,0,0,ROWS($M$31:$AT$262),1)=L36,ROW(OFFSET($M$31:$AT$262,0,0,ROWS($M$31:$AT$262),1))-ROW(OFFSET($M$31:$AT$262,0,0,1,1))+1,ROW(OFFSET($M$31:$AT$262,ROWS($M$31:$AT$262)-1,0,1,1))+1),2),34))),0)+IFERROR(IF((INDEX($M$31:$AT$262,SMALL(IF(OFFSET($M$31:$AT$262,0,0,ROWS($M$31:$AT$262),1)=L36,ROW(OFFSET($M$31:$AT$262,0,0,ROWS($M$31:$AT$262),1))-ROW(OFFSET($M$31:$AT$262,0,0,1,1))+1,ROW(OFFSET($M$31:$AT$262,ROWS($M$31:$AT$262)-1,0,1,1))+1),1),34))=VLOOKUP(M35,$M$31:$AT$262,34,FALSE),(INDEX($M$31:$AT$262,SMALL(IF(OFFSET($M$31:$AT$262,0,0,ROWS($M$31:$AT$262),1)=L36,ROW(OFFSET($M$31:$AT$262,0,0,ROWS($M$31:$AT$262),1))-ROW(OFFSET($M$31:$AT$262,0,0,1,1))+1,ROW(OFFSET($M$31:$AT$262,ROWS($M$31:$AT$262)-1,0,1,1))+1),3),34))),0)+IFERROR(IF((INDEX($M$31:$AT$262,SMALL(IF(OFFSET($M$31:$AT$262,0,0,ROWS($M$31:$AT$262),1)=L36,ROW(OFFSET($M$31:$AT$262,0,0,ROWS($M$31:$AT$262),1))-ROW(OFFSET($M$31:$AT$262,0,0,1,1))+1,ROW(OFFSET($M$31:$AT$262,ROWS($M$31:$AT$262)-1,0,1,1))+1),1),34))=VLOOKUP(M35,$M$31:$AT$262,34,FALSE),(INDEX($M$31:$AT$262,SMALL(IF(OFFSET($M$31:$AT$262,0,0,ROWS($M$31:$AT$262),1)=L36,ROW(OFFSET($M$31:$AT$262,0,0,ROWS($M$31:$AT$262),1))-ROW(OFFSET($M$31:$AT$262,0,0,1,1))+1,ROW(OFFSET($M$31:$AT$262,ROWS($M$31:$AT$262)-1,0,1,1))+1),4),34))),0)+IFERROR(IF((INDEX($M$31:$AT$262,SMALL(IF(OFFSET($M$31:$AT$262,0,0,ROWS($M$31:$AT$262),1)=L36,ROW(OFFSET($M$31:$AT$262,0,0,ROWS($M$31:$AT$262),1))-ROW(OFFSET($M$31:$AT$262,0,0,1,1))+1,ROW(OFFSET($M$31:$AT$262,ROWS($M$31:$AT$262)-1,0,1,1))+1),1),34))=VLOOKUP(M35,$M$31:$AT$262,34,FALSE),(INDEX($M$31:$AT$262,SMALL(IF(OFFSET($M$31:$AT$262,0,0,ROWS($M$31:$AT$262),1)=L36,ROW(OFFSET($M$31:$AT$262,0,0,ROWS($M$31:$AT$262),1))-ROW(OFFSET($M$31:$AT$262,0,0,1,1))+1,ROW(OFFSET($M$31:$AT$262,ROWS($M$31:$AT$262)-1,0,1,1))+1),5),34))),0)+IFERROR(IF((INDEX($M$31:$AT$262,SMALL(IF(OFFSET($M$31:$AT$262,0,0,ROWS($M$31:$AT$262),1)=L36,ROW(OFFSET($M$31:$AT$262,0,0,ROWS($M$31:$AT$262),1))-ROW(OFFSET($M$31:$AT$262,0,0,1,1))+1,ROW(OFFSET($M$31:$AT$262,ROWS($M$31:$AT$262)-1,0,1,1))+1),1),34))=VLOOKUP(M35,$M$31:$AT$262,34,FALSE),(INDEX($M$31:$AT$262,SMALL(IF(OFFSET($M$31:$AT$262,0,0,ROWS($M$31:$AT$262),1)=L36,ROW(OFFSET($M$31:$AT$262,0,0,ROWS($M$31:$AT$262),1))-ROW(OFFSET($M$31:$AT$262,0,0,1,1))+1,ROW(OFFSET($M$31:$AT$262,ROWS($M$31:$AT$262)-1,0,1,1))+1),6),34))),0)+IFERROR(IF((INDEX($M$31:$AT$262,SMALL(IF(OFFSET($M$31:$AT$262,0,0,ROWS($M$31:$AT$262),1)=L36,ROW(OFFSET($M$31:$AT$262,0,0,ROWS($M$31:$AT$262),1))-ROW(OFFSET($M$31:$AT$262,0,0,1,1))+1,ROW(OFFSET($M$31:$AT$262,ROWS($M$31:$AT$262)-1,0,1,1))+1),1),34))=VLOOKUP(M35,$M$31:$AT$262,34,FALSE),(INDEX($M$31:$AT$262,SMALL(IF(OFFSET($M$31:$AT$262,0,0,ROWS($M$31:$AT$262),1)=L36,ROW(OFFSET($M$31:$AT$262,0,0,ROWS($M$31:$AT$262),1))-ROW(OFFSET($M$31:$AT$262,0,0,1,1))+1,ROW(OFFSET($M$31:$AT$262,ROWS($M$31:$AT$262)-1,0,1,1))+1),7),34))),0)+IFERROR(IF((INDEX($M$31:$AT$262,SMALL(IF(OFFSET($M$31:$AT$262,0,0,ROWS($M$31:$AT$262),1)=L36,ROW(OFFSET($M$31:$AT$262,0,0,ROWS($M$31:$AT$262),1))-ROW(OFFSET($M$31:$AT$262,0,0,1,1))+1,ROW(OFFSET($M$31:$AT$262,ROWS($M$31:$AT$262)-1,0,1,1))+1),1),34))=VLOOKUP(M35,$M$31:$AT$262,34,FALSE),(INDEX($M$31:$AT$262,SMALL(IF(OFFSET($M$31:$AT$262,0,0,ROWS($M$31:$AT$262),1)=L36,ROW(OFFSET($M$31:$AT$262,0,0,ROWS($M$31:$AT$262),1))-ROW(OFFSET($M$31:$AT$262,0,0,1,1))+1,ROW(OFFSET($M$31:$AT$262,ROWS($M$31:$AT$262)-1,0,1,1))+1),8),34))),0)+IFERROR(IF((INDEX($M$31:$AT$262,SMALL(IF(OFFSET($M$31:$AT$262,0,0,ROWS($M$31:$AT$262),1)=L36,ROW(OFFSET($M$31:$AT$262,0,0,ROWS($M$31:$AT$262),1))-ROW(OFFSET($M$31:$AT$262,0,0,1,1))+1,ROW(OFFSET($M$31:$AT$262,ROWS($M$31:$AT$262)-1,0,1,1))+1),1),34))=VLOOKUP(M35,$M$31:$AT$262,34,FALSE),(INDEX($M$31:$AT$262,SMALL(IF(OFFSET($M$31:$AT$262,0,0,ROWS($M$31:$AT$262),1)=L36,ROW(OFFSET($M$31:$AT$262,0,0,ROWS($M$31:$AT$262),1))-ROW(OFFSET($M$31:$AT$262,0,0,1,1))+1,ROW(OFFSET($M$31:$AT$262,ROWS($M$31:$AT$262)-1,0,1,1))+1),9),34))),0)+IFERROR(IF((INDEX($M$31:$AT$262,SMALL(IF(OFFSET($M$31:$AT$262,0,0,ROWS($M$31:$AT$262),1)=L36,ROW(OFFSET($M$31:$AT$262,0,0,ROWS($M$31:$AT$262),1))-ROW(OFFSET($M$31:$AT$262,0,0,1,1))+1,ROW(OFFSET($M$31:$AT$262,ROWS($M$31:$AT$262)-1,0,1,1))+1),1),34))=VLOOKUP(M35,$M$31:$AT$262,34,FALSE),(INDEX($M$31:$AT$262,SMALL(IF(OFFSET($M$31:$AT$262,0,0,ROWS($M$31:$AT$262),1)=L36,ROW(OFFSET($M$31:$AT$262,0,0,ROWS($M$31:$AT$262),1))-ROW(OFFSET($M$31:$AT$262,0,0,1,1))+1,ROW(OFFSET($M$31:$AT$262,ROWS($M$31:$AT$262)-1,0,1,1))+1),10),34))),0),IF(M35<>L36,VLOOKUP(L36,$L$31:$AS$262,34,FALSE)+IFERROR(VLOOKUP(L36,$M$31:$AT$262,34,FALSE),0)))) -> 1.9694542 | AU36: 82.37180356 | AV36: 129.7819956 | AX36: 0 | AY36: =IF(L36="","",IF(ROW()=31,VLOOKUP(L36,$L$31:$AX$262,39,FALSE),IF(M35=L36,VLOOKUP(L36,$L$31:$AX$262,39,FALSE)+VLOOKUP(M35,$M$31:$AY$262,39,FALSE)+IFERROR(IF((INDEX($M$31:$AY$262,SMALL(IF(OFFSET($M$31:$AY$262,0,0,FILAX($M$31:$AY$262),1)=L36,ROW(OFFSET($M$31:$AY$262,0,0,FILAX($M$31:$AY$262),1))-ROW(OFFSET($M$31:$AY$262,0,0,1,1))+1,ROW(OFFSET($M$31:$AY$262,FILAX($M$31:$AY$262)-1,0,1,1))+1),1),39))=VLOOKUP(M35,$M$31:$AY$262,39,FALSE),(INDEX($M$31:$AY$262,SMALL(IF(OFFSET($M$31:$AY$262,0,0,FILAX($M$31:$AY$262),1)=L36,ROW(OFFSET($M$31:$AY$262,0,0,FILAX($M$31:$AY$262),1))-ROW(OFFSET($M$31:$AY$262,0,0,1,1))+1,ROW(OFFSET($M$31:$AY$262,FILAX($M$31:$AY$262)-1,0,1,1))+1),2),39))),0)+IFERROR(IF((INDEX($M$31:$AY$262,SMALL(IF(OFFSET($M$31:$AY$262,0,0,FILAX($M$31:$AY$262),1)=L36,ROW(OFFSET($M$31:$AY$262,0,0,FILAX($M$31:$AY$262),1))-ROW(OFFSET($M$31:$AY$262,0,0,1,1))+1,ROW(OFFSET($M$31:$AY$262,FILAX($M$31:$AY$262)-1,0,1,1))+1),1),39))=VLOOKUP(M35,$M$31:$AY$262,39,FALSE),(INDEX($M$31:$AY$262,SMALL(IF(OFFSET($M$31:$AY$262,0,0,FILAX($M$31:$AY$262),1)=L36,ROW(OFFSET($M$31:$AY$262,0,0,FILAX($M$31:$AY$262),1))-ROW(OFFSET($M$31:$AY$262,0,0,1,1))+1,ROW(OFFSET($M$31:$AY$262,FILAX($M$31:$AY$262)-1,0,1,1))+1),3),39))),0)+IFERROR(IF((INDEX($M$31:$AY$262,SMALL(IF(OFFSET($M$31:$AY$262,0,0,FILAX($M$31:$AY$262),1)=L36,ROW(OFFSET($M$31:$AY$262,0,0,FILAX($M$31:$AY$262),1))-ROW(OFFSET($M$31:$AY$262,0,0,1,1))+1,ROW(OFFSET($M$31:$AY$262,FILAX($M$31:$AY$262)-1,0,1,1))+1),1),39))=VLOOKUP(M35,$M$31:$AY$262,39,FALSE),(INDEX($M$31:$AY$262,SMALL(IF(OFFSET($M$31:$AY$262,0,0,FILAX($M$31:$AY$262),1)=L36,ROW(OFFSET($M$31:$AY$262,0,0,FILAX($M$31:$AY$262),1))-ROW(OFFSET($M$31:$AY$262,0,0,1,1))+1,ROW(OFFSET($M$31:$AY$262,FILAX($M$31:$AY$262)-1,0,1,1))+1),4),39))),0)+IFERROR(IF((INDEX($M$31:$AY$262,SMALL(IF(OFFSET($M$31:$AY$262,0,0,FILAX($M$31:$AY$262),1)=L36,ROW(OFFSET($M$31:$AY$262,0,0,FILAX($M$31:$AY$262),1))-ROW(OFFSET($M$31:$AY$262,0,0,1,1))+1,ROW(OFFSET($M$31:$AY$262,FILAX($M$31:$AY$262)-1,0,1,1))+1),1),39))=VLOOKUP(M35,$M$31:$AY$262,39,FALSE),(INDEX($M$31:$AY$262,SMALL(IF(OFFSET($M$31:$AY$262,0,0,FILAX($M$31:$AY$262),1)=L36,ROW(OFFSET($M$31:$AY$262,0,0,FILAX($M$31:$AY$262),1))-ROW(OFFSET($M$31:$AY$262,0,0,1,1))+1,ROW(OFFSET($M$31:$AY$262,FILAX($M$31:$AY$262)-1,0,1,1))+1),5),39))),0)+IFERROR(IF((INDEX($M$31:$AY$262,SMALL(IF(OFFSET($M$31:$AY$262,0,0,FILAX($M$31:$AY$262),1)=L36,ROW(OFFSET($M$31:$AY$262,0,0,FILAX($M$31:$AY$262),1))-ROW(OFFSET($M$31:$AY$262,0,0,1,1))+1,ROW(OFFSET($M$31:$AY$262,FILAX($M$31:$AY$262)-1,0,1,1))+1),1),39))=VLOOKUP(M35,$M$31:$AY$262,39,FALSE),(INDEX($M$31:$AY$262,SMALL(IF(OFFSET($M$31:$AY$262,0,0,FILAX($M$31:$AY$262),1)=L36,ROW(OFFSET($M$31:$AY$262,0,0,FILAX($M$31:$AY$262),1))-ROW(OFFSET($M$31:$AY$262,0,0,1,1))+1,ROW(OFFSET($M$31:$AY$262,FILAX($M$31:$AY$262)-1,0,1,1))+1),6),39))),0)+IFERROR(IF((INDEX($M$31:$AY$262,SMALL(IF(OFFSET($M$31:$AY$262,0,0,FILAX($M$31:$AY$262),1)=L36,ROW(OFFSET($M$31:$AY$262,0,0,FILAX($M$31:$AY$262),1))-ROW(OFFSET($M$31:$AY$262,0,0,1,1))+1,ROW(OFFSET($M$31:$AY$262,FILAX($M$31:$AY$262)-1,0,1,1))+1),1),39))=VLOOKUP(M35,$M$31:$AY$262,39,FALSE),(INDEX($M$31:$AY$262,SMALL(IF(OFFSET($M$31:$AY$262,0,0,FILAX($M$31:$AY$262),1)=L36,ROW(OFFSET($M$31:$AY$262,0,0,FILAX($M$31:$AY$262),1))-ROW(OFFSET($M$31:$AY$262,0,0,1,1))+1,ROW(OFFSET($M$31:$AY$262,FILAX($M$31:$AY$262)-1,0,1,1))+1),7),39))),0)+IFERROR(IF((INDEX($M$31:$AY$262,SMALL(IF(OFFSET($M$31:$AY$262,0,0,FILAX($M$31:$AY$262),1)=L36,ROW(OFFSET($M$31:$AY$262,0,0,FILAX($M$31:$AY$262),1))-ROW(OFFSET($M$31:$AY$262,0,0,1,1))+1,ROW(OFFSET($M$31:$AY$262,FILAX($M$31:$AY$262)-1,0,1,1))+1),1),39))=VLOOKUP(M35,$M$31:$AY$262,39,FALSE),(INDEX($M$31:$AY$262,SMALL(IF(OFFSET($M$31:$AY$262,0,0,FILAX($M$31:$AY$262),1)=L36,ROW(OFFSET($M$31:$AY$262,0,0,FILAX($M$31:$AY$262),1))-ROW(OFFSET($M$31:$AY$262,0,0,1,1))+1,ROW(OFFSET($M$31:$AY$262,FILAX($M$31:$AY$262)-1,0,1,1))+1),8),39))),0)+IFERROR(IF((INDEX($M$31:$AY$262,SMALL(IF(OFFSET($M$31:$AY$262,0,0,FILAX($M$31:$AY$262),1)=L36,ROW(OFFSET($M$31:$AY$262,0,0,FILAX($M$31:$AY$262),1))-ROW(OFFSET($M$31:$AY$262,0,0,1,1))+1,ROW(OFFSET($M$31:$AY$262,FILAX($M$31:$AY$262)-1,0,1,1))+1),1),39))=VLOOKUP(M35,$M$31:$AY$262,39,FALSE),(INDEX($M$31:$AY$262,SMALL(IF(OFFSET($M$31:$AY$262,0,0,FILAX($M$31:$AY$262),1)=L36,ROW(OFFSET($M$31:$AY$262,0,0,FILAX($M$31:$AY$262),1))-ROW(OFFSET($M$31:$AY$262,0,0,1,1))+1,ROW(OFFSET($M$31:$AY$262,FILAX($M$31:$AY$262)-1,0,1,1))+1),9),39))),0)+IFERROR(IF((INDEX($M$31:$AY$262,SMALL(IF(OFFSET($M$31:$AY$262,0,0,FILAX($M$31:$AY$262),1)=L36,ROW(OFFSET($M$31:$AY$262,0,0,FILAX($M$31:$AY$262),1))-ROW(OFFSET($M$31:$AY$262,0,0,1,1))+1,ROW(OFFSET($M$31:$AY$262,FILAX($M$31:$AY$262)-1,0,1,1))+1),1),39))=VLOOKUP(M35,$M$31:$AY$262,39,FALSE),(INDEX($M$31:$AY$262,SMALL(IF(OFFSET($M$31:$AY$262,0,0,FILAX($M$31:$AY$262),1)=L36,ROW(OFFSET($M$31:$AY$262,0,0,FILAX($M$31:$AY$262),1))-ROW(OFFSET($M$31:$AY$262,0,0,1,1))+1,ROW(OFFSET($M$31:$AY$262,FILAX($M$31:$AY$262)-1,0,1,1))+1),10),39))),0),IF(M35<>L36,VLOOKUP(L36,$L$31:$AX$262,39,FALSE)+IFERROR(VLOOKUP(L36,$M$31:$AY$262,39,FALSE),0))))) -> 0 | AZ36: 129.7819956 | BA36: 6.589744285 | BB36: 0.1222390922 | BC36: -1.35698675e-05 | BD36: PD16 | BE36: PD17 | BF36: 48.33146155 | BG36: PVC | BH36: =IF(OR($L36="",$M36="",BG36=""),"",INDEX('Tablas y listas'!$D$4:$G$17,MATCH('1. Analisis Flujo Uniforme'!BG36,'Tablas y listas'!$D$4:$D$17,0),4)) -> 0.0125 | BI36: 18 | BJ36: =IF(OR(BI36=""),"",IFERROR(IF($BI$30="Pulgadas",INDEX('Tablas y listas'!$B$64:$D$89,MATCH('1. Analisis Flujo Uniforme'!BI36,CONCRETO_Pulgadas,0),3),IF($BI$30="mm",BI36/(10*100))),"Indique φ")) -> 0.45 | BK36: 0.1034522822 | BL36: 0.3 | BM36: 0.5598152476 | BN36: Subcrítico | BO36: 0.7991235135 | BP36: 1.007574109 | BQ36: 1.657359535 | BR36: 1.75235392 | BV36: 2541.19264 | BW36: 2541.047646 | BX36: 2540.74264 | BY36: 2540.597646 | BZ36: 2541.132839 | CA36: 2540.987845 | CB36: 0.4075056905 | CE36: PD16 | CF36: PD17 | CG36: =IF(OR($L36="",$M36=""),"",IF(MAX(IFERROR(INDEX(MatrizQs1,SMALL(IF(OFFSET(MatrizQs1,0,0,ROWS(MatrizQs1),1)=CF36,ROW(OFFSET(MatrizQs1,0,0,ROWS(MatrizQs1),1))-ROW(OFFSET(MatrizQs1,0,0,1,1))+1,ROW(OFFSET(MatrizQs1,ROWS(MatrizQs1)-1,0,1,1))+1),1),41),0),IFERROR(INDEX(MatrizQs1,SMALL(IF(OFFSET(MatrizQs1,0,0,ROWS(MatrizQs1),1)=CF36,ROW(OFFSET(MatrizQs1,0,0,ROWS(MatrizQs1),1))-ROW(OFFSET(MatrizQs1,0,0,1,1))+1,ROW(OFFSET(MatrizQs1,ROWS(MatrizQs1)-1,0,1,1))+1),2),41),0),IFERROR(INDEX(MatrizQs1,SMALL(IF(OFFSET(MatrizQs1,0,0,ROWS(MatrizQs1),1)=CF36,ROW(OFFSET(MatrizQs1,0,0,ROWS(MatrizQs1),1))-ROW(OFFSET(MatrizQs1,0,0,1,1))+1,ROW(OFFSET(MatrizQs1,ROWS(MatrizQs1)-1,0,1,1))+1),3),41),0),IFERROR(INDEX(MatrizQs1,SMALL(IF(OFFSET(MatrizQs1,0,0,ROWS(MatrizQs1),1)=CF36,ROW(OFFSET(MatrizQs1,0,0,ROWS(MatrizQs1),1))-ROW(OFFSET(MatrizQs1,0,0,1,1))+1,ROW(OFFSET(MatrizQs1,ROWS(MatrizQs1)-1,0,1,1))+1),4),41),0),IFERROR(INDEX(MatrizQs1,SMALL(IF(OFFSET(MatrizQs1,0,0,ROWS(MatrizQs1),1)=CF36,ROW(OFFSET(MatrizQs1,0,0,ROWS(MatrizQs1),1))-ROW(OFFSET(MatrizQs1,0,0,1,1))+1,ROW(OFFSET(MatrizQs1,ROWS(MatrizQs1)-1,0,1,1))+1),5),41),0),IFERROR(INDEX(MatrizQs1,SMALL(IF(OFFSET(MatrizQs1,0,0,ROWS(MatrizQs1),1)=CF36,ROW(OFFSET(MatrizQs1,0,0,ROWS(MatrizQs1),1))-ROW(OFFSET(MatrizQs1,0,0,1,1))+1,ROW(OFFSET(MatrizQs1,ROWS(MatrizQs1)-1,0,1,1))+1),6),41),0),IFERROR(INDEX(MatrizQs1,SMALL(IF(OFFSET(MatrizQs1,0,0,ROWS(MatrizQs1),1)=CF36,ROW(OFFSET(MatrizQs1,0,0,ROWS(MatrizQs1),1))-ROW(OFFSET(MatrizQs1,0,0,1,1))+1,ROW(OFFSET(MatrizQs1,ROWS(MatrizQs1)-1,0,1,1))+1),7),41),0),IFERROR(INDEX(MatrizQs1,SMALL(IF(OFFSET(MatrizQs1,0,0,ROWS(MatrizQs1),1)=CF36,ROW(OFFSET(MatrizQs1,0,0,ROWS(MatrizQs1),1))-ROW(OFFSET(MatrizQs1,0,0,1,1))+1,ROW(OFFSET(MatrizQs1,ROWS(MatrizQs1)-1,0,1,1))+1),8),41),0))=0,IFERROR(INDEX(matrizQs,SMALL(IF(OFFSET(matrizQs,0,0,ROWS(matrizQs),1)=CF36,ROW(OFFSET(matrizQs,0,0,ROWS(matrizQs),1))-ROW(OFFSET(matrizQs,0,0,1,1))+1,ROW(OFFSET(matrizQs,ROWS(matrizQs)-1,0,1,1))+1),1),40),0),MAX(IFERROR(INDEX(MatrizQs1,SMALL(IF(OFFSET(MatrizQs1,0,0,ROWS(MatrizQs1),1)=CF36,ROW(OFFSET(MatrizQs1,0,0,ROWS(MatrizQs1),1))-ROW(OFFSET(MatrizQs1,0,0,1,1))+1,ROW(OFFSET(MatrizQs1,ROWS(MatrizQs1)-1,0,1,1))+1),1),41),0),IFERROR(INDEX(MatrizQs1,SMALL(IF(OFFSET(MatrizQs1,0,0,ROWS(MatrizQs1),1)=CF36,ROW(OFFSET(MatrizQs1,0,0,ROWS(MatrizQs1),1))-ROW(OFFSET(MatrizQs1,0,0,1,1))+1,ROW(OFFSET(MatrizQs1,ROWS(MatrizQs1)-1,0,1,1))+1),2),41),0),IFERROR(INDEX(MatrizQs1,SMALL(IF(OFFSET(MatrizQs1,0,0,ROWS(MatrizQs1),1)=CF36,ROW(OFFSET(MatrizQs1,0,0,ROWS(MatrizQs1),1))-ROW(OFFSET(MatrizQs1,0,0,1,1))+1,ROW(OFFSET(MatrizQs1,ROWS(MatrizQs1)-1,0,1,1))+1),3),41),0),IFERROR(INDEX(MatrizQs1,SMALL(IF(OFFSET(MatrizQs1,0,0,ROWS(MatrizQs1),1)=CF36,ROW(OFFSET(MatrizQs1,0,0,ROWS(MatrizQs1),1))-ROW(OFFSET(MatrizQs1,0,0,1,1))+1,ROW(OFFSET(MatrizQs1,ROWS(MatrizQs1)-1,0,1,1))+1),4),41),0),IFERROR(INDEX(MatrizQs1,SMALL(IF(OFFSET(MatrizQs1,0,0,ROWS(MatrizQs1),1)=CF36,ROW(OFFSET(MatrizQs1,0,0,ROWS(MatrizQs1),1))-ROW(OFFSET(MatrizQs1,0,0,1,1))+1,ROW(OFFSET(MatrizQs1,ROWS(MatrizQs1)-1,0,1,1))+1),5),41),0),IFERROR(INDEX(MatrizQs1,SMALL(IF(OFFSET(MatrizQs1,0,0,ROWS(MatrizQs1),1)=CF36,ROW(OFFSET(MatrizQs1,0,0,ROWS(MatrizQs1),1))-ROW(OFFSET(MatrizQs1,0,0,1,1))+1,ROW(OFFSET(MatrizQs1,ROWS(MatrizQs1)-1,0,1,1))+1),6),41),0),IFERROR(INDEX(MatrizQs1,SMALL(IF(OFFSET(MatrizQs1,0,0,ROWS(MatrizQs1),1)=CF36,ROW(OFFSET(MatrizQs1,0,0,ROWS(MatrizQs1),1))-ROW(OFFSET(MatrizQs1,0,0,1,1))+1,ROW(OFFSET(MatrizQs1,ROWS(MatrizQs1)-1,0,1,1))+1),7),41),0),IFERROR(INDEX(MatrizQs1,SMALL(IF(OFFSET(MatrizQs1,0,0,ROWS(MatrizQs1),1)=CF36,ROW(OFFSET(MatrizQs1,0,0,ROWS(MatrizQs1),1))-ROW(OFFSET(MatrizQs1,0,0,1,1))+1,ROW(OFFSET(MatrizQs1,ROWS(MatrizQs1)-1,0,1,1))+1),8),41),0)))) -> 147.6913175 | CH36: =IF(OR($L36="",$M36=""),"",IF(MAX(IFERROR(INDEX(MDSU,SMALL(IF(OFFSET(MDSU,0,0,ROWS(MDSU),1)=CF36,ROW(OFFSET(MDSU,0,0,ROWS(MDSU),1))-ROW(OFFSET(MDSU,0,0,1,1))+1,ROW(OFFSET(MDSU,ROWS(MDSU)-1,0,1,1))+1),1),7),0),IFERROR(INDEX(MDSU,SMALL(IF(OFFSET(MDSU,0,0,ROWS(MDSU),1)=CF36,ROW(OFFSET(MDSU,0,0,ROWS(MDSU),1))-ROW(OFFSET(MDSU,0,0,1,1))+1,ROW(OFFSET(MDSU,ROWS(MDSU)-1,0,1,1))+1),2),7),0),IFERROR(INDEX(MDSU,SMALL(IF(OFFSET(MDSU,0,0,ROWS(MDSU),1)=CF36,ROW(OFFSET(MDSU,0,0,ROWS(MDSU),1))-ROW(OFFSET(MDSU,0,0,1,1))+1,ROW(OFFSET(MDSU,ROWS(MDSU)-1,0,1,1))+1),3),7),0),IFERROR(INDEX(MDSU,SMALL(IF(OFFSET(MDSU,0,0,ROWS(MDSU),1)=CF36,ROW(OFFSET(MDSU,0,0,ROWS(MDSU),1))-ROW(OFFSET(MDSU,0,0,1,1))+1,ROW(OFFSET(MDSU,ROWS(MDSU)-1,0,1,1))+1),4),7),0),IFERROR(INDEX(MDSU,SMALL(IF(OFFSET(MDSU,0,0,ROWS(MDSU),1)=CF36,ROW(OFFSET(MDSU,0,0,ROWS(MDSU),1))-ROW(OFFSET(MDSU,0,0,1,1))+1,ROW(OFFSET(MDSU,ROWS(MDSU)-1,0,1,1))+1),5),7),0),IFERROR(INDEX(MDSU,SMALL(IF(OFFSET(MDSU,0,0,ROWS(MDSU),1)=CF36,ROW(OFFSET(MDSU,0,0,ROWS(MDSU),1))-ROW(OFFSET(MDSU,0,0,1,1))+1,ROW(OFFSET(MDSU,ROWS(MDSU)-1,0,1,1))+1),6),7),0),IFERROR(INDEX(MDSU,SMALL(IF(OFFSET(MDSU,0,0,ROWS(MDSU),1)=CF36,ROW(OFFSET(MDSU,0,0,ROWS(MDSU),1))-ROW(OFFSET(MDSU,0,0,1,1))+1,ROW(OFFSET(MDSU,ROWS(MDSU)-1,0,1,1))+1),7),7),0),IFERROR(INDEX(MDSU,SMALL(IF(OFFSET(MDSU,0,0,ROWS(MDSU),1)=CF36,ROW(OFFSET(MDSU,0,0,ROWS(MDSU),1))-ROW(OFFSET(MDSU,0,0,1,1))+1,ROW(OFFSET(MDSU,ROWS(MDSU)-1,0,1,1))+1),8),7),0))=0,IFERROR(INDEX(MDS,SMALL(IF(OFFSET(MDS,0,0,ROWS(MDS),1)=CF36,ROW(OFFSET(MDS,0,0,ROWS(MDS),1))-ROW(OFFSET(MDS,0,0,1,1))+1,ROW(OFFSET(MDS,ROWS(MDS)-1,0,1,1))+1),1),6),0),MAX(IFERROR(INDEX(MDSU,SMALL(IF(OFFSET(MDSU,0,0,ROWS(MDSU),1)=CF36,ROW(OFFSET(MDSU,0,0,ROWS(MDSU),1))-ROW(OFFSET(MDSU,0,0,1,1))+1,ROW(OFFSET(MDSU,ROWS(MDSU)-1,0,1,1))+1),1),7),0),IFERROR(INDEX(MDSU,SMALL(IF(OFFSET(MDSU,0,0,ROWS(MDSU),1)=CF36,ROW(OFFSET(MDSU,0,0,ROWS(MDSU),1))-ROW(OFFSET(MDSU,0,0,1,1))+1,ROW(OFFSET(MDSU,ROWS(MDSU)-1,0,1,1))+1),2),7),0),IFERROR(INDEX(MDSU,SMALL(IF(OFFSET(MDSU,0,0,ROWS(MDSU),1)=CF36,ROW(OFFSET(MDSU,0,0,ROWS(MDSU),1))-ROW(OFFSET(MDSU,0,0,1,1))+1,ROW(OFFSET(MDSU,ROWS(MDSU)-1,0,1,1))+1),3),7),0),IFERROR(INDEX(MDSU,SMALL(IF(OFFSET(MDSU,0,0,ROWS(MDSU),1)=CF36,ROW(OFFSET(MDSU,0,0,ROWS(MDSU),1))-ROW(OFFSET(MDSU,0,0,1,1))+1,ROW(OFFSET(MDSU,ROWS(MDSU)-1,0,1,1))+1),4),7),0),IFERROR(INDEX(MDSU,SMALL(IF(OFFSET(MDSU,0,0,ROWS(MDSU),1)=CF36,ROW(OFFSET(MDSU,0,0,ROWS(MDSU),1))-ROW(OFFSET(MDSU,0,0,1,1))+1,ROW(OFFSET(MDSU,ROWS(MDSU)-1,0,1,1))+1),5),7),0),IFERROR(INDEX(MDSU,SMALL(IF(OFFSET(MDSU,0,0,ROWS(MDSU),1)=CF36,ROW(OFFSET(MDSU,0,0,ROWS(MDSU),1))-ROW(OFFSET(MDSU,0,0,1,1))+1,ROW(OFFSET(MDSU,ROWS(MDSU)-1,0,1,1))+1),6),7),0),IFERROR(INDEX(MDSU,SMALL(IF(OFFSET(MDSU,0,0,ROWS(MDSU),1)=CF36,ROW(OFFSET(MDSU,0,0,ROWS(MDSU),1))-ROW(OFFSET(MDSU,0,0,1,1))+1,ROW(OFFSET(MDSU,ROWS(MDSU)-1,0,1,1))+1),7),7),0),IFERROR(INDEX(MDSU,SMALL(IF(OFFSET(MDSU,0,0,ROWS(MDSU),1)=CF36,ROW(OFFSET(MDSU,0,0,ROWS(MDSU),1))-ROW(OFFSET(MDSU,0,0,1,1))+1,ROW(OFFSET(MDSU,ROWS(MDSU)-1,0,1,1))+1),8),7),0)))) -> 0.45 | CI36: 162.4054272 | CJ36: 1.021140801 | CK36: 0.7991235135 | CL36: 0.7521231313 | CM36: 0.3384554091 | CN36: 1.007574109 | CO36: 4.198610487 | CP36: 0.1283218249 | CQ36: 0.9446873596 | CR36: 0.1358352302 | CS36: 0.3302140475 | CT36: 0.5598152476 | CU36: Subcrítico | CV36: 0.05174340389 | CW36: 0.390198813 | CX36: 0.4211051694 | CY36: 1.333333333 | CZ36: 0.02069736155 | DA36: 0.0008196093667 | DB36: 0.05242332736 | DC36: 1.2 | DD36: 2.666666667 | DE36: 0 | DF36: 1.2 | DI36: 0 | DK36: 0 | DL36: 0.1449943847 | DM36: 0.4075056905 | DN36: 2542.85 | DO36: 2542.8 | DP36: 0 | DQ36: 0 | DR36: 2541.19264 | DS36: 2541.047646 | DT36: =IF(OR($L36="",$M36=""),"",IF(MIN(IFERROR(INDEX(Matriz_busq,SMALL(IF(OFFSET(Matriz_busq,0,0,ROWS(Matriz_busq),1)=BD36,ROW(OFFSET(Matriz_busq,0,0,ROWS(Matriz_busq),1))-ROW(OFFSET(Matriz_busq,0,0,1,1))+1,ROW(OFFSET(Matriz_busq,ROWS(Matriz_busq)-1,0,1,1))+1),1),40),10000),IFERROR(INDEX(Matriz_busq,SMALL(IF(OFFSET(Matriz_busq,0,0,ROWS(Matriz_busq),1)=BD36,ROW(OFFSET(Matriz_busq,0,0,ROWS(Matriz_busq),1))-ROW(OFFSET(Matriz_busq,0,0,1,1))+1,ROW(OFFSET(Matriz_busq,ROWS(Matriz_busq)-1,0,1,1))+1),2),40),10000),IFERROR(INDEX(Matriz_busq,SMALL(IF(OFFSET(Matriz_busq,0,0,ROWS(Matriz_busq),1)=BD36,ROW(OFFSET(Matriz_busq,0,0,ROWS(Matriz_busq),1))-ROW(OFFSET(Matriz_busq,0,0,1,1))+1,ROW(OFFSET(Matriz_busq,ROWS(Matriz_busq)-1,0,1,1))+1),3),40),10000),IFERROR(INDEX(Matriz_busq,SMALL(IF(OFFSET(Matriz_busq,0,0,ROWS(Matriz_busq),1)=BD36,ROW(OFFSET(Matriz_busq,0,0,ROWS(Matriz_busq),1))-ROW(OFFSET(Matriz_busq,0,0,1,1))+1,ROW(OFFSET(Matriz_busq,ROWS(Matriz_busq)-1,0,1,1))+1),4),40),10000),IFERROR(INDEX(Matriz_busq,SMALL(IF(OFFSET(Matriz_busq,0,0,ROWS(Matriz_busq),1)=BD36,ROW(OFFSET(Matriz_busq,0,0,ROWS(Matriz_busq),1))-ROW(OFFSET(Matriz_busq,0,0,1,1))+1,ROW(OFFSET(Matriz_busq,ROWS(Matriz_busq)-1,0,1,1))+1),5),40),10000),IFERROR(INDEX(Matriz_busq,SMALL(IF(OFFSET(Matriz_busq,0,0,ROWS(Matriz_busq),1)=BD36,ROW(OFFSET(Matriz_busq,0,0,ROWS(Matriz_busq),1))-ROW(OFFSET(Matriz_busq,0,0,1,1))+1,ROW(OFFSET(Matriz_busq,ROWS(Matriz_busq)-1,0,1,1))+1),6),40),10000),IFERROR(INDEX(Matriz_busq,SMALL(IF(OFFSET(Matriz_busq,0,0,ROWS(Matriz_busq),1)=BD36,ROW(OFFSET(Matriz_busq,0,0,ROWS(Matriz_busq),1))-ROW(OFFSET(Matriz_busq,0,0,1,1))+1,ROW(OFFSET(Matriz_busq,ROWS(Matriz_busq)-1,0,1,1))+1),7),40),10000),IFERROR(INDEX(Matriz_busq,SMALL(IF(OFFSET(Matriz_busq,0,0,ROWS(Matriz_busq),1)=BD36,ROW(OFFSET(Matriz_busq,0,0,ROWS(Matriz_busq),1))-ROW(OFFSET(Matriz_busq,0,0,1,1))+1,ROW(OFFSET(Matriz_busq,ROWS(Matriz_busq)-1,0,1,1))+1),8),40),10000))=10000,0,MIN(IFERROR(INDEX(Matriz_busq,SMALL(IF(OFFSET(Matriz_busq,0,0,ROWS(Matriz_busq),1)=BD36,ROW(OFFSET(Matriz_busq,0,0,ROWS(Matriz_busq),1))-ROW(OFFSET(Matriz_busq,0,0,1,1))+1,ROW(OFFSET(Matriz_busq,ROWS(Matriz_busq)-1,0,1,1))+1),1),40),10000),IFERROR(INDEX(Matriz_busq,SMALL(IF(OFFSET(Matriz_busq,0,0,ROWS(Matriz_busq),1)=BD36,ROW(OFFSET(Matriz_busq,0,0,ROWS(Matriz_busq),1))-ROW(OFFSET(Matriz_busq,0,0,1,1))+1,ROW(OFFSET(Matriz_busq,ROWS(Matriz_busq)-1,0,1,1))+1),2),40),10000),IFERROR(INDEX(Matriz_busq,SMALL(IF(OFFSET(Matriz_busq,0,0,ROWS(Matriz_busq),1)=BD36,ROW(OFFSET(Matriz_busq,0,0,ROWS(Matriz_busq),1))-ROW(OFFSET(Matriz_busq,0,0,1,1))+1,ROW(OFFSET(Matriz_busq,ROWS(Matriz_busq)-1,0,1,1))+1),3),40),10000),IFERROR(INDEX(Matriz_busq,SMALL(IF(OFFSET(Matriz_busq,0,0,ROWS(Matriz_busq),1)=BD36,ROW(OFFSET(Matriz_busq,0,0,ROWS(Matriz_busq),1))-ROW(OFFSET(Matriz_busq,0,0,1,1))+1,ROW(OFFSET(Matriz_busq,ROWS(Matriz_busq)-1,0,1,1))+1),4),40),10000),IFERROR(INDEX(Matriz_busq,SMALL(IF(OFFSET(Matriz_busq,0,0,ROWS(Matriz_busq),1)=BD36,ROW(OFFSET(Matriz_busq,0,0,ROWS(Matriz_busq),1))-ROW(OFFSET(Matriz_busq,0,0,1,1))+1,ROW(OFFSET(Matriz_busq,ROWS(Matriz_busq)-1,0,1,1))+1),5),40),10000),IFERROR(INDEX(Matriz_busq,SMALL(IF(OFFSET(Matriz_busq,0,0,ROWS(Matriz_busq),1)=BD36,ROW(OFFSET(Matriz_busq,0,0,ROWS(Matriz_busq),1))-ROW(OFFSET(Matriz_busq,0,0,1,1))+1,ROW(OFFSET(Matriz_busq,ROWS(Matriz_busq)-1,0,1,1))+1),6),40),10000),IFERROR(INDEX(Matriz_busq,SMALL(IF(OFFSET(Matriz_busq,0,0,ROWS(Matriz_busq),1)=BD36,ROW(OFFSET(Matriz_busq,0,0,ROWS(Matriz_busq),1))-ROW(OFFSET(Matriz_busq,0,0,1,1))+1,ROW(OFFSET(Matriz_busq,ROWS(Matriz_busq)-1,0,1,1))+1),7),40),10000),IFERROR(INDEX(Matriz_busq,SMALL(IF(OFFSET(Matriz_busq,0,0,ROWS(Matriz_busq),1)=BD36,ROW(OFFSET(Matriz_busq,0,0,ROWS(Matriz_busq),1))-ROW(OFFSET(Matriz_busq,0,0,1,1))+1,ROW(OFFSET(Matriz_busq,ROWS(Matriz_busq)-1,0,1,1))+1),8),40),10000)))) -> 2541.196295 | DU36: 1.657359535 | DV36: 1.75235392 | DW36: 2540.74264 | DX36: 2540.597646 | DY36: 2541.132839 | DZ36: 2540.987845
A37: PD17 | B37: Tipo_1 | D37: No aplica | F37: 92997.2224 | G37: 107458.3614 | H37: 2542.8 | L37: PD17 | M37: PD18 | N37: 2542.8 | O37: 2542.65 | P37: 0 | Q37: 0 | R37: 67.12457601 | T37: 0.27537969 | W37: 0.27537969 | X37: 0.5 | Y37: 0 | Z37: 100 | AA37: 0.005 | AB37: 3 | AC37: 5 | AD37: AREAS DESARROLLADAS | AE37: CONCRETO/TECHO | AF37: =IF(OR(L37="",M37=""),"",IF(AE37="","",IF(AE37="Elija","◄ Elija Tipo",IFERROR(INDEX(Coef_Area_desarrollada,MATCH(IF(AD37="AREAS DESARROLLADAS",AE37,AD37&"-"&AE37),Areas_desarrolladas,0),MATCH(IF(AC37="",AB37,AC37),Periodo_Retorno,0)),"")))) -> 0.8 | AI37: =IF(OR($L37="",$M37=""),"",IF(AH37="",0,IF(AH37="Elija","◄ Elija Tipo",IFERROR(INDEX(Coef_Area_desarrollada,MATCH(IF(AG37="AREAS DESARROLLADAS",AH37,AG37&"-"&AH37),Areas_desarrolladas,0),MATCH(IF($AC37="",$AB37,$AC37),Periodo_Retorno,0)),0)))) -> 0 | AL37: =IF(OR($L37="",$M37=""),"",IF(AK37="",0,IF(AK37="Elija","◄ Elija Tipo",IFERROR(INDEX(Coef_Area_desarrollada,MATCH(IF(AJ37="AREAS DESARROLLADAS",AK37,AJ37&"-"&AK37),Areas_desarrolladas,0),MATCH(IF($AC37="",$AB37,$AC37),Periodo_Retorno,0)),0)))) -> 0 | AM37: 0.8 | AN37: 12.40368325 | AO37: 6.579076382 | AP37: 0.1700455913 | AQ37: 12.57372884 | AS37: 0.27537969 | AT37: =IF(L37="","",IF(M36=L37,VLOOKUP(L37,$L$31:$AS$262,34,FALSE)+VLOOKUP(M36,$M$31:$AT$262,34,FALSE)+IFERROR(IF((INDEX($M$31:$AT$262,SMALL(IF(OFFSET($M$31:$AT$262,0,0,ROWS($M$31:$AT$262),1)=L37,ROW(OFFSET($M$31:$AT$262,0,0,ROWS($M$31:$AT$262),1))-ROW(OFFSET($M$31:$AT$262,0,0,1,1))+1,ROW(OFFSET($M$31:$AT$262,ROWS($M$31:$AT$262)-1,0,1,1))+1),1),34))=VLOOKUP(M36,$M$31:$AT$262,34,FALSE),(INDEX($M$31:$AT$262,SMALL(IF(OFFSET($M$31:$AT$262,0,0,ROWS($M$31:$AT$262),1)=L37,ROW(OFFSET($M$31:$AT$262,0,0,ROWS($M$31:$AT$262),1))-ROW(OFFSET($M$31:$AT$262,0,0,1,1))+1,ROW(OFFSET($M$31:$AT$262,ROWS($M$31:$AT$262)-1,0,1,1))+1),2),34))),0)+IFERROR(IF((INDEX($M$31:$AT$262,SMALL(IF(OFFSET($M$31:$AT$262,0,0,ROWS($M$31:$AT$262),1)=L37,ROW(OFFSET($M$31:$AT$262,0,0,ROWS($M$31:$AT$262),1))-ROW(OFFSET($M$31:$AT$262,0,0,1,1))+1,ROW(OFFSET($M$31:$AT$262,ROWS($M$31:$AT$262)-1,0,1,1))+1),1),34))=VLOOKUP(M36,$M$31:$AT$262,34,FALSE),(INDEX($M$31:$AT$262,SMALL(IF(OFFSET($M$31:$AT$262,0,0,ROWS($M$31:$AT$262),1)=L37,ROW(OFFSET($M$31:$AT$262,0,0,ROWS($M$31:$AT$262),1))-ROW(OFFSET($M$31:$AT$262,0,0,1,1))+1,ROW(OFFSET($M$31:$AT$262,ROWS($M$31:$AT$262)-1,0,1,1))+1),3),34))),0)+IFERROR(IF((INDEX($M$31:$AT$262,SMALL(IF(OFFSET($M$31:$AT$262,0,0,ROWS($M$31:$AT$262),1)=L37,ROW(OFFSET($M$31:$AT$262,0,0,ROWS($M$31:$AT$262),1))-ROW(OFFSET($M$31:$AT$262,0,0,1,1))+1,ROW(OFFSET($M$31:$AT$262,ROWS($M$31:$AT$262)-1,0,1,1))+1),1),34))=VLOOKUP(M36,$M$31:$AT$262,34,FALSE),(INDEX($M$31:$AT$262,SMALL(IF(OFFSET($M$31:$AT$262,0,0,ROWS($M$31:$AT$262),1)=L37,ROW(OFFSET($M$31:$AT$262,0,0,ROWS($M$31:$AT$262),1))-ROW(OFFSET($M$31:$AT$262,0,0,1,1))+1,ROW(OFFSET($M$31:$AT$262,ROWS($M$31:$AT$262)-1,0,1,1))+1),4),34))),0)+IFERROR(IF((INDEX($M$31:$AT$262,SMALL(IF(OFFSET($M$31:$AT$262,0,0,ROWS($M$31:$AT$262),1)=L37,ROW(OFFSET($M$31:$AT$262,0,0,ROWS($M$31:$AT$262),1))-ROW(OFFSET($M$31:$AT$262,0,0,1,1))+1,ROW(OFFSET($M$31:$AT$262,ROWS($M$31:$AT$262)-1,0,1,1))+1),1),34))=VLOOKUP(M36,$M$31:$AT$262,34,FALSE),(INDEX($M$31:$AT$262,SMALL(IF(OFFSET($M$31:$AT$262,0,0,ROWS($M$31:$AT$262),1)=L37,ROW(OFFSET($M$31:$AT$262,0,0,ROWS($M$31:$AT$262),1))-ROW(OFFSET($M$31:$AT$262,0,0,1,1))+1,ROW(OFFSET($M$31:$AT$262,ROWS($M$31:$AT$262)-1,0,1,1))+1),5),34))),0)+IFERROR(IF((INDEX($M$31:$AT$262,SMALL(IF(OFFSET($M$31:$AT$262,0,0,ROWS($M$31:$AT$262),1)=L37,ROW(OFFSET($M$31:$AT$262,0,0,ROWS($M$31:$AT$262),1))-ROW(OFFSET($M$31:$AT$262,0,0,1,1))+1,ROW(OFFSET($M$31:$AT$262,ROWS($M$31:$AT$262)-1,0,1,1))+1),1),34))=VLOOKUP(M36,$M$31:$AT$262,34,FALSE),(INDEX($M$31:$AT$262,SMALL(IF(OFFSET($M$31:$AT$262,0,0,ROWS($M$31:$AT$262),1)=L37,ROW(OFFSET($M$31:$AT$262,0,0,ROWS($M$31:$AT$262),1))-ROW(OFFSET($M$31:$AT$262,0,0,1,1))+1,ROW(OFFSET($M$31:$AT$262,ROWS($M$31:$AT$262)-1,0,1,1))+1),6),34))),0)+IFERROR(IF((INDEX($M$31:$AT$262,SMALL(IF(OFFSET($M$31:$AT$262,0,0,ROWS($M$31:$AT$262),1)=L37,ROW(OFFSET($M$31:$AT$262,0,0,ROWS($M$31:$AT$262),1))-ROW(OFFSET($M$31:$AT$262,0,0,1,1))+1,ROW(OFFSET($M$31:$AT$262,ROWS($M$31:$AT$262)-1,0,1,1))+1),1),34))=VLOOKUP(M36,$M$31:$AT$262,34,FALSE),(INDEX($M$31:$AT$262,SMALL(IF(OFFSET($M$31:$AT$262,0,0,ROWS($M$31:$AT$262),1)=L37,ROW(OFFSET($M$31:$AT$262,0,0,ROWS($M$31:$AT$262),1))-ROW(OFFSET($M$31:$AT$262,0,0,1,1))+1,ROW(OFFSET($M$31:$AT$262,ROWS($M$31:$AT$262)-1,0,1,1))+1),7),34))),0)+IFERROR(IF((INDEX($M$31:$AT$262,SMALL(IF(OFFSET($M$31:$AT$262,0,0,ROWS($M$31:$AT$262),1)=L37,ROW(OFFSET($M$31:$AT$262,0,0,ROWS($M$31:$AT$262),1))-ROW(OFFSET($M$31:$AT$262,0,0,1,1))+1,ROW(OFFSET($M$31:$AT$262,ROWS($M$31:$AT$262)-1,0,1,1))+1),1),34))=VLOOKUP(M36,$M$31:$AT$262,34,FALSE),(INDEX($M$31:$AT$262,SMALL(IF(OFFSET($M$31:$AT$262,0,0,ROWS($M$31:$AT$262),1)=L37,ROW(OFFSET($M$31:$AT$262,0,0,ROWS($M$31:$AT$262),1))-ROW(OFFSET($M$31:$AT$262,0,0,1,1))+1,ROW(OFFSET($M$31:$AT$262,ROWS($M$31:$AT$262)-1,0,1,1))+1),8),34))),0)+IFERROR(IF((INDEX($M$31:$AT$262,SMALL(IF(OFFSET($M$31:$AT$262,0,0,ROWS($M$31:$AT$262),1)=L37,ROW(OFFSET($M$31:$AT$262,0,0,ROWS($M$31:$AT$262),1))-ROW(OFFSET($M$31:$AT$262,0,0,1,1))+1,ROW(OFFSET($M$31:$AT$262,ROWS($M$31:$AT$262)-1,0,1,1))+1),1),34))=VLOOKUP(M36,$M$31:$AT$262,34,FALSE),(INDEX($M$31:$AT$262,SMALL(IF(OFFSET($M$31:$AT$262,0,0,ROWS($M$31:$AT$262),1)=L37,ROW(OFFSET($M$31:$AT$262,0,0,ROWS($M$31:$AT$262),1))-ROW(OFFSET($M$31:$AT$262,0,0,1,1))+1,ROW(OFFSET($M$31:$AT$262,ROWS($M$31:$AT$262)-1,0,1,1))+1),9),34))),0)+IFERROR(IF((INDEX($M$31:$AT$262,SMALL(IF(OFFSET($M$31:$AT$262,0,0,ROWS($M$31:$AT$262),1)=L37,ROW(OFFSET($M$31:$AT$262,0,0,ROWS($M$31:$AT$262),1))-ROW(OFFSET($M$31:$AT$262,0,0,1,1))+1,ROW(OFFSET($M$31:$AT$262,ROWS($M$31:$AT$262)-1,0,1,1))+1),1),34))=VLOOKUP(M36,$M$31:$AT$262,34,FALSE),(INDEX($M$31:$AT$262,SMALL(IF(OFFSET($M$31:$AT$262,0,0,ROWS($M$31:$AT$262),1)=L37,ROW(OFFSET($M$31:$AT$262,0,0,ROWS($M$31:$AT$262),1))-ROW(OFFSET($M$31:$AT$262,0,0,1,1))+1,ROW(OFFSET($M$31:$AT$262,ROWS($M$31:$AT$262)-1,0,1,1))+1),10),34))),0),IF(M36<>L37,VLOOKUP(L37,$L$31:$AS$262,34,FALSE)+IFERROR(VLOOKUP(L37,$M$31:$AT$262,34,FALSE),0)))) -> 2.24483389 | AU37: =IF(OR(L37="",M37=""),"",IFERROR(IF(AC37="",IF(AB37=3,$J$16*(AQ37+$K$16)^($L$16),IF(AB37=5,$J$17*(AQ37+$K$17)^($L$17),IF(AB37=10,$J$18*(AQ37+$K$18)^($L$18)))),IF(AC37=3,$J$16*(AQ37+$K$16)^($L$16),IF(AC37=5,$J$17*(AQ37+$K$17)^($L$17),IF(AC37=10,$J$18*(AQ37+$K$18)^($L$18))))),"")) -> 82.23955801 | AV37: 147.6913175 | AX37: 0 | AY37: =IF(L37="","",IF(ROW()=31,VLOOKUP(L37,$L$31:$AX$262,39,FALSE),IF(M36=L37,VLOOKUP(L37,$L$31:$AX$262,39,FALSE)+VLOOKUP(M36,$M$31:$AY$262,39,FALSE)+IFERROR(IF((INDEX($M$31:$AY$262,SMALL(IF(OFFSET($M$31:$AY$262,0,0,FILAX($M$31:$AY$262),1)=L37,ROW(OFFSET($M$31:$AY$262,0,0,FILAX($M$31:$AY$262),1))-ROW(OFFSET($M$31:$AY$262,0,0,1,1))+1,ROW(OFFSET($M$31:$AY$262,FILAX($M$31:$AY$262)-1,0,1,1))+1),1),39))=VLOOKUP(M36,$M$31:$AY$262,39,FALSE),(INDEX($M$31:$AY$262,SMALL(IF(OFFSET($M$31:$AY$262,0,0,FILAX($M$31:$AY$262),1)=L37,ROW(OFFSET($M$31:$AY$262,0,0,FILAX($M$31:$AY$262),1))-ROW(OFFSET($M$31:$AY$262,0,0,1,1))+1,ROW(OFFSET($M$31:$AY$262,FILAX($M$31:$AY$262)-1,0,1,1))+1),2),39))),0)+IFERROR(IF((INDEX($M$31:$AY$262,SMALL(IF(OFFSET($M$31:$AY$262,0,0,FILAX($M$31:$AY$262),1)=L37,ROW(OFFSET($M$31:$AY$262,0,0,FILAX($M$31:$AY$262),1))-ROW(OFFSET($M$31:$AY$262,0,0,1,1))+1,ROW(OFFSET($M$31:$AY$262,FILAX($M$31:$AY$262)-1,0,1,1))+1),1),39))=VLOOKUP(M36,$M$31:$AY$262,39,FALSE),(INDEX($M$31:$AY$262,SMALL(IF(OFFSET($M$31:$AY$262,0,0,FILAX($M$31:$AY$262),1)=L37,ROW(OFFSET($M$31:$AY$262,0,0,FILAX($M$31:$AY$262),1))-ROW(OFFSET($M$31:$AY$262,0,0,1,1))+1,ROW(OFFSET($M$31:$AY$262,FILAX($M$31:$AY$262)-1,0,1,1))+1),3),39))),0)+IFERROR(IF((INDEX($M$31:$AY$262,SMALL(IF(OFFSET($M$31:$AY$262,0,0,FILAX($M$31:$AY$262),1)=L37,ROW(OFFSET($M$31:$AY$262,0,0,FILAX($M$31:$AY$262),1))-ROW(OFFSET($M$31:$AY$262,0,0,1,1))+1,ROW(OFFSET($M$31:$AY$262,FILAX($M$31:$AY$262)-1,0,1,1))+1),1),39))=VLOOKUP(M36,$M$31:$AY$262,39,FALSE),(INDEX($M$31:$AY$262,SMALL(IF(OFFSET($M$31:$AY$262,0,0,FILAX($M$31:$AY$262),1)=L37,ROW(OFFSET($M$31:$AY$262,0,0,FILAX($M$31:$AY$262),1))-ROW(OFFSET($M$31:$AY$262,0,0,1,1))+1,ROW(OFFSET($M$31:$AY$262,FILAX($M$31:$AY$262)-1,0,1,1))+1),4),39))),0)+IFERROR(IF((INDEX($M$31:$AY$262,SMALL(IF(OFFSET($M$31:$AY$262,0,0,FILAX($M$31:$AY$262),1)=L37,ROW(OFFSET($M$31:$AY$262,0,0,FILAX($M$31:$AY$262),1))-ROW(OFFSET($M$31:$AY$262,0,0,1,1))+1,ROW(OFFSET($M$31:$AY$262,FILAX($M$31:$AY$262)-1,0,1,1))+1),1),39))=VLOOKUP(M36,$M$31:$AY$262,39,FALSE),(INDEX($M$31:$AY$262,SMALL(IF(OFFSET($M$31:$AY$262,0,0,FILAX($M$31:$AY$262),1)=L37,ROW(OFFSET($M$31:$AY$262,0,0,FILAX($M$31:$AY$262),1))-ROW(OFFSET($M$31:$AY$262,0,0,1,1))+1,ROW(OFFSET($M$31:$AY$262,FILAX($M$31:$AY$262)-1,0,1,1))+1),5),39))),0)+IFERROR(IF((INDEX($M$31:$AY$262,SMALL(IF(OFFSET($M$31:$AY$262,0,0,FILAX($M$31:$AY$262),1)=L37,ROW(OFFSET($M$31:$AY$262,0,0,FILAX($M$31:$AY$262),1))-ROW(OFFSET($M$31:$AY$262,0,0,1,1))+1,ROW(OFFSET($M$31:$AY$262,FILAX($M$31:$AY$262)-1,0,1,1))+1),1),39))=VLOOKUP(M36,$M$31:$AY$262,39,FALSE),(INDEX($M$31:$AY$262,SMALL(IF(OFFSET($M$31:$AY$262,0,0,FILAX($M$31:$AY$262),1)=L37,ROW(OFFSET($M$31:$AY$262,0,0,FILAX($M$31:$AY$262),1))-ROW(OFFSET($M$31:$AY$262,0,0,1,1))+1,ROW(OFFSET($M$31:$AY$262,FILAX($M$31:$AY$262)-1,0,1,1))+1),6),39))),0)+IFERROR(IF((INDEX($M$31:$AY$262,SMALL(IF(OFFSET($M$31:$AY$262,0,0,FILAX($M$31:$AY$262),1)=L37,ROW(OFFSET($M$31:$AY$262,0,0,FILAX($M$31:$AY$262),1))-ROW(OFFSET($M$31:$AY$262,0,0,1,1))+1,ROW(OFFSET($M$31:$AY$262,FILAX($M$31:$AY$262)-1,0,1,1))+1),1),39))=VLOOKUP(M36,$M$31:$AY$262,39,FALSE),(INDEX($M$31:$AY$262,SMALL(IF(OFFSET($M$31:$AY$262,0,0,FILAX($M$31:$AY$262),1)=L37,ROW(OFFSET($M$31:$AY$262,0,0,FILAX($M$31:$AY$262),1))-ROW(OFFSET($M$31:$AY$262,0,0,1,1))+1,ROW(OFFSET($M$31:$AY$262,FILAX($M$31:$AY$262)-1,0,1,1))+1),7),39))),0)+IFERROR(IF((INDEX($M$31:$AY$262,SMALL(IF(OFFSET($M$31:$AY$262,0,0,FILAX($M$31:$AY$262),1)=L37,ROW(OFFSET($M$31:$AY$262,0,0,FILAX($M$31:$AY$262),1))-ROW(OFFSET($M$31:$AY$262,0,0,1,1))+1,ROW(OFFSET($M$31:$AY$262,FILAX($M$31:$AY$262)-1,0,1,1))+1),1),39))=VLOOKUP(M36,$M$31:$AY$262,39,FALSE),(INDEX($M$31:$AY$262,SMALL(IF(OFFSET($M$31:$AY$262,0,0,FILAX($M$31:$AY$262),1)=L37,ROW(OFFSET($M$31:$AY$262,0,0,FILAX($M$31:$AY$262),1))-ROW(OFFSET($M$31:$AY$262,0,0,1,1))+1,ROW(OFFSET($M$31:$AY$262,FILAX($M$31:$AY$262)-1,0,1,1))+1),8),39))),0)+IFERROR(IF((INDEX($M$31:$AY$262,SMALL(IF(OFFSET($M$31:$AY$262,0,0,FILAX($M$31:$AY$262),1)=L37,ROW(OFFSET($M$31:$AY$262,0,0,FILAX($M$31:$AY$262),1))-ROW(OFFSET($M$31:$AY$262,0,0,1,1))+1,ROW(OFFSET($M$31:$AY$262,FILAX($M$31:$AY$262)-1,0,1,1))+1),1),39))=VLOOKUP(M36,$M$31:$AY$262,39,FALSE),(INDEX($M$31:$AY$262,SMALL(IF(OFFSET($M$31:$AY$262,0,0,FILAX($M$31:$AY$262),1)=L37,ROW(OFFSET($M$31:$AY$262,0,0,FILAX($M$31:$AY$262),1))-ROW(OFFSET($M$31:$AY$262,0,0,1,1))+1,ROW(OFFSET($M$31:$AY$262,FILAX($M$31:$AY$262)-1,0,1,1))+1),9),39))),0)+IFERROR(IF((INDEX($M$31:$AY$262,SMALL(IF(OFFSET($M$31:$AY$262,0,0,FILAX($M$31:$AY$262),1)=L37,ROW(OFFSET($M$31:$AY$262,0,0,FILAX($M$31:$AY$262),1))-ROW(OFFSET($M$31:$AY$262,0,0,1,1))+1,ROW(OFFSET($M$31:$AY$262,FILAX($M$31:$AY$262)-1,0,1,1))+1),1),39))=VLOOKUP(M36,$M$31:$AY$262,39,FALSE),(INDEX($M$31:$AY$262,SMALL(IF(OFFSET($M$31:$AY$262,0,0,FILAX($M$31:$AY$262),1)=L37,ROW(OFFSET($M$31:$AY$262,0,0,FILAX($M$31:$AY$262),1))-ROW(OFFSET($M$31:$AY$262,0,0,1,1))+1,ROW(OFFSET($M$31:$AY$262,FILAX($M$31:$AY$262)-1,0,1,1))+1),10),39))),0),IF(M36<>L37,VLOOKUP(L37,$L$31:$AX$262,39,FALSE)+IFERROR(VLOOKUP(L37,$M$31:$AY$262,39,FALSE),0))))) -> 0 | AZ37: 147.6913175 | BA37: 6.579164641 | BB37: 0.1700433102 | BC37: -1.341511572e-05 | BD37: PD17 | BE37: PD18 | BF37: 67.12457601 | BG37: PVC | BH37: =IF(OR($L37="",$M37="",BG37=""),"",INDEX('Tablas y listas'!$D$4:$G$17,MATCH('1. Analisis Flujo Uniforme'!BG37,'Tablas y listas'!$D$4:$D$17,0),4)) -> 0.0125 | BI37: 18 | BJ37: =IF(OR(BI37=""),"",IFERROR(IF($BI$30="Pulgadas",INDEX('Tablas y listas'!$B$64:$D$89,MATCH('1. Analisis Flujo Uniforme'!BI37,CONCRETO_Pulgadas,0),3),IF($BI$30="mm",BI37/(10*100))),"Indique φ")) -> 0.45 | BK37: 0.2234650986 | BL37: 0.3 | BM37: 0.5331008319 | BN37: Subcrítico | BO37: 0.9093989042 | BP37: 1.046713554 | BQ37: 1.804777247 | BR37: 1.856150975 | BV37: 2540.995223 | BW37: 2540.793849 | BX37: 2540.545223 | BY37: 2540.343849 | BZ37: 2540.966328 | CA37: 2540.764954 | CB37: 0.4108151724 | CE37: PD17 | CF37: PD18 | CG37: =IF(OR($L37="",$M37=""),"",IF(MAX(IFERROR(INDEX(MatrizQs1,SMALL(IF(OFFSET(MatrizQs1,0,0,ROWS(MatrizQs1),1)=CF37,ROW(OFFSET(MatrizQs1,0,0,ROWS(MatrizQs1),1))-ROW(OFFSET(MatrizQs1,0,0,1,1))+1,ROW(OFFSET(MatrizQs1,ROWS(MatrizQs1)-1,0,1,1))+1),1),41),0),IFERROR(INDEX(MatrizQs1,SMALL(IF(OFFSET(MatrizQs1,0,0,ROWS(MatrizQs1),1)=CF37,ROW(OFFSET(MatrizQs1,0,0,ROWS(MatrizQs1),1))-ROW(OFFSET(MatrizQs1,0,0,1,1))+1,ROW(OFFSET(MatrizQs1,ROWS(MatrizQs1)-1,0,1,1))+1),2),41),0),IFERROR(INDEX(MatrizQs1,SMALL(IF(OFFSET(MatrizQs1,0,0,ROWS(MatrizQs1),1)=CF37,ROW(OFFSET(MatrizQs1,0,0,ROWS(MatrizQs1),1))-ROW(OFFSET(MatrizQs1,0,0,1,1))+1,ROW(OFFSET(MatrizQs1,ROWS(MatrizQs1)-1,0,1,1))+1),3),41),0),IFERROR(INDEX(MatrizQs1,SMALL(IF(OFFSET(MatrizQs1,0,0,ROWS(MatrizQs1),1)=CF37,ROW(OFFSET(MatrizQs1,0,0,ROWS(MatrizQs1),1))-ROW(OFFSET(MatrizQs1,0,0,1,1))+1,ROW(OFFSET(MatrizQs1,ROWS(MatrizQs1)-1,0,1,1))+1),4),41),0),IFERROR(INDEX(MatrizQs1,SMALL(IF(OFFSET(MatrizQs1,0,0,ROWS(MatrizQs1),1)=CF37,ROW(OFFSET(MatrizQs1,0,0,ROWS(MatrizQs1),1))-ROW(OFFSET(MatrizQs1,0,0,1,1))+1,ROW(OFFSET(MatrizQs1,ROWS(MatrizQs1)-1,0,1,1))+1),5),41),0),IFERROR(INDEX(MatrizQs1,SMALL(IF(OFFSET(MatrizQs1,0,0,ROWS(MatrizQs1),1)=CF37,ROW(OFFSET(MatrizQs1,0,0,ROWS(MatrizQs1),1))-ROW(OFFSET(MatrizQs1,0,0,1,1))+1,ROW(OFFSET(MatrizQs1,ROWS(MatrizQs1)-1,0,1,1))+1),6),41),0),IFERROR(INDEX(MatrizQs1,SMALL(IF(OFFSET(MatrizQs1,0,0,ROWS(MatrizQs1),1)=CF37,ROW(OFFSET(MatrizQs1,0,0,ROWS(MatrizQs1),1))-ROW(OFFSET(MatrizQs1,0,0,1,1))+1,ROW(OFFSET(MatrizQs1,ROWS(MatrizQs1)-1,0,1,1))+1),7),41),0),IFERROR(INDEX(MatrizQs1,SMALL(IF(OFFSET(MatrizQs1,0,0,ROWS(MatrizQs1),1)=CF37,ROW(OFFSET(MatrizQs1,0,0,ROWS(MatrizQs1),1))-ROW(OFFSET(MatrizQs1,0,0,1,1))+1,ROW(OFFSET(MatrizQs1,ROWS(MatrizQs1)-1,0,1,1))+1),8),41),0))=0,IFERROR(INDEX(matrizQs,SMALL(IF(OFFSET(matrizQs,0,0,ROWS(matrizQs),1)=CF37,ROW(OFFSET(matrizQs,0,0,ROWS(matrizQs),1))-ROW(OFFSET(matrizQs,0,0,1,1))+1,ROW(OFFSET(matrizQs,ROWS(matrizQs)-1,0,1,1))+1),1),40),0),MAX(IFERROR(INDEX(MatrizQs1,SMALL(IF(OFFSET(MatrizQs1,0,0,ROWS(MatrizQs1),1)=CF37,ROW(OFFSET(MatrizQs1,0,0,ROWS(MatrizQs1),1))-ROW(OFFSET(MatrizQs1,0,0,1,1))+1,ROW(OFFSET(MatrizQs1,ROWS(MatrizQs1)-1,0,1,1))+1),1),41),0),IFERROR(INDEX(MatrizQs1,SMALL(IF(OFFSET(MatrizQs1,0,0,ROWS(MatrizQs1),1)=CF37,ROW(OFFSET(MatrizQs1,0,0,ROWS(MatrizQs1),1))-ROW(OFFSET(MatrizQs1,0,0,1,1))+1,ROW(OFFSET(MatrizQs1,ROWS(MatrizQs1)-1,0,1,1))+1),2),41),0),IFERROR(INDEX(MatrizQs1,SMALL(IF(OFFSET(MatrizQs1,0,0,ROWS(MatrizQs1),1)=CF37,ROW(OFFSET(MatrizQs1,0,0,ROWS(MatrizQs1),1))-ROW(OFFSET(MatrizQs1,0,0,1,1))+1,ROW(OFFSET(MatrizQs1,ROWS(MatrizQs1)-1,0,1,1))+1),3),41),0),IFERROR(INDEX(MatrizQs1,SMALL(IF(OFFSET(MatrizQs1,0,0,ROWS(MatrizQs1),1)=CF37,ROW(OFFSET(MatrizQs1,0,0,ROWS(MatrizQs1),1))-ROW(OFFSET(MatrizQs1,0,0,1,1))+1,ROW(OFFSET(MatrizQs1,ROWS(MatrizQs1)-1,0,1,1))+1),4),41),0),IFERROR(INDEX(MatrizQs1,SMALL(IF(OFFSET(MatrizQs1,0,0,ROWS(MatrizQs1),1)=CF37,ROW(OFFSET(MatrizQs1,0,0,ROWS(MatrizQs1),1))-ROW(OFFSET(MatrizQs1,0,0,1,1))+1,ROW(OFFSET(MatrizQs1,ROWS(MatrizQs1)-1,0,1,1))+1),5),41),0),IFERROR(INDEX(MatrizQs1,SMALL(IF(OFFSET(MatrizQs1,0,0,ROWS(MatrizQs1),1)=CF37,ROW(OFFSET(MatrizQs1,0,0,ROWS(MatrizQs1),1))-ROW(OFFSET(MatrizQs1,0,0,1,1))+1,ROW(OFFSET(MatrizQs1,ROWS(MatrizQs1)-1,0,1,1))+1),6),41),0),IFERROR(INDEX(MatrizQs1,SMALL(IF(OFFSET(MatrizQs1,0,0,ROWS(MatrizQs1),1)=CF37,ROW(OFFSET(MatrizQs1,0,0,ROWS(MatrizQs1),1))-ROW(OFFSET(MatrizQs1,0,0,1,1))+1,ROW(OFFSET(MatrizQs1,ROWS(MatrizQs1)-1,0,1,1))+1),7),41),0),IFERROR(INDEX(MatrizQs1,SMALL(IF(OFFSET(MatrizQs1,0,0,ROWS(MatrizQs1),1)=CF37,ROW(OFFSET(MatrizQs1,0,0,ROWS(MatrizQs1),1))-ROW(OFFSET(MatrizQs1,0,0,1,1))+1,ROW(OFFSET(MatrizQs1,ROWS(MatrizQs1)-1,0,1,1))+1),8),41),0)))) -> 162.9804298 | CH37: =IF(OR($L37="",$M37=""),"",IF(MAX(IFERROR(INDEX(MDSU,SMALL(IF(OFFSET(MDSU,0,0,ROWS(MDSU),1)=CF37,ROW(OFFSET(MDSU,0,0,ROWS(MDSU),1))-ROW(OFFSET(MDSU,0,0,1,1))+1,ROW(OFFSET(MDSU,ROWS(MDSU)-1,0,1,1))+1),1),7),0),IFERROR(INDEX(MDSU,SMALL(IF(OFFSET(MDSU,0,0,ROWS(MDSU),1)=CF37,ROW(OFFSET(MDSU,0,0,ROWS(MDSU),1))-ROW(OFFSET(MDSU,0,0,1,1))+1,ROW(OFFSET(MDSU,ROWS(MDSU)-1,0,1,1))+1),2),7),0),IFERROR(INDEX(MDSU,SMALL(IF(OFFSET(MDSU,0,0,ROWS(MDSU),1)=CF37,ROW(OFFSET(MDSU,0,0,ROWS(MDSU),1))-ROW(OFFSET(MDSU,0,0,1,1))+1,ROW(OFFSET(MDSU,ROWS(MDSU)-1,0,1,1))+1),3),7),0),IFERROR(INDEX(MDSU,SMALL(IF(OFFSET(MDSU,0,0,ROWS(MDSU),1)=CF37,ROW(OFFSET(MDSU,0,0,ROWS(MDSU),1))-ROW(OFFSET(MDSU,0,0,1,1))+1,ROW(OFFSET(MDSU,ROWS(MDSU)-1,0,1,1))+1),4),7),0),IFERROR(INDEX(MDSU,SMALL(IF(OFFSET(MDSU,0,0,ROWS(MDSU),1)=CF37,ROW(OFFSET(MDSU,0,0,ROWS(MDSU),1))-ROW(OFFSET(MDSU,0,0,1,1))+1,ROW(OFFSET(MDSU,ROWS(MDSU)-1,0,1,1))+1),5),7),0),IFERROR(INDEX(MDSU,SMALL(IF(OFFSET(MDSU,0,0,ROWS(MDSU),1)=CF37,ROW(OFFSET(MDSU,0,0,ROWS(MDSU),1))-ROW(OFFSET(MDSU,0,0,1,1))+1,ROW(OFFSET(MDSU,ROWS(MDSU)-1,0,1,1))+1),6),7),0),IFERROR(INDEX(MDSU,SMALL(IF(OFFSET(MDSU,0,0,ROWS(MDSU),1)=CF37,ROW(OFFSET(MDSU,0,0,ROWS(MDSU),1))-ROW(OFFSET(MDSU,0,0,1,1))+1,ROW(OFFSET(MDSU,ROWS(MDSU)-1,0,1,1))+1),7),7),0),IFERROR(INDEX(MDSU,SMALL(IF(OFFSET(MDSU,0,0,ROWS(MDSU),1)=CF37,ROW(OFFSET(MDSU,0,0,ROWS(MDSU),1))-ROW(OFFSET(MDSU,0,0,1,1))+1,ROW(OFFSET(MDSU,ROWS(MDSU)-1,0,1,1))+1),8),7),0))=0,IFERROR(INDEX(MDS,SMALL(IF(OFFSET(MDS,0,0,ROWS(MDS),1)=CF37,ROW(OFFSET(MDS,0,0,ROWS(MDS),1))-ROW(OFFSET(MDS,0,0,1,1))+1,ROW(OFFSET(MDS,ROWS(MDS)-1,0,1,1))+1),1),6),0),MAX(IFERROR(INDEX(MDSU,SMALL(IF(OFFSET(MDSU,0,0,ROWS(MDSU),1)=CF37,ROW(OFFSET(MDSU,0,0,ROWS(MDSU),1))-ROW(OFFSET(MDSU,0,0,1,1))+1,ROW(OFFSET(MDSU,ROWS(MDSU)-1,0,1,1))+1),1),7),0),IFERROR(INDEX(MDSU,SMALL(IF(OFFSET(MDSU,0,0,ROWS(MDSU),1)=CF37,ROW(OFFSET(MDSU,0,0,ROWS(MDSU),1))-ROW(OFFSET(MDSU,0,0,1,1))+1,ROW(OFFSET(MDSU,ROWS(MDSU)-1,0,1,1))+1),2),7),0),IFERROR(INDEX(MDSU,SMALL(IF(OFFSET(MDSU,0,0,ROWS(MDSU),1)=CF37,ROW(OFFSET(MDSU,0,0,ROWS(MDSU),1))-ROW(OFFSET(MDSU,0,0,1,1))+1,ROW(OFFSET(MDSU,ROWS(MDSU)-1,0,1,1))+1),3),7),0),IFERROR(INDEX(MDSU,SMALL(IF(OFFSET(MDSU,0,0,ROWS(MDSU),1)=CF37,ROW(OFFSET(MDSU,0,0,ROWS(MDSU),1))-ROW(OFFSET(MDSU,0,0,1,1))+1,ROW(OFFSET(MDSU,ROWS(MDSU)-1,0,1,1))+1),4),7),0),IFERROR(INDEX(MDSU,SMALL(IF(OFFSET(MDSU,0,0,ROWS(MDSU),1)=CF37,ROW(OFFSET(MDSU,0,0,ROWS(MDSU),1))-ROW(OFFSET(MDSU,0,0,1,1))+1,ROW(OFFSET(MDSU,ROWS(MDSU)-1,0,1,1))+1),5),7),0),IFERROR(INDEX(MDSU,SMALL(IF(OFFSET(MDSU,0,0,ROWS(MDSU),1)=CF37,ROW(OFFSET(MDSU,0,0,ROWS(MDSU),1))-ROW(OFFSET(MDSU,0,0,1,1))+1,ROW(OFFSET(MDSU,ROWS(MDSU)-1,0,1,1))+1),6),7),0),IFERROR(INDEX(MDSU,SMALL(IF(OFFSET(MDSU,0,0,ROWS(MDSU),1)=CF37,ROW(OFFSET(MDSU,0,0,ROWS(MDSU),1))-ROW(OFFSET(MDSU,0,0,1,1))+1,ROW(OFFSET(MDSU,ROWS(MDSU)-1,0,1,1))+1),7),7),0),IFERROR(INDEX(MDSU,SMALL(IF(OFFSET(MDSU,0,0,ROWS(MDSU),1)=CF37,ROW(OFFSET(MDSU,0,0,ROWS(MDSU),1))-ROW(OFFSET(MDSU,0,0,1,1))+1,ROW(OFFSET(MDSU,ROWS(MDSU)-1,0,1,1))+1),8),7),0)))) -> 0.5 | CI37: 162.4054272 | CJ37: 1.021140801 | CK37: 0.9093989042 | CL37: 0.8116971526 | CM37: 0.3652637187 | CN37: 1.046713554 | CO37: 4.487745228 | CP37: 0.1382725372 | CQ37: 1.009742676 | CR37: 0.1369383908 | CS37: 0.3929777553 | CT37: 0.5331008319 | CU37: Subcrítico | CV37: 0.05584145072 | CW37: 0.4211051694 | CX37: 0.4221591865 | CY37: 1.2 | CZ37: 0.02233658029 | DA37: 0.0003735569139 | DB37: 0.02376415427 | DC37: 1.2 | DD37: 2.4 | DE37: 0 | DF37: 1.2 | DI37: 0 | DK37: 0 | DL37: 0.201373728 | DM37: 0.4108151724 | DN37: 2542.8 | DO37: 2542.65 | DP37: 0 | DQ37: 0 | DR37: 2540.995223 | DS37: 2540.793849 | DT37: =IF(OR($L37="",$M37=""),"",IF(MIN(IFERROR(INDEX(Matriz_busq,SMALL(IF(OFFSET(Matriz_busq,0,0,ROWS(Matriz_busq),1)=BD37,ROW(OFFSET(Matriz_busq,0,0,ROWS(Matriz_busq),1))-ROW(OFFSET(Matriz_busq,0,0,1,1))+1,ROW(OFFSET(Matriz_busq,ROWS(Matriz_busq)-1,0,1,1))+1),1),40),10000),IFERROR(INDEX(Matriz_busq,SMALL(IF(OFFSET(Matriz_busq,0,0,ROWS(Matriz_busq),1)=BD37,ROW(OFFSET(Matriz_busq,0,0,ROWS(Matriz_busq),1))-ROW(OFFSET(Matriz_busq,0,0,1,1))+1,ROW(OFFSET(Matriz_busq,ROWS(Matriz_busq)-1,0,1,1))+1),2),40),10000),IFERROR(INDEX(Matriz_busq,SMALL(IF(OFFSET(Matriz_busq,0,0,ROWS(Matriz_busq),1)=BD37,ROW(OFFSET(Matriz_busq,0,0,ROWS(Matriz_busq),1))-ROW(OFFSET(Matriz_busq,0,0,1,1))+1,ROW(OFFSET(Matriz_busq,ROWS(Matriz_busq)-1,0,1,1))+1),3),40),10000),IFERROR(INDEX(Matriz_busq,SMALL(IF(OFFSET(Matriz_busq,0,0,ROWS(Matriz_busq),1)=BD37,ROW(OFFSET(Matriz_busq,0,0,ROWS(Matriz_busq),1))-ROW(OFFSET(Matriz_busq,0,0,1,1))+1,ROW(OFFSET(Matriz_busq,ROWS(Matriz_busq)-1,0,1,1))+1),4),40),10000),IFERROR(INDEX(Matriz_busq,SMALL(IF(OFFSET(Matriz_busq,0,0,ROWS(Matriz_busq),1)=BD37,ROW(OFFSET(Matriz_busq,0,0,ROWS(Matriz_busq),1))-ROW(OFFSET(Matriz_busq,0,0,1,1))+1,ROW(OFFSET(Matriz_busq,ROWS(Matriz_busq)-1,0,1,1))+1),5),40),10000),IFERROR(INDEX(Matriz_busq,SMALL(IF(OFFSET(Matriz_busq,0,0,ROWS(Matriz_busq),1)=BD37,ROW(OFFSET(Matriz_busq,0,0,ROWS(Matriz_busq),1))-ROW(OFFSET(Matriz_busq,0,0,1,1))+1,ROW(OFFSET(Matriz_busq,ROWS(Matriz_busq)-1,0,1,1))+1),6),40),10000),IFERROR(INDEX(Matriz_busq,SMALL(IF(OFFSET(Matriz_busq,0,0,ROWS(Matriz_busq),1)=BD37,ROW(OFFSET(Matriz_busq,0,0,ROWS(Matriz_busq),1))-ROW(OFFSET(Matriz_busq,0,0,1,1))+1,ROW(OFFSET(Matriz_busq,ROWS(Matriz_busq)-1,0,1,1))+1),7),40),10000),IFERROR(INDEX(Matriz_busq,SMALL(IF(OFFSET(Matriz_busq,0,0,ROWS(Matriz_busq),1)=BD37,ROW(OFFSET(Matriz_busq,0,0,ROWS(Matriz_busq),1))-ROW(OFFSET(Matriz_busq,0,0,1,1))+1,ROW(OFFSET(Matriz_busq,ROWS(Matriz_busq)-1,0,1,1))+1),8),40),10000))=10000,0,MIN(IFERROR(INDEX(Matriz_busq,SMALL(IF(OFFSET(Matriz_busq,0,0,ROWS(Matriz_busq),1)=BD37,ROW(OFFSET(Matriz_busq,0,0,ROWS(Matriz_busq),1))-ROW(OFFSET(Matriz_busq,0,0,1,1))+1,ROW(OFFSET(Matriz_busq,ROWS(Matriz_busq)-1,0,1,1))+1),1),40),10000),IFERROR(INDEX(Matriz_busq,SMALL(IF(OFFSET(Matriz_busq,0,0,ROWS(Matriz_busq),1)=BD37,ROW(OFFSET(Matriz_busq,0,0,ROWS(Matriz_busq),1))-ROW(OFFSET(Matriz_busq,0,0,1,1))+1,ROW(OFFSET(Matriz_busq,ROWS(Matriz_busq)-1,0,1,1))+1),2),40),10000),IFERROR(INDEX(Matriz_busq,SMALL(IF(OFFSET(Matriz_busq,0,0,ROWS(Matriz_busq),1)=BD37,ROW(OFFSET(Matriz_busq,0,0,ROWS(Matriz_busq),1))-ROW(OFFSET(Matriz_busq,0,0,1,1))+1,ROW(OFFSET(Matriz_busq,ROWS(Matriz_busq)-1,0,1,1))+1),3),40),10000),IFERROR(INDEX(Matriz_busq,SMALL(IF(OFFSET(Matriz_busq,0,0,ROWS(Matriz_busq),1)=BD37,ROW(OFFSET(Matriz_busq,0,0,ROWS(Matriz_busq),1))-ROW(OFFSET(Matriz_busq,0,0,1,1))+1,ROW(OFFSET(Matriz_busq,ROWS(Matriz_busq)-1,0,1,1))+1),4),40),10000),IFERROR(INDEX(Matriz_busq,SMALL(IF(OFFSET(Matriz_busq,0,0,ROWS(Matriz_busq),1)=BD37,ROW(OFFSET(Matriz_busq,0,0,ROWS(Matriz_busq),1))-ROW(OFFSET(Matriz_busq,0,0,1,1))+1,ROW(OFFSET(Matriz_busq,ROWS(Matriz_busq)-1,0,1,1))+1),5),40),10000),IFERROR(INDEX(Matriz_busq,SMALL(IF(OFFSET(Matriz_busq,0,0,ROWS(Matriz_busq),1)=BD37,ROW(OFFSET(Matriz_busq,0,0,ROWS(Matriz_busq),1))-ROW(OFFSET(Matriz_busq,0,0,1,1))+1,ROW(OFFSET(Matriz_busq,ROWS(Matriz_busq)-1,0,1,1))+1),6),40),10000),IFERROR(INDEX(Matriz_busq,SMALL(IF(OFFSET(Matriz_busq,0,0,ROWS(Matriz_busq),1)=BD37,ROW(OFFSET(Matriz_busq,0,0,ROWS(Matriz_busq),1))-ROW(OFFSET(Matriz_busq,0,0,1,1))+1,ROW(OFFSET(Matriz_busq,ROWS(Matriz_busq)-1,0,1,1))+1),7),40),10000),IFERROR(INDEX(Matriz_busq,SMALL(IF(OFFSET(Matriz_busq,0,0,ROWS(Matriz_busq),1)=BD37,ROW(OFFSET(Matriz_busq,0,0,ROWS(Matriz_busq),1))-ROW(OFFSET(Matriz_busq,0,0,1,1))+1,ROW(OFFSET(Matriz_busq,ROWS(Matriz_busq)-1,0,1,1))+1),8),40),10000)))) -> 2541.047646 | DU37: 1.804777247 | DV37: 1.856150975 | DW37: 2540.545223 | DX37: 2540.343849 | DY37: 2540.966328 | DZ37: 2540.764954
A38: PD18 | B38: Tipo_1 | D38: No aplica | F38: 92934.9027 | G38: 107483.3006 | H38: 2542.65 | L38: PD18 | M38: PD19 | N38: 2542.65 | O38: 2542.5 | P38: 0 | Q38: 0 | R38: 99.82357909 | T38: 0.23933752 | W38: 0.23933752 | X38: 0.5 | Y38: 0 | Z38: 100 | AA38: 0.005 | AB38: 3 | AC38: 5 | AD38: AREAS DESARROLLADAS | AE38: CONCRETO/TECHO | AF38: =IF(OR(L38="",M38=""),"",IF(AE38="","",IF(AE38="Elija","◄ Elija Tipo",IFERROR(INDEX(Coef_Area_desarrollada,MATCH(IF(AD38="AREAS DESARROLLADAS",AE38,AD38&"-"&AE38),Areas_desarrolladas,0),MATCH(IF(AC38="",AB38,AC38),Periodo_Retorno,0)),"")))) -> 0.8 | AI38: =IF(OR($L38="",$M38=""),"",IF(AH38="",0,IF(AH38="Elija","◄ Elija Tipo",IFERROR(INDEX(Coef_Area_desarrollada,MATCH(IF(AG38="AREAS DESARROLLADAS",AH38,AG38&"-"&AH38),Areas_desarrolladas,0),MATCH(IF($AC38="",$AB38,$AC38),Periodo_Retorno,0)),0)))) -> 0 | AL38: =IF(OR($L38="",$M38=""),"",IF(AK38="",0,IF(AK38="Elija","◄ Elija Tipo",IFERROR(INDEX(Coef_Area_desarrollada,MATCH(IF(AJ38="AREAS DESARROLLADAS",AK38,AJ38&"-"&AK38),Areas_desarrolladas,0),MATCH(IF($AC38="",$AB38,$AC38),Periodo_Retorno,0)),0)))) -> 0 | AM38: 0.8 | AN38: 12.40368325 | AO38: 6.560665832 | AP38: 0.2535910776 | AQ38: 12.65727432 | AS38: 0.23933752 | AT38: =IF(L38="","",IF(M37=L38,VLOOKUP(L38,$L$31:$AS$262,34,FALSE)+VLOOKUP(M37,$M$31:$AT$262,34,FALSE)+IFERROR(IF((INDEX($M$31:$AT$262,SMALL(IF(OFFSET($M$31:$AT$262,0,0,ROWS($M$31:$AT$262),1)=L38,ROW(OFFSET($M$31:$AT$262,0,0,ROWS($M$31:$AT$262),1))-ROW(OFFSET($M$31:$AT$262,0,0,1,1))+1,ROW(OFFSET($M$31:$AT$262,ROWS($M$31:$AT$262)-1,0,1,1))+1),1),34))=VLOOKUP(M37,$M$31:$AT$262,34,FALSE),(INDEX($M$31:$AT$262,SMALL(IF(OFFSET($M$31:$AT$262,0,0,ROWS($M$31:$AT$262),1)=L38,ROW(OFFSET($M$31:$AT$262,0,0,ROWS($M$31:$AT$262),1))-ROW(OFFSET($M$31:$AT$262,0,0,1,1))+1,ROW(OFFSET($M$31:$AT$262,ROWS($M$31:$AT$262)-1,0,1,1))+1),2),34))),0)+IFERROR(IF((INDEX($M$31:$AT$262,SMALL(IF(OFFSET($M$31:$AT$262,0,0,ROWS($M$31:$AT$262),1)=L38,ROW(OFFSET($M$31:$AT$262,0,0,ROWS($M$31:$AT$262),1))-ROW(OFFSET($M$31:$AT$262,0,0,1,1))+1,ROW(OFFSET($M$31:$AT$262,ROWS($M$31:$AT$262)-1,0,1,1))+1),1),34))=VLOOKUP(M37,$M$31:$AT$262,34,FALSE),(INDEX($M$31:$AT$262,SMALL(IF(OFFSET($M$31:$AT$262,0,0,ROWS($M$31:$AT$262),1)=L38,ROW(OFFSET($M$31:$AT$262,0,0,ROWS($M$31:$AT$262),1))-ROW(OFFSET($M$31:$AT$262,0,0,1,1))+1,ROW(OFFSET($M$31:$AT$262,ROWS($M$31:$AT$262)-1,0,1,1))+1),3),34))),0)+IFERROR(IF((INDEX($M$31:$AT$262,SMALL(IF(OFFSET($M$31:$AT$262,0,0,ROWS($M$31:$AT$262),1)=L38,ROW(OFFSET($M$31:$AT$262,0,0,ROWS($M$31:$AT$262),1))-ROW(OFFSET($M$31:$AT$262,0,0,1,1))+1,ROW(OFFSET($M$31:$AT$262,ROWS($M$31:$AT$262)-1,0,1,1))+1),1),34))=VLOOKUP(M37,$M$31:$AT$262,34,FALSE),(INDEX($M$31:$AT$262,SMALL(IF(OFFSET($M$31:$AT$262,0,0,ROWS($M$31:$AT$262),1)=L38,ROW(OFFSET($M$31:$AT$262,0,0,ROWS($M$31:$AT$262),1))-ROW(OFFSET($M$31:$AT$262,0,0,1,1))+1,ROW(OFFSET($M$31:$AT$262,ROWS($M$31:$AT$262)-1,0,1,1))+1),4),34))),0)+IFERROR(IF((INDEX($M$31:$AT$262,SMALL(IF(OFFSET($M$31:$AT$262,0,0,ROWS($M$31:$AT$262),1)=L38,ROW(OFFSET($M$31:$AT$262,0,0,ROWS($M$31:$AT$262),1))-ROW(OFFSET($M$31:$AT$262,0,0,1,1))+1,ROW(OFFSET($M$31:$AT$262,ROWS($M$31:$AT$262)-1,0,1,1))+1),1),34))=VLOOKUP(M37,$M$31:$AT$262,34,FALSE),(INDEX($M$31:$AT$262,SMALL(IF(OFFSET($M$31:$AT$262,0,0,ROWS($M$31:$AT$262),1)=L38,ROW(OFFSET($M$31:$AT$262,0,0,ROWS($M$31:$AT$262),1))-ROW(OFFSET($M$31:$AT$262,0,0,1,1))+1,ROW(OFFSET($M$31:$AT$262,ROWS($M$31:$AT$262)-1,0,1,1))+1),5),34))),0)+IFERROR(IF((INDEX($M$31:$AT$262,SMALL(IF(OFFSET($M$31:$AT$262,0,0,ROWS($M$31:$AT$262),1)=L38,ROW(OFFSET($M$31:$AT$262,0,0,ROWS($M$31:$AT$262),1))-ROW(OFFSET($M$31:$AT$262,0,0,1,1))+1,ROW(OFFSET($M$31:$AT$262,ROWS($M$31:$AT$262)-1,0,1,1))+1),1),34))=VLOOKUP(M37,$M$31:$AT$262,34,FALSE),(INDEX($M$31:$AT$262,SMALL(IF(OFFSET($M$31:$AT$262,0,0,ROWS($M$31:$AT$262),1)=L38,ROW(OFFSET($M$31:$AT$262,0,0,ROWS($M$31:$AT$262),1))-ROW(OFFSET($M$31:$AT$262,0,0,1,1))+1,ROW(OFFSET($M$31:$AT$262,ROWS($M$31:$AT$262)-1,0,1,1))+1),6),34))),0)+IFERROR(IF((INDEX($M$31:$AT$262,SMALL(IF(OFFSET($M$31:$AT$262,0,0,ROWS($M$31:$AT$262),1)=L38,ROW(OFFSET($M$31:$AT$262,0,0,ROWS($M$31:$AT$262),1))-ROW(OFFSET($M$31:$AT$262,0,0,1,1))+1,ROW(OFFSET($M$31:$AT$262,ROWS($M$31:$AT$262)-1,0,1,1))+1),1),34))=VLOOKUP(M37,$M$31:$AT$262,34,FALSE),(INDEX($M$31:$AT$262,SMALL(IF(OFFSET($M$31:$AT$262,0,0,ROWS($M$31:$AT$262),1)=L38,ROW(OFFSET($M$31:$AT$262,0,0,ROWS($M$31:$AT$262),1))-ROW(OFFSET($M$31:$AT$262,0,0,1,1))+1,ROW(OFFSET($M$31:$AT$262,ROWS($M$31:$AT$262)-1,0,1,1))+1),7),34))),0)+IFERROR(IF((INDEX($M$31:$AT$262,SMALL(IF(OFFSET($M$31:$AT$262,0,0,ROWS($M$31:$AT$262),1)=L38,ROW(OFFSET($M$31:$AT$262,0,0,ROWS($M$31:$AT$262),1))-ROW(OFFSET($M$31:$AT$262,0,0,1,1))+1,ROW(OFFSET($M$31:$AT$262,ROWS($M$31:$AT$262)-1,0,1,1))+1),1),34))=VLOOKUP(M37,$M$31:$AT$262,34,FALSE),(INDEX($M$31:$AT$262,SMALL(IF(OFFSET($M$31:$AT$262,0,0,ROWS($M$31:$AT$262),1)=L38,ROW(OFFSET($M$31:$AT$262,0,0,ROWS($M$31:$AT$262),1))-ROW(OFFSET($M$31:$AT$262,0,0,1,1))+1,ROW(OFFSET($M$31:$AT$262,ROWS($M$31:$AT$262)-1,0,1,1))+1),8),34))),0)+IFERROR(IF((INDEX($M$31:$AT$262,SMALL(IF(OFFSET($M$31:$AT$262,0,0,ROWS($M$31:$AT$262),1)=L38,ROW(OFFSET($M$31:$AT$262,0,0,ROWS($M$31:$AT$262),1))-ROW(OFFSET($M$31:$AT$262,0,0,1,1))+1,ROW(OFFSET($M$31:$AT$262,ROWS($M$31:$AT$262)-1,0,1,1))+1),1),34))=VLOOKUP(M37,$M$31:$AT$262,34,FALSE),(INDEX($M$31:$AT$262,SMALL(IF(OFFSET($M$31:$AT$262,0,0,ROWS($M$31:$AT$262),1)=L38,ROW(OFFSET($M$31:$AT$262,0,0,ROWS($M$31:$AT$262),1))-ROW(OFFSET($M$31:$AT$262,0,0,1,1))+1,ROW(OFFSET($M$31:$AT$262,ROWS($M$31:$AT$262)-1,0,1,1))+1),9),34))),0)+IFERROR(IF((INDEX($M$31:$AT$262,SMALL(IF(OFFSET($M$31:$AT$262,0,0,ROWS($M$31:$AT$262),1)=L38,ROW(OFFSET($M$31:$AT$262,0,0,ROWS($M$31:$AT$262),1))-ROW(OFFSET($M$31:$AT$262,0,0,1,1))+1,ROW(OFFSET($M$31:$AT$262,ROWS($M$31:$AT$262)-1,0,1,1))+1),1),34))=VLOOKUP(M37,$M$31:$AT$262,34,FALSE),(INDEX($M$31:$AT$262,SMALL(IF(OFFSET($M$31:$AT$262,0,0,ROWS($M$31:$AT$262),1)=L38,ROW(OFFSET($M$31:$AT$262,0,0,ROWS($M$31:$AT$262),1))-ROW(OFFSET($M$31:$AT$262,0,0,1,1))+1,ROW(OFFSET($M$31:$AT$262,ROWS($M$31:$AT$262)-1,0,1,1))+1),10),34))),0),IF(M37<>L38,VLOOKUP(L38,$L$31:$AS$262,34,FALSE)+IFERROR(VLOOKUP(L38,$M$31:$AT$262,34,FALSE),0)))) -> 2.48417141 | AU38: =IF(OR(L38="",M38=""),"",IFERROR(IF(AC38="",IF(AB38=3,$J$16*(AQ38+$K$16)^($L$16),IF(AB38=5,$J$17*(AQ38+$K$17)^($L$17),IF(AB38=10,$J$18*(AQ38+$K$18)^($L$18)))),IF(AC38=3,$J$16*(AQ38+$K$16)^($L$16),IF(AC38=5,$J$17*(AQ38+$K$17)^($L$17),IF(AC38=10,$J$18*(AQ38+$K$18)^($L$18))))),"")) -> 82.00945249 | AV38: 162.9804298 | AX38: 0 | AY38: =IF(L38="","",IF(ROW()=31,VLOOKUP(L38,$L$31:$AX$262,39,FALSE),IF(M37=L38,VLOOKUP(L38,$L$31:$AX$262,39,FALSE)+VLOOKUP(M37,$M$31:$AY$262,39,FALSE)+IFERROR(IF((INDEX($M$31:$AY$262,SMALL(IF(OFFSET($M$31:$AY$262,0,0,FILAX($M$31:$AY$262),1)=L38,ROW(OFFSET($M$31:$AY$262,0,0,FILAX($M$31:$AY$262),1))-ROW(OFFSET($M$31:$AY$262,0,0,1,1))+1,ROW(OFFSET($M$31:$AY$262,FILAX($M$31:$AY$262)-1,0,1,1))+1),1),39))=VLOOKUP(M37,$M$31:$AY$262,39,FALSE),(INDEX($M$31:$AY$262,SMALL(IF(OFFSET($M$31:$AY$262,0,0,FILAX($M$31:$AY$262),1)=L38,ROW(OFFSET($M$31:$AY$262,0,0,FILAX($M$31:$AY$262),1))-ROW(OFFSET($M$31:$AY$262,0,0,1,1))+1,ROW(OFFSET($M$31:$AY$262,FILAX($M$31:$AY$262)-1,0,1,1))+1),2),39))),0)+IFERROR(IF((INDEX($M$31:$AY$262,SMALL(IF(OFFSET($M$31:$AY$262,0,0,FILAX($M$31:$AY$262),1)=L38,ROW(OFFSET($M$31:$AY$262,0,0,FILAX($M$31:$AY$262),1))-ROW(OFFSET($M$31:$AY$262,0,0,1,1))+1,ROW(OFFSET($M$31:$AY$262,FILAX($M$31:$AY$262)-1,0,1,1))+1),1),39))=VLOOKUP(M37,$M$31:$AY$262,39,FALSE),(INDEX($M$31:$AY$262,SMALL(IF(OFFSET($M$31:$AY$262,0,0,FILAX($M$31:$AY$262),1)=L38,ROW(OFFSET($M$31:$AY$262,0,0,FILAX($M$31:$AY$262),1))-ROW(OFFSET($M$31:$AY$262,0,0,1,1))+1,ROW(OFFSET($M$31:$AY$262,FILAX($M$31:$AY$262)-1,0,1,1))+1),3),39))),0)+IFERROR(IF((INDEX($M$31:$AY$262,SMALL(IF(OFFSET($M$31:$AY$262,0,0,FILAX($M$31:$AY$262),1)=L38,ROW(OFFSET($M$31:$AY$262,0,0,FILAX($M$31:$AY$262),1))-ROW(OFFSET($M$31:$AY$262,0,0,1,1))+1,ROW(OFFSET($M$31:$AY$262,FILAX($M$31:$AY$262)-1,0,1,1))+1),1),39))=VLOOKUP(M37,$M$31:$AY$262,39,FALSE),(INDEX($M$31:$AY$262,SMALL(IF(OFFSET($M$31:$AY$262,0,0,FILAX($M$31:$AY$262),1)=L38,ROW(OFFSET($M$31:$AY$262,0,0,FILAX($M$31:$AY$262),1))-ROW(OFFSET($M$31:$AY$262,0,0,1,1))+1,ROW(OFFSET($M$31:$AY$262,FILAX($M$31:$AY$262)-1,0,1,1))+1),4),39))),0)+IFERROR(IF((INDEX($M$31:$AY$262,SMALL(IF(OFFSET($M$31:$AY$262,0,0,FILAX($M$31:$AY$262),1)=L38,ROW(OFFSET($M$31:$AY$262,0,0,FILAX($M$31:$AY$262),1))-ROW(OFFSET($M$31:$AY$262,0,0,1,1))+1,ROW(OFFSET($M$31:$AY$262,FILAX($M$31:$AY$262)-1,0,1,1))+1),1),39))=VLOOKUP(M37,$M$31:$AY$262,39,FALSE),(INDEX($M$31:$AY$262,SMALL(IF(OFFSET($M$31:$AY$262,0,0,FILAX($M$31:$AY$262),1)=L38,ROW(OFFSET($M$31:$AY$262,0,0,FILAX($M$31:$AY$262),1))-ROW(OFFSET($M$31:$AY$262,0,0,1,1))+1,ROW(OFFSET($M$31:$AY$262,FILAX($M$31:$AY$262)-1,0,1,1))+1),5),39))),0)+IFERROR(IF((INDEX($M$31:$AY$262,SMALL(IF(OFFSET($M$31:$AY$262,0,0,FILAX($M$31:$AY$262),1)=L38,ROW(OFFSET($M$31:$AY$262,0,0,FILAX($M$31:$AY$262),1))-ROW(OFFSET($M$31:$AY$262,0,0,1,1))+1,ROW(OFFSET($M$31:$AY$262,FILAX($M$31:$AY$262)-1,0,1,1))+1),1),39))=VLOOKUP(M37,$M$31:$AY$262,39,FALSE),(INDEX($M$31:$AY$262,SMALL(IF(OFFSET($M$31:$AY$262,0,0,FILAX($M$31:$AY$262),1)=L38,ROW(OFFSET($M$31:$AY$262,0,0,FILAX($M$31:$AY$262),1))-ROW(OFFSET($M$31:$AY$262,0,0,1,1))+1,ROW(OFFSET($M$31:$AY$262,FILAX($M$31:$AY$262)-1,0,1,1))+1),6),39))),0)+IFERROR(IF((INDEX($M$31:$AY$262,SMALL(IF(OFFSET($M$31:$AY$262,0,0,FILAX($M$31:$AY$262),1)=L38,ROW(OFFSET($M$31:$AY$262,0,0,FILAX($M$31:$AY$262),1))-ROW(OFFSET($M$31:$AY$262,0,0,1,1))+1,ROW(OFFSET($M$31:$AY$262,FILAX($M$31:$AY$262)-1,0,1,1))+1),1),39))=VLOOKUP(M37,$M$31:$AY$262,39,FALSE),(INDEX($M$31:$AY$262,SMALL(IF(OFFSET($M$31:$AY$262,0,0,FILAX($M$31:$AY$262),1)=L38,ROW(OFFSET($M$31:$AY$262,0,0,FILAX($M$31:$AY$262),1))-ROW(OFFSET($M$31:$AY$262,0,0,1,1))+1,ROW(OFFSET($M$31:$AY$262,FILAX($M$31:$AY$262)-1,0,1,1))+1),7),39))),0)+IFERROR(IF((INDEX($M$31:$AY$262,SMALL(IF(OFFSET($M$31:$AY$262,0,0,FILAX($M$31:$AY$262),1)=L38,ROW(OFFSET($M$31:$AY$262,0,0,FILAX($M$31:$AY$262),1))-ROW(OFFSET($M$31:$AY$262,0,0,1,1))+1,ROW(OFFSET($M$31:$AY$262,FILAX($M$31:$AY$262)-1,0,1,1))+1),1),39))=VLOOKUP(M37,$M$31:$AY$262,39,FALSE),(INDEX($M$31:$AY$262,SMALL(IF(OFFSET($M$31:$AY$262,0,0,FILAX($M$31:$AY$262),1)=L38,ROW(OFFSET($M$31:$AY$262,0,0,FILAX($M$31:$AY$262),1))-ROW(OFFSET($M$31:$AY$262,0,0,1,1))+1,ROW(OFFSET($M$31:$AY$262,FILAX($M$31:$AY$262)-1,0,1,1))+1),8),39))),0)+IFERROR(IF((INDEX($M$31:$AY$262,SMALL(IF(OFFSET($M$31:$AY$262,0,0,FILAX($M$31:$AY$262),1)=L38,ROW(OFFSET($M$31:$AY$262,0,0,FILAX($M$31:$AY$262),1))-ROW(OFFSET($M$31:$AY$262,0,0,1,1))+1,ROW(OFFSET($M$31:$AY$262,FILAX($M$31:$AY$262)-1,0,1,1))+1),1),39))=VLOOKUP(M37,$M$31:$AY$262,39,FALSE),(INDEX($M$31:$AY$262,SMALL(IF(OFFSET($M$31:$AY$262,0,0,FILAX($M$31:$AY$262),1)=L38,ROW(OFFSET($M$31:$AY$262,0,0,FILAX($M$31:$AY$262),1))-ROW(OFFSET($M$31:$AY$262,0,0,1,1))+1,ROW(OFFSET($M$31:$AY$262,FILAX($M$31:$AY$262)-1,0,1,1))+1),9),39))),0)+IFERROR(IF((INDEX($M$31:$AY$262,SMALL(IF(OFFSET($M$31:$AY$262,0,0,FILAX($M$31:$AY$262),1)=L38,ROW(OFFSET($M$31:$AY$262,0,0,FILAX($M$31:$AY$262),1))-ROW(OFFSET($M$31:$AY$262,0,0,1,1))+1,ROW(OFFSET($M$31:$AY$262,FILAX($M$31:$AY$262)-1,0,1,1))+1),1),39))=VLOOKUP(M37,$M$31:$AY$262,39,FALSE),(INDEX($M$31:$AY$262,SMALL(IF(OFFSET($M$31:$AY$262,0,0,FILAX($M$31:$AY$262),1)=L38,ROW(OFFSET($M$31:$AY$262,0,0,FILAX($M$31:$AY$262),1))-ROW(OFFSET($M$31:$AY$262,0,0,1,1))+1,ROW(OFFSET($M$31:$AY$262,FILAX($M$31:$AY$262)-1,0,1,1))+1),10),39))),0),IF(M37<>L38,VLOOKUP(L38,$L$31:$AX$262,39,FALSE)+IFERROR(VLOOKUP(L38,$M$31:$AY$262,39,FALSE),0))))) -> 0 | AZ38: 162.9804298 | BA38: 6.5607562 | BB38: 0.2535875847 | BC38: -1.377418186e-05 | BD38: PD18 | BE38: PD19 | BF38: 99.82357909 | BG38: PVC | BH38: =IF(OR($L38="",$M38="",BG38=""),"",INDEX('Tablas y listas'!$D$4:$G$17,MATCH('1. Analisis Flujo Uniforme'!BG38,'Tablas y listas'!$D$4:$D$17,0),4)) -> 0.0125 | BI38: 20 | BJ38: =IF(OR(BI38=""),"",IFERROR(IF($BI$30="Pulgadas",INDEX('Tablas y listas'!$B$64:$D$89,MATCH('1. Analisis Flujo Uniforme'!BI38,CONCRETO_Pulgadas,0),3),IF($BI$30="mm",BI38/(10*100))),"Indique φ")) -> 0.5 | BK38: 0.1502650991 | BL38: 0.3 | BM38: =IF(CT38="","",CT38) -> 0.5784549469 | BN38: =IF(CU38="","",CU38) -> Subcrítico | BO38: =IF(CK38="","",CK38) -> 0.7577308087 | BP38: =IF(CN38="","",CN38) -> 1.064074808 | BQ38: =IF(DU38="","",DU38) -> 1.829915129 | BR38: =IF(DV38="","",DV38) -> 1.979385867 | BV38: =IF(DR38="","",DR38) -> 2540.820085 | BW38: =IF(DS38="","",DS38) -> 2540.520614 | BX38: =IF(DW38="","",DW38) -> 2540.320085 | BY38: =IF(DX38="","",DX38) -> 2540.020614 | BZ38: =IF(DY38="","",DY38) -> 2540.742244 | CA38: =IF(DZ38="","",DZ38) -> 2540.442773 | CB38: =IF(DM38="","",DM38) -> 0.449586997 | CE38: PD18 | CF38: PD19 | CG38: =IF(OR($L38="",$M38=""),"",IF(MAX(IFERROR(INDEX(MatrizQs1,SMALL(IF(OFFSET(MatrizQs1,0,0,ROWS(MatrizQs1),1)=CF38,ROW(OFFSET(MatrizQs1,0,0,ROWS(MatrizQs1),1))-ROW(OFFSET(MatrizQs1,0,0,1,1))+1,ROW(OFFSET(MatrizQs1,ROWS(MatrizQs1)-1,0,1,1))+1),1),41),0),IFERROR(INDEX(MatrizQs1,SMALL(IF(OFFSET(MatrizQs1,0,0,ROWS(MatrizQs1),1)=CF38,ROW(OFFSET(MatrizQs1,0,0,ROWS(MatrizQs1),1))-ROW(OFFSET(MatrizQs1,0,0,1,1))+1,ROW(OFFSET(MatrizQs1,ROWS(MatrizQs1)-1,0,1,1))+1),2),41),0),IFERROR(INDEX(MatrizQs1,SMALL(IF(OFFSET(MatrizQs1,0,0,ROWS(MatrizQs1),1)=CF38,ROW(OFFSET(MatrizQs1,0,0,ROWS(MatrizQs1),1))-ROW(OFFSET(MatrizQs1,0,0,1,1))+1,ROW(OFFSET(MatrizQs1,ROWS(MatrizQs1)-1,0,1,1))+1),3),41),0),IFERROR(INDEX(MatrizQs1,SMALL(IF(OFFSET(MatrizQs1,0,0,ROWS(MatrizQs1),1)=CF38,ROW(OFFSET(MatrizQs1,0,0,ROWS(MatrizQs1),1))-ROW(OFFSET(MatrizQs1,0,0,1,1))+1,ROW(OFFSET(MatrizQs1,ROWS(MatrizQs1)-1,0,1,1))+1),4),41),0),IFERROR(INDEX(MatrizQs1,SMALL(IF(OFFSET(MatrizQs1,0,0,ROWS(MatrizQs1),1)=CF38,ROW(OFFSET(MatrizQs1,0,0,ROWS(MatrizQs1),1))-ROW(OFFSET(MatrizQs1,0,0,1,1))+1,ROW(OFFSET(MatrizQs1,ROWS(MatrizQs1)-1,0,1,1))+1),5),41),0),IFERROR(INDEX(MatrizQs1,SMALL(IF(OFFSET(MatrizQs1,0,0,ROWS(MatrizQs1),1)=CF38,ROW(OFFSET(MatrizQs1,0,0,ROWS(MatrizQs1),1))-ROW(OFFSET(MatrizQs1,0,0,1,1))+1,ROW(OFFSET(MatrizQs1,ROWS(MatrizQs1)-1,0,1,1))+1),6),41),0),IFERROR(INDEX(MatrizQs1,SMALL(IF(OFFSET(MatrizQs1,0,0,ROWS(MatrizQs1),1)=CF38,ROW(OFFSET(MatrizQs1,0,0,ROWS(MatrizQs1),1))-ROW(OFFSET(MatrizQs1,0,0,1,1))+1,ROW(OFFSET(MatrizQs1,ROWS(MatrizQs1)-1,0,1,1))+1),7),41),0),IFERROR(INDEX(MatrizQs1,SMALL(IF(OFFSET(MatrizQs1,0,0,ROWS(MatrizQs1),1)=CF38,ROW(OFFSET(MatrizQs1,0,0,ROWS(MatrizQs1),1))-ROW(OFFSET(MatrizQs1,0,0,1,1))+1,ROW(OFFSET(MatrizQs1,ROWS(MatrizQs1)-1,0,1,1))+1),8),41),0))=0,IFERROR(INDEX(matrizQs,SMALL(IF(OFFSET(matrizQs,0,0,ROWS(matrizQs),1)=CF38,ROW(OFFSET(matrizQs,0,0,ROWS(matrizQs),1))-ROW(OFFSET(matrizQs,0,0,1,1))+1,ROW(OFFSET(matrizQs,ROWS(matrizQs)-1,0,1,1))+1),1),40),0),MAX(IFERROR(INDEX(MatrizQs1,SMALL(IF(OFFSET(MatrizQs1,0,0,ROWS(MatrizQs1),1)=CF38,ROW(OFFSET(MatrizQs1,0,0,ROWS(MatrizQs1),1))-ROW(OFFSET(MatrizQs1,0,0,1,1))+1,ROW(OFFSET(MatrizQs1,ROWS(MatrizQs1)-1,0,1,1))+1),1),41),0),IFERROR(INDEX(MatrizQs1,SMALL(IF(OFFSET(MatrizQs1,0,0,ROWS(MatrizQs1),1)=CF38,ROW(OFFSET(MatrizQs1,0,0,ROWS(MatrizQs1),1))-ROW(OFFSET(MatrizQs1,0,0,1,1))+1,ROW(OFFSET(MatrizQs1,ROWS(MatrizQs1)-1,0,1,1))+1),2),41),0),IFERROR(INDEX(MatrizQs1,SMALL(IF(OFFSET(MatrizQs1,0,0,ROWS(MatrizQs1),1)=CF38,ROW(OFFSET(MatrizQs1,0,0,ROWS(MatrizQs1),1))-ROW(OFFSET(MatrizQs1,0,0,1,1))+1,ROW(OFFSET(MatrizQs1,ROWS(MatrizQs1)-1,0,1,1))+1),3),41),0),IFERROR(INDEX(MatrizQs1,SMALL(IF(OFFSET(MatrizQs1,0,0,ROWS(MatrizQs1),1)=CF38,ROW(OFFSET(MatrizQs1,0,0,ROWS(MatrizQs1),1))-ROW(OFFSET(MatrizQs1,0,0,1,1))+1,ROW(OFFSET(MatrizQs1,ROWS(MatrizQs1)-1,0,1,1))+1),4),41),0),IFERROR(INDEX(MatrizQs1,SMALL(IF(OFFSET(MatrizQs1,0,0,ROWS(MatrizQs1),1)=CF38,ROW(OFFSET(MatrizQs1,0,0,ROWS(MatrizQs1),1))-ROW(OFFSET(MatrizQs1,0,0,1,1))+1,ROW(OFFSET(MatrizQs1,ROWS(MatrizQs1)-1,0,1,1))+1),5),41),0),IFERROR(INDEX(MatrizQs1,SMALL(IF(OFFSET(MatrizQs1,0,0,ROWS(MatrizQs1),1)=CF38,ROW(OFFSET(MatrizQs1,0,0,ROWS(MatrizQs1),1))-ROW(OFFSET(MatrizQs1,0,0,1,1))+1,ROW(OFFSET(MatrizQs1,ROWS(MatrizQs1)-1,0,1,1))+1),6),41),0),IFERROR(INDEX(MatrizQs1,SMALL(IF(OFFSET(MatrizQs1,0,0,ROWS(MatrizQs1),1)=CF38,ROW(OFFSET(MatrizQs1,0,0,ROWS(MatrizQs1),1))-ROW(OFFSET(MatrizQs1,0,0,1,1))+1,ROW(OFFSET(MatrizQs1,ROWS(MatrizQs1)-1,0,1,1))+1),7),41),0),IFERROR(INDEX(MatrizQs1,SMALL(IF(OFFSET(MatrizQs1,0,0,ROWS(MatrizQs1),1)=CF38,ROW(OFFSET(MatrizQs1,0,0,ROWS(MatrizQs1),1))-ROW(OFFSET(MatrizQs1,0,0,1,1))+1,ROW(OFFSET(MatrizQs1,ROWS(MatrizQs1)-1,0,1,1))+1),8),41),0)))) -> 216.0270984 | CH38: =IF(OR($L38="",$M38=""),"",IF(MAX(IFERROR(INDEX(MDSU,SMALL(IF(OFFSET(MDSU,0,0,ROWS(MDSU),1)=CF38,ROW(OFFSET(MDSU,0,0,ROWS(MDSU),1))-ROW(OFFSET(MDSU,0,0,1,1))+1,ROW(OFFSET(MDSU,ROWS(MDSU)-1,0,1,1))+1),1),7),0),IFERROR(INDEX(MDSU,SMALL(IF(OFFSET(MDSU,0,0,ROWS(MDSU),1)=CF38,ROW(OFFSET(MDSU,0,0,ROWS(MDSU),1))-ROW(OFFSET(MDSU,0,0,1,1))+1,ROW(OFFSET(MDSU,ROWS(MDSU)-1,0,1,1))+1),2),7),0),IFERROR(INDEX(MDSU,SMALL(IF(OFFSET(MDSU,0,0,ROWS(MDSU),1)=CF38,ROW(OFFSET(MDSU,0,0,ROWS(MDSU),1))-ROW(OFFSET(MDSU,0,0,1,1))+1,ROW(OFFSET(MDSU,ROWS(MDSU)-1,0,1,1))+1),3),7),0),IFERROR(INDEX(MDSU,SMALL(IF(OFFSET(MDSU,0,0,ROWS(MDSU),1)=CF38,ROW(OFFSET(MDSU,0,0,ROWS(MDSU),1))-ROW(OFFSET(MDSU,0,0,1,1))+1,ROW(OFFSET(MDSU,ROWS(MDSU)-1,0,1,1))+1),4),7),0),IFERROR(INDEX(MDSU,SMALL(IF(OFFSET(MDSU,0,0,ROWS(MDSU),1)=CF38,ROW(OFFSET(MDSU,0,0,ROWS(MDSU),1))-ROW(OFFSET(MDSU,0,0,1,1))+1,ROW(OFFSET(MDSU,ROWS(MDSU)-1,0,1,1))+1),5),7),0),IFERROR(INDEX(MDSU,SMALL(IF(OFFSET(MDSU,0,0,ROWS(MDSU),1)=CF38,ROW(OFFSET(MDSU,0,0,ROWS(MDSU),1))-ROW(OFFSET(MDSU,0,0,1,1))+1,ROW(OFFSET(MDSU,ROWS(MDSU)-1,0,1,1))+1),6),7),0),IFERROR(INDEX(MDSU,SMALL(IF(OFFSET(MDSU,0,0,ROWS(MDSU),1)=CF38,ROW(OFFSET(MDSU,0,0,ROWS(MDSU),1))-ROW(OFFSET(MDSU,0,0,1,1))+1,ROW(OFFSET(MDSU,ROWS(MDSU)-1,0,1,1))+1),7),7),0),IFERROR(INDEX(MDSU,SMALL(IF(OFFSET(MDSU,0,0,ROWS(MDSU),1)=CF38,ROW(OFFSET(MDSU,0,0,ROWS(MDSU),1))-ROW(OFFSET(MDSU,0,0,1,1))+1,ROW(OFFSET(MDSU,ROWS(MDSU)-1,0,1,1))+1),8),7),0))=0,IFERROR(INDEX(MDS,SMALL(IF(OFFSET(MDS,0,0,ROWS(MDS),1)=CF38,ROW(OFFSET(MDS,0,0,ROWS(MDS),1))-ROW(OFFSET(MDS,0,0,1,1))+1,ROW(OFFSET(MDS,ROWS(MDS)-1,0,1,1))+1),1),6),0),MAX(IFERROR(INDEX(MDSU,SMALL(IF(OFFSET(MDSU,0,0,ROWS(MDSU),1)=CF38,ROW(OFFSET(MDSU,0,0,ROWS(MDSU),1))-ROW(OFFSET(MDSU,0,0,1,1))+1,ROW(OFFSET(MDSU,ROWS(MDSU)-1,0,1,1))+1),1),7),0),IFERROR(INDEX(MDSU,SMALL(IF(OFFSET(MDSU,0,0,ROWS(MDSU),1)=CF38,ROW(OFFSET(MDSU,0,0,ROWS(MDSU),1))-ROW(OFFSET(MDSU,0,0,1,1))+1,ROW(OFFSET(MDSU,ROWS(MDSU)-1,0,1,1))+1),2),7),0),IFERROR(INDEX(MDSU,SMALL(IF(OFFSET(MDSU,0,0,ROWS(MDSU),1)=CF38,ROW(OFFSET(MDSU,0,0,ROWS(MDSU),1))-ROW(OFFSET(MDSU,0,0,1,1))+1,ROW(OFFSET(MDSU,ROWS(MDSU)-1,0,1,1))+1),3),7),0),IFERROR(INDEX(MDSU,SMALL(IF(OFFSET(MDSU,0,0,ROWS(MDSU),1)=CF38,ROW(OFFSET(MDSU,0,0,ROWS(MDSU),1))-ROW(OFFSET(MDSU,0,0,1,1))+1,ROW(OFFSET(MDSU,ROWS(MDSU)-1,0,1,1))+1),4),7),0),IFERROR(INDEX(MDSU,SMALL(IF(OFFSET(MDSU,0,0,ROWS(MDSU),1)=CF38,ROW(OFFSET(MDSU,0,0,ROWS(MDSU),1))-ROW(OFFSET(MDSU,0,0,1,1))+1,ROW(OFFSET(MDSU,ROWS(MDSU)-1,0,1,1))+1),5),7),0),IFERROR(INDEX(MDSU,SMALL(IF(OFFSET(MDSU,0,0,ROWS(MDSU),1)=CF38,ROW(OFFSET(MDSU,0,0,ROWS(MDSU),1))-ROW(OFFSET(MDSU,0,0,1,1))+1,ROW(OFFSET(MDSU,ROWS(MDSU)-1,0,1,1))+1),6),7),0),IFERROR(INDEX(MDSU,SMALL(IF(OFFSET(MDSU,0,0,ROWS(MDSU),1)=CF38,ROW(OFFSET(MDSU,0,0,ROWS(MDSU),1))-ROW(OFFSET(MDSU,0,0,1,1))+1,ROW(OFFSET(MDSU,ROWS(MDSU)-1,0,1,1))+1),7),7),0),IFERROR(INDEX(MDSU,SMALL(IF(OFFSET(MDSU,0,0,ROWS(MDSU),1)=CF38,ROW(OFFSET(MDSU,0,0,ROWS(MDSU),1))-ROW(OFFSET(MDSU,0,0,1,1))+1,ROW(OFFSET(MDSU,ROWS(MDSU)-1,0,1,1))+1),8),7),0)))) -> 0.6 | CI38: 215.0901454 | CJ38: 1.095445115 | CK38: 0.7577308087 | CL38: =IF(BJ38=0,"",IFERROR((CM38/BJ38),"")) -> 0.7288999024 | CM38: =IF(BI38=0,"",IFERROR(BJ38*0.858451597*(CK38)^0.5896824401,"")) -> 0.3644499512 | CN38: =IF(OR($L38="",$M38=""),"",IF(BJ38=0,"",IFERROR(CJ38*1.054148687*(CK38)^0.2948111209,""))) -> 1.064074808 | CO38: =IF(OR($L38="",$M38=""),"",IF(CM38=0,"",IFERROR(2*ACOS(1-(2*CM38)/BJ38),""))) -> 4.092630375 | CP38: =IF(OR($L38="",$M38=""),"",IFERROR(0.125*(CO38-SIN(CO38))*BJ38^2,"")) -> 0.1533327833 | CQ38: =IF(OR($L38="",$M38=""),"",IFERROR(0.5*CO38*BJ38,"")) -> 1.023157594 | CR38: =IF(OR($L38="",$M38=""),"",IFERROR(IF(CP38=0,"",+CP38/CQ38),"")) -> 0.1498623323 | CS38: =IF(OR($L38="",$M38=""),"",IFERROR(IF(CO38=0,"",1/8*((CO38-SIN(CO38))/SIN(CO38/2))*BJ38),"")) -> 0.3449341838 | CT38: =IF(OR($L38="",$M38=""),"",IFERROR(IF(CN38=0,"",CN38/SQRT(9.81*CS38)),"")) -> 0.5784549469 | CU38: =IF(OR($L38="",$M38=""),"",IFERROR(IF(OR(CT38=0,CT38=""),"",IF(CT38<0.9,"Subcrítico",IF(CT38>1.1,"Supercrítico","Crítico"))),"")) -> Subcrítico | CV38: =IF(OR($L38="",$M38=""),"",IFERROR(CN38^2/(9.81*2),"")) -> 0.05770923529 | CW38: =IF(OR($L38="",$M38=""),"",IFERROR(IF(CV38=0,"",CM38+CV38),0)) -> 0.4221591865 | CX38: 0.4529100691 | CY38: 1 | CZ38: =IF(CT38=0,"",IF(CT38<0.9,IF(CY38>3,0.05*CV38,IF(AND(CY38>=1.5,CY38<3),0.2*CV38,IF(AND(CY38>=1,CY38<1.5),0.4*CV38))),IF(CT38>1.1,""))) -> 0.02308369412 | DA38: =IF(OR($L38="",$M38=""),"",IFERROR(IF(CV38=0,"",0.2*((CV39-CV38))),0)) -> 0.001504991513 | DB38: =IF(OR($L38="",$M38=""),"",IFERROR(IF(CT38=0,0,IF(CT38<=0.9,IF(CX38>CW38,CZ38+DA38+CX38-CW38,CZ38+DA38),"")),0)) -> 0.05533956827 | DC38: 1.2 | DD38: 2 | DE38: =IF(OR($L38="",$M38=""),"",IFERROR(IF(BI38=0,"",1.0381283*BJ38*DG38^0.5208062),0)) -> 0 | DF38: 1.3 | DG38: =IF(OR($L38="",$M38="",CT38=""),"",IFERROR(IF(CT38=0,"",IF(CT38>1.1,0.319*(CG38/1000)/CH38^2.5,"")),0)) ->  | DH38: =IF(OR($L38="",$M38=""),"",IFERROR(IF(DG38=0,"",IF(DG38>0.62,"",2*ACOS(1-2*DE38/CD38))),"")) ->  | DI38: =IF(OR($L38="",$M38=""),"",IFERROR(IF(DH38=0,"",IF(DG38>0.62,0,((BZ38*8)/(DH38-SIN(DH38))/1000/(CD38)^2)^2/19.62+DE38)),"")) -> 0 | DJ38: =IF(OR($L38="",$M38=""),"",IFERROR(IF(DG38=0,"",IF(DG38>0.62,"",0.589*DG38^2.67*CH38)),"")) ->  | DK38: =IF(OR($L38="",$M38=""),"",IFERROR(IF(BI38=0,"",IF(DG38>0.62,CH38*DF38*(DG38^2*1.91+0.7),DF38*(DI38+DJ38))),0)) -> 0 | DL38: 0.2994707373 | DM38: =IF(OR($L38="",$M38=""),"",IFERROR(IF(BL38=0,"",1000*CR38*BL38/100),"")) -> 0.449586997 | DN38: 2542.65 | DO38: 2542.5 | DP38: 0 | DQ38: 0 | DR38: 2540.820085 | DS38: =IF(OR($L38="",$M38=""),"",IFERROR(IF(DR38=0,"",DR38-DL38),"")) -> 2540.520614 | DT38: =IF(OR($L38="",$M38=""),"",IF(MIN(IFERROR(INDEX(Matriz_busq,SMALL(IF(OFFSET(Matriz_busq,0,0,ROWS(Matriz_busq),1)=BD38,ROW(OFFSET(Matriz_busq,0,0,ROWS(Matriz_busq),1))-ROW(OFFSET(Matriz_busq,0,0,1,1))+1,ROW(OFFSET(Matriz_busq,ROWS(Matriz_busq)-1,0,1,1))+1),1),40),10000),IFERROR(INDEX(Matriz_busq,SMALL(IF(OFFSET(Matriz_busq,0,0,ROWS(Matriz_busq),1)=BD38,ROW(OFFSET(Matriz_busq,0,0,ROWS(Matriz_busq),1))-ROW(OFFSET(Matriz_busq,0,0,1,1))+1,ROW(OFFSET(Matriz_busq,ROWS(Matriz_busq)-1,0,1,1))+1),2),40),10000),IFERROR(INDEX(Matriz_busq,SMALL(IF(OFFSET(Matriz_busq,0,0,ROWS(Matriz_busq),1)=BD38,ROW(OFFSET(Matriz_busq,0,0,ROWS(Matriz_busq),1))-ROW(OFFSET(Matriz_busq,0,0,1,1))+1,ROW(OFFSET(Matriz_busq,ROWS(Matriz_busq)-1,0,1,1))+1),3),40),10000),IFERROR(INDEX(Matriz_busq,SMALL(IF(OFFSET(Matriz_busq,0,0,ROWS(Matriz_busq),1)=BD38,ROW(OFFSET(Matriz_busq,0,0,ROWS(Matriz_busq),1))-ROW(OFFSET(Matriz_busq,0,0,1,1))+1,ROW(OFFSET(Matriz_busq,ROWS(Matriz_busq)-1,0,1,1))+1),4),40),10000),IFERROR(INDEX(Matriz_busq,SMALL(IF(OFFSET(Matriz_busq,0,0,ROWS(Matriz_busq),1)=BD38,ROW(OFFSET(Matriz_busq,0,0,ROWS(Matriz_busq),1))-ROW(OFFSET(Matriz_busq,0,0,1,1))+1,ROW(OFFSET(Matriz_busq,ROWS(Matriz_busq)-1,0,1,1))+1),5),40),10000),IFERROR(INDEX(Matriz_busq,SMALL(IF(OFFSET(Matriz_busq,0,0,ROWS(Matriz_busq),1)=BD38,ROW(OFFSET(Matriz_busq,0,0,ROWS(Matriz_busq),1))-ROW(OFFSET(Matriz_busq,0,0,1,1))+1,ROW(OFFSET(Matriz_busq,ROWS(Matriz_busq)-1,0,1,1))+1),6),40),10000),IFERROR(INDEX(Matriz_busq,SMALL(IF(OFFSET(Matriz_busq,0,0,ROWS(Matriz_busq),1)=BD38,ROW(OFFSET(Matriz_busq,0,0,ROWS(Matriz_busq),1))-ROW(OFFSET(Matriz_busq,0,0,1,1))+1,ROW(OFFSET(Matriz_busq,ROWS(Matriz_busq)-1,0,1,1))+1),7),40),10000),IFERROR(INDEX(Matriz_busq,SMALL(IF(OFFSET(Matriz_busq,0,0,ROWS(Matriz_busq),1)=BD38,ROW(OFFSET(Matriz_busq,0,0,ROWS(Matriz_busq),1))-ROW(OFFSET(Matriz_busq,0,0,1,1))+1,ROW(OFFSET(Matriz_busq,ROWS(Matriz_busq)-1,0,1,1))+1),8),40),10000))=10000,0,MIN(IFERROR(INDEX(Matriz_busq,SMALL(IF(OFFSET(Matriz_busq,0,0,ROWS(Matriz_busq),1)=BD38,ROW(OFFSET(Matriz_busq,0,0,ROWS(Matriz_busq),1))-ROW(OFFSET(Matriz_busq,0,0,1,1))+1,ROW(OFFSET(Matriz_busq,ROWS(Matriz_busq)-1,0,1,1))+1),1),40),10000),IFERROR(INDEX(Matriz_busq,SMALL(IF(OFFSET(Matriz_busq,0,0,ROWS(Matriz_busq),1)=BD38,ROW(OFFSET(Matriz_busq,0,0,ROWS(Matriz_busq),1))-ROW(OFFSET(Matriz_busq,0,0,1,1))+1,ROW(OFFSET(Matriz_busq,ROWS(Matriz_busq)-1,0,1,1))+1),2),40),10000),IFERROR(INDEX(Matriz_busq,SMALL(IF(OFFSET(Matriz_busq,0,0,ROWS(Matriz_busq),1)=BD38,ROW(OFFSET(Matriz_busq,0,0,ROWS(Matriz_busq),1))-ROW(OFFSET(Matriz_busq,0,0,1,1))+1,ROW(OFFSET(Matriz_busq,ROWS(Matriz_busq)-1,0,1,1))+1),3),40),10000),IFERROR(INDEX(Matriz_busq,SMALL(IF(OFFSET(Matriz_busq,0,0,ROWS(Matriz_busq),1)=BD38,ROW(OFFSET(Matriz_busq,0,0,ROWS(Matriz_busq),1))-ROW(OFFSET(Matriz_busq,0,0,1,1))+1,ROW(OFFSET(Matriz_busq,ROWS(Matriz_busq)-1,0,1,1))+1),4),40),10000),IFERROR(INDEX(Matriz_busq,SMALL(IF(OFFSET(Matriz_busq,0,0,ROWS(Matriz_busq),1)=BD38,ROW(OFFSET(Matriz_busq,0,0,ROWS(Matriz_busq),1))-ROW(OFFSET(Matriz_busq,0,0,1,1))+1,ROW(OFFSET(Matriz_busq,ROWS(Matriz_busq)-1,0,1,1))+1),5),40),10000),IFERROR(INDEX(Matriz_busq,SMALL(IF(OFFSET(Matriz_busq,0,0,ROWS(Matriz_busq),1)=BD38,ROW(OFFSET(Matriz_busq,0,0,ROWS(Matriz_busq),1))-ROW(OFFSET(Matriz_busq,0,0,1,1))+1,ROW(OFFSET(Matriz_busq,ROWS(Matriz_busq)-1,0,1,1))+1),6),40),10000),IFERROR(INDEX(Matriz_busq,SMALL(IF(OFFSET(Matriz_busq,0,0,ROWS(Matriz_busq),1)=BD38,ROW(OFFSET(Matriz_busq,0,0,ROWS(Matriz_busq),1))-ROW(OFFSET(Matriz_busq,0,0,1,1))+1,ROW(OFFSET(Matriz_busq,ROWS(Matriz_busq)-1,0,1,1))+1),7),40),10000),IFERROR(INDEX(Matriz_busq,SMALL(IF(OFFSET(Matriz_busq,0,0,ROWS(Matriz_busq),1)=BD38,ROW(OFFSET(Matriz_busq,0,0,ROWS(Matriz_busq),1))-ROW(OFFSET(Matriz_busq,0,0,1,1))+1,ROW(OFFSET(Matriz_busq,ROWS(Matriz_busq)-1,0,1,1))+1),8),40),10000)))) -> 2540.793849 | DU38: =IF(OR($L38="",$M38=""),"",IFERROR(IF(DN38=0,"",DN38-DR38),"")) -> 1.829915129 | DV38: =IF(OR($L38="",$M38=""),"",IFERROR(IF(DO38=0,"",DO38-DS38),"")) -> 1.979385867 | DW38: 2540.320085 | DX38: 2540.020614 | DY38: =IF(OR($L38="",$M38=""),"",IFERROR(IF(DW38=0,"",DW38+CW38),"")) -> 2540.742244 | DZ38: =IF(OR($L38="",$M38=""),"",IFERROR(IF(DX38=0,"",DX38+CW38),"")) -> 2540.442773
A39: PD19 | B39: Tipo_1 | D39: No aplica | F39: 92841.7551 | G39: 107519.1931 | H39: 2542.5 | L39: PD19 | M39: PD10 | N39: 2542.5 | O39: 2542.25 | P39: 0 | Q39: 0 | R39: 43.73227823 | T39: 0.79277297 | W39: 0.79277297 | X39: 0.5 | Y39: 0 | Z39: 100 | AA39: 0.005 | AB39: 3 | AC39: 5 | AD39: AREAS DESARROLLADAS | AE39: CONCRETO/TECHO | AF39: 0.8 | AI39: 0 | AL39: 0 | AM39: 0.8 | AN39: 12.40368325 | AO39: 6.592243899 | AP39: 0.1105649783 | AQ39: 12.51424822 | AS39: 0.79277297 | AT39: =IF(L39="","",IF(M38=L39,VLOOKUP(L39,$L$31:$AS$262,34,FALSE)+VLOOKUP(M38,$M$31:$AT$262,34,FALSE)+IFERROR(IF((INDEX($M$31:$AT$262,SMALL(IF(OFFSET($M$31:$AT$262,0,0,ROWS($M$31:$AT$262),1)=L39,ROW(OFFSET($M$31:$AT$262,0,0,ROWS($M$31:$AT$262),1))-ROW(OFFSET($M$31:$AT$262,0,0,1,1))+1,ROW(OFFSET($M$31:$AT$262,ROWS($M$31:$AT$262)-1,0,1,1))+1),1),34))=VLOOKUP(M38,$M$31:$AT$262,34,FALSE),(INDEX($M$31:$AT$262,SMALL(IF(OFFSET($M$31:$AT$262,0,0,ROWS($M$31:$AT$262),1)=L39,ROW(OFFSET($M$31:$AT$262,0,0,ROWS($M$31:$AT$262),1))-ROW(OFFSET($M$31:$AT$262,0,0,1,1))+1,ROW(OFFSET($M$31:$AT$262,ROWS($M$31:$AT$262)-1,0,1,1))+1),2),34))),0)+IFERROR(IF((INDEX($M$31:$AT$262,SMALL(IF(OFFSET($M$31:$AT$262,0,0,ROWS($M$31:$AT$262),1)=L39,ROW(OFFSET($M$31:$AT$262,0,0,ROWS($M$31:$AT$262),1))-ROW(OFFSET($M$31:$AT$262,0,0,1,1))+1,ROW(OFFSET($M$31:$AT$262,ROWS($M$31:$AT$262)-1,0,1,1))+1),1),34))=VLOOKUP(M38,$M$31:$AT$262,34,FALSE),(INDEX($M$31:$AT$262,SMALL(IF(OFFSET($M$31:$AT$262,0,0,ROWS($M$31:$AT$262),1)=L39,ROW(OFFSET($M$31:$AT$262,0,0,ROWS($M$31:$AT$262),1))-ROW(OFFSET($M$31:$AT$262,0,0,1,1))+1,ROW(OFFSET($M$31:$AT$262,ROWS($M$31:$AT$262)-1,0,1,1))+1),3),34))),0)+IFERROR(IF((INDEX($M$31:$AT$262,SMALL(IF(OFFSET($M$31:$AT$262,0,0,ROWS($M$31:$AT$262),1)=L39,ROW(OFFSET($M$31:$AT$262,0,0,ROWS($M$31:$AT$262),1))-ROW(OFFSET($M$31:$AT$262,0,0,1,1))+1,ROW(OFFSET($M$31:$AT$262,ROWS($M$31:$AT$262)-1,0,1,1))+1),1),34))=VLOOKUP(M38,$M$31:$AT$262,34,FALSE),(INDEX($M$31:$AT$262,SMALL(IF(OFFSET($M$31:$AT$262,0,0,ROWS($M$31:$AT$262),1)=L39,ROW(OFFSET($M$31:$AT$262,0,0,ROWS($M$31:$AT$262),1))-ROW(OFFSET($M$31:$AT$262,0,0,1,1))+1,ROW(OFFSET($M$31:$AT$262,ROWS($M$31:$AT$262)-1,0,1,1))+1),4),34))),0)+IFERROR(IF((INDEX($M$31:$AT$262,SMALL(IF(OFFSET($M$31:$AT$262,0,0,ROWS($M$31:$AT$262),1)=L39,ROW(OFFSET($M$31:$AT$262,0,0,ROWS($M$31:$AT$262),1))-ROW(OFFSET($M$31:$AT$262,0,0,1,1))+1,ROW(OFFSET($M$31:$AT$262,ROWS($M$31:$AT$262)-1,0,1,1))+1),1),34))=VLOOKUP(M38,$M$31:$AT$262,34,FALSE),(INDEX($M$31:$AT$262,SMALL(IF(OFFSET($M$31:$AT$262,0,0,ROWS($M$31:$AT$262),1)=L39,ROW(OFFSET($M$31:$AT$262,0,0,ROWS($M$31:$AT$262),1))-ROW(OFFSET($M$31:$AT$262,0,0,1,1))+1,ROW(OFFSET($M$31:$AT$262,ROWS($M$31:$AT$262)-1,0,1,1))+1),5),34))),0)+IFERROR(IF((INDEX($M$31:$AT$262,SMALL(IF(OFFSET($M$31:$AT$262,0,0,ROWS($M$31:$AT$262),1)=L39,ROW(OFFSET($M$31:$AT$262,0,0,ROWS($M$31:$AT$262),1))-ROW(OFFSET($M$31:$AT$262,0,0,1,1))+1,ROW(OFFSET($M$31:$AT$262,ROWS($M$31:$AT$262)-1,0,1,1))+1),1),34))=VLOOKUP(M38,$M$31:$AT$262,34,FALSE),(INDEX($M$31:$AT$262,SMALL(IF(OFFSET($M$31:$AT$262,0,0,ROWS($M$31:$AT$262),1)=L39,ROW(OFFSET($M$31:$AT$262,0,0,ROWS($M$31:$AT$262),1))-ROW(OFFSET($M$31:$AT$262,0,0,1,1))+1,ROW(OFFSET($M$31:$AT$262,ROWS($M$31:$AT$262)-1,0,1,1))+1),6),34))),0)+IFERROR(IF((INDEX($M$31:$AT$262,SMALL(IF(OFFSET($M$31:$AT$262,0,0,ROWS($M$31:$AT$262),1)=L39,ROW(OFFSET($M$31:$AT$262,0,0,ROWS($M$31:$AT$262),1))-ROW(OFFSET($M$31:$AT$262,0,0,1,1))+1,ROW(OFFSET($M$31:$AT$262,ROWS($M$31:$AT$262)-1,0,1,1))+1),1),34))=VLOOKUP(M38,$M$31:$AT$262,34,FALSE),(INDEX($M$31:$AT$262,SMALL(IF(OFFSET($M$31:$AT$262,0,0,ROWS($M$31:$AT$262),1)=L39,ROW(OFFSET($M$31:$AT$262,0,0,ROWS($M$31:$AT$262),1))-ROW(OFFSET($M$31:$AT$262,0,0,1,1))+1,ROW(OFFSET($M$31:$AT$262,ROWS($M$31:$AT$262)-1,0,1,1))+1),7),34))),0)+IFERROR(IF((INDEX($M$31:$AT$262,SMALL(IF(OFFSET($M$31:$AT$262,0,0,ROWS($M$31:$AT$262),1)=L39,ROW(OFFSET($M$31:$AT$262,0,0,ROWS($M$31:$AT$262),1))-ROW(OFFSET($M$31:$AT$262,0,0,1,1))+1,ROW(OFFSET($M$31:$AT$262,ROWS($M$31:$AT$262)-1,0,1,1))+1),1),34))=VLOOKUP(M38,$M$31:$AT$262,34,FALSE),(INDEX($M$31:$AT$262,SMALL(IF(OFFSET($M$31:$AT$262,0,0,ROWS($M$31:$AT$262),1)=L39,ROW(OFFSET($M$31:$AT$262,0,0,ROWS($M$31:$AT$262),1))-ROW(OFFSET($M$31:$AT$262,0,0,1,1))+1,ROW(OFFSET($M$31:$AT$262,ROWS($M$31:$AT$262)-1,0,1,1))+1),8),34))),0)+IFERROR(IF((INDEX($M$31:$AT$262,SMALL(IF(OFFSET($M$31:$AT$262,0,0,ROWS($M$31:$AT$262),1)=L39,ROW(OFFSET($M$31:$AT$262,0,0,ROWS($M$31:$AT$262),1))-ROW(OFFSET($M$31:$AT$262,0,0,1,1))+1,ROW(OFFSET($M$31:$AT$262,ROWS($M$31:$AT$262)-1,0,1,1))+1),1),34))=VLOOKUP(M38,$M$31:$AT$262,34,FALSE),(INDEX($M$31:$AT$262,SMALL(IF(OFFSET($M$31:$AT$262,0,0,ROWS($M$31:$AT$262),1)=L39,ROW(OFFSET($M$31:$AT$262,0,0,ROWS($M$31:$AT$262),1))-ROW(OFFSET($M$31:$AT$262,0,0,1,1))+1,ROW(OFFSET($M$31:$AT$262,ROWS($M$31:$AT$262)-1,0,1,1))+1),9),34))),0)+IFERROR(IF((INDEX($M$31:$AT$262,SMALL(IF(OFFSET($M$31:$AT$262,0,0,ROWS($M$31:$AT$262),1)=L39,ROW(OFFSET($M$31:$AT$262,0,0,ROWS($M$31:$AT$262),1))-ROW(OFFSET($M$31:$AT$262,0,0,1,1))+1,ROW(OFFSET($M$31:$AT$262,ROWS($M$31:$AT$262)-1,0,1,1))+1),1),34))=VLOOKUP(M38,$M$31:$AT$262,34,FALSE),(INDEX($M$31:$AT$262,SMALL(IF(OFFSET($M$31:$AT$262,0,0,ROWS($M$31:$AT$262),1)=L39,ROW(OFFSET($M$31:$AT$262,0,0,ROWS($M$31:$AT$262),1))-ROW(OFFSET($M$31:$AT$262,0,0,1,1))+1,ROW(OFFSET($M$31:$AT$262,ROWS($M$31:$AT$262)-1,0,1,1))+1),10),34))),0),IF(M38<>L39,VLOOKUP(L39,$L$31:$AS$262,34,FALSE)+IFERROR(VLOOKUP(L39,$M$31:$AT$262,34,FALSE),0)))) -> 3.27694438 | AU39: 82.40416732 | AV39: 216.0270984 | AX39: 0 | AY39: =IF(L39="","",IF(ROW()=31,VLOOKUP(L39,$L$31:$AX$262,39,FALSE),IF(M38=L39,VLOOKUP(L39,$L$31:$AX$262,39,FALSE)+VLOOKUP(M38,$M$31:$AY$262,39,FALSE)+IFERROR(IF((INDEX($M$31:$AY$262,SMALL(IF(OFFSET($M$31:$AY$262,0,0,FILAX($M$31:$AY$262),1)=L39,ROW(OFFSET($M$31:$AY$262,0,0,FILAX($M$31:$AY$262),1))-ROW(OFFSET($M$31:$AY$262,0,0,1,1))+1,ROW(OFFSET($M$31:$AY$262,FILAX($M$31:$AY$262)-1,0,1,1))+1),1),39))=VLOOKUP(M38,$M$31:$AY$262,39,FALSE),(INDEX($M$31:$AY$262,SMALL(IF(OFFSET($M$31:$AY$262,0,0,FILAX($M$31:$AY$262),1)=L39,ROW(OFFSET($M$31:$AY$262,0,0,FILAX($M$31:$AY$262),1))-ROW(OFFSET($M$31:$AY$262,0,0,1,1))+1,ROW(OFFSET($M$31:$AY$262,FILAX($M$31:$AY$262)-1,0,1,1))+1),2),39))),0)+IFERROR(IF((INDEX($M$31:$AY$262,SMALL(IF(OFFSET($M$31:$AY$262,0,0,FILAX($M$31:$AY$262),1)=L39,ROW(OFFSET($M$31:$AY$262,0,0,FILAX($M$31:$AY$262),1))-ROW(OFFSET($M$31:$AY$262,0,0,1,1))+1,ROW(OFFSET($M$31:$AY$262,FILAX($M$31:$AY$262)-1,0,1,1))+1),1),39))=VLOOKUP(M38,$M$31:$AY$262,39,FALSE),(INDEX($M$31:$AY$262,SMALL(IF(OFFSET($M$31:$AY$262,0,0,FILAX($M$31:$AY$262),1)=L39,ROW(OFFSET($M$31:$AY$262,0,0,FILAX($M$31:$AY$262),1))-ROW(OFFSET($M$31:$AY$262,0,0,1,1))+1,ROW(OFFSET($M$31:$AY$262,FILAX($M$31:$AY$262)-1,0,1,1))+1),3),39))),0)+IFERROR(IF((INDEX($M$31:$AY$262,SMALL(IF(OFFSET($M$31:$AY$262,0,0,FILAX($M$31:$AY$262),1)=L39,ROW(OFFSET($M$31:$AY$262,0,0,FILAX($M$31:$AY$262),1))-ROW(OFFSET($M$31:$AY$262,0,0,1,1))+1,ROW(OFFSET($M$31:$AY$262,FILAX($M$31:$AY$262)-1,0,1,1))+1),1),39))=VLOOKUP(M38,$M$31:$AY$262,39,FALSE),(INDEX($M$31:$AY$262,SMALL(IF(OFFSET($M$31:$AY$262,0,0,FILAX($M$31:$AY$262),1)=L39,ROW(OFFSET($M$31:$AY$262,0,0,FILAX($M$31:$AY$262),1))-ROW(OFFSET($M$31:$AY$262,0,0,1,1))+1,ROW(OFFSET($M$31:$AY$262,FILAX($M$31:$AY$262)-1,0,1,1))+1),4),39))),0)+IFERROR(IF((INDEX($M$31:$AY$262,SMALL(IF(OFFSET($M$31:$AY$262,0,0,FILAX($M$31:$AY$262),1)=L39,ROW(OFFSET($M$31:$AY$262,0,0,FILAX($M$31:$AY$262),1))-ROW(OFFSET($M$31:$AY$262,0,0,1,1))+1,ROW(OFFSET($M$31:$AY$262,FILAX($M$31:$AY$262)-1,0,1,1))+1),1),39))=VLOOKUP(M38,$M$31:$AY$262,39,FALSE),(INDEX($M$31:$AY$262,SMALL(IF(OFFSET($M$31:$AY$262,0,0,FILAX($M$31:$AY$262),1)=L39,ROW(OFFSET($M$31:$AY$262,0,0,FILAX($M$31:$AY$262),1))-ROW(OFFSET($M$31:$AY$262,0,0,1,1))+1,ROW(OFFSET($M$31:$AY$262,FILAX($M$31:$AY$262)-1,0,1,1))+1),5),39))),0)+IFERROR(IF((INDEX($M$31:$AY$262,SMALL(IF(OFFSET($M$31:$AY$262,0,0,FILAX($M$31:$AY$262),1)=L39,ROW(OFFSET($M$31:$AY$262,0,0,FILAX($M$31:$AY$262),1))-ROW(OFFSET($M$31:$AY$262,0,0,1,1))+1,ROW(OFFSET($M$31:$AY$262,FILAX($M$31:$AY$262)-1,0,1,1))+1),1),39))=VLOOKUP(M38,$M$31:$AY$262,39,FALSE),(INDEX($M$31:$AY$262,SMALL(IF(OFFSET($M$31:$AY$262,0,0,FILAX($M$31:$AY$262),1)=L39,ROW(OFFSET($M$31:$AY$262,0,0,FILAX($M$31:$AY$262),1))-ROW(OFFSET($M$31:$AY$262,0,0,1,1))+1,ROW(OFFSET($M$31:$AY$262,FILAX($M$31:$AY$262)-1,0,1,1))+1),6),39))),0)+IFERROR(IF((INDEX($M$31:$AY$262,SMALL(IF(OFFSET($M$31:$AY$262,0,0,FILAX($M$31:$AY$262),1)=L39,ROW(OFFSET($M$31:$AY$262,0,0,FILAX($M$31:$AY$262),1))-ROW(OFFSET($M$31:$AY$262,0,0,1,1))+1,ROW(OFFSET($M$31:$AY$262,FILAX($M$31:$AY$262)-1,0,1,1))+1),1),39))=VLOOKUP(M38,$M$31:$AY$262,39,FALSE),(INDEX($M$31:$AY$262,SMALL(IF(OFFSET($M$31:$AY$262,0,0,FILAX($M$31:$AY$262),1)=L39,ROW(OFFSET($M$31:$AY$262,0,0,FILAX($M$31:$AY$262),1))-ROW(OFFSET($M$31:$AY$262,0,0,1,1))+1,ROW(OFFSET($M$31:$AY$262,FILAX($M$31:$AY$262)-1,0,1,1))+1),7),39))),0)+IFERROR(IF((INDEX($M$31:$AY$262,SMALL(IF(OFFSET($M$31:$AY$262,0,0,FILAX($M$31:$AY$262),1)=L39,ROW(OFFSET($M$31:$AY$262,0,0,FILAX($M$31:$AY$262),1))-ROW(OFFSET($M$31:$AY$262,0,0,1,1))+1,ROW(OFFSET($M$31:$AY$262,FILAX($M$31:$AY$262)-1,0,1,1))+1),1),39))=VLOOKUP(M38,$M$31:$AY$262,39,FALSE),(INDEX($M$31:$AY$262,SMALL(IF(OFFSET($M$31:$AY$262,0,0,FILAX($M$31:$AY$262),1)=L39,ROW(OFFSET($M$31:$AY$262,0,0,FILAX($M$31:$AY$262),1))-ROW(OFFSET($M$31:$AY$262,0,0,1,1))+1,ROW(OFFSET($M$31:$AY$262,FILAX($M$31:$AY$262)-1,0,1,1))+1),8),39))),0)+IFERROR(IF((INDEX($M$31:$AY$262,SMALL(IF(OFFSET($M$31:$AY$262,0,0,FILAX($M$31:$AY$262),1)=L39,ROW(OFFSET($M$31:$AY$262,0,0,FILAX($M$31:$AY$262),1))-ROW(OFFSET($M$31:$AY$262,0,0,1,1))+1,ROW(OFFSET($M$31:$AY$262,FILAX($M$31:$AY$262)-1,0,1,1))+1),1),39))=VLOOKUP(M38,$M$31:$AY$262,39,FALSE),(INDEX($M$31:$AY$262,SMALL(IF(OFFSET($M$31:$AY$262,0,0,FILAX($M$31:$AY$262),1)=L39,ROW(OFFSET($M$31:$AY$262,0,0,FILAX($M$31:$AY$262),1))-ROW(OFFSET($M$31:$AY$262,0,0,1,1))+1,ROW(OFFSET($M$31:$AY$262,FILAX($M$31:$AY$262)-1,0,1,1))+1),9),39))),0)+IFERROR(IF((INDEX($M$31:$AY$262,SMALL(IF(OFFSET($M$31:$AY$262,0,0,FILAX($M$31:$AY$262),1)=L39,ROW(OFFSET($M$31:$AY$262,0,0,FILAX($M$31:$AY$262),1))-ROW(OFFSET($M$31:$AY$262,0,0,1,1))+1,ROW(OFFSET($M$31:$AY$262,FILAX($M$31:$AY$262)-1,0,1,1))+1),1),39))=VLOOKUP(M38,$M$31:$AY$262,39,FALSE),(INDEX($M$31:$AY$262,SMALL(IF(OFFSET($M$31:$AY$262,0,0,FILAX($M$31:$AY$262),1)=L39,ROW(OFFSET($M$31:$AY$262,0,0,FILAX($M$31:$AY$262),1))-ROW(OFFSET($M$31:$AY$262,0,0,1,1))+1,ROW(OFFSET($M$31:$AY$262,FILAX($M$31:$AY$262)-1,0,1,1))+1),10),39))),0),IF(M38<>L39,VLOOKUP(L39,$L$31:$AX$262,39,FALSE)+IFERROR(VLOOKUP(L39,$M$31:$AY$262,39,FALSE),0))))) -> 0 | AZ39: 216.0270984 | BA39: 6.592333386 | BB39: 0.1105634775 | BC39: -1.357454488e-05 | BD39: PD19 | BE39: PD10 | BF39: 43.73227823 | BG39: PVC | BH39: =IF(OR($L39="",$M39="",BG39=""),"",INDEX('Tablas y listas'!$D$4:$G$17,MATCH('1. Analisis Flujo Uniforme'!BG39,'Tablas y listas'!$D$4:$D$17,0),4)) -> 0.0125 | BI39: 24 | BJ39: =IF(OR(BI39=""),"",IFERROR(IF($BI$30="Pulgadas",INDEX('Tablas y listas'!$B$64:$D$89,MATCH('1. Analisis Flujo Uniforme'!BI39,CONCRETO_Pulgadas,0),3),IF($BI$30="mm",BI39/(10*100))),"Indique φ")) -> 0.6 | BK39: 0.5716601333 | BL39: 0.3 | BM39: =IF(CT39="","",CT39) -> 0.6224584766 | BN39: Subcrítico | BO39: =IF(CK39="","",CK39) -> 0.6176432931 | BP39: =IF(CN39="","",CN39) -> 1.131324385 | BQ39: 1.934725435 | BR39: 1.81592227 | BV39: 2540.565275 | BW39: 2540.434078 | BX39: 2539.965275 | BY39: 2539.834078 | BZ39: =IF(DY39="","",DY39) -> 2540.418185 | CA39: 2540.286988 | CB39: =IF(DM39="","",DM39) -> 0.5173522206 | CE39: PD19 | CF39: PD10 | CG39: =IF(OR($L39="",$M39=""),"",IF(MAX(IFERROR(INDEX(MatrizQs1,SMALL(IF(OFFSET(MatrizQs1,0,0,ROWS(MatrizQs1),1)=CF39,ROW(OFFSET(MatrizQs1,0,0,ROWS(MatrizQs1),1))-ROW(OFFSET(MatrizQs1,0,0,1,1))+1,ROW(OFFSET(MatrizQs1,ROWS(MatrizQs1)-1,0,1,1))+1),1),41),0),IFERROR(INDEX(MatrizQs1,SMALL(IF(OFFSET(MatrizQs1,0,0,ROWS(MatrizQs1),1)=CF39,ROW(OFFSET(MatrizQs1,0,0,ROWS(MatrizQs1),1))-ROW(OFFSET(MatrizQs1,0,0,1,1))+1,ROW(OFFSET(MatrizQs1,ROWS(MatrizQs1)-1,0,1,1))+1),2),41),0),IFERROR(INDEX(MatrizQs1,SMALL(IF(OFFSET(MatrizQs1,0,0,ROWS(MatrizQs1),1)=CF39,ROW(OFFSET(MatrizQs1,0,0,ROWS(MatrizQs1),1))-ROW(OFFSET(MatrizQs1,0,0,1,1))+1,ROW(OFFSET(MatrizQs1,ROWS(MatrizQs1)-1,0,1,1))+1),3),41),0),IFERROR(INDEX(MatrizQs1,SMALL(IF(OFFSET(MatrizQs1,0,0,ROWS(MatrizQs1),1)=CF39,ROW(OFFSET(MatrizQs1,0,0,ROWS(MatrizQs1),1))-ROW(OFFSET(MatrizQs1,0,0,1,1))+1,ROW(OFFSET(MatrizQs1,ROWS(MatrizQs1)-1,0,1,1))+1),4),41),0),IFERROR(INDEX(MatrizQs1,SMALL(IF(OFFSET(MatrizQs1,0,0,ROWS(MatrizQs1),1)=CF39,ROW(OFFSET(MatrizQs1,0,0,ROWS(MatrizQs1),1))-ROW(OFFSET(MatrizQs1,0,0,1,1))+1,ROW(OFFSET(MatrizQs1,ROWS(MatrizQs1)-1,0,1,1))+1),5),41),0),IFERROR(INDEX(MatrizQs1,SMALL(IF(OFFSET(MatrizQs1,0,0,ROWS(MatrizQs1),1)=CF39,ROW(OFFSET(MatrizQs1,0,0,ROWS(MatrizQs1),1))-ROW(OFFSET(MatrizQs1,0,0,1,1))+1,ROW(OFFSET(MatrizQs1,ROWS(MatrizQs1)-1,0,1,1))+1),6),41),0),IFERROR(INDEX(MatrizQs1,SMALL(IF(OFFSET(MatrizQs1,0,0,ROWS(MatrizQs1),1)=CF39,ROW(OFFSET(MatrizQs1,0,0,ROWS(MatrizQs1),1))-ROW(OFFSET(MatrizQs1,0,0,1,1))+1,ROW(OFFSET(MatrizQs1,ROWS(MatrizQs1)-1,0,1,1))+1),7),41),0),IFERROR(INDEX(MatrizQs1,SMALL(IF(OFFSET(MatrizQs1,0,0,ROWS(MatrizQs1),1)=CF39,ROW(OFFSET(MatrizQs1,0,0,ROWS(MatrizQs1),1))-ROW(OFFSET(MatrizQs1,0,0,1,1))+1,ROW(OFFSET(MatrizQs1,ROWS(MatrizQs1)-1,0,1,1))+1),8),41),0))=0,IFERROR(INDEX(matrizQs,SMALL(IF(OFFSET(matrizQs,0,0,ROWS(matrizQs),1)=CF39,ROW(OFFSET(matrizQs,0,0,ROWS(matrizQs),1))-ROW(OFFSET(matrizQs,0,0,1,1))+1,ROW(OFFSET(matrizQs,ROWS(matrizQs)-1,0,1,1))+1),1),40),0),MAX(IFERROR(INDEX(MatrizQs1,SMALL(IF(OFFSET(MatrizQs1,0,0,ROWS(MatrizQs1),1)=CF39,ROW(OFFSET(MatrizQs1,0,0,ROWS(MatrizQs1),1))-ROW(OFFSET(MatrizQs1,0,0,1,1))+1,ROW(OFFSET(MatrizQs1,ROWS(MatrizQs1)-1,0,1,1))+1),1),41),0),IFERROR(INDEX(MatrizQs1,SMALL(IF(OFFSET(MatrizQs1,0,0,ROWS(MatrizQs1),1)=CF39,ROW(OFFSET(MatrizQs1,0,0,ROWS(MatrizQs1),1))-ROW(OFFSET(MatrizQs1,0,0,1,1))+1,ROW(OFFSET(MatrizQs1,ROWS(MatrizQs1)-1,0,1,1))+1),2),41),0),IFERROR(INDEX(MatrizQs1,SMALL(IF(OFFSET(MatrizQs1,0,0,ROWS(MatrizQs1),1)=CF39,ROW(OFFSET(MatrizQs1,0,0,ROWS(MatrizQs1),1))-ROW(OFFSET(MatrizQs1,0,0,1,1))+1,ROW(OFFSET(MatrizQs1,ROWS(MatrizQs1)-1,0,1,1))+1),3),41),0),IFERROR(INDEX(MatrizQs1,SMALL(IF(OFFSET(MatrizQs1,0,0,ROWS(MatrizQs1),1)=CF39,ROW(OFFSET(MatrizQs1,0,0,ROWS(MatrizQs1),1))-ROW(OFFSET(MatrizQs1,0,0,1,1))+1,ROW(OFFSET(MatrizQs1,ROWS(MatrizQs1)-1,0,1,1))+1),4),41),0),IFERROR(INDEX(MatrizQs1,SMALL(IF(OFFSET(MatrizQs1,0,0,ROWS(MatrizQs1),1)=CF39,ROW(OFFSET(MatrizQs1,0,0,ROWS(MatrizQs1),1))-ROW(OFFSET(MatrizQs1,0,0,1,1))+1,ROW(OFFSET(MatrizQs1,ROWS(MatrizQs1)-1,0,1,1))+1),5),41),0),IFERROR(INDEX(MatrizQs1,SMALL(IF(OFFSET(MatrizQs1,0,0,ROWS(MatrizQs1),1)=CF39,ROW(OFFSET(MatrizQs1,0,0,ROWS(MatrizQs1),1))-ROW(OFFSET(MatrizQs1,0,0,1,1))+1,ROW(OFFSET(MatrizQs1,ROWS(MatrizQs1)-1,0,1,1))+1),6),41),0),IFERROR(INDEX(MatrizQs1,SMALL(IF(OFFSET(MatrizQs1,0,0,ROWS(MatrizQs1),1)=CF39,ROW(OFFSET(MatrizQs1,0,0,ROWS(MatrizQs1),1))-ROW(OFFSET(MatrizQs1,0,0,1,1))+1,ROW(OFFSET(MatrizQs1,ROWS(MatrizQs1)-1,0,1,1))+1),7),41),0),IFERROR(INDEX(MatrizQs1,SMALL(IF(OFFSET(MatrizQs1,0,0,ROWS(MatrizQs1),1)=CF39,ROW(OFFSET(MatrizQs1,0,0,ROWS(MatrizQs1),1))-ROW(OFFSET(MatrizQs1,0,0,1,1))+1,ROW(OFFSET(MatrizQs1,ROWS(MatrizQs1)-1,0,1,1))+1),8),41),0)))) -> 406.907327 | CH39: =IF(OR($L39="",$M39=""),"",IF(MAX(IFERROR(INDEX(MDSU,SMALL(IF(OFFSET(MDSU,0,0,ROWS(MDSU),1)=CF39,ROW(OFFSET(MDSU,0,0,ROWS(MDSU),1))-ROW(OFFSET(MDSU,0,0,1,1))+1,ROW(OFFSET(MDSU,ROWS(MDSU)-1,0,1,1))+1),1),7),0),IFERROR(INDEX(MDSU,SMALL(IF(OFFSET(MDSU,0,0,ROWS(MDSU),1)=CF39,ROW(OFFSET(MDSU,0,0,ROWS(MDSU),1))-ROW(OFFSET(MDSU,0,0,1,1))+1,ROW(OFFSET(MDSU,ROWS(MDSU)-1,0,1,1))+1),2),7),0),IFERROR(INDEX(MDSU,SMALL(IF(OFFSET(MDSU,0,0,ROWS(MDSU),1)=CF39,ROW(OFFSET(MDSU,0,0,ROWS(MDSU),1))-ROW(OFFSET(MDSU,0,0,1,1))+1,ROW(OFFSET(MDSU,ROWS(MDSU)-1,0,1,1))+1),3),7),0),IFERROR(INDEX(MDSU,SMALL(IF(OFFSET(MDSU,0,0,ROWS(MDSU),1)=CF39,ROW(OFFSET(MDSU,0,0,ROWS(MDSU),1))-ROW(OFFSET(MDSU,0,0,1,1))+1,ROW(OFFSET(MDSU,ROWS(MDSU)-1,0,1,1))+1),4),7),0),IFERROR(INDEX(MDSU,SMALL(IF(OFFSET(MDSU,0,0,ROWS(MDSU),1)=CF39,ROW(OFFSET(MDSU,0,0,ROWS(MDSU),1))-ROW(OFFSET(MDSU,0,0,1,1))+1,ROW(OFFSET(MDSU,ROWS(MDSU)-1,0,1,1))+1),5),7),0),IFERROR(INDEX(MDSU,SMALL(IF(OFFSET(MDSU,0,0,ROWS(MDSU),1)=CF39,ROW(OFFSET(MDSU,0,0,ROWS(MDSU),1))-ROW(OFFSET(MDSU,0,0,1,1))+1,ROW(OFFSET(MDSU,ROWS(MDSU)-1,0,1,1))+1),6),7),0),IFERROR(INDEX(MDSU,SMALL(IF(OFFSET(MDSU,0,0,ROWS(MDSU),1)=CF39,ROW(OFFSET(MDSU,0,0,ROWS(MDSU),1))-ROW(OFFSET(MDSU,0,0,1,1))+1,ROW(OFFSET(MDSU,ROWS(MDSU)-1,0,1,1))+1),7),7),0),IFERROR(INDEX(MDSU,SMALL(IF(OFFSET(MDSU,0,0,ROWS(MDSU),1)=CF39,ROW(OFFSET(MDSU,0,0,ROWS(MDSU),1))-ROW(OFFSET(MDSU,0,0,1,1))+1,ROW(OFFSET(MDSU,ROWS(MDSU)-1,0,1,1))+1),8),7),0))=0,IFERROR(INDEX(MDS,SMALL(IF(OFFSET(MDS,0,0,ROWS(MDS),1)=CF39,ROW(OFFSET(MDS,0,0,ROWS(MDS),1))-ROW(OFFSET(MDS,0,0,1,1))+1,ROW(OFFSET(MDS,ROWS(MDS)-1,0,1,1))+1),1),6),0),MAX(IFERROR(INDEX(MDSU,SMALL(IF(OFFSET(MDSU,0,0,ROWS(MDSU),1)=CF39,ROW(OFFSET(MDSU,0,0,ROWS(MDSU),1))-ROW(OFFSET(MDSU,0,0,1,1))+1,ROW(OFFSET(MDSU,ROWS(MDSU)-1,0,1,1))+1),1),7),0),IFERROR(INDEX(MDSU,SMALL(IF(OFFSET(MDSU,0,0,ROWS(MDSU),1)=CF39,ROW(OFFSET(MDSU,0,0,ROWS(MDSU),1))-ROW(OFFSET(MDSU,0,0,1,1))+1,ROW(OFFSET(MDSU,ROWS(MDSU)-1,0,1,1))+1),2),7),0),IFERROR(INDEX(MDSU,SMALL(IF(OFFSET(MDSU,0,0,ROWS(MDSU),1)=CF39,ROW(OFFSET(MDSU,0,0,ROWS(MDSU),1))-ROW(OFFSET(MDSU,0,0,1,1))+1,ROW(OFFSET(MDSU,ROWS(MDSU)-1,0,1,1))+1),3),7),0),IFERROR(INDEX(MDSU,SMALL(IF(OFFSET(MDSU,0,0,ROWS(MDSU),1)=CF39,ROW(OFFSET(MDSU,0,0,ROWS(MDSU),1))-ROW(OFFSET(MDSU,0,0,1,1))+1,ROW(OFFSET(MDSU,ROWS(MDSU)-1,0,1,1))+1),4),7),0),IFERROR(INDEX(MDSU,SMALL(IF(OFFSET(MDSU,0,0,ROWS(MDSU),1)=CF39,ROW(OFFSET(MDSU,0,0,ROWS(MDSU),1))-ROW(OFFSET(MDSU,0,0,1,1))+1,ROW(OFFSET(MDSU,ROWS(MDSU)-1,0,1,1))+1),5),7),0),IFERROR(INDEX(MDSU,SMALL(IF(OFFSET(MDSU,0,0,ROWS(MDSU),1)=CF39,ROW(OFFSET(MDSU,0,0,ROWS(MDSU),1))-ROW(OFFSET(MDSU,0,0,1,1))+1,ROW(OFFSET(MDSU,ROWS(MDSU)-1,0,1,1))+1),6),7),0),IFERROR(INDEX(MDSU,SMALL(IF(OFFSET(MDSU,0,0,ROWS(MDSU),1)=CF39,ROW(OFFSET(MDSU,0,0,ROWS(MDSU),1))-ROW(OFFSET(MDSU,0,0,1,1))+1,ROW(OFFSET(MDSU,ROWS(MDSU)-1,0,1,1))+1),7),7),0),IFERROR(INDEX(MDSU,SMALL(IF(OFFSET(MDSU,0,0,ROWS(MDSU),1)=CF39,ROW(OFFSET(MDSU,0,0,ROWS(MDSU),1))-ROW(OFFSET(MDSU,0,0,1,1))+1,ROW(OFFSET(MDSU,ROWS(MDSU)-1,0,1,1))+1),8),7),0)))) -> 0.7 | CI39: 349.7602917 | CJ39: 1.237023985 | CK39: 0.6176432931 | CL39: =IF(BJ39=0,"",IFERROR((CM39/BJ39),"")) -> 0.6461264604 | CM39: =IF(BI39=0,"",IFERROR(BJ39*0.858451597*(CK39)^0.5896824401,"")) -> 0.3876758763 | CN39: =IF(OR($L39="",$M39=""),"",IF(BJ39=0,"",IFERROR(CJ39*1.054148687*(CK39)^0.2948111209,""))) -> 1.131324385 | CO39: =IF(OR($L39="",$M39=""),"",IF(CM39=0,"",IFERROR(2*ACOS(1-(2*CM39)/BJ39),""))) -> 3.734756181 | CP39: =IF(OR($L39="",$M39=""),"",IFERROR(0.125*(CO39-SIN(CO39))*BJ39^2,"")) -> 0.1932184404 | CQ39: =IF(OR($L39="",$M39=""),"",IFERROR(0.5*CO39*BJ39,"")) -> 1.120426854 | CR39: =IF(OR($L39="",$M39=""),"",IFERROR(IF(CP39=0,"",+CP39/CQ39),"")) -> 0.1724507402 | CS39: =IF(OR($L39="",$M39=""),"",IFERROR(IF(CO39=0,"",1/8*((CO39-SIN(CO39))/SIN(CO39/2))*BJ39),"")) -> 0.3367320992 | CT39: =IF(OR($L39="",$M39=""),"",IFERROR(IF(CN39=0,"",CN39/SQRT(9.81*CS39)),"")) -> 0.6224584766 | CU39: =IF(OR($L39="",$M39=""),"",IFERROR(IF(OR(CT39=0,CT39=""),"",IF(CT39<0.9,"Subcrítico",IF(CT39>1.1,"Supercrítico","Crítico"))),"")) -> Subcrítico | CV39: =IF(OR($L39="",$M39=""),"",IFERROR(CN39^2/(9.81*2),"")) -> 0.06523419285 | CW39: =IF(OR($L39="",$M39=""),"",IFERROR(IF(CV39=0,"",CM39+CV39),0)) -> 0.4529100691 | CY39: 1.071428571 | CZ39: =IF(CT39=0,"",IF(CT39<0.9,IF(CY39>3,0.05*CV39,IF(AND(CY39>=1.5,CY39<3),0.2*CV39,IF(AND(CY39>=1,CY39<1.5),0.4*CV39))),IF(CT39>1.1,""))) -> 0.02609367714 | DA39: =IF(OR($L39="",$M39=""),"",IFERROR(IF(CV39=0,"",0.2*((CV40-CV39))),0)) -> 0 | DB39: =IF(OR($L39="",$M39=""),"",IFERROR(IF(CT39=0,0,IF(CT39<=0.9,IF(CX39>CW39,CZ39+DA39+CX39-CW39,CZ39+DA39),"")),0)) -> 0 | DC39: 1.5 | DD39: 2.142857143 | DE39: =IF(OR($L39="",$M39=""),"",IFERROR(IF(BI39=0,"",1.0381283*BJ39*DG39^0.5208062),0)) -> 0 | DF39: 1.2 | DG39: =IF(OR($L39="",$M39="",CT39=""),"",IFERROR(IF(CT39=0,"",IF(CT39>1.1,0.319*(CG39/1000)/CH39^2.5,"")),0)) ->  | DH39: =IF(OR($L39="",$M39=""),"",IFERROR(IF(DG39=0,"",IF(DG39>0.62,"",2*ACOS(1-2*DE39/CD39))),"")) ->  | DI39: =IF(OR($L39="",$M39=""),"",IFERROR(IF(DH39=0,"",IF(DG39>0.62,0,((BZ39*8)/(DH39-SIN(DH39))/1000/(CD39)^2)^2/19.62+DE39)),"")) -> 0 | DJ39: =IF(OR($L39="",$M39=""),"",IFERROR(IF(DG39=0,"",IF(DG39>0.62,"",0.589*DG39^2.67*CH39)),"")) ->  | DK39: =IF(OR($L39="",$M39=""),"",IFERROR(IF(BI39=0,"",IF(DG39>0.62,CH39*DF39*(DG39^2*1.91+0.7),DF39*(DI39+DJ39))),0)) -> 0 | DL39: 0.1311968347 | DM39: =IF(OR($L39="",$M39=""),"",IFERROR(IF(BL39=0,"",1000*CR39*BL39/100),"")) -> 0.5173522206 | DN39: 2542.5 | DO39: 2542.25 | DP39: 0 | DQ39: 0 | DR39: 2540.565275 | DS39: 2540.434078 | DT39: =IF(OR($L39="",$M39=""),"",IF(MIN(IFERROR(INDEX(Matriz_busq,SMALL(IF(OFFSET(Matriz_busq,0,0,ROWS(Matriz_busq),1)=BD39,ROW(OFFSET(Matriz_busq,0,0,ROWS(Matriz_busq),1))-ROW(OFFSET(Matriz_busq,0,0,1,1))+1,ROW(OFFSET(Matriz_busq,ROWS(Matriz_busq)-1,0,1,1))+1),1),40),10000),IFERROR(INDEX(Matriz_busq,SMALL(IF(OFFSET(Matriz_busq,0,0,ROWS(Matriz_busq),1)=BD39,ROW(OFFSET(Matriz_busq,0,0,ROWS(Matriz_busq),1))-ROW(OFFSET(Matriz_busq,0,0,1,1))+1,ROW(OFFSET(Matriz_busq,ROWS(Matriz_busq)-1,0,1,1))+1),2),40),10000),IFERROR(INDEX(Matriz_busq,SMALL(IF(OFFSET(Matriz_busq,0,0,ROWS(Matriz_busq),1)=BD39,ROW(OFFSET(Matriz_busq,0,0,ROWS(Matriz_busq),1))-ROW(OFFSET(Matriz_busq,0,0,1,1))+1,ROW(OFFSET(Matriz_busq,ROWS(Matriz_busq)-1,0,1,1))+1),3),40),10000),IFERROR(INDEX(Matriz_busq,SMALL(IF(OFFSET(Matriz_busq,0,0,ROWS(Matriz_busq),1)=BD39,ROW(OFFSET(Matriz_busq,0,0,ROWS(Matriz_busq),1))-ROW(OFFSET(Matriz_busq,0,0,1,1))+1,ROW(OFFSET(Matriz_busq,ROWS(Matriz_busq)-1,0,1,1))+1),4),40),10000),IFERROR(INDEX(Matriz_busq,SMALL(IF(OFFSET(Matriz_busq,0,0,ROWS(Matriz_busq),1)=BD39,ROW(OFFSET(Matriz_busq,0,0,ROWS(Matriz_busq),1))-ROW(OFFSET(Matriz_busq,0,0,1,1))+1,ROW(OFFSET(Matriz_busq,ROWS(Matriz_busq)-1,0,1,1))+1),5),40),10000),IFERROR(INDEX(Matriz_busq,SMALL(IF(OFFSET(Matriz_busq,0,0,ROWS(Matriz_busq),1)=BD39,ROW(OFFSET(Matriz_busq,0,0,ROWS(Matriz_busq),1))-ROW(OFFSET(Matriz_busq,0,0,1,1))+1,ROW(OFFSET(Matriz_busq,ROWS(Matriz_busq)-1,0,1,1))+1),6),40),10000),IFERROR(INDEX(Matriz_busq,SMALL(IF(OFFSET(Matriz_busq,0,0,ROWS(Matriz_busq),1)=BD39,ROW(OFFSET(Matriz_busq,0,0,ROWS(Matriz_busq),1))-ROW(OFFSET(Matriz_busq,0,0,1,1))+1,ROW(OFFSET(Matriz_busq,ROWS(Matriz_busq)-1,0,1,1))+1),7),40),10000),IFERROR(INDEX(Matriz_busq,SMALL(IF(OFFSET(Matriz_busq,0,0,ROWS(Matriz_busq),1)=BD39,ROW(OFFSET(Matriz_busq,0,0,ROWS(Matriz_busq),1))-ROW(OFFSET(Matriz_busq,0,0,1,1))+1,ROW(OFFSET(Matriz_busq,ROWS(Matriz_busq)-1,0,1,1))+1),8),40),10000))=10000,0,MIN(IFERROR(INDEX(Matriz_busq,SMALL(IF(OFFSET(Matriz_busq,0,0,ROWS(Matriz_busq),1)=BD39,ROW(OFFSET(Matriz_busq,0,0,ROWS(Matriz_busq),1))-ROW(OFFSET(Matriz_busq,0,0,1,1))+1,ROW(OFFSET(Matriz_busq,ROWS(Matriz_busq)-1,0,1,1))+1),1),40),10000),IFERROR(INDEX(Matriz_busq,SMALL(IF(OFFSET(Matriz_busq,0,0,ROWS(Matriz_busq),1)=BD39,ROW(OFFSET(Matriz_busq,0,0,ROWS(Matriz_busq),1))-ROW(OFFSET(Matriz_busq,0,0,1,1))+1,ROW(OFFSET(Matriz_busq,ROWS(Matriz_busq)-1,0,1,1))+1),2),40),10000),IFERROR(INDEX(Matriz_busq,SMALL(IF(OFFSET(Matriz_busq,0,0,ROWS(Matriz_busq),1)=BD39,ROW(OFFSET(Matriz_busq,0,0,ROWS(Matriz_busq),1))-ROW(OFFSET(Matriz_busq,0,0,1,1))+1,ROW(OFFSET(Matriz_busq,ROWS(Matriz_busq)-1,0,1,1))+1),3),40),10000),IFERROR(INDEX(Matriz_busq,SMALL(IF(OFFSET(Matriz_busq,0,0,ROWS(Matriz_busq),1)=BD39,ROW(OFFSET(Matriz_busq,0,0,ROWS(Matriz_busq),1))-ROW(OFFSET(Matriz_busq,0,0,1,1))+1,ROW(OFFSET(Matriz_busq,ROWS(Matriz_busq)-1,0,1,1))+1),4),40),10000),IFERROR(INDEX(Matriz_busq,SMALL(IF(OFFSET(Matriz_busq,0,0,ROWS(Matriz_busq),1)=BD39,ROW(OFFSET(Matriz_busq,0,0,ROWS(Matriz_busq),1))-ROW(OFFSET(Matriz_busq,0,0,1,1))+1,ROW(OFFSET(Matriz_busq,ROWS(Matriz_busq)-1,0,1,1))+1),5),40),10000),IFERROR(INDEX(Matriz_busq,SMALL(IF(OFFSET(Matriz_busq,0,0,ROWS(Matriz_busq),1)=BD39,ROW(OFFSET(Matriz_busq,0,0,ROWS(Matriz_busq),1))-ROW(OFFSET(Matriz_busq,0,0,1,1))+1,ROW(OFFSET(Matriz_busq,ROWS(Matriz_busq)-1,0,1,1))+1),6),40),10000),IFERROR(INDEX(Matriz_busq,SMALL(IF(OFFSET(Matriz_busq,0,0,ROWS(Matriz_busq),1)=BD39,ROW(OFFSET(Matriz_busq,0,0,ROWS(Matriz_busq),1))-ROW(OFFSET(Matriz_busq,0,0,1,1))+1,ROW(OFFSET(Matriz_busq,ROWS(Matriz_busq)-1,0,1,1))+1),7),40),10000),IFERROR(INDEX(Matriz_busq,SMALL(IF(OFFSET(Matriz_busq,0,0,ROWS(Matriz_busq),1)=BD39,ROW(OFFSET(Matriz_busq,0,0,ROWS(Matriz_busq),1))-ROW(OFFSET(Matriz_busq,0,0,1,1))+1,ROW(OFFSET(Matriz_busq,ROWS(Matriz_busq)-1,0,1,1))+1),8),40),10000)))) -> 2540.520614 | DU39: 1.934725435 | DV39: 1.81592227 | DW39: 2539.965275 | DX39: 2539.834078 | DY39: =IF(OR($L39="",$M39=""),"",IFERROR(IF(DW39=0,"",DW39+CW39),"")) -> 2540.418185 | DZ39: =IF(OR($L39="",$M39=""),"",IFERROR(IF(DX39=0,"",DX39+CW39),"")) -> 2540.286988
A40: PD10 | B40: Tipo_1 | D40: No aplica | F40: 92825.6596 | G40: 107559.8557 | H40: 2542.25 | AT40: =IF(L40="","",IF(M39=L40,VLOOKUP(L40,$L$31:$AS$262,34,FALSE)+VLOOKUP(M39,$M$31:$AT$262,34,FALSE)+IFERROR(IF((INDEX($M$31:$AT$262,SMALL(IF(OFFSET($M$31:$AT$262,0,0,ROWS($M$31:$AT$262),1)=L40,ROW(OFFSET($M$31:$AT$262,0,0,ROWS($M$31:$AT$262),1))-ROW(OFFSET($M$31:$AT$262,0,0,1,1))+1,ROW(OFFSET($M$31:$AT$262,ROWS($M$31:$AT$262)-1,0,1,1))+1),1),34))=VLOOKUP(M39,$M$31:$AT$262,34,FALSE),(INDEX($M$31:$AT$262,SMALL(IF(OFFSET($M$31:$AT$262,0,0,ROWS($M$31:$AT$262),1)=L40,ROW(OFFSET($M$31:$AT$262,0,0,ROWS($M$31:$AT$262),1))-ROW(OFFSET($M$31:$AT$262,0,0,1,1))+1,ROW(OFFSET($M$31:$AT$262,ROWS($M$31:$AT$262)-1,0,1,1))+1),2),34))),0)+IFERROR(IF((INDEX($M$31:$AT$262,SMALL(IF(OFFSET($M$31:$AT$262,0,0,ROWS($M$31:$AT$262),1)=L40,ROW(OFFSET($M$31:$AT$262,0,0,ROWS($M$31:$AT$262),1))-ROW(OFFSET($M$31:$AT$262,0,0,1,1))+1,ROW(OFFSET($M$31:$AT$262,ROWS($M$31:$AT$262)-1,0,1,1))+1),1),34))=VLOOKUP(M39,$M$31:$AT$262,34,FALSE),(INDEX($M$31:$AT$262,SMALL(IF(OFFSET($M$31:$AT$262,0,0,ROWS($M$31:$AT$262),1)=L40,ROW(OFFSET($M$31:$AT$262,0,0,ROWS($M$31:$AT$262),1))-ROW(OFFSET($M$31:$AT$262,0,0,1,1))+1,ROW(OFFSET($M$31:$AT$262,ROWS($M$31:$AT$262)-1,0,1,1))+1),3),34))),0)+IFERROR(IF((INDEX($M$31:$AT$262,SMALL(IF(OFFSET($M$31:$AT$262,0,0,ROWS($M$31:$AT$262),1)=L40,ROW(OFFSET($M$31:$AT$262,0,0,ROWS($M$31:$AT$262),1))-ROW(OFFSET($M$31:$AT$262,0,0,1,1))+1,ROW(OFFSET($M$31:$AT$262,ROWS($M$31:$AT$262)-1,0,1,1))+1),1),34))=VLOOKUP(M39,$M$31:$AT$262,34,FALSE),(INDEX($M$31:$AT$262,SMALL(IF(OFFSET($M$31:$AT$262,0,0,ROWS($M$31:$AT$262),1)=L40,ROW(OFFSET($M$31:$AT$262,0,0,ROWS($M$31:$AT$262),1))-ROW(OFFSET($M$31:$AT$262,0,0,1,1))+1,ROW(OFFSET($M$31:$AT$262,ROWS($M$31:$AT$262)-1,0,1,1))+1),4),34))),0)+IFERROR(IF((INDEX($M$31:$AT$262,SMALL(IF(OFFSET($M$31:$AT$262,0,0,ROWS($M$31:$AT$262),1)=L40,ROW(OFFSET($M$31:$AT$262,0,0,ROWS($M$31:$AT$262),1))-ROW(OFFSET($M$31:$AT$262,0,0,1,1))+1,ROW(OFFSET($M$31:$AT$262,ROWS($M$31:$AT$262)-1,0,1,1))+1),1),34))=VLOOKUP(M39,$M$31:$AT$262,34,FALSE),(INDEX($M$31:$AT$262,SMALL(IF(OFFSET($M$31:$AT$262,0,0,ROWS($M$31:$AT$262),1)=L40,ROW(OFFSET($M$31:$AT$262,0,0,ROWS($M$31:$AT$262),1))-ROW(OFFSET($M$31:$AT$262,0,0,1,1))+1,ROW(OFFSET($M$31:$AT$262,ROWS($M$31:$AT$262)-1,0,1,1))+1),5),34))),0)+IFERROR(IF((INDEX($M$31:$AT$262,SMALL(IF(OFFSET($M$31:$AT$262,0,0,ROWS($M$31:$AT$262),1)=L40,ROW(OFFSET($M$31:$AT$262,0,0,ROWS($M$31:$AT$262),1))-ROW(OFFSET($M$31:$AT$262,0,0,1,1))+1,ROW(OFFSET($M$31:$AT$262,ROWS($M$31:$AT$262)-1,0,1,1))+1),1),34))=VLOOKUP(M39,$M$31:$AT$262,34,FALSE),(INDEX($M$31:$AT$262,SMALL(IF(OFFSET($M$31:$AT$262,0,0,ROWS($M$31:$AT$262),1)=L40,ROW(OFFSET($M$31:$AT$262,0,0,ROWS($M$31:$AT$262),1))-ROW(OFFSET($M$31:$AT$262,0,0,1,1))+1,ROW(OFFSET($M$31:$AT$262,ROWS($M$31:$AT$262)-1,0,1,1))+1),6),34))),0)+IFERROR(IF((INDEX($M$31:$AT$262,SMALL(IF(OFFSET($M$31:$AT$262,0,0,ROWS($M$31:$AT$262),1)=L40,ROW(OFFSET($M$31:$AT$262,0,0,ROWS($M$31:$AT$262),1))-ROW(OFFSET($M$31:$AT$262,0,0,1,1))+1,ROW(OFFSET($M$31:$AT$262,ROWS($M$31:$AT$262)-1,0,1,1))+1),1),34))=VLOOKUP(M39,$M$31:$AT$262,34,FALSE),(INDEX($M$31:$AT$262,SMALL(IF(OFFSET($M$31:$AT$262,0,0,ROWS($M$31:$AT$262),1)=L40,ROW(OFFSET($M$31:$AT$262,0,0,ROWS($M$31:$AT$262),1))-ROW(OFFSET($M$31:$AT$262,0,0,1,1))+1,ROW(OFFSET($M$31:$AT$262,ROWS($M$31:$AT$262)-1,0,1,1))+1),7),34))),0)+IFERROR(IF((INDEX($M$31:$AT$262,SMALL(IF(OFFSET($M$31:$AT$262,0,0,ROWS($M$31:$AT$262),1)=L40,ROW(OFFSET($M$31:$AT$262,0,0,ROWS($M$31:$AT$262),1))-ROW(OFFSET($M$31:$AT$262,0,0,1,1))+1,ROW(OFFSET($M$31:$AT$262,ROWS($M$31:$AT$262)-1,0,1,1))+1),1),34))=VLOOKUP(M39,$M$31:$AT$262,34,FALSE),(INDEX($M$31:$AT$262,SMALL(IF(OFFSET($M$31:$AT$262,0,0,ROWS($M$31:$AT$262),1)=L40,ROW(OFFSET($M$31:$AT$262,0,0,ROWS($M$31:$AT$262),1))-ROW(OFFSET($M$31:$AT$262,0,0,1,1))+1,ROW(OFFSET($M$31:$AT$262,ROWS($M$31:$AT$262)-1,0,1,1))+1),8),34))),0)+IFERROR(IF((INDEX($M$31:$AT$262,SMALL(IF(OFFSET($M$31:$AT$262,0,0,ROWS($M$31:$AT$262),1)=L40,ROW(OFFSET($M$31:$AT$262,0,0,ROWS($M$31:$AT$262),1))-ROW(OFFSET($M$31:$AT$262,0,0,1,1))+1,ROW(OFFSET($M$31:$AT$262,ROWS($M$31:$AT$262)-1,0,1,1))+1),1),34))=VLOOKUP(M39,$M$31:$AT$262,34,FALSE),(INDEX($M$31:$AT$262,SMALL(IF(OFFSET($M$31:$AT$262,0,0,ROWS($M$31:$AT$262),1)=L40,ROW(OFFSET($M$31:$AT$262,0,0,ROWS($M$31:$AT$262),1))-ROW(OFFSET($M$31:$AT$262,0,0,1,1))+1,ROW(OFFSET($M$31:$AT$262,ROWS($M$31:$AT$262)-1,0,1,1))+1),9),34))),0)+IFERROR(IF((INDEX($M$31:$AT$262,SMALL(IF(OFFSET($M$31:$AT$262,0,0,ROWS($M$31:$AT$262),1)=L40,ROW(OFFSET($M$31:$AT$262,0,0,ROWS($M$31:$AT$262),1))-ROW(OFFSET($M$31:$AT$262,0,0,1,1))+1,ROW(OFFSET($M$31:$AT$262,ROWS($M$31:$AT$262)-1,0,1,1))+1),1),34))=VLOOKUP(M39,$M$31:$AT$262,34,FALSE),(INDEX($M$31:$AT$262,SMALL(IF(OFFSET($M$31:$AT$262,0,0,ROWS($M$31:$AT$262),1)=L40,ROW(OFFSET($M$31:$AT$262,0,0,ROWS($M$31:$AT$262),1))-ROW(OFFSET($M$31:$AT$262,0,0,1,1))+1,ROW(OFFSET($M$31:$AT$262,ROWS($M$31:$AT$262)-1,0,1,1))+1),10),34))),0),IF(M39<>L40,VLOOKUP(L40,$L$31:$AS$262,34,FALSE)+IFERROR(VLOOKUP(L40,$M$31:$AT$262,34,FALSE),0)))) ->  | AY40: =IF(L40="","",IF(ROW()=31,VLOOKUP(L40,$L$31:$AX$262,39,FALSE),IF(M39=L40,VLOOKUP(L40,$L$31:$AX$262,39,FALSE)+VLOOKUP(M39,$M$31:$AY$262,39,FALSE)+IFERROR(IF((INDEX($M$31:$AY$262,SMALL(IF(OFFSET($M$31:$AY$262,0,0,FILAX($M$31:$AY$262),1)=L40,ROW(OFFSET($M$31:$AY$262,0,0,FILAX($M$31:$AY$262),1))-ROW(OFFSET($M$31:$AY$262,0,0,1,1))+1,ROW(OFFSET($M$31:$AY$262,FILAX($M$31:$AY$262)-1,0,1,1))+1),1),39))=VLOOKUP(M39,$M$31:$AY$262,39,FALSE),(INDEX($M$31:$AY$262,SMALL(IF(OFFSET($M$31:$AY$262,0,0,FILAX($M$31:$AY$262),1)=L40,ROW(OFFSET($M$31:$AY$262,0,0,FILAX($M$31:$AY$262),1))-ROW(OFFSET($M$31:$AY$262,0,0,1,1))+1,ROW(OFFSET($M$31:$AY$262,FILAX($M$31:$AY$262)-1,0,1,1))+1),2),39))),0)+IFERROR(IF((INDEX($M$31:$AY$262,SMALL(IF(OFFSET($M$31:$AY$262,0,0,FILAX($M$31:$AY$262),1)=L40,ROW(OFFSET($M$31:$AY$262,0,0,FILAX($M$31:$AY$262),1))-ROW(OFFSET($M$31:$AY$262,0,0,1,1))+1,ROW(OFFSET($M$31:$AY$262,FILAX($M$31:$AY$262)-1,0,1,1))+1),1),39))=VLOOKUP(M39,$M$31:$AY$262,39,FALSE),(INDEX($M$31:$AY$262,SMALL(IF(OFFSET($M$31:$AY$262,0,0,FILAX($M$31:$AY$262),1)=L40,ROW(OFFSET($M$31:$AY$262,0,0,FILAX($M$31:$AY$262),1))-ROW(OFFSET($M$31:$AY$262,0,0,1,1))+1,ROW(OFFSET($M$31:$AY$262,FILAX($M$31:$AY$262)-1,0,1,1))+1),3),39))),0)+IFERROR(IF((INDEX($M$31:$AY$262,SMALL(IF(OFFSET($M$31:$AY$262,0,0,FILAX($M$31:$AY$262),1)=L40,ROW(OFFSET($M$31:$AY$262,0,0,FILAX($M$31:$AY$262),1))-ROW(OFFSET($M$31:$AY$262,0,0,1,1))+1,ROW(OFFSET($M$31:$AY$262,FILAX($M$31:$AY$262)-1,0,1,1))+1),1),39))=VLOOKUP(M39,$M$31:$AY$262,39,FALSE),(INDEX($M$31:$AY$262,SMALL(IF(OFFSET($M$31:$AY$262,0,0,FILAX($M$31:$AY$262),1)=L40,ROW(OFFSET($M$31:$AY$262,0,0,FILAX($M$31:$AY$262),1))-ROW(OFFSET($M$31:$AY$262,0,0,1,1))+1,ROW(OFFSET($M$31:$AY$262,FILAX($M$31:$AY$262)-1,0,1,1))+1),4),39))),0)+IFERROR(IF((INDEX($M$31:$AY$262,SMALL(IF(OFFSET($M$31:$AY$262,0,0,FILAX($M$31:$AY$262),1)=L40,ROW(OFFSET($M$31:$AY$262,0,0,FILAX($M$31:$AY$262),1))-ROW(OFFSET($M$31:$AY$262,0,0,1,1))+1,ROW(OFFSET($M$31:$AY$262,FILAX($M$31:$AY$262)-1,0,1,1))+1),1),39))=VLOOKUP(M39,$M$31:$AY$262,39,FALSE),(INDEX($M$31:$AY$262,SMALL(IF(OFFSET($M$31:$AY$262,0,0,FILAX($M$31:$AY$262),1)=L40,ROW(OFFSET($M$31:$AY$262,0,0,FILAX($M$31:$AY$262),1))-ROW(OFFSET($M$31:$AY$262,0,0,1,1))+1,ROW(OFFSET($M$31:$AY$262,FILAX($M$31:$AY$262)-1,0,1,1))+1),5),39))),0)+IFERROR(IF((INDEX($M$31:$AY$262,SMALL(IF(OFFSET($M$31:$AY$262,0,0,FILAX($M$31:$AY$262),1)=L40,ROW(OFFSET($M$31:$AY$262,0,0,FILAX($M$31:$AY$262),1))-ROW(OFFSET($M$31:$AY$262,0,0,1,1))+1,ROW(OFFSET($M$31:$AY$262,FILAX($M$31:$AY$262)-1,0,1,1))+1),1),39))=VLOOKUP(M39,$M$31:$AY$262,39,FALSE),(INDEX($M$31:$AY$262,SMALL(IF(OFFSET($M$31:$AY$262,0,0,FILAX($M$31:$AY$262),1)=L40,ROW(OFFSET($M$31:$AY$262,0,0,FILAX($M$31:$AY$262),1))-ROW(OFFSET($M$31:$AY$262,0,0,1,1))+1,ROW(OFFSET($M$31:$AY$262,FILAX($M$31:$AY$262)-1,0,1,1))+1),6),39))),0)+IFERROR(IF((INDEX($M$31:$AY$262,SMALL(IF(OFFSET($M$31:$AY$262,0,0,FILAX($M$31:$AY$262),1)=L40,ROW(OFFSET($M$31:$AY$262,0,0,FILAX($M$31:$AY$262),1))-ROW(OFFSET($M$31:$AY$262,0,0,1,1))+1,ROW(OFFSET($M$31:$AY$262,FILAX($M$31:$AY$262)-1,0,1,1))+1),1),39))=VLOOKUP(M39,$M$31:$AY$262,39,FALSE),(INDEX($M$31:$AY$262,SMALL(IF(OFFSET($M$31:$AY$262,0,0,FILAX($M$31:$AY$262),1)=L40,ROW(OFFSET($M$31:$AY$262,0,0,FILAX($M$31:$AY$262),1))-ROW(OFFSET($M$31:$AY$262,0,0,1,1))+1,ROW(OFFSET($M$31:$AY$262,FILAX($M$31:$AY$262)-1,0,1,1))+1),7),39))),0)+IFERROR(IF((INDEX($M$31:$AY$262,SMALL(IF(OFFSET($M$31:$AY$262,0,0,FILAX($M$31:$AY$262),1)=L40,ROW(OFFSET($M$31:$AY$262,0,0,FILAX($M$31:$AY$262),1))-ROW(OFFSET($M$31:$AY$262,0,0,1,1))+1,ROW(OFFSET($M$31:$AY$262,FILAX($M$31:$AY$262)-1,0,1,1))+1),1),39))=VLOOKUP(M39,$M$31:$AY$262,39,FALSE),(INDEX($M$31:$AY$262,SMALL(IF(OFFSET($M$31:$AY$262,0,0,FILAX($M$31:$AY$262),1)=L40,ROW(OFFSET($M$31:$AY$262,0,0,FILAX($M$31:$AY$262),1))-ROW(OFFSET($M$31:$AY$262,0,0,1,1))+1,ROW(OFFSET($M$31:$AY$262,FILAX($M$31:$AY$262)-1,0,1,1))+1),8),39))),0)+IFERROR(IF((INDEX($M$31:$AY$262,SMALL(IF(OFFSET($M$31:$AY$262,0,0,FILAX($M$31:$AY$262),1)=L40,ROW(OFFSET($M$31:$AY$262,0,0,FILAX($M$31:$AY$262),1))-ROW(OFFSET($M$31:$AY$262,0,0,1,1))+1,ROW(OFFSET($M$31:$AY$262,FILAX($M$31:$AY$262)-1,0,1,1))+1),1),39))=VLOOKUP(M39,$M$31:$AY$262,39,FALSE),(INDEX($M$31:$AY$262,SMALL(IF(OFFSET($M$31:$AY$262,0,0,FILAX($M$31:$AY$262),1)=L40,ROW(OFFSET($M$31:$AY$262,0,0,FILAX($M$31:$AY$262),1))-ROW(OFFSET($M$31:$AY$262,0,0,1,1))+1,ROW(OFFSET($M$31:$AY$262,FILAX($M$31:$AY$262)-1,0,1,1))+1),9),39))),0)+IFERROR(IF((INDEX($M$31:$AY$262,SMALL(IF(OFFSET($M$31:$AY$262,0,0,FILAX($M$31:$AY$262),1)=L40,ROW(OFFSET($M$31:$AY$262,0,0,FILAX($M$31:$AY$262),1))-ROW(OFFSET($M$31:$AY$262,0,0,1,1))+1,ROW(OFFSET($M$31:$AY$262,FILAX($M$31:$AY$262)-1,0,1,1))+1),1),39))=VLOOKUP(M39,$M$31:$AY$262,39,FALSE),(INDEX($M$31:$AY$262,SMALL(IF(OFFSET($M$31:$AY$262,0,0,FILAX($M$31:$AY$262),1)=L40,ROW(OFFSET($M$31:$AY$262,0,0,FILAX($M$31:$AY$262),1))-ROW(OFFSET($M$31:$AY$262,0,0,1,1))+1,ROW(OFFSET($M$31:$AY$262,FILAX($M$31:$AY$262)-1,0,1,1))+1),10),39))),0),IF(M39<>L40,VLOOKUP(L40,$L$31:$AX$262,39,FALSE)+IFERROR(VLOOKUP(L40,$M$31:$AY$262,39,FALSE),0))))) ->  | BH40: =IF(OR($L40="",$M40="",BG40=""),"",INDEX('Tablas y listas'!$D$4:$G$17,MATCH('1. Analisis Flujo Uniforme'!BG40,'Tablas y listas'!$D$4:$D$17,0),4)) ->  | BJ40: =IF(OR(BI40=""),"",IFERROR(IF($BI$30="Pulgadas",INDEX('Tablas y listas'!$B$64:$D$89,MATCH('1. Analisis Flujo Uniforme'!BI40,CONCRETO_Pulgadas,0),3),IF($BI$30="mm",BI40/(10*100))),"Indique φ")) ->  | BO40: =IF(CK40="","",CK40) ->  | BP40: =IF(CN40="","",CN40) ->  | BQ40: =IF(DU40="","",DU40) ->  | BV40: =IF(DR40="","",DR40) ->  | BX40: =IF(DW40="","",DW40) ->  | CB40: =IF(DM40="","",DM40) ->  | CG40: =IF(OR($L40="",$M40=""),"",IF(MAX(IFERROR(INDEX(MatrizQs1,SMALL(IF(OFFSET(MatrizQs1,0,0,ROWS(MatrizQs1),1)=CF40,ROW(OFFSET(MatrizQs1,0,0,ROWS(MatrizQs1),1))-ROW(OFFSET(MatrizQs1,0,0,1,1))+1,ROW(OFFSET(MatrizQs1,ROWS(MatrizQs1)-1,0,1,1))+1),1),41),0),IFERROR(INDEX(MatrizQs1,SMALL(IF(OFFSET(MatrizQs1,0,0,ROWS(MatrizQs1),1)=CF40,ROW(OFFSET(MatrizQs1,0,0,ROWS(MatrizQs1),1))-ROW(OFFSET(MatrizQs1,0,0,1,1))+1,ROW(OFFSET(MatrizQs1,ROWS(MatrizQs1)-1,0,1,1))+1),2),41),0),IFERROR(INDEX(MatrizQs1,SMALL(IF(OFFSET(MatrizQs1,0,0,ROWS(MatrizQs1),1)=CF40,ROW(OFFSET(MatrizQs1,0,0,ROWS(MatrizQs1),1))-ROW(OFFSET(MatrizQs1,0,0,1,1))+1,ROW(OFFSET(MatrizQs1,ROWS(MatrizQs1)-1,0,1,1))+1),3),41),0),IFERROR(INDEX(MatrizQs1,SMALL(IF(OFFSET(MatrizQs1,0,0,ROWS(MatrizQs1),1)=CF40,ROW(OFFSET(MatrizQs1,0,0,ROWS(MatrizQs1),1))-ROW(OFFSET(MatrizQs1,0,0,1,1))+1,ROW(OFFSET(MatrizQs1,ROWS(MatrizQs1)-1,0,1,1))+1),4),41),0),IFERROR(INDEX(MatrizQs1,SMALL(IF(OFFSET(MatrizQs1,0,0,ROWS(MatrizQs1),1)=CF40,ROW(OFFSET(MatrizQs1,0,0,ROWS(MatrizQs1),1))-ROW(OFFSET(MatrizQs1,0,0,1,1))+1,ROW(OFFSET(MatrizQs1,ROWS(MatrizQs1)-1,0,1,1))+1),5),41),0),IFERROR(INDEX(MatrizQs1,SMALL(IF(OFFSET(MatrizQs1,0,0,ROWS(MatrizQs1),1)=CF40,ROW(OFFSET(MatrizQs1,0,0,ROWS(MatrizQs1),1))-ROW(OFFSET(MatrizQs1,0,0,1,1))+1,ROW(OFFSET(MatrizQs1,ROWS(MatrizQs1)-1,0,1,1))+1),6),41),0),IFERROR(INDEX(MatrizQs1,SMALL(IF(OFFSET(MatrizQs1,0,0,ROWS(MatrizQs1),1)=CF40,ROW(OFFSET(MatrizQs1,0,0,ROWS(MatrizQs1),1))-ROW(OFFSET(MatrizQs1,0,0,1,1))+1,ROW(OFFSET(MatrizQs1,ROWS(MatrizQs1)-1,0,1,1))+1),7),41),0),IFERROR(INDEX(MatrizQs1,SMALL(IF(OFFSET(MatrizQs1,0,0,ROWS(MatrizQs1),1)=CF40,ROW(OFFSET(MatrizQs1,0,0,ROWS(MatrizQs1),1))-ROW(OFFSET(MatrizQs1,0,0,1,1))+1,ROW(OFFSET(MatrizQs1,ROWS(MatrizQs1)-1,0,1,1))+1),8),41),0))=0,IFERROR(INDEX(matrizQs,SMALL(IF(OFFSET(matrizQs,0,0,ROWS(matrizQs),1)=CF40,ROW(OFFSET(matrizQs,0,0,ROWS(matrizQs),1))-ROW(OFFSET(matrizQs,0,0,1,1))+1,ROW(OFFSET(matrizQs,ROWS(matrizQs)-1,0,1,1))+1),1),40),0),MAX(IFERROR(INDEX(MatrizQs1,SMALL(IF(OFFSET(MatrizQs1,0,0,ROWS(MatrizQs1),1)=CF40,ROW(OFFSET(MatrizQs1,0,0,ROWS(MatrizQs1),1))-ROW(OFFSET(MatrizQs1,0,0,1,1))+1,ROW(OFFSET(MatrizQs1,ROWS(MatrizQs1)-1,0,1,1))+1),1),41),0),IFERROR(INDEX(MatrizQs1,SMALL(IF(OFFSET(MatrizQs1,0,0,ROWS(MatrizQs1),1)=CF40,ROW(OFFSET(MatrizQs1,0,0,ROWS(MatrizQs1),1))-ROW(OFFSET(MatrizQs1,0,0,1,1))+1,ROW(OFFSET(MatrizQs1,ROWS(MatrizQs1)-1,0,1,1))+1),2),41),0),IFERROR(INDEX(MatrizQs1,SMALL(IF(OFFSET(MatrizQs1,0,0,ROWS(MatrizQs1),1)=CF40,ROW(OFFSET(MatrizQs1,0,0,ROWS(MatrizQs1),1))-ROW(OFFSET(MatrizQs1,0,0,1,1))+1,ROW(OFFSET(MatrizQs1,ROWS(MatrizQs1)-1,0,1,1))+1),3),41),0),IFERROR(INDEX(MatrizQs1,SMALL(IF(OFFSET(MatrizQs1,0,0,ROWS(MatrizQs1),1)=CF40,ROW(OFFSET(MatrizQs1,0,0,ROWS(MatrizQs1),1))-ROW(OFFSET(MatrizQs1,0,0,1,1))+1,ROW(OFFSET(MatrizQs1,ROWS(MatrizQs1)-1,0,1,1))+1),4),41),0),IFERROR(INDEX(MatrizQs1,SMALL(IF(OFFSET(MatrizQs1,0,0,ROWS(MatrizQs1),1)=CF40,ROW(OFFSET(MatrizQs1,0,0,ROWS(MatrizQs1),1))-ROW(OFFSET(MatrizQs1,0,0,1,1))+1,ROW(OFFSET(MatrizQs1,ROWS(MatrizQs1)-1,0,1,1))+1),5),41),0),IFERROR(INDEX(MatrizQs1,SMALL(IF(OFFSET(MatrizQs1,0,0,ROWS(MatrizQs1),1)=CF40,ROW(OFFSET(MatrizQs1,0,0,ROWS(MatrizQs1),1))-ROW(OFFSET(MatrizQs1,0,0,1,1))+1,ROW(OFFSET(MatrizQs1,ROWS(MatrizQs1)-1,0,1,1))+1),6),41),0),IFERROR(INDEX(MatrizQs1,SMALL(IF(OFFSET(MatrizQs1,0,0,ROWS(MatrizQs1),1)=CF40,ROW(OFFSET(MatrizQs1,0,0,ROWS(MatrizQs1),1))-ROW(OFFSET(MatrizQs1,0,0,1,1))+1,ROW(OFFSET(MatrizQs1,ROWS(MatrizQs1)-1,0,1,1))+1),7),41),0),IFERROR(INDEX(MatrizQs1,SMALL(IF(OFFSET(MatrizQs1,0,0,ROWS(MatrizQs1),1)=CF40,ROW(OFFSET(MatrizQs1,0,0,ROWS(MatrizQs1),1))-ROW(OFFSET(MatrizQs1,0,0,1,1))+1,ROW(OFFSET(MatrizQs1,ROWS(MatrizQs1)-1,0,1,1))+1),8),41),0)))) ->  | CH40: =IF(OR($L40="",$M40=""),"",IF(MAX(IFERROR(INDEX(MDSU,SMALL(IF(OFFSET(MDSU,0,0,ROWS(MDSU),1)=CF40,ROW(OFFSET(MDSU,0,0,ROWS(MDSU),1))-ROW(OFFSET(MDSU,0,0,1,1))+1,ROW(OFFSET(MDSU,ROWS(MDSU)-1,0,1,1))+1),1),7),0),IFERROR(INDEX(MDSU,SMALL(IF(OFFSET(MDSU,0,0,ROWS(MDSU),1)=CF40,ROW(OFFSET(MDSU,0,0,ROWS(MDSU),1))-ROW(OFFSET(MDSU,0,0,1,1))+1,ROW(OFFSET(MDSU,ROWS(MDSU)-1,0,1,1))+1),2),7),0),IFERROR(INDEX(MDSU,SMALL(IF(OFFSET(MDSU,0,0,ROWS(MDSU),1)=CF40,ROW(OFFSET(MDSU,0,0,ROWS(MDSU),1))-ROW(OFFSET(MDSU,0,0,1,1))+1,ROW(OFFSET(MDSU,ROWS(MDSU)-1,0,1,1))+1),3),7),0),IFERROR(INDEX(MDSU,SMALL(IF(OFFSET(MDSU,0,0,ROWS(MDSU),1)=CF40,ROW(OFFSET(MDSU,0,0,ROWS(MDSU),1))-ROW(OFFSET(MDSU,0,0,1,1))+1,ROW(OFFSET(MDSU,ROWS(MDSU)-1,0,1,1))+1),4),7),0),IFERROR(INDEX(MDSU,SMALL(IF(OFFSET(MDSU,0,0,ROWS(MDSU),1)=CF40,ROW(OFFSET(MDSU,0,0,ROWS(MDSU),1))-ROW(OFFSET(MDSU,0,0,1,1))+1,ROW(OFFSET(MDSU,ROWS(MDSU)-1,0,1,1))+1),5),7),0),IFERROR(INDEX(MDSU,SMALL(IF(OFFSET(MDSU,0,0,ROWS(MDSU),1)=CF40,ROW(OFFSET(MDSU,0,0,ROWS(MDSU),1))-ROW(OFFSET(MDSU,0,0,1,1))+1,ROW(OFFSET(MDSU,ROWS(MDSU)-1,0,1,1))+1),6),7),0),IFERROR(INDEX(MDSU,SMALL(IF(OFFSET(MDSU,0,0,ROWS(MDSU),1)=CF40,ROW(OFFSET(MDSU,0,0,ROWS(MDSU),1))-ROW(OFFSET(MDSU,0,0,1,1))+1,ROW(OFFSET(MDSU,ROWS(MDSU)-1,0,1,1))+1),7),7),0),IFERROR(INDEX(MDSU,SMALL(IF(OFFSET(MDSU,0,0,ROWS(MDSU),1)=CF40,ROW(OFFSET(MDSU,0,0,ROWS(MDSU),1))-ROW(OFFSET(MDSU,0,0,1,1))+1,ROW(OFFSET(MDSU,ROWS(MDSU)-1,0,1,1))+1),8),7),0))=0,IFERROR(INDEX(MDS,SMALL(IF(OFFSET(MDS,0,0,ROWS(MDS),1)=CF40,ROW(OFFSET(MDS,0,0,ROWS(MDS),1))-ROW(OFFSET(MDS,0,0,1,1))+1,ROW(OFFSET(MDS,ROWS(MDS)-1,0,1,1))+1),1),6),0),MAX(IFERROR(INDEX(MDSU,SMALL(IF(OFFSET(MDSU,0,0,ROWS(MDSU),1)=CF40,ROW(OFFSET(MDSU,0,0,ROWS(MDSU),1))-ROW(OFFSET(MDSU,0,0,1,1))+1,ROW(OFFSET(MDSU,ROWS(MDSU)-1,0,1,1))+1),1),7),0),IFERROR(INDEX(MDSU,SMALL(IF(OFFSET(MDSU,0,0,ROWS(MDSU),1)=CF40,ROW(OFFSET(MDSU,0,0,ROWS(MDSU),1))-ROW(OFFSET(MDSU,0,0,1,1))+1,ROW(OFFSET(MDSU,ROWS(MDSU)-1,0,1,1))+1),2),7),0),IFERROR(INDEX(MDSU,SMALL(IF(OFFSET(MDSU,0,0,ROWS(MDSU),1)=CF40,ROW(OFFSET(MDSU,0,0,ROWS(MDSU),1))-ROW(OFFSET(MDSU,0,0,1,1))+1,ROW(OFFSET(MDSU,ROWS(MDSU)-1,0,1,1))+1),3),7),0),IFERROR(INDEX(MDSU,SMALL(IF(OFFSET(MDSU,0,0,ROWS(MDSU),1)=CF40,ROW(OFFSET(MDSU,0,0,ROWS(MDSU),1))-ROW(OFFSET(MDSU,0,0,1,1))+1,ROW(OFFSET(MDSU,ROWS(MDSU)-1,0,1,1))+1),4),7),0),IFERROR(INDEX(MDSU,SMALL(IF(OFFSET(MDSU,0,0,ROWS(MDSU),1)=CF40,ROW(OFFSET(MDSU,0,0,ROWS(MDSU),1))-ROW(OFFSET(MDSU,0,0,1,1))+1,ROW(OFFSET(MDSU,ROWS(MDSU)-1,0,1,1))+1),5),7),0),IFERROR(INDEX(MDSU,SMALL(IF(OFFSET(MDSU,0,0,ROWS(MDSU),1)=CF40,ROW(OFFSET(MDSU,0,0,ROWS(MDSU),1))-ROW(OFFSET(MDSU,0,0,1,1))+1,ROW(OFFSET(MDSU,ROWS(MDSU)-1,0,1,1))+1),6),7),0),IFERROR(INDEX(MDSU,SMALL(IF(OFFSET(MDSU,0,0,ROWS(MDSU),1)=CF40,ROW(OFFSET(MDSU,0,0,ROWS(MDSU),1))-ROW(OFFSET(MDSU,0,0,1,1))+1,ROW(OFFSET(MDSU,ROWS(MDSU)-1,0,1,1))+1),7),7),0),IFERROR(INDEX(MDSU,SMALL(IF(OFFSET(MDSU,0,0,ROWS(MDSU),1)=CF40,ROW(OFFSET(MDSU,0,0,ROWS(MDSU),1))-ROW(OFFSET(MDSU,0,0,1,1))+1,ROW(OFFSET(MDSU,ROWS(MDSU)-1,0,1,1))+1),8),7),0)))) ->  | CL40: =IF(BJ40=0,"",IFERROR((CM40/BJ40),"")) ->  | CM40: =IF(BI40=0,"",IFERROR(BJ40*0.858451597*(CK40)^0.5896824401,"")) ->  | CN40: =IF(OR($L40="",$M40=""),"",IF(BJ40=0,"",IFERROR(CJ40*1.054148687*(CK40)^0.2948111209,""))) ->  | CO40: =IF(OR($L40="",$M40=""),"",IF(CM40=0,"",IFERROR(2*ACOS(1-(2*CM40)/BJ40),""))) ->  | CP40: =IF(OR($L40="",$M40=""),"",IFERROR(0.125*(CO40-SIN(CO40))*BJ40^2,"")) ->  | CQ40: =IF(OR($L40="",$M40=""),"",IFERROR(0.5*CO40*BJ40,"")) ->  | CR40: =IF(OR($L40="",$M40=""),"",IFERROR(IF(CP40=0,"",+CP40/CQ40),"")) ->  | CS40: =IF(OR($L40="",$M40=""),"",IFERROR(IF(CO40=0,"",1/8*((CO40-SIN(CO40))/SIN(CO40/2))*BJ40),"")) ->  | CT40: =IF(OR($L40="",$M40=""),"",IFERROR(IF(CN40=0,"",CN40/SQRT(9.81*CS40)),"")) ->  | CU40: =IF(OR($L40="",$M40=""),"",IFERROR(IF(OR(CT40=0,CT40=""),"",IF(CT40<0.9,"Subcrítico",IF(CT40>1.1,"Supercrítico","Crítico"))),"")) ->  | CV40: =IF(OR($L40="",$M40=""),"",IFERROR(CN40^2/(9.81*2),"")) ->  | CW40: =IF(OR($L40="",$M40=""),"",IFERROR(IF(CV40=0,"",CM40+CV40),0)) ->  | CX40: 0.1074880341 | CZ40: =IF(CT40=0,"",IF(CT40<0.9,IF(CY40>3,0.05*CV40,IF(AND(CY40>=1.5,CY40<3),0.2*CV40,IF(AND(CY40>=1,CY40<1.5),0.4*CV40))),IF(CT40>1.1,""))) ->  | DA40: =IF(OR($L40="",$M40=""),"",IFERROR(IF(CV40=0,"",0.2*((CV41-CV40))),0)) ->  | DB40: =IF(OR($L40="",$M40=""),"",IFERROR(IF(CT40=0,0,IF(CT40<=0.9,IF(CX40>CW40,CZ40+DA40+CX40-CW40,CZ40+DA40),"")),0)) ->  | DE40: =IF(OR($L40="",$M40=""),"",IFERROR(IF(BI40=0,"",1.0381283*BJ40*DG40^0.5208062),0)) ->  | DG40: =IF(OR($L40="",$M40="",CT40=""),"",IFERROR(IF(CT40=0,"",IF(CT40>1.1,0.319*(CG40/1000)/CH40^2.5,"")),0)) ->  | DH40: =IF(OR($L40="",$M40=""),"",IFERROR(IF(DG40=0,"",IF(DG40>0.62,"",2*ACOS(1-2*DE40/CD40))),"")) ->  | DI40: =IF(OR($L40="",$M40=""),"",IFERROR(IF(DH40=0,"",IF(DG40>0.62,0,((BZ40*8)/(DH40-SIN(DH40))/1000/(CD40)^2)^2/19.62+DE40)),"")) ->  | DJ40: =IF(OR($L40="",$M40=""),"",IFERROR(IF(DG40=0,"",IF(DG40>0.62,"",0.589*DG40^2.67*CH40)),"")) ->  | DK40: =IF(OR($L40="",$M40=""),"",IFERROR(IF(BI40=0,"",IF(DG40>0.62,CH40*DF40*(DG40^2*1.91+0.7),DF40*(DI40+DJ40))),0)) ->  | DM40: =IF(OR($L40="",$M40=""),"",IFERROR(IF(BL40=0,"",1000*CR40*BL40/100),"")) ->  | DS40: =IF(OR($L40="",$M40=""),"",IFERROR(IF(DR40=0,"",DR40-DL40),"")) ->  | DT40: =IF(OR($L40="",$M40=""),"",IF(MIN(IFERROR(INDEX(Matriz_busq,SMALL(IF(OFFSET(Matriz_busq,0,0,ROWS(Matriz_busq),1)=BD40,ROW(OFFSET(Matriz_busq,0,0,ROWS(Matriz_busq),1))-ROW(OFFSET(Matriz_busq,0,0,1,1))+1,ROW(OFFSET(Matriz_busq,ROWS(Matriz_busq)-1,0,1,1))+1),1),40),10000),IFERROR(INDEX(Matriz_busq,SMALL(IF(OFFSET(Matriz_busq,0,0,ROWS(Matriz_busq),1)=BD40,ROW(OFFSET(Matriz_busq,0,0,ROWS(Matriz_busq),1))-ROW(OFFSET(Matriz_busq,0,0,1,1))+1,ROW(OFFSET(Matriz_busq,ROWS(Matriz_busq)-1,0,1,1))+1),2),40),10000),IFERROR(INDEX(Matriz_busq,SMALL(IF(OFFSET(Matriz_busq,0,0,ROWS(Matriz_busq),1)=BD40,ROW(OFFSET(Matriz_busq,0,0,ROWS(Matriz_busq),1))-ROW(OFFSET(Matriz_busq,0,0,1,1))+1,ROW(OFFSET(Matriz_busq,ROWS(Matriz_busq)-1,0,1,1))+1),3),40),10000),IFERROR(INDEX(Matriz_busq,SMALL(IF(OFFSET(Matriz_busq,0,0,ROWS(Matriz_busq),1)=BD40,ROW(OFFSET(Matriz_busq,0,0,ROWS(Matriz_busq),1))-ROW(OFFSET(Matriz_busq,0,0,1,1))+1,ROW(OFFSET(Matriz_busq,ROWS(Matriz_busq)-1,0,1,1))+1),4),40),10000),IFERROR(INDEX(Matriz_busq,SMALL(IF(OFFSET(Matriz_busq,0,0,ROWS(Matriz_busq),1)=BD40,ROW(OFFSET(Matriz_busq,0,0,ROWS(Matriz_busq),1))-ROW(OFFSET(Matriz_busq,0,0,1,1))+1,ROW(OFFSET(Matriz_busq,ROWS(Matriz_busq)-1,0,1,1))+1),5),40),10000),IFERROR(INDEX(Matriz_busq,SMALL(IF(OFFSET(Matriz_busq,0,0,ROWS(Matriz_busq),1)=BD40,ROW(OFFSET(Matriz_busq,0,0,ROWS(Matriz_busq),1))-ROW(OFFSET(Matriz_busq,0,0,1,1))+1,ROW(OFFSET(Matriz_busq,ROWS(Matriz_busq)-1,0,1,1))+1),6),40),10000),IFERROR(INDEX(Matriz_busq,SMALL(IF(OFFSET(Matriz_busq,0,0,ROWS(Matriz_busq),1)=BD40,ROW(OFFSET(Matriz_busq,0,0,ROWS(Matriz_busq),1))-ROW(OFFSET(Matriz_busq,0,0,1,1))+1,ROW(OFFSET(Matriz_busq,ROWS(Matriz_busq)-1,0,1,1))+1),7),40),10000),IFERROR(INDEX(Matriz_busq,SMALL(IF(OFFSET(Matriz_busq,0,0,ROWS(Matriz_busq),1)=BD40,ROW(OFFSET(Matriz_busq,0,0,ROWS(Matriz_busq),1))-ROW(OFFSET(Matriz_busq,0,0,1,1))+1,ROW(OFFSET(Matriz_busq,ROWS(Matriz_busq)-1,0,1,1))+1),8),40),10000))=10000,0,MIN(IFERROR(INDEX(Matriz_busq,SMALL(IF(OFFSET(Matriz_busq,0,0,ROWS(Matriz_busq),1)=BD40,ROW(OFFSET(Matriz_busq,0,0,ROWS(Matriz_busq),1))-ROW(OFFSET(Matriz_busq,0,0,1,1))+1,ROW(OFFSET(Matriz_busq,ROWS(Matriz_busq)-1,0,1,1))+1),1),40),10000),IFERROR(INDEX(Matriz_busq,SMALL(IF(OFFSET(Matriz_busq,0,0,ROWS(Matriz_busq),1)=BD40,ROW(OFFSET(Matriz_busq,0,0,ROWS(Matriz_busq),1))-ROW(OFFSET(Matriz_busq,0,0,1,1))+1,ROW(OFFSET(Matriz_busq,ROWS(Matriz_busq)-1,0,1,1))+1),2),40),10000),IFERROR(INDEX(Matriz_busq,SMALL(IF(OFFSET(Matriz_busq,0,0,ROWS(Matriz_busq),1)=BD40,ROW(OFFSET(Matriz_busq,0,0,ROWS(Matriz_busq),1))-ROW(OFFSET(Matriz_busq,0,0,1,1))+1,ROW(OFFSET(Matriz_busq,ROWS(Matriz_busq)-1,0,1,1))+1),3),40),10000),IFERROR(INDEX(Matriz_busq,SMALL(IF(OFFSET(Matriz_busq,0,0,ROWS(Matriz_busq),1)=BD40,ROW(OFFSET(Matriz_busq,0,0,ROWS(Matriz_busq),1))-ROW(OFFSET(Matriz_busq,0,0,1,1))+1,ROW(OFFSET(Matriz_busq,ROWS(Matriz_busq)-1,0,1,1))+1),4),40),10000),IFERROR(INDEX(Matriz_busq,SMALL(IF(OFFSET(Matriz_busq,0,0,ROWS(Matriz_busq),1)=BD40,ROW(OFFSET(Matriz_busq,0,0,ROWS(Matriz_busq),1))-ROW(OFFSET(Matriz_busq,0,0,1,1))+1,ROW(OFFSET(Matriz_busq,ROWS(Matriz_busq)-1,0,1,1))+1),5),40),10000),IFERROR(INDEX(Matriz_busq,SMALL(IF(OFFSET(Matriz_busq,0,0,ROWS(Matriz_busq),1)=BD40,ROW(OFFSET(Matriz_busq,0,0,ROWS(Matriz_busq),1))-ROW(OFFSET(Matriz_busq,0,0,1,1))+1,ROW(OFFSET(Matriz_busq,ROWS(Matriz_busq)-1,0,1,1))+1),6),40),10000),IFERROR(INDEX(Matriz_busq,SMALL(IF(OFFSET(Matriz_busq,0,0,ROWS(Matriz_busq),1)=BD40,ROW(OFFSET(Matriz_busq,0,0,ROWS(Matriz_busq),1))-ROW(OFFSET(Matriz_busq,0,0,1,1))+1,ROW(OFFSET(Matriz_busq,ROWS(Matriz_busq)-1,0,1,1))+1),7),40),10000),IFERROR(INDEX(Matriz_busq,SMALL(IF(OFFSET(Matriz_busq,0,0,ROWS(Matriz_busq),1)=BD40,ROW(OFFSET(Matriz_busq,0,0,ROWS(Matriz_busq),1))-ROW(OFFSET(Matriz_busq,0,0,1,1))+1,ROW(OFFSET(Matriz_busq,ROWS(Matriz_busq)-1,0,1,1))+1),8),40),10000)))) ->  | DU40: =IF(OR($L40="",$M40=""),"",IFERROR(IF(DN40=0,"",DN40-DR40),"")) ->  | DY40: =IF(OR($L40="",$M40=""),"",IFERROR(IF(DW40=0,"",DW40+CW40),"")) ->  | DZ40: =IF(OR($L40="",$M40=""),"",IFERROR(IF(DX40=0,"",DX40+CW40),"")) -> 
A41: CAMARA_69E | B41: Tipo_3 | C41: OVERFLOW | D41: No aplica | F41: 92802.1481 | G41: 107580.8969 | H41: 2542.67 | K41: 1 | L41: PD1 | M41: PD2 | N41: 2544.05 | O41: 2543.85 | P41: 0 | Q41: 0 | R41: 98.37056291 | T41: 0.15451716 | W41: 0.15451716 | X41: 0.5 | Y41: 0 | Z41: 100 | AA41: 0.005 | AB41: 3 | AC41: 5 | AD41: AREAS DESARROLLADAS | AE41: CONCRETO/TECHO | AF41: 0.8 | AI41: 0 | AL41: 0 | AM41: 0.8 | AN41: 12.40368325 | AO41: 6.561487328 | AP41: 0.2498685587 | AQ41: 12.6535518 | AS41: 0.15451716 | AT41: =IF(L41="","",IF(M40=L41,VLOOKUP(L41,$L$31:$AS$262,34,FALSE)+VLOOKUP(M40,$M$31:$AT$262,34,FALSE)+IFERROR(IF((INDEX($M$31:$AT$262,SMALL(IF(OFFSET($M$31:$AT$262,0,0,ROWS($M$31:$AT$262),1)=L41,ROW(OFFSET($M$31:$AT$262,0,0,ROWS($M$31:$AT$262),1))-ROW(OFFSET($M$31:$AT$262,0,0,1,1))+1,ROW(OFFSET($M$31:$AT$262,ROWS($M$31:$AT$262)-1,0,1,1))+1),1),34))=VLOOKUP(M40,$M$31:$AT$262,34,FALSE),(INDEX($M$31:$AT$262,SMALL(IF(OFFSET($M$31:$AT$262,0,0,ROWS($M$31:$AT$262),1)=L41,ROW(OFFSET($M$31:$AT$262,0,0,ROWS($M$31:$AT$262),1))-ROW(OFFSET($M$31:$AT$262,0,0,1,1))+1,ROW(OFFSET($M$31:$AT$262,ROWS($M$31:$AT$262)-1,0,1,1))+1),2),34))),0)+IFERROR(IF((INDEX($M$31:$AT$262,SMALL(IF(OFFSET($M$31:$AT$262,0,0,ROWS($M$31:$AT$262),1)=L41,ROW(OFFSET($M$31:$AT$262,0,0,ROWS($M$31:$AT$262),1))-ROW(OFFSET($M$31:$AT$262,0,0,1,1))+1,ROW(OFFSET($M$31:$AT$262,ROWS($M$31:$AT$262)-1,0,1,1))+1),1),34))=VLOOKUP(M40,$M$31:$AT$262,34,FALSE),(INDEX($M$31:$AT$262,SMALL(IF(OFFSET($M$31:$AT$262,0,0,ROWS($M$31:$AT$262),1)=L41,ROW(OFFSET($M$31:$AT$262,0,0,ROWS($M$31:$AT$262),1))-ROW(OFFSET($M$31:$AT$262,0,0,1,1))+1,ROW(OFFSET($M$31:$AT$262,ROWS($M$31:$AT$262)-1,0,1,1))+1),3),34))),0)+IFERROR(IF((INDEX($M$31:$AT$262,SMALL(IF(OFFSET($M$31:$AT$262,0,0,ROWS($M$31:$AT$262),1)=L41,ROW(OFFSET($M$31:$AT$262,0,0,ROWS($M$31:$AT$262),1))-ROW(OFFSET($M$31:$AT$262,0,0,1,1))+1,ROW(OFFSET($M$31:$AT$262,ROWS($M$31:$AT$262)-1,0,1,1))+1),1),34))=VLOOKUP(M40,$M$31:$AT$262,34,FALSE),(INDEX($M$31:$AT$262,SMALL(IF(OFFSET($M$31:$AT$262,0,0,ROWS($M$31:$AT$262),1)=L41,ROW(OFFSET($M$31:$AT$262,0,0,ROWS($M$31:$AT$262),1))-ROW(OFFSET($M$31:$AT$262,0,0,1,1))+1,ROW(OFFSET($M$31:$AT$262,ROWS($M$31:$AT$262)-1,0,1,1))+1),4),34))),0)+IFERROR(IF((INDEX($M$31:$AT$262,SMALL(IF(OFFSET($M$31:$AT$262,0,0,ROWS($M$31:$AT$262),1)=L41,ROW(OFFSET($M$31:$AT$262,0,0,ROWS($M$31:$AT$262),1))-ROW(OFFSET($M$31:$AT$262,0,0,1,1))+1,ROW(OFFSET($M$31:$AT$262,ROWS($M$31:$AT$262)-1,0,1,1))+1),1),34))=VLOOKUP(M40,$M$31:$AT$262,34,FALSE),(INDEX($M$31:$AT$262,SMALL(IF(OFFSET($M$31:$AT$262,0,0,ROWS($M$31:$AT$262),1)=L41,ROW(OFFSET($M$31:$AT$262,0,0,ROWS($M$31:$AT$262),1))-ROW(OFFSET($M$31:$AT$262,0,0,1,1))+1,ROW(OFFSET($M$31:$AT$262,ROWS($M$31:$AT$262)-1,0,1,1))+1),5),34))),0)+IFERROR(IF((INDEX($M$31:$AT$262,SMALL(IF(OFFSET($M$31:$AT$262,0,0,ROWS($M$31:$AT$262),1)=L41,ROW(OFFSET($M$31:$AT$262,0,0,ROWS($M$31:$AT$262),1))-ROW(OFFSET($M$31:$AT$262,0,0,1,1))+1,ROW(OFFSET($M$31:$AT$262,ROWS($M$31:$AT$262)-1,0,1,1))+1),1),34))=VLOOKUP(M40,$M$31:$AT$262,34,FALSE),(INDEX($M$31:$AT$262,SMALL(IF(OFFSET($M$31:$AT$262,0,0,ROWS($M$31:$AT$262),1)=L41,ROW(OFFSET($M$31:$AT$262,0,0,ROWS($M$31:$AT$262),1))-ROW(OFFSET($M$31:$AT$262,0,0,1,1))+1,ROW(OFFSET($M$31:$AT$262,ROWS($M$31:$AT$262)-1,0,1,1))+1),6),34))),0)+IFERROR(IF((INDEX($M$31:$AT$262,SMALL(IF(OFFSET($M$31:$AT$262,0,0,ROWS($M$31:$AT$262),1)=L41,ROW(OFFSET($M$31:$AT$262,0,0,ROWS($M$31:$AT$262),1))-ROW(OFFSET($M$31:$AT$262,0,0,1,1))+1,ROW(OFFSET($M$31:$AT$262,ROWS($M$31:$AT$262)-1,0,1,1))+1),1),34))=VLOOKUP(M40,$M$31:$AT$262,34,FALSE),(INDEX($M$31:$AT$262,SMALL(IF(OFFSET($M$31:$AT$262,0,0,ROWS($M$31:$AT$262),1)=L41,ROW(OFFSET($M$31:$AT$262,0,0,ROWS($M$31:$AT$262),1))-ROW(OFFSET($M$31:$AT$262,0,0,1,1))+1,ROW(OFFSET($M$31:$AT$262,ROWS($M$31:$AT$262)-1,0,1,1))+1),7),34))),0)+IFERROR(IF((INDEX($M$31:$AT$262,SMALL(IF(OFFSET($M$31:$AT$262,0,0,ROWS($M$31:$AT$262),1)=L41,ROW(OFFSET($M$31:$AT$262,0,0,ROWS($M$31:$AT$262),1))-ROW(OFFSET($M$31:$AT$262,0,0,1,1))+1,ROW(OFFSET($M$31:$AT$262,ROWS($M$31:$AT$262)-1,0,1,1))+1),1),34))=VLOOKUP(M40,$M$31:$AT$262,34,FALSE),(INDEX($M$31:$AT$262,SMALL(IF(OFFSET($M$31:$AT$262,0,0,ROWS($M$31:$AT$262),1)=L41,ROW(OFFSET($M$31:$AT$262,0,0,ROWS($M$31:$AT$262),1))-ROW(OFFSET($M$31:$AT$262,0,0,1,1))+1,ROW(OFFSET($M$31:$AT$262,ROWS($M$31:$AT$262)-1,0,1,1))+1),8),34))),0)+IFERROR(IF((INDEX($M$31:$AT$262,SMALL(IF(OFFSET($M$31:$AT$262,0,0,ROWS($M$31:$AT$262),1)=L41,ROW(OFFSET($M$31:$AT$262,0,0,ROWS($M$31:$AT$262),1))-ROW(OFFSET($M$31:$AT$262,0,0,1,1))+1,ROW(OFFSET($M$31:$AT$262,ROWS($M$31:$AT$262)-1,0,1,1))+1),1),34))=VLOOKUP(M40,$M$31:$AT$262,34,FALSE),(INDEX($M$31:$AT$262,SMALL(IF(OFFSET($M$31:$AT$262,0,0,ROWS($M$31:$AT$262),1)=L41,ROW(OFFSET($M$31:$AT$262,0,0,ROWS($M$31:$AT$262),1))-ROW(OFFSET($M$31:$AT$262,0,0,1,1))+1,ROW(OFFSET($M$31:$AT$262,ROWS($M$31:$AT$262)-1,0,1,1))+1),9),34))),0)+IFERROR(IF((INDEX($M$31:$AT$262,SMALL(IF(OFFSET($M$31:$AT$262,0,0,ROWS($M$31:$AT$262),1)=L41,ROW(OFFSET($M$31:$AT$262,0,0,ROWS($M$31:$AT$262),1))-ROW(OFFSET($M$31:$AT$262,0,0,1,1))+1,ROW(OFFSET($M$31:$AT$262,ROWS($M$31:$AT$262)-1,0,1,1))+1),1),34))=VLOOKUP(M40,$M$31:$AT$262,34,FALSE),(INDEX($M$31:$AT$262,SMALL(IF(OFFSET($M$31:$AT$262,0,0,ROWS($M$31:$AT$262),1)=L41,ROW(OFFSET($M$31:$AT$262,0,0,ROWS($M$31:$AT$262),1))-ROW(OFFSET($M$31:$AT$262,0,0,1,1))+1,ROW(OFFSET($M$31:$AT$262,ROWS($M$31:$AT$262)-1,0,1,1))+1),10),34))),0),IF(M40<>L41,VLOOKUP(L41,$L$31:$AS$262,34,FALSE)+IFERROR(VLOOKUP(L41,$M$31:$AT$262,34,FALSE),0)))) -> 0.15451716 | AU41: 82.01967798 | AV41: 10.13875816 | AX41: 0 | AY41: =IF(L41="","",IF(ROW()=31,VLOOKUP(L41,$L$31:$AX$262,39,FALSE),IF(M40=L41,VLOOKUP(L41,$L$31:$AX$262,39,FALSE)+VLOOKUP(M40,$M$31:$AY$262,39,FALSE)+IFERROR(IF((INDEX($M$31:$AY$262,SMALL(IF(OFFSET($M$31:$AY$262,0,0,FILAX($M$31:$AY$262),1)=L41,ROW(OFFSET($M$31:$AY$262,0,0,FILAX($M$31:$AY$262),1))-ROW(OFFSET($M$31:$AY$262,0,0,1,1))+1,ROW(OFFSET($M$31:$AY$262,FILAX($M$31:$AY$262)-1,0,1,1))+1),1),39))=VLOOKUP(M40,$M$31:$AY$262,39,FALSE),(INDEX($M$31:$AY$262,SMALL(IF(OFFSET($M$31:$AY$262,0,0,FILAX($M$31:$AY$262),1)=L41,ROW(OFFSET($M$31:$AY$262,0,0,FILAX($M$31:$AY$262),1))-ROW(OFFSET($M$31:$AY$262,0,0,1,1))+1,ROW(OFFSET($M$31:$AY$262,FILAX($M$31:$AY$262)-1,0,1,1))+1),2),39))),0)+IFERROR(IF((INDEX($M$31:$AY$262,SMALL(IF(OFFSET($M$31:$AY$262,0,0,FILAX($M$31:$AY$262),1)=L41,ROW(OFFSET($M$31:$AY$262,0,0,FILAX($M$31:$AY$262),1))-ROW(OFFSET($M$31:$AY$262,0,0,1,1))+1,ROW(OFFSET($M$31:$AY$262,FILAX($M$31:$AY$262)-1,0,1,1))+1),1),39))=VLOOKUP(M40,$M$31:$AY$262,39,FALSE),(INDEX($M$31:$AY$262,SMALL(IF(OFFSET($M$31:$AY$262,0,0,FILAX($M$31:$AY$262),1)=L41,ROW(OFFSET($M$31:$AY$262,0,0,FILAX($M$31:$AY$262),1))-ROW(OFFSET($M$31:$AY$262,0,0,1,1))+1,ROW(OFFSET($M$31:$AY$262,FILAX($M$31:$AY$262)-1,0,1,1))+1),3),39))),0)+IFERROR(IF((INDEX($M$31:$AY$262,SMALL(IF(OFFSET($M$31:$AY$262,0,0,FILAX($M$31:$AY$262),1)=L41,ROW(OFFSET($M$31:$AY$262,0,0,FILAX($M$31:$AY$262),1))-ROW(OFFSET($M$31:$AY$262,0,0,1,1))+1,ROW(OFFSET($M$31:$AY$262,FILAX($M$31:$AY$262)-1,0,1,1))+1),1),39))=VLOOKUP(M40,$M$31:$AY$262,39,FALSE),(INDEX($M$31:$AY$262,SMALL(IF(OFFSET($M$31:$AY$262,0,0,FILAX($M$31:$AY$262),1)=L41,ROW(OFFSET($M$31:$AY$262,0,0,FILAX($M$31:$AY$262),1))-ROW(OFFSET($M$31:$AY$262,0,0,1,1))+1,ROW(OFFSET($M$31:$AY$262,FILAX($M$31:$AY$262)-1,0,1,1))+1),4),39))),0)+IFERROR(IF((INDEX($M$31:$AY$262,SMALL(IF(OFFSET($M$31:$AY$262,0,0,FILAX($M$31:$AY$262),1)=L41,ROW(OFFSET($M$31:$AY$262,0,0,FILAX($M$31:$AY$262),1))-ROW(OFFSET($M$31:$AY$262,0,0,1,1))+1,ROW(OFFSET($M$31:$AY$262,FILAX($M$31:$AY$262)-1,0,1,1))+1),1),39))=VLOOKUP(M40,$M$31:$AY$262,39,FALSE),(INDEX($M$31:$AY$262,SMALL(IF(OFFSET($M$31:$AY$262,0,0,FILAX($M$31:$AY$262),1)=L41,ROW(OFFSET($M$31:$AY$262,0,0,FILAX($M$31:$AY$262),1))-ROW(OFFSET($M$31:$AY$262,0,0,1,1))+1,ROW(OFFSET($M$31:$AY$262,FILAX($M$31:$AY$262)-1,0,1,1))+1),5),39))),0)+IFERROR(IF((INDEX($M$31:$AY$262,SMALL(IF(OFFSET($M$31:$AY$262,0,0,FILAX($M$31:$AY$262),1)=L41,ROW(OFFSET($M$31:$AY$262,0,0,FILAX($M$31:$AY$262),1))-ROW(OFFSET($M$31:$AY$262,0,0,1,1))+1,ROW(OFFSET($M$31:$AY$262,FILAX($M$31:$AY$262)-1,0,1,1))+1),1),39))=VLOOKUP(M40,$M$31:$AY$262,39,FALSE),(INDEX($M$31:$AY$262,SMALL(IF(OFFSET($M$31:$AY$262,0,0,FILAX($M$31:$AY$262),1)=L41,ROW(OFFSET($M$31:$AY$262,0,0,FILAX($M$31:$AY$262),1))-ROW(OFFSET($M$31:$AY$262,0,0,1,1))+1,ROW(OFFSET($M$31:$AY$262,FILAX($M$31:$AY$262)-1,0,1,1))+1),6),39))),0)+IFERROR(IF((INDEX($M$31:$AY$262,SMALL(IF(OFFSET($M$31:$AY$262,0,0,FILAX($M$31:$AY$262),1)=L41,ROW(OFFSET($M$31:$AY$262,0,0,FILAX($M$31:$AY$262),1))-ROW(OFFSET($M$31:$AY$262,0,0,1,1))+1,ROW(OFFSET($M$31:$AY$262,FILAX($M$31:$AY$262)-1,0,1,1))+1),1),39))=VLOOKUP(M40,$M$31:$AY$262,39,FALSE),(INDEX($M$31:$AY$262,SMALL(IF(OFFSET($M$31:$AY$262,0,0,FILAX($M$31:$AY$262),1)=L41,ROW(OFFSET($M$31:$AY$262,0,0,FILAX($M$31:$AY$262),1))-ROW(OFFSET($M$31:$AY$262,0,0,1,1))+1,ROW(OFFSET($M$31:$AY$262,FILAX($M$31:$AY$262)-1,0,1,1))+1),7),39))),0)+IFERROR(IF((INDEX($M$31:$AY$262,SMALL(IF(OFFSET($M$31:$AY$262,0,0,FILAX($M$31:$AY$262),1)=L41,ROW(OFFSET($M$31:$AY$262,0,0,FILAX($M$31:$AY$262),1))-ROW(OFFSET($M$31:$AY$262,0,0,1,1))+1,ROW(OFFSET($M$31:$AY$262,FILAX($M$31:$AY$262)-1,0,1,1))+1),1),39))=VLOOKUP(M40,$M$31:$AY$262,39,FALSE),(INDEX($M$31:$AY$262,SMALL(IF(OFFSET($M$31:$AY$262,0,0,FILAX($M$31:$AY$262),1)=L41,ROW(OFFSET($M$31:$AY$262,0,0,FILAX($M$31:$AY$262),1))-ROW(OFFSET($M$31:$AY$262,0,0,1,1))+1,ROW(OFFSET($M$31:$AY$262,FILAX($M$31:$AY$262)-1,0,1,1))+1),8),39))),0)+IFERROR(IF((INDEX($M$31:$AY$262,SMALL(IF(OFFSET($M$31:$AY$262,0,0,FILAX($M$31:$AY$262),1)=L41,ROW(OFFSET($M$31:$AY$262,0,0,FILAX($M$31:$AY$262),1))-ROW(OFFSET($M$31:$AY$262,0,0,1,1))+1,ROW(OFFSET($M$31:$AY$262,FILAX($M$31:$AY$262)-1,0,1,1))+1),1),39))=VLOOKUP(M40,$M$31:$AY$262,39,FALSE),(INDEX($M$31:$AY$262,SMALL(IF(OFFSET($M$31:$AY$262,0,0,FILAX($M$31:$AY$262),1)=L41,ROW(OFFSET($M$31:$AY$262,0,0,FILAX($M$31:$AY$262),1))-ROW(OFFSET($M$31:$AY$262,0,0,1,1))+1,ROW(OFFSET($M$31:$AY$262,FILAX($M$31:$AY$262)-1,0,1,1))+1),9),39))),0)+IFERROR(IF((INDEX($M$31:$AY$262,SMALL(IF(OFFSET($M$31:$AY$262,0,0,FILAX($M$31:$AY$262),1)=L41,ROW(OFFSET($M$31:$AY$262,0,0,FILAX($M$31:$AY$262),1))-ROW(OFFSET($M$31:$AY$262,0,0,1,1))+1,ROW(OFFSET($M$31:$AY$262,FILAX($M$31:$AY$262)-1,0,1,1))+1),1),39))=VLOOKUP(M40,$M$31:$AY$262,39,FALSE),(INDEX($M$31:$AY$262,SMALL(IF(OFFSET($M$31:$AY$262,0,0,FILAX($M$31:$AY$262),1)=L41,ROW(OFFSET($M$31:$AY$262,0,0,FILAX($M$31:$AY$262),1))-ROW(OFFSET($M$31:$AY$262,0,0,1,1))+1,ROW(OFFSET($M$31:$AY$262,FILAX($M$31:$AY$262)-1,0,1,1))+1),10),39))),0),IF(M40<>L41,VLOOKUP(L41,$L$31:$AX$262,39,FALSE)+IFERROR(VLOOKUP(L41,$M$31:$AY$262,39,FALSE),0))))) -> 0 | AZ41: 10.13875816 | BA41: 6.561574238 | BB41: 0.2498652491 | BC41: -1.324546736e-05 | BD41: PD1 | BE41: PD2 | BF41: 98.37056291 | BG41: PVC | BH41: =IF(OR($L41="",$M41="",BG41=""),"",INDEX('Tablas y listas'!$D$4:$G$17,MATCH('1. Analisis Flujo Uniforme'!BG41,'Tablas y listas'!$D$4:$D$17,0),4)) -> 0.0125 | BI41: 10 | BJ41: =IF(OR(BI41=""),"",IFERROR(IF($BI$30="Pulgadas",INDEX('Tablas y listas'!$B$64:$D$89,MATCH('1. Analisis Flujo Uniforme'!BI41,CONCRETO_Pulgadas,0),3),IF($BI$30="mm",BI41/(10*100))),"Indique φ")) -> 0.25 | BK41: =IF(OR(BF41="",BD41="",BE41=""),"",(N41-O41)/R41*100) -> 0.2033128551 | BL41: 0.6 | BM41: 0.8287615917 | BN41: Subcrítico | BO41: =IF(CK41="","",CK41) -> 0.2116391011 | BP41: =IF(CN41="","",CN41) -> 0.6508771167 | BQ41: 1.2 | BR41: 1.590223377 | BV41: 2542.85 | BW41: 2542.259777 | BX41: 2542.6 | BY41: 2542.009777 | BZ41: 2542.707488 | CA41: 2542.117265 | CB41: =IF(DM41="","",DM41) -> 0.2860468084 | CE41: PD1 | CF41: PD2 | CG41: =IF(OR($L41="",$M41=""),"",IF(MAX(IFERROR(INDEX(MatrizQs1,SMALL(IF(OFFSET(MatrizQs1,0,0,ROWS(MatrizQs1),1)=CF41,ROW(OFFSET(MatrizQs1,0,0,ROWS(MatrizQs1),1))-ROW(OFFSET(MatrizQs1,0,0,1,1))+1,ROW(OFFSET(MatrizQs1,ROWS(MatrizQs1)-1,0,1,1))+1),1),41),0),IFERROR(INDEX(MatrizQs1,SMALL(IF(OFFSET(MatrizQs1,0,0,ROWS(MatrizQs1),1)=CF41,ROW(OFFSET(MatrizQs1,0,0,ROWS(MatrizQs1),1))-ROW(OFFSET(MatrizQs1,0,0,1,1))+1,ROW(OFFSET(MatrizQs1,ROWS(MatrizQs1)-1,0,1,1))+1),2),41),0),IFERROR(INDEX(MatrizQs1,SMALL(IF(OFFSET(MatrizQs1,0,0,ROWS(MatrizQs1),1)=CF41,ROW(OFFSET(MatrizQs1,0,0,ROWS(MatrizQs1),1))-ROW(OFFSET(MatrizQs1,0,0,1,1))+1,ROW(OFFSET(MatrizQs1,ROWS(MatrizQs1)-1,0,1,1))+1),3),41),0),IFERROR(INDEX(MatrizQs1,SMALL(IF(OFFSET(MatrizQs1,0,0,ROWS(MatrizQs1),1)=CF41,ROW(OFFSET(MatrizQs1,0,0,ROWS(MatrizQs1),1))-ROW(OFFSET(MatrizQs1,0,0,1,1))+1,ROW(OFFSET(MatrizQs1,ROWS(MatrizQs1)-1,0,1,1))+1),4),41),0),IFERROR(INDEX(MatrizQs1,SMALL(IF(OFFSET(MatrizQs1,0,0,ROWS(MatrizQs1),1)=CF41,ROW(OFFSET(MatrizQs1,0,0,ROWS(MatrizQs1),1))-ROW(OFFSET(MatrizQs1,0,0,1,1))+1,ROW(OFFSET(MatrizQs1,ROWS(MatrizQs1)-1,0,1,1))+1),5),41),0),IFERROR(INDEX(MatrizQs1,SMALL(IF(OFFSET(MatrizQs1,0,0,ROWS(MatrizQs1),1)=CF41,ROW(OFFSET(MatrizQs1,0,0,ROWS(MatrizQs1),1))-ROW(OFFSET(MatrizQs1,0,0,1,1))+1,ROW(OFFSET(MatrizQs1,ROWS(MatrizQs1)-1,0,1,1))+1),6),41),0),IFERROR(INDEX(MatrizQs1,SMALL(IF(OFFSET(MatrizQs1,0,0,ROWS(MatrizQs1),1)=CF41,ROW(OFFSET(MatrizQs1,0,0,ROWS(MatrizQs1),1))-ROW(OFFSET(MatrizQs1,0,0,1,1))+1,ROW(OFFSET(MatrizQs1,ROWS(MatrizQs1)-1,0,1,1))+1),7),41),0),IFERROR(INDEX(MatrizQs1,SMALL(IF(OFFSET(MatrizQs1,0,0,ROWS(MatrizQs1),1)=CF41,ROW(OFFSET(MatrizQs1,0,0,ROWS(MatrizQs1),1))-ROW(OFFSET(MatrizQs1,0,0,1,1))+1,ROW(OFFSET(MatrizQs1,ROWS(MatrizQs1)-1,0,1,1))+1),8),41),0))=0,IFERROR(INDEX(matrizQs,SMALL(IF(OFFSET(matrizQs,0,0,ROWS(matrizQs),1)=CF41,ROW(OFFSET(matrizQs,0,0,ROWS(matrizQs),1))-ROW(OFFSET(matrizQs,0,0,1,1))+1,ROW(OFFSET(matrizQs,ROWS(matrizQs)-1,0,1,1))+1),1),40),0),MAX(IFERROR(INDEX(MatrizQs1,SMALL(IF(OFFSET(MatrizQs1,0,0,ROWS(MatrizQs1),1)=CF41,ROW(OFFSET(MatrizQs1,0,0,ROWS(MatrizQs1),1))-ROW(OFFSET(MatrizQs1,0,0,1,1))+1,ROW(OFFSET(MatrizQs1,ROWS(MatrizQs1)-1,0,1,1))+1),1),41),0),IFERROR(INDEX(MatrizQs1,SMALL(IF(OFFSET(MatrizQs1,0,0,ROWS(MatrizQs1),1)=CF41,ROW(OFFSET(MatrizQs1,0,0,ROWS(MatrizQs1),1))-ROW(OFFSET(MatrizQs1,0,0,1,1))+1,ROW(OFFSET(MatrizQs1,ROWS(MatrizQs1)-1,0,1,1))+1),2),41),0),IFERROR(INDEX(MatrizQs1,SMALL(IF(OFFSET(MatrizQs1,0,0,ROWS(MatrizQs1),1)=CF41,ROW(OFFSET(MatrizQs1,0,0,ROWS(MatrizQs1),1))-ROW(OFFSET(MatrizQs1,0,0,1,1))+1,ROW(OFFSET(MatrizQs1,ROWS(MatrizQs1)-1,0,1,1))+1),3),41),0),IFERROR(INDEX(MatrizQs1,SMALL(IF(OFFSET(MatrizQs1,0,0,ROWS(MatrizQs1),1)=CF41,ROW(OFFSET(MatrizQs1,0,0,ROWS(MatrizQs1),1))-ROW(OFFSET(MatrizQs1,0,0,1,1))+1,ROW(OFFSET(MatrizQs1,ROWS(MatrizQs1)-1,0,1,1))+1),4),41),0),IFERROR(INDEX(MatrizQs1,SMALL(IF(OFFSET(MatrizQs1,0,0,ROWS(MatrizQs1),1)=CF41,ROW(OFFSET(MatrizQs1,0,0,ROWS(MatrizQs1),1))-ROW(OFFSET(MatrizQs1,0,0,1,1))+1,ROW(OFFSET(MatrizQs1,ROWS(MatrizQs1)-1,0,1,1))+1),5),41),0),IFERROR(INDEX(MatrizQs1,SMALL(IF(OFFSET(MatrizQs1,0,0,ROWS(MatrizQs1),1)=CF41,ROW(OFFSET(MatrizQs1,0,0,ROWS(MatrizQs1),1))-ROW(OFFSET(MatrizQs1,0,0,1,1))+1,ROW(OFFSET(MatrizQs1,ROWS(MatrizQs1)-1,0,1,1))+1),6),41),0),IFERROR(INDEX(MatrizQs1,SMALL(IF(OFFSET(MatrizQs1,0,0,ROWS(MatrizQs1),1)=CF41,ROW(OFFSET(MatrizQs1,0,0,ROWS(MatrizQs1),1))-ROW(OFFSET(MatrizQs1,0,0,1,1))+1,ROW(OFFSET(MatrizQs1,ROWS(MatrizQs1)-1,0,1,1))+1),7),41),0),IFERROR(INDEX(MatrizQs1,SMALL(IF(OFFSET(MatrizQs1,0,0,ROWS(MatrizQs1),1)=CF41,ROW(OFFSET(MatrizQs1,0,0,ROWS(MatrizQs1),1))-ROW(OFFSET(MatrizQs1,0,0,1,1))+1,ROW(OFFSET(MatrizQs1,ROWS(MatrizQs1)-1,0,1,1))+1),8),41),0)))) -> 31.31367553 | CH41: =IF(OR($L41="",$M41=""),"",IF(MAX(IFERROR(INDEX(MDSU,SMALL(IF(OFFSET(MDSU,0,0,ROWS(MDSU),1)=CF41,ROW(OFFSET(MDSU,0,0,ROWS(MDSU),1))-ROW(OFFSET(MDSU,0,0,1,1))+1,ROW(OFFSET(MDSU,ROWS(MDSU)-1,0,1,1))+1),1),7),0),IFERROR(INDEX(MDSU,SMALL(IF(OFFSET(MDSU,0,0,ROWS(MDSU),1)=CF41,ROW(OFFSET(MDSU,0,0,ROWS(MDSU),1))-ROW(OFFSET(MDSU,0,0,1,1))+1,ROW(OFFSET(MDSU,ROWS(MDSU)-1,0,1,1))+1),2),7),0),IFERROR(INDEX(MDSU,SMALL(IF(OFFSET(MDSU,0,0,ROWS(MDSU),1)=CF41,ROW(OFFSET(MDSU,0,0,ROWS(MDSU),1))-ROW(OFFSET(MDSU,0,0,1,1))+1,ROW(OFFSET(MDSU,ROWS(MDSU)-1,0,1,1))+1),3),7),0),IFERROR(INDEX(MDSU,SMALL(IF(OFFSET(MDSU,0,0,ROWS(MDSU),1)=CF41,ROW(OFFSET(MDSU,0,0,ROWS(MDSU),1))-ROW(OFFSET(MDSU,0,0,1,1))+1,ROW(OFFSET(MDSU,ROWS(MDSU)-1,0,1,1))+1),4),7),0),IFERROR(INDEX(MDSU,SMALL(IF(OFFSET(MDSU,0,0,ROWS(MDSU),1)=CF41,ROW(OFFSET(MDSU,0,0,ROWS(MDSU),1))-ROW(OFFSET(MDSU,0,0,1,1))+1,ROW(OFFSET(MDSU,ROWS(MDSU)-1,0,1,1))+1),5),7),0),IFERROR(INDEX(MDSU,SMALL(IF(OFFSET(MDSU,0,0,ROWS(MDSU),1)=CF41,ROW(OFFSET(MDSU,0,0,ROWS(MDSU),1))-ROW(OFFSET(MDSU,0,0,1,1))+1,ROW(OFFSET(MDSU,ROWS(MDSU)-1,0,1,1))+1),6),7),0),IFERROR(INDEX(MDSU,SMALL(IF(OFFSET(MDSU,0,0,ROWS(MDSU),1)=CF41,ROW(OFFSET(MDSU,0,0,ROWS(MDSU),1))-ROW(OFFSET(MDSU,0,0,1,1))+1,ROW(OFFSET(MDSU,ROWS(MDSU)-1,0,1,1))+1),7),7),0),IFERROR(INDEX(MDSU,SMALL(IF(OFFSET(MDSU,0,0,ROWS(MDSU),1)=CF41,ROW(OFFSET(MDSU,0,0,ROWS(MDSU),1))-ROW(OFFSET(MDSU,0,0,1,1))+1,ROW(OFFSET(MDSU,ROWS(MDSU)-1,0,1,1))+1),8),7),0))=0,IFERROR(INDEX(MDS,SMALL(IF(OFFSET(MDS,0,0,ROWS(MDS),1)=CF41,ROW(OFFSET(MDS,0,0,ROWS(MDS),1))-ROW(OFFSET(MDS,0,0,1,1))+1,ROW(OFFSET(MDS,ROWS(MDS)-1,0,1,1))+1),1),6),0),MAX(IFERROR(INDEX(MDSU,SMALL(IF(OFFSET(MDSU,0,0,ROWS(MDSU),1)=CF41,ROW(OFFSET(MDSU,0,0,ROWS(MDSU),1))-ROW(OFFSET(MDSU,0,0,1,1))+1,ROW(OFFSET(MDSU,ROWS(MDSU)-1,0,1,1))+1),1),7),0),IFERROR(INDEX(MDSU,SMALL(IF(OFFSET(MDSU,0,0,ROWS(MDSU),1)=CF41,ROW(OFFSET(MDSU,0,0,ROWS(MDSU),1))-ROW(OFFSET(MDSU,0,0,1,1))+1,ROW(OFFSET(MDSU,ROWS(MDSU)-1,0,1,1))+1),2),7),0),IFERROR(INDEX(MDSU,SMALL(IF(OFFSET(MDSU,0,0,ROWS(MDSU),1)=CF41,ROW(OFFSET(MDSU,0,0,ROWS(MDSU),1))-ROW(OFFSET(MDSU,0,0,1,1))+1,ROW(OFFSET(MDSU,ROWS(MDSU)-1,0,1,1))+1),3),7),0),IFERROR(INDEX(MDSU,SMALL(IF(OFFSET(MDSU,0,0,ROWS(MDSU),1)=CF41,ROW(OFFSET(MDSU,0,0,ROWS(MDSU),1))-ROW(OFFSET(MDSU,0,0,1,1))+1,ROW(OFFSET(MDSU,ROWS(MDSU)-1,0,1,1))+1),4),7),0),IFERROR(INDEX(MDSU,SMALL(IF(OFFSET(MDSU,0,0,ROWS(MDSU),1)=CF41,ROW(OFFSET(MDSU,0,0,ROWS(MDSU),1))-ROW(OFFSET(MDSU,0,0,1,1))+1,ROW(OFFSET(MDSU,ROWS(MDSU)-1,0,1,1))+1),5),7),0),IFERROR(INDEX(MDSU,SMALL(IF(OFFSET(MDSU,0,0,ROWS(MDSU),1)=CF41,ROW(OFFSET(MDSU,0,0,ROWS(MDSU),1))-ROW(OFFSET(MDSU,0,0,1,1))+1,ROW(OFFSET(MDSU,ROWS(MDSU)-1,0,1,1))+1),6),7),0),IFERROR(INDEX(MDSU,SMALL(IF(OFFSET(MDSU,0,0,ROWS(MDSU),1)=CF41,ROW(OFFSET(MDSU,0,0,ROWS(MDSU),1))-ROW(OFFSET(MDSU,0,0,1,1))+1,ROW(OFFSET(MDSU,ROWS(MDSU)-1,0,1,1))+1),7),7),0),IFERROR(INDEX(MDSU,SMALL(IF(OFFSET(MDSU,0,0,ROWS(MDSU),1)=CF41,ROW(OFFSET(MDSU,0,0,ROWS(MDSU),1))-ROW(OFFSET(MDSU,0,0,1,1))+1,ROW(OFFSET(MDSU,ROWS(MDSU)-1,0,1,1))+1),8),7),0)))) -> 0.25 | CI41: 47.9058837 | CJ41: 0.9759306488 | CK41: 0.2116391011 | CL41: =IF(BJ41=0,"",IFERROR((CM41/BJ41),"")) -> 0.343582917 | CM41: =IF(BI41=0,"",IFERROR(BJ41*0.858451597*(CK41)^0.5896824401,"")) -> 0.08589572925 | CN41: =IF(OR($L41="",$M41=""),"",IF(BJ41=0,"",IFERROR(CJ41*1.054148687*(CK41)^0.2948111209,""))) -> 0.6508771167 | CO41: =IF(OR($L41="",$M41=""),"",IF(CM41=0,"",IFERROR(2*ACOS(1-(2*CM41)/BJ41),""))) -> 2.505241637 | CP41: =IF(OR($L41="",$M41=""),"",IFERROR(0.125*(CO41-SIN(CO41))*BJ41^2,"")) -> 0.0149295078 | CQ41: =IF(OR($L41="",$M41=""),"",IFERROR(0.5*CO41*BJ41,"")) -> 0.3131552046 | CR41: =IF(OR($L41="",$M41=""),"",IFERROR(IF(CP41=0,"",+CP41/CQ41),"")) -> 0.04767446807 | CS41: =IF(OR($L41="",$M41=""),"",IFERROR(IF(CO41=0,"",1/8*((CO41-SIN(CO41))/SIN(CO41/2))*BJ41),"")) -> 0.06287380837 | CT41: =IF(OR($L41="",$M41=""),"",IFERROR(IF(CN41=0,"",CN41/SQRT(9.81*CS41)),"")) -> 0.8287615917 | CU41: =IF(OR($L41="",$M41=""),"",IFERROR(IF(OR(CT41=0,CT41=""),"",IF(CT41<0.9,"Subcrítico",IF(CT41>1.1,"Supercrítico","Crítico"))),"")) -> Subcrítico | CV41: =IF(OR($L41="",$M41=""),"",IFERROR(CN41^2/(9.81*2),"")) -> 0.02159230484 | CW41: =IF(OR($L41="",$M41=""),"",IFERROR(IF(CV41=0,"",CM41+CV41),0)) -> 0.1074880341 | CX41: 0.2090021482 | CY41: 2.4 | CZ41: =IF(CT41=0,"",IF(CT41<0.9,IF(CY41>3,0.05*CV41,IF(AND(CY41>=1.5,CY41<3),0.2*CV41,IF(AND(CY41>=1,CY41<1.5),0.4*CV41))),IF(CT41>1.1,""))) -> 0.004318460969 | DA41: =IF(OR($L41="",$M41=""),"",IFERROR(IF(CV41=0,"",0.2*((CV42-CV41))),0)) -> 0.004077996043 | DB41: =IF(OR($L41="",$M41=""),"",IFERROR(IF(CT41=0,0,IF(CT41<=0.9,IF(CX41>CW41,CZ41+DA41+CX41-CW41,CZ41+DA41),"")),0)) -> 0.1099105711 | DC41: 1.2 | DD41: 4.8 | DE41: =IF(OR($L41="",$M41=""),"",IFERROR(IF(BI41=0,"",1.0381283*BJ41*DG41^0.5208062),0)) -> 0 | DF41: 1.2 | DG41: =IF(OR($L41="",$M41="",CT41=""),"",IFERROR(IF(CT41=0,"",IF(CT41>1.1,0.319*(CG41/1000)/CH41^2.5,"")),0)) ->  | DH41: =IF(OR($L41="",$M41=""),"",IFERROR(IF(DG41=0,"",IF(DG41>0.62,"",2*ACOS(1-2*DE41/CD41))),"")) ->  | DI41: =IF(OR($L41="",$M41=""),"",IFERROR(IF(DH41=0,"",IF(DG41>0.62,0,((BZ41*8)/(DH41-SIN(DH41))/1000/(CD41)^2)^2/19.62+DE41)),"")) -> 0 | DJ41: =IF(OR($L41="",$M41=""),"",IFERROR(IF(DG41=0,"",IF(DG41>0.62,"",0.589*DG41^2.67*CH41)),"")) ->  | DK41: =IF(OR($L41="",$M41=""),"",IFERROR(IF(BI41=0,"",IF(DG41>0.62,CH41*DF41*(DG41^2*1.91+0.7),DF41*(DI41+DJ41))),0)) -> 0 | DL41: 0.5902233775 | DM41: =IF(OR($L41="",$M41=""),"",IFERROR(IF(BL41=0,"",1000*CR41*BL41/100),"")) -> 0.2860468084 | DN41: 2544.05 | DO41: 2543.85 | DP41: 0 | DQ41: 0 | DR41: 2542.85 | DS41: =IF(OR($L41="",$M41=""),"",IFERROR(IF(DR41=0,"",DR41-DL41),"")) -> 2542.259777 | DT41: =IF(OR($L41="",$M41=""),"",IF(MIN(IFERROR(INDEX(Matriz_busq,SMALL(IF(OFFSET(Matriz_busq,0,0,ROWS(Matriz_busq),1)=BD41,ROW(OFFSET(Matriz_busq,0,0,ROWS(Matriz_busq),1))-ROW(OFFSET(Matriz_busq,0,0,1,1))+1,ROW(OFFSET(Matriz_busq,ROWS(Matriz_busq)-1,0,1,1))+1),1),40),10000),IFERROR(INDEX(Matriz_busq,SMALL(IF(OFFSET(Matriz_busq,0,0,ROWS(Matriz_busq),1)=BD41,ROW(OFFSET(Matriz_busq,0,0,ROWS(Matriz_busq),1))-ROW(OFFSET(Matriz_busq,0,0,1,1))+1,ROW(OFFSET(Matriz_busq,ROWS(Matriz_busq)-1,0,1,1))+1),2),40),10000),IFERROR(INDEX(Matriz_busq,SMALL(IF(OFFSET(Matriz_busq,0,0,ROWS(Matriz_busq),1)=BD41,ROW(OFFSET(Matriz_busq,0,0,ROWS(Matriz_busq),1))-ROW(OFFSET(Matriz_busq,0,0,1,1))+1,ROW(OFFSET(Matriz_busq,ROWS(Matriz_busq)-1,0,1,1))+1),3),40),10000),IFERROR(INDEX(Matriz_busq,SMALL(IF(OFFSET(Matriz_busq,0,0,ROWS(Matriz_busq),1)=BD41,ROW(OFFSET(Matriz_busq,0,0,ROWS(Matriz_busq),1))-ROW(OFFSET(Matriz_busq,0,0,1,1))+1,ROW(OFFSET(Matriz_busq,ROWS(Matriz_busq)-1,0,1,1))+1),4),40),10000),IFERROR(INDEX(Matriz_busq,SMALL(IF(OFFSET(Matriz_busq,0,0,ROWS(Matriz_busq),1)=BD41,ROW(OFFSET(Matriz_busq,0,0,ROWS(Matriz_busq),1))-ROW(OFFSET(Matriz_busq,0,0,1,1))+1,ROW(OFFSET(Matriz_busq,ROWS(Matriz_busq)-1,0,1,1))+1),5),40),10000),IFERROR(INDEX(Matriz_busq,SMALL(IF(OFFSET(Matriz_busq,0,0,ROWS(Matriz_busq),1)=BD41,ROW(OFFSET(Matriz_busq,0,0,ROWS(Matriz_busq),1))-ROW(OFFSET(Matriz_busq,0,0,1,1))+1,ROW(OFFSET(Matriz_busq,ROWS(Matriz_busq)-1,0,1,1))+1),6),40),10000),IFERROR(INDEX(Matriz_busq,SMALL(IF(OFFSET(Matriz_busq,0,0,ROWS(Matriz_busq),1)=BD41,ROW(OFFSET(Matriz_busq,0,0,ROWS(Matriz_busq),1))-ROW(OFFSET(Matriz_busq,0,0,1,1))+1,ROW(OFFSET(Matriz_busq,ROWS(Matriz_busq)-1,0,1,1))+1),7),40),10000),IFERROR(INDEX(Matriz_busq,SMALL(IF(OFFSET(Matriz_busq,0,0,ROWS(Matriz_busq),1)=BD41,ROW(OFFSET(Matriz_busq,0,0,ROWS(Matriz_busq),1))-ROW(OFFSET(Matriz_busq,0,0,1,1))+1,ROW(OFFSET(Matriz_busq,ROWS(Matriz_busq)-1,0,1,1))+1),8),40),10000))=10000,0,MIN(IFERROR(INDEX(Matriz_busq,SMALL(IF(OFFSET(Matriz_busq,0,0,ROWS(Matriz_busq),1)=BD41,ROW(OFFSET(Matriz_busq,0,0,ROWS(Matriz_busq),1))-ROW(OFFSET(Matriz_busq,0,0,1,1))+1,ROW(OFFSET(Matriz_busq,ROWS(Matriz_busq)-1,0,1,1))+1),1),40),10000),IFERROR(INDEX(Matriz_busq,SMALL(IF(OFFSET(Matriz_busq,0,0,ROWS(Matriz_busq),1)=BD41,ROW(OFFSET(Matriz_busq,0,0,ROWS(Matriz_busq),1))-ROW(OFFSET(Matriz_busq,0,0,1,1))+1,ROW(OFFSET(Matriz_busq,ROWS(Matriz_busq)-1,0,1,1))+1),2),40),10000),IFERROR(INDEX(Matriz_busq,SMALL(IF(OFFSET(Matriz_busq,0,0,ROWS(Matriz_busq),1)=BD41,ROW(OFFSET(Matriz_busq,0,0,ROWS(Matriz_busq),1))-ROW(OFFSET(Matriz_busq,0,0,1,1))+1,ROW(OFFSET(Matriz_busq,ROWS(Matriz_busq)-1,0,1,1))+1),3),40),10000),IFERROR(INDEX(Matriz_busq,SMALL(IF(OFFSET(Matriz_busq,0,0,ROWS(Matriz_busq),1)=BD41,ROW(OFFSET(Matriz_busq,0,0,ROWS(Matriz_busq),1))-ROW(OFFSET(Matriz_busq,0,0,1,1))+1,ROW(OFFSET(Matriz_busq,ROWS(Matriz_busq)-1,0,1,1))+1),4),40),10000),IFERROR(INDEX(Matriz_busq,SMALL(IF(OFFSET(Matriz_busq,0,0,ROWS(Matriz_busq),1)=BD41,ROW(OFFSET(Matriz_busq,0,0,ROWS(Matriz_busq),1))-ROW(OFFSET(Matriz_busq,0,0,1,1))+1,ROW(OFFSET(Matriz_busq,ROWS(Matriz_busq)-1,0,1,1))+1),5),40),10000),IFERROR(INDEX(Matriz_busq,SMALL(IF(OFFSET(Matriz_busq,0,0,ROWS(Matriz_busq),1)=BD41,ROW(OFFSET(Matriz_busq,0,0,ROWS(Matriz_busq),1))-ROW(OFFSET(Matriz_busq,0,0,1,1))+1,ROW(OFFSET(Matriz_busq,ROWS(Matriz_busq)-1,0,1,1))+1),6),40),10000),IFERROR(INDEX(Matriz_busq,SMALL(IF(OFFSET(Matriz_busq,0,0,ROWS(Matriz_busq),1)=BD41,ROW(OFFSET(Matriz_busq,0,0,ROWS(Matriz_busq),1))-ROW(OFFSET(Matriz_busq,0,0,1,1))+1,ROW(OFFSET(Matriz_busq,ROWS(Matriz_busq)-1,0,1,1))+1),7),40),10000),IFERROR(INDEX(Matriz_busq,SMALL(IF(OFFSET(Matriz_busq,0,0,ROWS(Matriz_busq),1)=BD41,ROW(OFFSET(Matriz_busq,0,0,ROWS(Matriz_busq),1))-ROW(OFFSET(Matriz_busq,0,0,1,1))+1,ROW(OFFSET(Matriz_busq,ROWS(Matriz_busq)-1,0,1,1))+1),8),40),10000)))) -> 0 | DU41: 1.2 | DV41: 1.590223377 | DW41: 2542.6 | DX41: 2542.009777 | DY41: =IF(OR($L41="",$M41=""),"",IFERROR(IF(DW41=0,"",DW41+CW41),"")) -> 2542.707488 | DZ41: =IF(OR($L41="",$M41=""),"",IFERROR(IF(DX41=0,"",DX41+CW41),"")) -> 2542.117265
